Workbook

Sheet Change Log
C1: EDPR16 JEN PTRM Model (Distribution services)
C2: Index
B6: Copyright Jemena Limited. All rights reserved. Jemena is not liable for any loss caused by reliance on this document.
B8: Model change log
C10: Starting model name ----> | D10: Attachment 06.01 - JEN Post-Tax Revenue Model - Distribution - PUBLIC
C12: Model changes to above model
C14: Model sheet | D14: Reference | E14: Cell reference | F14: Type | G14: Legend | H14: Comments
C16: PTRM input | D16: Change 1 | E16: T6:T36 | F16: Structural | H16: JEN accepts AER's workings for ERC standard life
D17: Change 2 | E17: G14 | F17: Structural | H17: JEN added new land category
D18: Change 3 | E18: J7:P14 | F18: Structural | H18: JEN accepts elements of the AER preliminary determination by linking assumptions to RAB RFM
D19: Change 4 | E19: M36 | F19: Structural | H19: =H16 -> JEN accepts AER's workings for ERC standard life
D20: Change 5 | E20: P36 | F20: Assumption | H20: JEN accepts AER's Tax Standard Life assumption for Equity raising costs
D21: Change 6 | E21: G41:K42 | F21: Assumption | H21: JEN capex assumptions amended to account for changes in project expenditure
D22: Change 7 | E22: G45:K48 | F22: Assumption | H22: JEN capex assumptions amended to account for changes in project expenditure
D23: Change 8 | E23: G81:K81 | F23: Assumption | H23: JEN asset disposal assumptions amended to include the land sale
D24: Change 9 | E24: G109:K110 | F24: Assumption | H24: JEN assumptions amended to account for changes in customer forecast and customer contribution percentages
D25: Change 10 | E25: G177:K177 | F25: Assumption | H25: JEN assumptions amended to account for changes in base, step and trend assumptions
D26: Change 11 | E26: G191:K191 | F26: Assumption | H26: JEN assumptions amended to account for changes in EBSS assumptions
D27: Change 12 | E27: R193 | F27: Assumption | H27: JEN accepts AER preliminary determination in relation to tax treatments
D28: Change 13 | E28: S194 | F28: Assumption | H28: JEN accepts AER preliminary determination in relation to tax treatments
D29: Change 14 | E29: R195:S195 | F29: Assumption | H29: JEN accepts AER preliminary determination in relation to tax treatments
D30: Change 15 | E30: G195:K195 | F30: Assumption | H30: JEN assumptions amended to include DMIA values as per the AER preliminary determination
D31: Change 16 | E31: G216 | F31: Structural | H31: JEN linking assumptions to updated rate of return calculations
D32: Change 17 | E32: G217 | F32: Structural | H32: JEN linking assumptions to updated rate of return calculations
D33: Change 18 | E33: G222:K222 | F33: Structural | H33: JEN linking assumptions to updated rate of return calculations
D34: Change 19 | E34: G233 | F34: Structural | H34: JEN linking assumptions to updated rate of return calculations
D35: Change 20 | E35: H242:K242 | F35: Assumption | H35: JEN updated the customer forecast for years 2017 to 2020
D36: Change 21 | E36: H284:BY314 | F36: Assumption | H36: JEN updated the customer forecast for years 2017 to 2020
C39: Model sheet | D39: Reference | E39: Cell reference | F39: Type | G39: Legend | H39: Comments
C41: Inputs | D41: Change 22 | E41: n.m. | F41: Structural | H41: Inserted AER's depreciation (Baseline Model) between "PTRM input" and "WACC" tabs
D42: Change 23 | E42: E11 | F42: Assumption | H42: Linked applied real vanilla WACC assumption
D43: Change 24 | E43: O17:S17 | F43: Assumption | H43: Linked applied inflation assumption
D44: Change 25 | E44: J18:S18 | F44: Structural | H44: Updated formula to apply appropriate lagged inflation method to the cumulative calculation
D45: Change 26 | E45: E43:F49 | F45: Assumption | H45: Linked assumptions to RAB RFM
D46: Change 27 | E46: I43:N49 | F46: Assumption | H46: Linked assumptions to RAB RFM
D47: Change 28 | E47: I80:I86 | F47: Assumption | H47: Linked assumptions to RAB RFM
D48: Change 29 | E48: N116:N122 | F48: Assumption | H48: Linked assumptions to RAB RFM
D49: Change 30 | E49: N143:N149 | F49: Assumption | H49: Linked assumptions to RAB RFM
C52: Model sheet | D52: Reference | E52: Cell reference | F52: Type | G52: Legend | H52: Comments
C54: Assets | D54: Change 31 | E54: G76:BI76 | F54: Structural | H54: JEN replaced the default PTRM calculation with the alternative baseline method consistent with the preliminary determination
D55: Change 32 | E55: G89:BI89 | F55: Structural | H55: JEN replaced the default PTRM calculation with the alternative baseline method consistent with the preliminary determination
D56: Change 33 | E56: G102:BI102 | F56: Structural | H56: JEN replaced the default PTRM calculation with the alternative baseline method consistent with the preliminary determination
D57: Change 34 | E57: G115:BI115 | F57: Structural | H57: JEN replaced the default PTRM calculation with the alternative baseline method consistent with the preliminary determination
D58: Change 35 | E58: G128:BI128 | F58: Structural | H58: JEN replaced the default PTRM calculation with the alternative baseline method consistent with the preliminary determination
D59: Change 36 | E59: G141:BI141 | F59: Structural | H59: JEN replaced the default PTRM calculation with the alternative baseline method consistent with the preliminary determination
D60: Change 37 | E60: G154:BI154 | F60: Structural | H60: JEN replaced the default PTRM calculation with the alternative baseline method consistent with the preliminary determination
C63: Model sheet | D63: Reference | E63: Cell reference | F63: Type | G63: Legend | H63: Comments
C65: X factors | D65: Change 38 | E65: G47 | F65: Assumption | H65: Linked year 1 X factor to AER preliminary decision to retain the same year 1 revenue value
D66: Change 39 | E66: H47 | F66: Assumption | H66: Amend the X factor in year 2
D67: Change 40 | E67: G60 | F67: Structural | H67: Amended the year 1 revenue formula to account for the change in inflation assumption while retaining the same revenue value as the preliminary decision
D68: Change 41 | E68: G63 | F68: Assumption | H68: Linked year 1 X factor to AER preliminary decision to retain the same year 1 revenue value
D69: Change 42 | E69: H63:K63 | F69: Assumption | H69: Amend the X factors in years 2 to 5
B72: End

Sheet Index
C1: EDPR16 JEN PTRM Model (Distribution services)
C2: Index
B6: Copyright Jemena Limited. All rights reserved. Jemena is not liable for any loss caused by reliance on this document.
B8: Where does this model fit into our submission model suite?
B51: End

Sheet Intro
G2: Electricity Distribution Network Service Provider
H3: Post-Tax Revenue Model
K4: Version: | L4: 3
K5: Date: | L5: January 2015
B8: Introduction | J8: Electricity Distribution Module
C13: This model illustrates the basic elements of the AER's building block calculation and associated price and revenue constraints for distribution businesses.
C14: The model is intended to produce X factors that are applicable to revenue caps, price caps and revenue yield forms of control.
C15: Building block revenues and cash flows are modelled in nominal terms unless specified otherwise.
C17: INSTRUCTIONS FOR USE
C18: The full PTRM handbook is available on the AER website at http://www.aer.gov.au/node/27616
C20: 1. Prior to the commencement of the regulatory control period
C22: 1a. Fill out input cells on the 'DMS Input' sheet. These input cells are highlighted blue.
C23: This provides information on the service provider submitting the PTRM and the context for the PTRM preparation.
C24: This information also controls the automatic import of the PTRM into the AER's Data Management System (DMS).
C26: 1b. Fill out input cells on the 'PTRM Input' sheet. These input cells are highlighted blue.
C27: This provides the data for the PTRM calculations.
C28: In general, input expenditure data should be valued in real dollar terms of the year indicated, as at the end of that year.
C29: Units and basis for entry are specified where required for each data table.
C30: Review any cautions (which are generated based on data entered) before continuing.
C32: 1c. Determine the expected revenue (smoothed revenue) using the 'X factors' sheet
C33: Clause 6.2.6 requires that the form of control applicable to standard control services be of a CPI–X form.
C34: This sheet provides for the calculation of X factors under three basic forms of control, namely a weighted average price cap, revenue cap and revenue yield.
C35: The X factor values may differ for each year of the regulatory control period but must be set such that the NPV of annual expected revenues (smoothed) is equal to the NPV of the annual revenue requirements (unsmoothed) for that period.
C36: This sheet provides input cells for each X factor and contains macro buttons which should be used to goal seek an X factor value for a specific year to equate the NPVs of smoothed and unsmoothed revenues.
C38: 2. Within the regulatory control period when updating the annual return on debt
C40: 2a. Update input cells on the 'DMS Input' sheet. These input cells are highlighted blue.
C41: Check that the contact details are still current and describe the new amendment.
C43: 2b. Update input cells on the 'PTRM Input' sheet. These input cells are highlighted blue.
C44: In general, the only row that should be changed is the Trailing Average Portfolio Return on Debt (row 222).
C45: The basis for updating the annual return on debt will be in accordance with the relevant regulatory decision prior to the commencement of the period.
C47: 2c. Determine the expected revenue (smoothed revenue) using the 'X factors' sheet
C48: Indicate the year of the annual debt update (cell F21) to ensure the correct content-sensitive cautions are displayed.
C49: Enter new X factors for this year (and potentially later years within the regulatory control period) in order to equate the NPVs of smoothed and unsmoothed revenues.
C50: The macro buttons should be used to goal seek the X factor for these specific years.
C51: Note that X factors for earlier years within the regulatory control period should not be changed.
C54: VERSION RECORD
C56: Version | D56: Date | F56: Description
C57: 1 | D57: June 2008 | F57: Initial model, based on transmission PTRM
C59: 2 | D59: June 2009 | F59: Various non-consequential errors corrected
C61: 3 | D61: January 2015 | F61: Allowed time-varying return on debt, and revenue revisions for annual return on debt update
F62: Explicitly recognised revenue adjustments in building block calculations
F63: Incorporated equity raising cost calculations into automatic smoothing process
F64: Revised and expanded summary tables and reporting
F65: Standardised many elements with transmission PTRM
F66: Enabled automatic import into AER DMS

Sheet DMS input
B2: =C16&" - DMS Input"&" - DNSP PTRM - version "&Intro!$L$4 -> JEN - DMS Input - DNSP PTRM - version 3 | G2: Input cells are in blue
B6: This sheet requests information that allows the AER to automatically import the PTRM into our data management system (DMS).
B7: This sheet's metadata relates to the business and context for the PTRM (rather than the PTRM itself).
B8: Some of this data is automatically populated based on data entered on the PTRM input sheet. Only change blue input cells.
B9: Some rows are hidden. To facilitate the automatic import, please do not delete or add rows on this sheet.
B10: Throughout the rest of the workbook, defined name ranges are used to identify data that is imported into the DMS.
B12: Entity details
B14: Trading name | C14: Jemena Electricity Networks (VIC) Ltd
B15: ACN / ABN | C15: 82 064 651 083
B16: Business short name | C16: JEN
B18: Business address | C18: Address 1 | E18: 321 Ferntree Gully Road
D19: Address 2
C20: Suburb | E20: Mt Waverley
D21: State | E21: Vic | F21: Postcode | G21: 3149
B23: Postal address | C23: Address 1 | E23: 321 Ferntree Gully Road
D24: Address 2
C25: Suburb | E25: Mt Waverley
D26: State | E26: Vic | F26: Postcode | G26: 3149
B29: Contact name/s | C29: Robert McMillan | F29: Matthew Serpell
B30: Contact phone/s | C30: 385449000 | F30: 385449000
B31: Contact email address/s | C31: robert.mcmillan@jemena.com.au | F31: matthew.serpell@jemena.com.au
B33: Regulatory process details
B35: Forthcoming regulatory control period | C35: ='PTRM input'!G40 -> 2016 | D35: =IF(COUNTA($C35:C35)>='PTRM input'!$R$7,"",'PTRM input'!H40) -> 2017 | E35: =IF(COUNTA($C35:D35)>='PTRM input'!$R$7,"",'PTRM input'!I40) -> 2018 | F35: =IF(COUNTA($C35:E35)>='PTRM input'!$R$7,"",'PTRM input'!J40) -> 2019 | G35: =IF(COUNTA($C35:F35)>='PTRM input'!$R$7,"",'PTRM input'!K40) -> 2020 | H35: =IF(COUNTA($C35:G35)>='PTRM input'!$R$7,"",'PTRM input'!L40) ->  | I35: =IF(COUNTA($C35:H35)>='PTRM input'!$R$7,"",'PTRM input'!M40) ->  | J35: =IF(COUNTA($C35:I35)>='PTRM input'!$R$7,"",'PTRM input'!N40) ->  | K35: =IF(COUNTA($C35:J35)>='PTRM input'!$R$7,"",'PTRM input'!O40) ->  | L35: =IF(COUNTA($C35:K35)>='PTRM input'!$R$7,"",'PTRM input'!P40) -> 
B36: Year prior to the FRCP | C36: ='PTRM input'!F241 -> 2015
B38: Current regulatory control period
B41: Previous regulatory control period
B44: Sector | C44: Electricity
B45: Segment | C45: Distribution
B46: Source | C46: Regulatory proposal
B47: Regulatory Year Ending | C47: =LEFT('X factors'!$F$21,2)&RIGHT('X factors'!$F$21,2) -> 2016
B48: Reporting Period Type | C48: =IF(LEN(C35)=4,"Calendar",IF(LEN(C35)=7,"Financial","Other")) -> Calendar
B49: RIN or Model Type | C49: PTRM
B50: Security Classification | C50: Public
B51: Data quality (Actual, estimate, consolidated) | C51: Consolidated
B52: Model response - version no.
B53: Amended model submission - reason
B54: Model template - version no. | C54: 3
B55: $ real | C55: ='PTRM input'!F241 -> 2015
B56: Form of control | C56: Revenue Cap

Sheet PTRM input
L1: 1. Changed the name of two tariff denominations for Peak Demand BLK 1 and BLK 2 from ($/kvA) to ($/kW)
E2: ='DMS input'!$C$16&" - PTRM input"&" - DNSP PTRM - version "&Intro!$L$4 -> JEN - PTRM input - DNSP PTRM - version 3 | G2: JEN amendments are in red | I2: Input cells are in blue | L2: 2. Inserted two new tariff types (i.e. Shoulder Energy (c/kWh) BLK 1 and Shoulder Energy (c/kWh) BLK 2)
L3: 3. Insert five (5) rows in all three sections (forecast sales quantities, forecast prices and forecast revenues).
E5: ="Opening Regulatory Asset Base and Opening Tax Asset Base for "&Q7&" ($m Nominal)" -> Opening Regulatory Asset Base and Opening Tax Asset Base for 2016 ($m Nominal)
G6: Asset Class Name | J6: Opening Asset Value | K6: Assets Under Construction | L6: Remaining Life | M6: Standard Life | N6: Opening Tax Value | O6: Tax Remaining Life | P6: Tax Standard Life | Q6: Base Regulatory Year | R6: Length of Regulatory Control Period (Year) | T6: Working for ERC standard life
E7: Asset Class 1 | G7: ='[9]PTRM Input'!G6:I6 -> Subtransmission | J7: ='[9]PTRM Input'!J6 -> 256.5042914 | K7: ='[9]PTRM Input'!K6 -> 0 | L7: ='[9]PTRM Input'!L6 -> n/a | M7: ='[9]PTRM Input'!M6 -> 43.80260565 | N7: ='[9]PTRM Input'!N6 -> 158.5885997 | O7: ='[9]PTRM Input'!O6 -> 32.93639902 | P7: ='[9]PTRM Input'!P6 -> 42.97648397 | Q7: 2016 | R7: 5 | T7: =M7*(J7/(SUM($J$7:$J$8,$J$11:$J$13))) -> 9.431109872
E8: Asset Class 2 | G8: ='[9]PTRM Input'!G7:I7 -> Distribution system assets | J8: ='[9]PTRM Input'!J7 -> 797.6562097 | K8: ='[9]PTRM Input'!K7 -> 0 | L8: ='[9]PTRM Input'!L7 -> n/a | M8: ='[9]PTRM Input'!M7 -> 47.71794973 | N8: ='[9]PTRM Input'!N7 -> 493.1659453 | O8: ='[9]PTRM Input'!O7 -> 29.01681779 | P8: ='[9]PTRM Input'!P7 -> 45.1629244 | T8: =M8*(J8/(SUM($J$7:$J$8,$J$11:$J$13))) -> 31.94962382
E9: Asset Class 3 | G9: ='[9]PTRM Input'!G8:I8 -> Metering | J9: ='[9]PTRM Input'!J8 -> 0.03218248454 | K9: ='[9]PTRM Input'!K8 -> 0 | L9: ='[9]PTRM Input'!L8 -> n/a | M9: ='[9]PTRM Input'!M8 -> n/a | N9: ='[9]PTRM Input'!N8 -> 0.06911796455 | O9: ='[9]PTRM Input'!O8 -> 1 | P9: ='[9]PTRM Input'!P8 -> n/a | T9: n/a
E10: Asset Class 4 | G10: ='[9]PTRM Input'!G9:I9 -> Public Lighting | J10: ='[9]PTRM Input'!J9 -> 7.185725204 | K10: ='[9]PTRM Input'!K9 -> 0 | L10: ='[9]PTRM Input'!L9 -> n/a | M10: ='[9]PTRM Input'!M9 -> n/a | N10: ='[9]PTRM Input'!N9 -> 4.442709678 | O10: ='[9]PTRM Input'!O9 -> 1.259114719 | P10: ='[9]PTRM Input'!P9 -> n/a | T10: n/a
E11: Asset Class 5 | G11: ='[9]PTRM Input'!G10:I10 -> SCADA/Network control | J11: ='[9]PTRM Input'!J10 -> 5.994840484 | K11: ='[9]PTRM Input'!K10 -> 0 | L11: ='[9]PTRM Input'!L10 -> n/a | M11: ='[9]PTRM Input'!M10 -> 10 | N11: ='[9]PTRM Input'!N10 -> 7.10646286 | O11: ='[9]PTRM Input'!O10 -> 9.272539219 | P11: ='[9]PTRM Input'!P10 -> 10 | T11: 0.05032060508
E12: Asset Class 6 | G12: ='[9]PTRM Input'!G11:I11 -> Non network - IT | J12: ='[9]PTRM Input'!J11 -> 57.36771195 | K12: ='[9]PTRM Input'!K11 -> 0 | L12: ='[9]PTRM Input'!L11 -> n/a | M12: ='[9]PTRM Input'!M11 -> 5.236260408 | N12: ='[9]PTRM Input'!N11 -> 23.97412945 | O12: ='[9]PTRM Input'!O11 -> 2.458075903 | P12: ='[9]PTRM Input'!P11 -> 4.385434498 | T12: 0.2521488482
E13: Asset Class 7 | G13: ='[9]PTRM Input'!G12:I12 -> Non network - other | J13: ='[9]PTRM Input'!J12 -> 73.80611937 | K13: ='[9]PTRM Input'!K12 -> 0 | L13: ='[9]PTRM Input'!L12 -> n/a | M13: ='[9]PTRM Input'!M12 -> 24.20373958 | N13: ='[9]PTRM Input'!N12 -> 46.84029315 | O13: ='[9]PTRM Input'!O12 -> 11.10603407 | P13: ='[9]PTRM Input'!P12 -> 17.42563677 | T13: 1.499488246
E14: Asset Class 8 | G14: ='[9]PTRM Input'!G13:I13 -> Land | J14: ='[9]PTRM Input'!J13 -> 0 | K14: ='[9]PTRM Input'!K13 -> 0 | L14: ='[9]PTRM Input'!L13 -> 0 | M14: ='[9]PTRM Input'!M13 -> 0 | N14: ='[9]PTRM Input'!N13 -> 20.39371235 | O14: ='[9]PTRM Input'!O13 -> n/a | P14: ='[9]PTRM Input'!P13 -> n/a
E15: Asset Class 9
E16: Asset Class 10
E17: Asset Class 11
E18: Asset Class 12
E19: Asset Class 13
E20: Asset Class 14
E21: Asset Class 15
E22: Asset Class 16
E23: Asset Class 17
E24: Asset Class 18
E25: Asset Class 19
E26: Asset Class 20
E27: Asset Class 21
E28: Asset Class 22
E29: Asset Class 23
E30: Asset Class 24
E31: Asset Class 25
E32: Asset Class 26
E33: Asset Class 27
E34: Asset Class 28
E35: Asset Class 29
E36: Asset Class 30 | G36: Equity raising costs | J36: n/a | K36: 0 | L36: n/a | M36: =T36 -> 43.18269139 | N36: n/a | O36: n/a | P36: 5 | T36: =SUM(T7:T35) -> 43.18269139
E37: Total | J37: =SUM(J7:J36)+K37 -> 1198.547081 | K37: =SUM(K7:K36) -> 0 | N37: =SUM(N7:N36) -> 754.5809705
E39: ="Forecast Capital Expenditure – As Incurred ($m Real "&$F$241&")" -> Forecast Capital Expenditure – As Incurred ($m Real 2015)
E40: Year | G40: =Q7 -> 2016 | H40: =(LEFT(G40,4)+1&IF(MID(G40,5,1)="","","-"&TEXT(MOD(MID(G40,6,2)+1,100),"00"))) -> 2017 | I40: =(LEFT(H40,4)+1&IF(MID(H40,5,1)="","","-"&TEXT(MOD(MID(H40,6,2)+1,100),"00"))) -> 2018 | J40: 2019 | K40: 2020 | L40: 2021 | M40: 2022 | N40: 2023 | O40: 2024 | P40: 2025
E41: =Asset1 -> Subtransmission | G41: ='[10]Output|AER Models'!O63 -> 14.79504103 | H41: ='[10]Output|AER Models'!P63 -> 48.68395525 | I41: ='[10]Output|AER Models'!Q63 -> 39.05863185 | J41: ='[10]Output|AER Models'!R63 -> 24.51821933 | K41: ='[10]Output|AER Models'!S63 -> 11.08694019
E42: =Asset2 -> Distribution system assets | G42: ='[10]Output|AER Models'!O64 -> 94.72952537 | H42: ='[10]Output|AER Models'!P64 -> 102.2728964 | I42: ='[10]Output|AER Models'!Q64 -> 102.2996869 | J42: ='[10]Output|AER Models'!R64 -> 108.8407123 | K42: ='[10]Output|AER Models'!S64 -> 109.1003695
E43: =Asset3 -> Metering
E44: =Asset4 -> Public Lighting
E45: =Asset5 -> SCADA/Network control | G45: ='[10]Output|AER Models'!O65 -> 8.988748047 | H45: ='[10]Output|AER Models'!P65 -> 6.062728631 | I45: ='[10]Output|AER Models'!Q65 -> 1.83528918 | J45: ='[10]Output|AER Models'!R65 -> 11.05520245 | K45: ='[10]Output|AER Models'!S65 -> 11.52623767
E46: =Asset6 -> Non network - IT | G46: ='[10]Output|AER Models'!O66 -> 32.12306802 | H46: ='[10]Output|AER Models'!P66 -> 38.90666241 | I46: ='[10]Output|AER Models'!Q66 -> 22.04973468 | J46: ='[10]Output|AER Models'!R66 -> 18.15421648 | K46: ='[10]Output|AER Models'!S66 -> 15.21239665
E47: =Asset7 -> Non network - other | G47: ='[10]Output|AER Models'!O67 -> 17.11668413 | H47: ='[10]Output|AER Models'!P67 -> 4.028202635 | I47: ='[10]Output|AER Models'!Q67 -> 4.07321802 | J47: ='[10]Output|AER Models'!R67 -> 5.926010328 | K47: ='[10]Output|AER Models'!S67 -> 4.149948789
E48: =Asset8 -> Land | G48: ='[10]Output|AER Models'!O68 -> 0 | H48: ='[10]Output|AER Models'!P68 -> 3.887692308 | I48: ='[10]Output|AER Models'!Q68 -> 0 | J48: ='[10]Output|AER Models'!R68 -> 0 | K48: ='[10]Output|AER Models'!S68 -> 2.046153846
E49: =Asset9 -> 0
E50: =Asset10 -> 0
E51: =Asset11 -> 0
E52: =Asset12 -> 0
E53: =Asset13 -> 0
E54: =Asset14 -> 0
E55: =Asset15 -> 0
E56: =Asset16 -> 0
E57: =Asset17 -> 0
E58: =Asset18 -> 0
E59: =Asset19 -> 0
E60: =Asset20 -> 0
E61: =Asset21 -> 0
E62: =Asset22 -> 0
E63: =Asset23 -> 0
E64: =Asset24 -> 0
E65: =Asset25 -> 0
E66: =Asset26 -> 0
E67: =Asset27 -> 0
E68: =Asset28 -> 0
E69: =Asset29 -> 0
E70: =Asset30 -> Equity raising costs | G70: 4.20710804
E71: Total | G71: =SUM(G41:G70) -> 171.9601746 | H71: 203.8421376 | I71: 169.3165606 | J71: 168.4943609 | K71: 153.1220467 | L71: 0 | M71: =SUM(M41:M70) -> 0 | N71: 0 | O71: 0 | P71: 0
Q72: =SUM(OFFSET(G71,0,0,1,$R$7)) -> 866.7352804
E73: ="Forecast Asset Disposal – as incurred ($m Real "&$F$241&")" -> Forecast Asset Disposal – as incurred ($m Real 2015)
E74: =E40 -> Year | G74: =G40 -> 2016 | H74: =H40 -> 2017 | I74: 2018 | J74: 2019 | K74: 2020 | L74: 2021 | M74: 2022 | N74: 2023 | O74: 2024 | P74: 2025
E75: =Asset1 -> Subtransmission | G75: ='[10]Output|AER Models'!O74 -> 0 | H75: ='[10]Output|AER Models'!P74 -> 0 | I75: ='[10]Output|AER Models'!Q74 -> 0 | J75: ='[10]Output|AER Models'!R74 -> 0 | K75: ='[10]Output|AER Models'!S74 -> 0
E76: =Asset2 -> Distribution system assets | G76: ='[10]Output|AER Models'!O75 -> 0 | H76: ='[10]Output|AER Models'!P75 -> 0 | I76: ='[10]Output|AER Models'!Q75 -> 0 | J76: ='[10]Output|AER Models'!R75 -> 0 | K76: ='[10]Output|AER Models'!S75 -> 0
E77: =Asset3 -> Metering
E78: =Asset4 -> Public Lighting
E79: =Asset5 -> SCADA/Network control | G79: ='[10]Output|AER Models'!O76 -> 0 | H79: ='[10]Output|AER Models'!P76 -> 0 | I79: ='[10]Output|AER Models'!Q76 -> 0 | J79: ='[10]Output|AER Models'!R76 -> 0 | K79: ='[10]Output|AER Models'!S76 -> 0
E80: =Asset6 -> Non network - IT | G80: ='[10]Output|AER Models'!O77 -> 0 | H80: ='[10]Output|AER Models'!P77 -> 0 | I80: ='[10]Output|AER Models'!Q77 -> 0 | J80: ='[10]Output|AER Models'!R77 -> 0 | K80: ='[10]Output|AER Models'!S77 -> 0
E81: =Asset7 -> Non network - other | G81: ='[10]Output|AER Models'!O78 -> 3.693924231 | H81: ='[10]Output|AER Models'!P78 -> 0.1628738462 | I81: ='[10]Output|AER Models'!Q78 -> 0.1651246154 | J81: ='[10]Output|AER Models'!R78 -> 0.2577642308 | K81: ='[10]Output|AER Models'!S78 -> 0.1689611538
E82: =Asset8 -> Land | G82: ='[10]Output|AER Models'!O79 -> 0 | H82: ='[10]Output|AER Models'!P79 -> 0 | I82: ='[10]Output|AER Models'!Q79 -> 0 | J82: ='[10]Output|AER Models'!R79 -> 0 | K82: ='[10]Output|AER Models'!S79 -> 0
E83: =Asset9 -> 0
E84: =Asset10 -> 0
E85: =Asset11 -> 0
E86: =Asset12 -> 0
E87: =Asset13 -> 0
E88: =Asset14 -> 0
E89: =Asset15 -> 0
E90: =Asset16 -> 0
E91: =Asset17 -> 0
E92: =Asset18 -> 0
E93: =Asset19 -> 0
E94: =Asset20 -> 0
E95: =Asset21 -> 0
E96: =Asset22 -> 0
E97: =Asset23 -> 0
E98: =Asset24 -> 0
E99: =Asset25 -> 0
E100: =Asset26 -> 0
E101: =Asset27 -> 0
E102: =Asset28 -> 0
E103: =Asset29 -> 0
E104: =Asset30 -> Equity raising costs
E105: Total | G105: =SUM(G75:G104) -> 3.693924231 | H105: 0.1628738462 | I105: 0.1651246154 | J105: =SUM(J75:J104) -> 0.2577642308 | K105: 0.1689611538 | L105: 0 | M105: 0 | N105: 0 | O105: 0 | P105: 0
Q106: =SUM(OFFSET(G105,0,0,1,$R$7)) -> 4.448648077
E107: ="Forecast Customer Contributions – As Incurred ($m Real "&$F$241&")" -> Forecast Customer Contributions – As Incurred ($m Real 2015)
E108: =E40 -> Year | G108: =G74 -> 2016 | H108: =H74 -> 2017 | I108: 2018 | J108: 2019 | K108: 2020 | L108: 2021 | M108: 2022 | N108: 2023 | O108: 2024 | P108: 2025
E109: =Asset1 -> Subtransmission | G109: ='[10]Output|AER Models'!O85 -> 1.096038617 | H109: ='[10]Output|AER Models'!P85 -> 4.074580684 | I109: ='[10]Output|AER Models'!Q85 -> 0 | J109: ='[10]Output|AER Models'!R85 -> 0 | K109: ='[10]Output|AER Models'!S85 -> 0
E110: =Asset2 -> Distribution system assets | G110: ='[10]Output|AER Models'!O86 -> 28.56148142 | H110: ='[10]Output|AER Models'!P86 -> 27.80759618 | I110: ='[10]Output|AER Models'!Q86 -> 29.2122314 | J110: ='[10]Output|AER Models'!R86 -> 30.28658567 | K110: ='[10]Output|AER Models'!S86 -> 32.2015256
E111: =Asset3 -> Metering
E112: =Asset4 -> Public Lighting
E113: =Asset5 -> SCADA/Network control | G113: ='[10]Output|AER Models'!O87 -> 0 | H113: ='[10]Output|AER Models'!P87 -> 0 | I113: ='[10]Output|AER Models'!Q87 -> 0 | J113: ='[10]Output|AER Models'!R87 -> 0 | K113: ='[10]Output|AER Models'!S87 -> 0
E114: =Asset6 -> Non network - IT | G114: ='[10]Output|AER Models'!O88 -> 0 | H114: ='[10]Output|AER Models'!P88 -> 0 | I114: ='[10]Output|AER Models'!Q88 -> 0 | J114: ='[10]Output|AER Models'!R88 -> 0 | K114: ='[10]Output|AER Models'!S88 -> 0
E115: =Asset7 -> Non network - other | G115: ='[10]Output|AER Models'!O89 -> 0 | H115: ='[10]Output|AER Models'!P89 -> 0 | I115: ='[10]Output|AER Models'!Q89 -> 0 | J115: ='[10]Output|AER Models'!R89 -> 0 | K115: ='[10]Output|AER Models'!S89 -> 0
E116: =Asset8 -> Land | G116: ='[10]Output|AER Models'!O90 -> 0 | H116: ='[10]Output|AER Models'!P90 -> 0 | I116: ='[10]Output|AER Models'!Q90 -> 0 | J116: ='[10]Output|AER Models'!R90 -> 0 | K116: ='[10]Output|AER Models'!S90 -> 0
E117: =Asset9 -> 0
E118: =Asset10 -> 0
E119: =Asset11 -> 0
E120: =Asset12 -> 0
E121: =Asset13 -> 0
E122: =Asset14 -> 0
E123: =Asset15 -> 0
E124: =Asset16 -> 0
E125: =Asset17 -> 0
E126: =Asset18 -> 0
E127: =Asset19 -> 0
E128: =Asset20 -> 0
E129: =Asset21 -> 0
E130: =Asset22 -> 0
E131: =Asset23 -> 0
E132: =Asset24 -> 0
E133: =Asset25 -> 0
E134: =Asset26 -> 0
E135: =Asset27 -> 0
E136: =Asset28 -> 0
E137: =Asset29 -> 0
E138: =Asset30 -> Equity raising costs
E139: Total | G139: =SUM(G109:G138) -> 29.65752004 | H139: 31.88217687 | I139: 29.2122314 | J139: 30.28658567 | K139: 32.2015256 | L139: 0 | M139: 0 | N139: 0 | O139: 0 | P139: 0
Q140: =SUM(OFFSET(G139,0,0,1,$R$7)) -> 153.2400396
E141: ="Forecast Net Capital Expenditure – As Incurred ($m Real "&$F$241&")" -> Forecast Net Capital Expenditure – As Incurred ($m Real 2015)
E142: =E40 -> Year | G142: =G40 -> 2016 | H142: =H40 -> 2017 | I142: 2018 | J142: 2019 | K142: 2020 | L142: 2021 | M142: 2022 | N142: 2023 | O142: 2024 | P142: 2025
E143: =Asset1 -> Subtransmission | G143: =G41-G75-G109 -> 13.69900241 | H143: =H41-H75-H109 -> 44.60937456 | I143: 39.05863185 | J143: 24.51821933 | K143: 11.08694019 | L143: 0 | M143: 0 | N143: 0 | O143: 0 | P143: 0
E144: =Asset2 -> Distribution system assets | G144: =G42-G76-G110 -> 66.16804395 | H144: 74.46530023 | I144: 73.08745547 | J144: 78.5541266 | K144: 76.89884392 | L144: 0 | M144: 0 | N144: 0 | O144: 0 | P144: 0
E145: =Asset3 -> Metering | G145: =G43-G77-G111 -> 0 | H145: 0 | I145: 0 | J145: 0 | K145: 0 | L145: 0 | M145: 0 | N145: 0 | O145: 0 | P145: 0
E146: =Asset4 -> Public Lighting | G146: =G44-G78-G112 -> 0 | H146: 0 | I146: 0 | J146: 0 | K146: 0 | L146: 0 | M146: 0 | N146: 0 | O146: 0 | P146: 0
E147: =Asset5 -> SCADA/Network control | G147: =G45-G79-G113 -> 8.988748047 | H147: 6.062728631 | I147: 1.83528918 | J147: 11.05520245 | K147: 11.52623767 | L147: 0 | M147: 0 | N147: 0 | O147: 0 | P147: 0
E148: =Asset6 -> Non network - IT | G148: =G46-G80-G114 -> 32.12306802 | H148: 38.90666241 | I148: 22.04973468 | J148: =J46-J80-J114 -> 18.15421648 | K148: 15.21239665 | L148: 0 | M148: 0 | N148: 0 | O148: 0 | P148: 0
E149: =Asset7 -> Non network - other | G149: =G47-G81-G115 -> 13.4227599 | H149: 3.865328789 | I149: 3.908093404 | J149: 5.668246097 | K149: 3.980987635 | L149: 0 | M149: 0 | N149: 0 | O149: 0 | P149: 0
E150: =Asset8 -> Land | G150: =G48-G82-G116 -> 0 | H150: 3.887692308 | I150: 0 | J150: 0 | K150: 2.046153846 | L150: 0 | M150: 0 | N150: 0 | O150: 0 | P150: 0
E151: =Asset9 -> 0 | G151: =G49-G83-G117 -> 0 | H151: 0 | I151: 0 | J151: 0 | K151: 0 | L151: 0 | M151: 0 | N151: 0 | O151: 0 | P151: 0
E152: =Asset10 -> 0 | G152: =G50-G84-G118 -> 0 | H152: 0 | I152: 0 | J152: 0 | K152: 0 | L152: 0 | M152: 0 | N152: 0 | O152: 0 | P152: 0
E153: =Asset11 -> 0 | G153: =G51-G85-G119 -> 0 | H153: 0 | I153: 0 | J153: 0 | K153: 0 | L153: 0 | M153: 0 | N153: 0 | O153: 0 | P153: 0
E154: =Asset12 -> 0 | G154: =G52-G86-G120 -> 0 | H154: 0 | I154: 0 | J154: 0 | K154: 0 | L154: 0 | M154: 0 | N154: 0 | O154: 0 | P154: 0
E155: =Asset13 -> 0 | G155: =G53-G87-G121 -> 0 | H155: 0 | I155: 0 | J155: 0 | K155: 0 | L155: 0 | M155: 0 | N155: 0 | O155: 0 | P155: 0
E156: =Asset14 -> 0 | G156: =G54-G88-G122 -> 0 | H156: 0 | I156: 0 | J156: 0 | K156: 0 | L156: 0 | M156: 0 | N156: 0 | O156: 0 | P156: 0
E157: =Asset15 -> 0 | G157: =G55-G89-G123 -> 0 | H157: 0 | I157: 0 | J157: 0 | K157: 0 | L157: 0 | M157: 0 | N157: 0 | O157: 0 | P157: 0
E158: =Asset16 -> 0 | G158: =G56-G90-G124 -> 0 | H158: 0 | I158: 0 | J158: 0 | K158: 0 | L158: 0 | M158: 0 | N158: 0 | O158: 0 | P158: 0
E159: =Asset17 -> 0 | G159: =G57-G91-G125 -> 0 | H159: 0 | I159: 0 | J159: 0 | K159: 0 | L159: 0 | M159: 0 | N159: 0 | O159: 0 | P159: 0
E160: =Asset18 -> 0 | G160: =G58-G92-G126 -> 0 | H160: 0 | I160: 0 | J160: 0 | K160: 0 | L160: 0 | M160: 0 | N160: 0 | O160: 0 | P160: 0
E161: =Asset19 -> 0 | G161: =G59-G93-G127 -> 0 | H161: 0 | I161: 0 | J161: 0 | K161: 0 | L161: 0 | M161: 0 | N161: 0 | O161: 0 | P161: 0
E162: =Asset20 -> 0 | G162: =G60-G94-G128 -> 0 | H162: 0 | I162: 0 | J162: 0 | K162: 0 | L162: 0 | M162: 0 | N162: 0 | O162: 0 | P162: 0
E163: =Asset21 -> 0 | G163: =G61-G95-G129 -> 0 | H163: 0 | I163: 0 | J163: 0 | K163: 0 | L163: 0 | M163: 0 | N163: 0 | O163: 0 | P163: 0
E164: =Asset22 -> 0 | G164: =G62-G96-G130 -> 0 | H164: 0 | I164: 0 | J164: 0 | K164: 0 | L164: 0 | M164: 0 | N164: 0 | O164: 0 | P164: 0
E165: =Asset23 -> 0 | G165: =G63-G97-G131 -> 0 | H165: 0 | I165: 0 | J165: 0 | K165: 0 | L165: 0 | M165: 0 | N165: 0 | O165: 0 | P165: 0
E166: =Asset24 -> 0 | G166: =G64-G98-G132 -> 0 | H166: 0 | I166: 0 | J166: 0 | K166: 0 | L166: 0 | M166: 0 | N166: 0 | O166: 0 | P166: 0
E167: =Asset25 -> 0 | G167: =G65-G99-G133 -> 0 | H167: 0 | I167: 0 | J167: 0 | K167: 0 | L167: 0 | M167: 0 | N167: 0 | O167: 0 | P167: 0
E168: =Asset26 -> 0 | G168: =G66-G100-G134 -> 0 | H168: 0 | I168: 0 | J168: 0 | K168: 0 | L168: 0 | M168: 0 | N168: 0 | O168: 0 | P168: 0
E169: =Asset27 -> 0 | G169: =G67-G101-G135 -> 0 | H169: 0 | I169: 0 | J169: 0 | K169: 0 | L169: 0 | M169: 0 | N169: 0 | O169: 0 | P169: 0
E170: =Asset28 -> 0 | G170: =G68-G102-G136 -> 0 | H170: 0 | I170: 0 | J170: 0 | K170: 0 | L170: 0 | M170: 0 | N170: 0 | O170: 0 | P170: 0
E171: =Asset29 -> 0 | G171: =G69-G103-G137 -> 0 | H171: 0 | I171: 0 | J171: 0 | K171: 0 | L171: 0 | M171: 0 | N171: 0 | O171: 0 | P171: 0
E172: =Asset30 -> Equity raising costs | G172: =G70-G104-G138 -> 4.20710804 | H172: 0 | I172: 0 | J172: 0 | K172: 0 | L172: 0 | M172: 0 | N172: 0 | O172: 0 | P172: 0
E173: Total | G173: =SUM(G143:G172) -> 138.6087304 | H173: 171.7970869 | I173: =SUM(I143:I172) -> 139.9392046 | J173: 137.950011 | K173: 120.7515599 | L173: 0 | M173: 0 | N173: 0 | O173: 0 | P173: 0
Q174: =SUM(OFFSET(G173,0,0,1,$R$7)) -> 709.0465928
E175: ="Forecast Operating and Maintenance Expenditure ($m Real "&$F$241&")" -> Forecast Operating and Maintenance Expenditure ($m Real 2015)
E176: =E40 -> Year | G176: =G40 -> 2016 | H176: =H40 -> 2017 | I176: 2018 | J176: 2019 | K176: 2020 | L176: 2021 | M176: 2022 | N176: 2023 | O176: 2024 | P176: 2025
E177: Controllable opex | G177: ='[11]Output|Models'!O$13 -> 93.1901235 | H177: ='[11]Output|Models'!P$13 -> 91.18855489 | I177: ='[11]Output|Models'!Q$13 -> 92.58302701 | J177: ='[11]Output|Models'!R$13 -> 94.85721033 | K177: ='[11]Output|Models'!S$13 -> 95.61501134
E178: Uncontrollable opex | G178: 0 | H178: 0 | I178: 0 | J178: 0 | K178: 0
E186: Debt raising costs | G186: =(Drc*Dv*Assets!G475)/Assets!G7 -> 0.6156078398 | H186: =IF(COUNT($G186:G186)>='PTRM input'!$R$7,0,(Drc*Dv*Assets!H475)/Assets!H7) -> 0.6461555541 | I186: =IF(COUNT($G186:H186)>='PTRM input'!$R$7,0,(Drc*Dv*Assets!I475)/Assets!I7) -> 0.7000426028 | J186: =IF(COUNT($G186:I186)>='PTRM input'!$R$7,0,(Drc*Dv*Assets!J475)/Assets!J7) -> 0.7319343335 | K186: =IF(COUNT($G186:J186)>='PTRM input'!$R$7,0,(Drc*Dv*Assets!K475)/Assets!K7) -> 0.762244774 | L186: =IF(COUNT($G186:K186)>='PTRM input'!$R$7,0,(Drc*Dv*Assets!L475)/Assets!L7) -> 0 | M186: =IF(COUNT($G186:L186)>='PTRM input'!$R$7,0,(Drc*Dv*Assets!M475)/Assets!M7) -> 0 | N186: =IF(COUNT($G186:M186)>='PTRM input'!$R$7,0,(Drc*Dv*Assets!N475)/Assets!N7) -> 0 | O186: =IF(COUNT($G186:N186)>='PTRM input'!$R$7,0,(Drc*Dv*Assets!O475)/Assets!O7) -> 0 | P186: =IF(COUNT($G186:O186)>='PTRM input'!$R$7,0,(Drc*Dv*Assets!P475)/Assets!P7) -> 0
E187: Total | G187: =SUM(G177:G186) -> 93.80573134 | H187: 91.83471044 | I187: 93.28306961 | J187: 95.58914466 | K187: 96.37725611 | L187: 0 | M187: 0 | N187: 0 | O187: 0 | P187: 0
Q188: =SUM(OFFSET(G187,0,0,1,$R$7)) -> 470.8899122
E189: ="Revenue Adjustments ($m Real "&$F$241&")" -> Revenue Adjustments ($m Real 2015)
E190: =E40 -> Year | G190: =G40 -> 2016 | H190: 2017 | I190: 2018 | J190: 2019 | K190: 2020 | L190: 2021 | M190: 2022 | N190: 2023 | O190: 2024 | P190: 2025 | R190: Tax income? | S190: Tax Expense?
E191: EBSS increments as per NER 6.4.3(a)(5) & 6.5.8 | G191: ='[11]Output|Models'!O$17 -> 5.332310782 | H191: ='[11]Output|Models'!P$17 -> 0.3116551798 | I191: ='[11]Output|Models'!Q$17 -> 10.85100814 | J191: ='[11]Output|Models'!R$17 -> 8.265534749 | K191: ='[11]Output|Models'!S$17 -> 0 | R191: Yes | S191: Yes | T191: =IF(AND(R191="No",S191="Yes"),"Caution - there appears to be an error, if an adjustment is not included as tax income, it should not be a tax expense.","") -> 
E192: CESS increments as per NER 6.4.3(a)(5) & 6.5.8A | G192: 0 | H192: 0 | I192: 0 | J192: 0 | K192: 0 | R192: Yes | S192: No | T192: =IF(AND(R192="No",S192="Yes"),"Caution - there appears to be an error, if an adjustment is not included as tax income, it should not be a tax expense.","") -> 
E193: Control period carryover as per NER 6.4.3(a)(6) & 6.4.3(b)(6) | G193: 3.811806947 | H193: 0 | I193: 0 | J193: 0 | K193: 0 | R193: No | S193: No
E194: Shared asset decrements as per NER 6.4.3(a)(6A) & 6.4.4 | G194: -0.3397625635 | H194: -0.3376178477 | I194: -0.3355171632 | J194: -0.333459606 | K194: -0.3314442906 | R194: Yes | S194: Yes
E195: DMIA | G195: 0.2 | H195: 0.2 | I195: 0.2 | J195: 0.2 | K195: 0.2 | R195: Yes | S195: Yes
E201: Total Adjustments Included as Tax Income | G201: =SUMIF($R$191:$R$200,"Yes",G191:G200) -> 5.192548219 | H201: =SUMIF($R$191:$R$200,"Yes",H191:H200) -> 0.1740373321 | I201: 10.71549098 | J201: 8.132075143 | K201: -0.1314442906 | L201: 0 | M201: 0 | N201: 0 | O201: 0 | P201: 0
E202: Total Adjustments Included as Non-tax Income | G202: =SUMIF($R$191:$R$200,"No",G191:G200) -> 3.811806947 | H202: =SUMIF($R$191:$R$200,"No",H191:H200) -> 0 | I202: 0 | J202: 0 | K202: 0 | L202: 0 | M202: 0 | N202: 0 | O202: 0 | P202: 0
E203: Total Adjustments Included as Tax Expense | G203: =SUMIF($S$191:$S$200,"Yes",G191:G200) -> 5.192548219 | H203: =SUMIF($S$191:$S$200,"Yes",H191:H200) -> 0.1740373321 | I203: 10.71549098 | J203: 8.132075143 | K203: -0.1314442906 | L203: 0 | M203: 0 | N203: 0 | O203: 0 | P203: 0
E204: Total Adjustments Included as Non-tax Expense | G204: =SUMIF($S$191:$S$200,"No",G191:G200) -> 3.811806947 | H204: =SUMIF($S$191:$S$200,"No",H191:H200) -> 0 | I204: 0 | J204: 0 | K204: 0 | L204: 0 | M204: 0 | N204: 0 | O204: 0 | P204: 0
E205: Total Adjustments | G205: =SUM(G191:G200) -> 9.004355166 | H205: 0.1740373321 | I205: 10.71549098 | J205: 8.132075143 | K205: -0.1314442906 | L205: 0 | M205: 0 | N205: 0 | O205: 0 | P205: 0
Q206: =SUM(OFFSET(G205,0,0,1,$R$7)) -> 27.89451433
E207: Tax
E208: =E40 -> Year | G208: =G40 -> 2016 | H208: 2017 | I208: 2018 | J208: 2019 | K208: 2020 | L208: 2021 | M208: 2022 | N208: 2023 | O208: 2024 | P208: 2025
E209: Expected Corporate Tax Rate | G209: 0.3 | H209: 0.3 | I209: 0.3 | J209: 0.3 | K209: 0.3
E211: Year | F211: =F241 -> 2015
E212: Tax Loss Carried Forward From Previous Period | F212: 0 | G212: =IF(F212>0,"Caution - The tax loss carried forward should be a negative number.","") -> 
E214: Cost of Capital
E215: =E40 -> Year | G215: =CONCATENATE(LEFT(G40,4),"-",RIGHT(OFFSET(G40,0,R7-1,1,1),2)) -> 2016-20
E216: Inflation Rate | F216: f | G216: ='[12]Output|Rate of return'!$K$12 -> 0.0219
... 125 more rows

Sheet Inputs
E1: Linked to RFM | G1: Linked to PTRM | I1: Added rows/columns
A2: Assumptions
B5: General Assumptions
C7: Second reg period - base year $ | E7: 2010
C8: Second reg period - base year $ | E8: 2015
C10: Real Vanilla WACC 2011-15 | E10: 0.07561024189
C11: Real Vanilla WACC 2016-20 | E11: =rvanilla01 -> 0.06288866804
E12: =1+O17/2 -> 1.01095
B14: Inputs
C16: Inflation | I16: 2010 | J16: 2011 | K16: 2012 | L16: 2013 | M16: 2014 | N16: 2015 | O16: 2016 | P16: 2017 | Q16: 2018 | R16: 2019 | S16: 2020
C17: Actual Inflation | I17: =[9]Input!G$177 -> 0.01261261261 | J17: =[9]Input!H$177 -> 0.02787663108 | K17: =[9]Input!I$177 -> 0.03519907675 | L17: =[9]Input!J$177 -> 0.02004008016 | M17: =[9]Input!K$177 -> 0.02161100196 | N17: =[9]Input!L$177 -> 0.02307692308 | O17: =f -> 0.0219 | P17: =O17 -> 0.0219 | Q17: =P17 -> 0.0219 | R17: 0.0219 | S17: 0.0219
C18: Cumulative inflation (one year lagged) | I18: 1 | J18: =(I18*(1+J17)) -> 1.027876631 | K18: =(J18*(1+K17)) -> 1.06405694 | L18: 1.085380726 | M18: 1.108836891 | N18: 1.134425434 | O18: 1.159269352 | P18: 1.18465735 | Q18: 1.210601346 | R18: 1.237113516 | S18: 1.264206302
C19: ="Conversion from $ 2010 to $ "&second_reg_period -> Conversion from $ 2010 to $ 2015 | D19: conv_2015 | I19: =INDEX($J$18:$S$18,MATCH(second_reg_period,$J$16:$S$16,0))/I18 -> 1.134425434
C20: Real Vanilla WACC | I20: 0 | J20: =$E$10 -> 0.07561024189 | K20: 0.07561024189 | L20: 0.07561024189 | M20: 0.07561024189 | N20: 0.07561024189 | O20: =$E$11 -> 0.06288866804 | P20: =$E$11 -> 0.06288866804 | Q20: 0.06288866804 | R20: 0.06288866804 | S20: 0.06288866804
C21: Nominal WACC | I21: 0 | J21: =(1+J20)*(1+J17)-1 -> 0.1055946318 | K21: 0.1134707293 | L21: 0.09716555736 | M21: 0.09885525694 | N21: 0.1004320167 | O21: 0.08616592987 | P21: 0.08616592987 | Q21: 0.08616592987 | R21: 0.08616592987 | S21: 0.08616592987
C24: Capex
C26: 2016-20 Net Capex ($m Real 2015) | O26: 2016 | P26: 2017 | Q26: 2018 | R26: 2019 | S26: 2020
O27: $m Real (2015) | P27: $m Real (2015) | Q27: $m Real (2015) | R27: $m Real (2015) | S27: $m Real (2015)
C28: Subtransmission
C29: Distribution system assets
C30: Standard metering
C31: Public lighting
C32: SCADA/Network control
C33: Non-network general assets - IT
C34: Non-network general assets - Other
C35: VBRC
C36: Equity Raising
C37: Supervisory cables
C38: Old SWER ACRs
E41: Remaining Life | F41: Standard Life | I41: 2010 Closing RAB | J41: 2011 | K41: 2012 | L41: 2013 | M41: 2014 | N41: 2015 | O41: =O26 -> 2016 | P41: =P26 -> 2017 | Q41: 2018 | R41: 2019 | S41: 2020
I42: $m real 2010 | J42: $m real 2010 | K42: $m real 2010 | L42: $m real 2010 | M42: $m real 2010 | N42: $m real 2010 | O42: $m real 2010 | P42: $m real 2010 | Q42: $m real 2010 | R42: $m real 2010 | S42: $m real 2010
C43: =C28 -> Subtransmission | E43: =[9]Input!K7 -> 28.86396172 | F43: =[9]Input!L7 -> 44.72135881 | H43: $m Real (2010) | I43: ='[9]Actual RAB roll forward'!H438 -> 131.8367048 | J43: =[9]Input!H143 -> 20.7564195 | K43: =[9]Input!I143 -> 15.71469628 | L43: =[9]Input!J143 -> 21.97927997 | M43: =[9]Input!K143 -> 24.38764409 | N43: =[9]Input!L143 -> 28.60753417 | O43: =O28/conv_2015_2010 -> 0 | P43: 0 | Q43: 0 | R43: 0 | S43: 0
C44: =C29 -> Distribution system assets | E44: =[9]Input!K8 -> 21.72397412 | F44: =[9]Input!L8 -> 50.01844156 | H44: $m Real (2010) | I44: ='[9]Actual RAB roll forward'!H439 -> 525.3925816 | J44: =[9]Input!H144 -> 69.08750105 | K44: =[9]Input!I144 -> 53.83460761 | L44: =[9]Input!J144 -> 64.50853572 | M44: =[9]Input!K144 -> 69.00276206 | N44: =[9]Input!L144 -> 64.41643761 | O44: 0 | P44: 0 | Q44: 0 | R44: 0 | S44: 0
C45: Standard metering | E45: =[9]Input!K9 -> 4.461367884 | F45: =E45 -> 4.461367884 | H45: $m Real (2010) | I45: ='[9]Actual RAB roll forward'!H440 -> 23.33449302 | J45: =[9]Input!H145 -> 0 | K45: =[9]Input!I145 -> 0 | L45: =[9]Input!J145 -> 0 | M45: =[9]Input!K145 -> 0 | N45: =[9]Input!L145 -> 0 | O45: 0 | P45: 0 | Q45: 0 | R45: 0 | S45: 0
C46: Public lighting | E46: =[9]Input!K10 -> 10.03645888 | F46: =[9]Input!L10 -> n/a | H46: $m Real (2010) | I46: ='[9]Actual RAB roll forward'!H441 -> 12.62263043 | J46: =[9]Input!H146 -> 0 | K46: =[9]Input!I146 -> 0 | L46: =[9]Input!J146 -> 0 | M46: =[9]Input!K146 -> 0 | N46: =[9]Input!L146 -> 0 | O46: 0 | P46: 0 | Q46: 0 | R46: 0 | S46: 0
C47: SCADA/Network control | E47: =[9]Input!K11 -> 5 | F47: =[9]Input!L11 -> 10 | H47: $m Real (2010) | I47: ='[9]Actual RAB roll forward'!H442 -> -5.621509741 | J47: =[9]Input!H147 -> 0.1241286131 | K47: =[9]Input!I147 -> 0.802517204 | L47: =[9]Input!J147 -> 0.8428111613 | M47: =[9]Input!K147 -> 0.3701656514 | N47: =[9]Input!L147 -> 3.403527331 | O47: 0 | P47: 0 | Q47: 0 | R47: 0 | S47: 0
C48: Non-network general assets - IT | E48: =[9]Input!K12 -> 5.761522595 | F48: =[9]Input!L12 -> 5.100559511 | H48: $m Real (2010) | I48: ='[9]Actual RAB roll forward'!H443 -> 47.47096115 | J48: =[9]Input!H148 -> 17.03461926 | K48: =[9]Input!I148 -> 22.78650516 | L48: =[9]Input!J148 -> 8.529804252 | M48: =[9]Input!K148 -> 7.976053686 | N48: =[9]Input!L148 -> 8.916166898 | O48: 0 | P48: 0 | Q48: 0 | R48: 0 | S48: 0
C49: Non-network general assets - Other | E49: =[9]Input!K13 -> 11.21098858 | F49: =[9]Input!L13 -> 19.91043421 | H49: $m Real (2010) | I49: ='[9]Actual RAB roll forward'!H444 -> 29.16052296 | J49: =[9]Input!H149 -> 5.848049145 | K49: =[9]Input!I149 -> 11.22647717 | L49: =[9]Input!J149 -> 11.3460016 | M49: =[9]Input!K149 -> 8.965732593 | N49: =[9]Input!L149 -> 15.70701566 | O49: 0 | P49: 0 | Q49: 0 | R49: 0 | S49: 0
C55: Net Nominal Capex with half year WACC | J55: 2011 | K55: 2012 | L55: 2013 | M55: 2014 | N55: 2015
J56: $m Nominal | K56: $m Nominal | L56: $m Nominal | M56: $m Nominal | N56: $m Nominal
C57: =C43 -> Subtransmission | J57: =(Inputs!J43*(1+Depreciation!J$7)^0.5*Inputs!J$18) -> 22.43320848 | K57: =(Inputs!K43*(1+Depreciation!K$7)^0.5*Inputs!K$18) -> 17.64453683 | L57: =(Inputs!L43*(1+Depreciation!L$7)^0.5*Inputs!L$18) -> 24.98800873 | M57: =(Inputs!M43*(1+Depreciation!M$7)^0.5*Inputs!M$18) -> 28.34704283 | N57: =(Inputs!N43*(1+Depreciation!N$7)^0.5*Inputs!N$18) -> 34.04379677
C58: Distribution system assets | J58: =(Inputs!J44*(1+Depreciation!J$7)^0.5*Inputs!J$18) -> 74.6686737 | K58: =(Inputs!K44*(1+Depreciation!K$7)^0.5*Inputs!K$18) -> 60.44575726 | L58: =(Inputs!L44*(1+Depreciation!L$7)^0.5*Inputs!L$18) -> 73.33906551 | M58: =(Inputs!M44*(1+Depreciation!M$7)^0.5*Inputs!M$18) -> 80.2055436 | N58: =(Inputs!N44*(1+Depreciation!N$7)^0.5*Inputs!N$18) -> 76.65743218
C59: Standard metering | J59: =(Inputs!J45*(1+Depreciation!J$7)^0.5*Inputs!J$18) -> 0 | K59: =(Inputs!K45*(1+Depreciation!K$7)^0.5*Inputs!K$18) -> 0 | L59: =(Inputs!L45*(1+Depreciation!L$7)^0.5*Inputs!L$18) -> 0 | M59: =(Inputs!M45*(1+Depreciation!M$7)^0.5*Inputs!M$18) -> 0 | N59: =(Inputs!N45*(1+Depreciation!N$7)^0.5*Inputs!N$18) -> 0
C60: Public lighting | J60: =(Inputs!J46*(1+Depreciation!J$7)^0.5*Inputs!J$18) -> 0 | K60: =(Inputs!K46*(1+Depreciation!K$7)^0.5*Inputs!K$18) -> 0 | L60: =(Inputs!L46*(1+Depreciation!L$7)^0.5*Inputs!L$18) -> 0 | M60: =(Inputs!M46*(1+Depreciation!M$7)^0.5*Inputs!M$18) -> 0 | N60: =(Inputs!N46*(1+Depreciation!N$7)^0.5*Inputs!N$18) -> 0
C61: SCADA/Network control | J61: =(Inputs!J47*(1+Depreciation!J$7)^0.5*Inputs!J$18) -> 0.1341562333 | K61: =(Inputs!K47*(1+Depreciation!K$7)^0.5*Inputs!K$18) -> 0.9010701901 | L61: =(Inputs!L47*(1+Depreciation!L$7)^0.5*Inputs!L$18) -> 0.9581830107 | M61: =(Inputs!M47*(1+Depreciation!M$7)^0.5*Inputs!M$18) -> 0.4302630273 | N61: =(Inputs!N47*(1+Depreciation!N$7)^0.5*Inputs!N$18) -> 4.050296403
C62: Non-network general assets - IT | J62: =(Inputs!J48*(1+Depreciation!J$7)^0.5*Inputs!J$18) -> 18.41074591 | K62: =(Inputs!K48*(1+Depreciation!K$7)^0.5*Inputs!K$18) -> 25.58479797 | L62: =(Inputs!L48*(1+Depreciation!L$7)^0.5*Inputs!L$18) -> 9.697443382 | M62: =(Inputs!M48*(1+Depreciation!M$7)^0.5*Inputs!M$18) -> 9.270987169 | N62: =(Inputs!N48*(1+Depreciation!N$7)^0.5*Inputs!N$18) -> 10.61049764
C63: Non-network general assets - Other | J63: =(Inputs!J49*(1+Depreciation!J$7)^0.5*Inputs!J$18) -> 6.320478621 | K63: =(Inputs!K49*(1+Depreciation!K$7)^0.5*Inputs!K$18) -> 12.60514275 | L63: =(Inputs!L49*(1+Depreciation!L$7)^0.5*Inputs!L$18) -> 12.89914808 | M63: =(Inputs!M49*(1+Depreciation!M$7)^0.5*Inputs!M$18) -> 10.42134307 | N63: =(Inputs!N49*(1+Depreciation!N$7)^0.5*Inputs!N$18) -> 18.69180495
C67: Nominal Closing Balance | J67: 2011 | K67: 2012 | L67: 2013 | M67: 2014 | N67: 2015
J68: $m Nominal | K68: $m Nominal | L68: $m Nominal | M68: $m Nominal | N68: $m Nominal
C69: =C43 -> Subtransmission | H69: $m Nominal | I69: =I43 -> 131.8367048 | J69: =Inputs!I69+Inputs!J57-PTRM_comparison!E8*Inputs!J$18+Inputs!J$17*Inputs!I69 -> 153.25023 | K69: =Inputs!J69+Inputs!K57-PTRM_comparison!F8*Inputs!K$18+Inputs!K$17*Inputs!J69 -> 170.9096544 | L69: =K69+Inputs!L57-PTRM_comparison!G8*Inputs!L$18+Inputs!L$17*K69 -> 193.4330734 | M69: =L69+Inputs!M57-PTRM_comparison!H8*Inputs!M$18+Inputs!M$17*L69 -> 219.3726611 | N69: =M69+Inputs!N57-PTRM_comparison!I8*Inputs!N$18+Inputs!N$17*M69 -> 251.0906548
C70: Distribution system assets | H70: $m Nominal | I70: 525.3925816 | J70: =Inputs!I70+Inputs!J58-PTRM_comparison!E9*Inputs!J$18+Inputs!J$17*Inputs!I70 -> 589.8483162 | K70: =Inputs!J70+Inputs!K58-PTRM_comparison!F9*Inputs!K$18+Inputs!K$17*Inputs!J70 -> 643.7766885 | L70: =K70+Inputs!L58-PTRM_comparison!G9*Inputs!L$18+Inputs!L$17*K70 -> 700.9582187 | M70: =L70+Inputs!M58-PTRM_comparison!H9*Inputs!M$18+Inputs!M$17*L70 -> 765.1273813 | N70: =M70+Inputs!N58-PTRM_comparison!I9*Inputs!N$18+Inputs!N$17*M70 -> 825.8966359
C71: Standard metering | H71: $m Nominal | I71: 23.33449302 | J71: =Inputs!I71+Inputs!J59-PTRM_comparison!E10*Inputs!J$18+Inputs!J$17*Inputs!I71 -> 18.60883072 | K71: =Inputs!J71+Inputs!K59-PTRM_comparison!F10*Inputs!K$18+Inputs!K$17*Inputs!J71 -> 13.69845953 | L71: =K71+Inputs!L59-PTRM_comparison!G10*Inputs!L$18+Inputs!L$17*K71 -> 8.296062148 | M71: =L71+Inputs!M59-PTRM_comparison!H10*Inputs!M$18+Inputs!M$17*L71 -> 2.675748922 | N71: =M71+Inputs!N59-PTRM_comparison!I10*Inputs!N$18+Inputs!N$17*M71 -> -2.511879593e-15
C72: Public lighting | H72: $m Nominal | I72: 12.62263043 | J72: =Inputs!I72+Inputs!J60-PTRM_comparison!E11*Inputs!J$18+Inputs!J$17*Inputs!I72 -> 11.68176934 | K72: =Inputs!J72+Inputs!K60-PTRM_comparison!F11*Inputs!K$18+Inputs!K$17*Inputs!J72 -> 10.75471616 | L72: =K72+Inputs!L60-PTRM_comparison!G11*Inputs!L$18+Inputs!L$17*K72 -> 9.605182404 | M72: =L72+Inputs!M60-PTRM_comparison!H11*Inputs!M$18+Inputs!M$17*L72 -> 8.418200598 | N72: =M72+Inputs!N60-PTRM_comparison!I11*Inputs!N$18+Inputs!N$17*M72 -> 7.185725204
C73: SCADA/Network control | H73: $m Nominal | I73: -5.621509741 | J73: =Inputs!I73+Inputs!J61-PTRM_comparison!E12*Inputs!J$18+Inputs!J$17*Inputs!I73 -> -4.488418562 | K73: =Inputs!J73+Inputs!K61-PTRM_comparison!F12*Inputs!K$18+Inputs!K$17*Inputs!J73 -> -2.562903112 | L73: =K73+Inputs!L61-PTRM_comparison!G12*Inputs!L$18+Inputs!L$17*K73 -> -0.5418641459 | M73: =L73+Inputs!M61-PTRM_comparison!H12*Inputs!M$18+Inputs!M$17*L73 -> 0.9170957033 | N73: =M73+Inputs!N61-PTRM_comparison!I12*Inputs!N$18+Inputs!N$17*M73 -> 6.008953078
C74: Non-network general assets - IT | H74: $m Nominal | I74: 47.47096115 | J74: =Inputs!I74+Inputs!J62-PTRM_comparison!E13*Inputs!J$18+Inputs!J$17*Inputs!I74 -> 58.73604503 | K74: =Inputs!J74+Inputs!K62-PTRM_comparison!F13*Inputs!K$18+Inputs!K$17*Inputs!J74 -> 73.88459719 | L74: =K74+Inputs!L62-PTRM_comparison!G13*Inputs!L$18+Inputs!L$17*K74 -> 67.19181897 | M74: =L74+Inputs!M62-PTRM_comparison!H13*Inputs!M$18+Inputs!M$17*L74 -> 57.71546746 | N74: =M74+Inputs!N62-PTRM_comparison!I13*Inputs!N$18+Inputs!N$17*M74 -> 47.13271203
C75: Non-network general assets - Other | H75: $m Nominal | I75: 29.16052296 | J75: =Inputs!I75+Inputs!J63-PTRM_comparison!E14*Inputs!J$18+Inputs!J$17*Inputs!I75 -> 33.62032361 | K75: =Inputs!J75+Inputs!K63-PTRM_comparison!F14*Inputs!K$18+Inputs!K$17*Inputs!J75 -> 44.31256888 | L75: =K75+Inputs!L63-PTRM_comparison!G14*Inputs!L$18+Inputs!L$17*K75 -> 54.2956129 | M75: =L75+Inputs!M63-PTRM_comparison!H14*Inputs!M$18+Inputs!M$17*L75 -> 61.34213641 | N75: =M75+Inputs!N63-PTRM_comparison!I14*Inputs!N$18+Inputs!N$17*M75 -> 76.26087859
C78: Difference Between Actual and Forecast Net Capex
J79: $m Nominal | K79: $m Nominal | L79: $m Nominal | M79: $m Nominal | N79: $m Nominal
C80: =C43 -> Subtransmission | I80: ='[9]Adjustment for previous period'!G76 -> 3.314656321
C81: Distribution system assets | I81: ='[9]Adjustment for previous period'!G77 -> -17.29102133
C82: Standard metering | I82: ='[9]Adjustment for previous period'!G78 -> 0.01970466109
C83: Public lighting | I83: ='[9]Adjustment for previous period'!G79 -> 0
C84: SCADA/Network control | I84: ='[9]Adjustment for previous period'!G80 -> -0.008640846094
C85: Non-network general assets - IT | I85: ='[9]Adjustment for previous period'!G81 -> 6.26667604
C86: Non-network general assets - Other | I86: ='[9]Adjustment for previous period'!G82 -> -1.502997648
C87: Total | I87: =SUM(I80:I86) -> -9.201622805
C90: Return on Difference - Net Capex
J91: $m Nominal | K91: $m Nominal | L91: $m Nominal | M91: $m Nominal | N91: $m Nominal
C92: =C43 -> Subtransmission | J92: =($I80+SUM($I92:I92))*J$21 -> 0.3500099137 | K92: =($I80+SUM($I92:J92))*K$21 -> 0.4158323504 | L92: =($I80+SUM($I92:K92))*L$21 -> 0.3964839193 | M92: =($I80+SUM($I92:L92))*M$21 -> 0.4425732558 | N92: =($I80+SUM($I92:M92))*N$21 -> 0.4940809063
C93: Distribution system assets | J93: =($I81+SUM($I93:I93))*J$21 -> -1.825839031 | K93: =($I81+SUM($I93:J93))*K$21 -> -2.169204088 | L93: =($I81+SUM($I93:K93))*L$21 -> -2.068272317 | M93: =($I81+SUM($I93:L93))*M$21 -> -2.308698962 | N93: =($I81+SUM($I93:M93))*N$21 -> -2.577390433
C94: Standard metering | J94: =($I82+SUM($I94:I94))*J$21 -> 0.002080706433 | K94: =($I82+SUM($I94:J94))*K$21 -> 0.002472001542 | L94: =($I82+SUM($I94:K94))*L$21 -> 0.002356980786 | M94: =($I82+SUM($I94:L94))*M$21 -> 0.002630968393 | N94: =($I82+SUM($I94:M94))*N$21 -> 0.002937166291
C95: Public lighting | J95: =($I83+SUM($I95:I95))*J$21 -> 0 | K95: =($I83+SUM($I95:J95))*K$21 -> 0 | L95: =($I83+SUM($I95:K95))*L$21 -> 0 | M95: =($I83+SUM($I95:L95))*M$21 -> 0 | N95: =($I83+SUM($I95:M95))*N$21 -> 0
C96: SCADA/Network control | J96: =($I84+SUM($I96:I96))*J$21 -> -0.0009124269617 | K96: =($I84+SUM($I96:J96))*K$21 -> -0.001084016861 | L96: =($I84+SUM($I96:K96))*L$21 -> -0.001033578204 | M96: =($I84+SUM($I96:L96))*M$21 -> -0.001153726667 | N96: =($I84+SUM($I96:M96))*N$21 -> -0.001287999918
C97: Non-network general assets - IT | J97: =($I85+SUM($I97:I97))*J$21 -> 0.661727349 | K97: =($I85+SUM($I97:J97))*K$21 -> 0.7861709857 | L97: =($I85+SUM($I97:K97))*L$21 -> 0.7495909189 | M97: =($I85+SUM($I97:L97))*M$21 -> 0.8367272349 | N97: =($I85+SUM($I97:M97))*N$21 -> 0.9341073938
C98: Non-network general assets - Other | J98: =($I86+SUM($I98:I98))*J$21 -> -0.1587084832 | K98: =($I86+SUM($I98:J98))*K$21 -> -0.1885550066 | L98: =($I86+SUM($I98:K98))*L$21 -> -0.1797816547 | M98: =($I86+SUM($I98:L98))*M$21 -> -0.2006804018 | N98: =($I86+SUM($I98:M98))*N$21 -> -0.2240360291
C99: Total | J99: =SUM(J92:J98) -> -0.971641972 | K99: =SUM(K92:K98) -> -1.154367774 | L99: =SUM(L92:L98) -> -1.10065573 | M99: =SUM(M92:M98) -> -1.228601631 | N99: =SUM(N92:N98) -> -1.371588996
C102: Total 2015 Adjustment for final 2010 capex
J103: $m Nominal | K103: $m Nominal | L103: $m Nominal | M103: $m Nominal | N103: $m Nominal
C104: =C43 -> Subtransmission | N104: =I80+SUM(J92:N92) -> 5.413636666
C105: Distribution system assets | N105: -28.24042616
C106: Standard metering | N106: 0.03218248454
C107: Public lighting | N107: 0
C108: SCADA/Network control | N108: -0.01411259471
C109: Non-network general assets - IT | N109: 10.23499992
C110: Non-network general assets - Other | N110: -2.454759223
C111: Total | N111: =SUM(N104:N110) -> -15.02847891
C114: Other RAB adjustments
J115: $m Nominal | K115: $m Nominal | L115: $m Nominal | M115: $m Nominal | N115: $m Nominal
C116: =C43 -> Subtransmission | N116: 0
C117: Distribution system assets | N117: 0
C118: Standard metering | N118: 0
C119: Public lighting | N119: 0
C120: SCADA/Network control | N120: 0
C121: Non-network general assets - IT | N121: 0
C122: Non-network general assets - Other | N122: 0
C123: Total | N123: =SUM(N116:N122) -> 0
C127: Adjusted Closing Balance
J128: $m Nominal | K128: $m Nominal | L128: $m Nominal | M128: $m Nominal | N128: $m Nominal
C129: =C43 -> Subtransmission | N129: =(N69+N104+N116) -> 256.5042914
C130: Distribution system assets | N130: 797.6562097
C131: Standard metering | N131: 0.03218248454
C132: Public lighting | N132: 7.185725204
C133: SCADA/Network control | N133: 5.994840484
C134: Non-network general assets - IT | N134: 57.36771195
C135: Non-network general assets - Other | N135: 73.80611937
C136: Total | N136: =SUM(N129:N135) -> 1198.547081
C141: Check vs RFM | N141: RFM Closing Bal | O141: OKAY?
N142: $m 2015
C143: =C43 -> Subtransmission | N143: ='[9]Total actual RAB roll forward'!L359 -> 256.5042914 | O143: =ROUND(N143,4)=ROUND(N129,4) -> TRUE
C144: Distribution system assets | N144: ='[9]Total actual RAB roll forward'!L360 -> 797.6562097 | O144: =ROUND(N144,4)=ROUND(N130,4) -> TRUE
C145: Standard metering | N145: ='[9]Total actual RAB roll forward'!L361 -> 0.03218248454 | O145: TRUE
C146: Public lighting | N146: ='[9]Total actual RAB roll forward'!L362 -> 7.185725204 | O146: TRUE
C147: SCADA/Network control | N147: ='[9]Total actual RAB roll forward'!L363 -> 5.994840484 | O147: TRUE
C148: Non-network general assets - IT | N148: ='[9]Total actual RAB roll forward'!L364 -> 57.36771195 | O148: TRUE
C149: Non-network general assets - Other | N149: ='[9]Total actual RAB roll forward'!L365 -> 73.80611937 | O149: TRUE
C150: Total | N150: =SUM(N143:N149) -> 1198.547081 | O150: TRUE

Sheet Depreciation
A2: Depreciation Calculations | T2: Entended depreciation calculations out to 2070
B5: Year | I5: 2010 | J5: =I5+1 -> 2011 | K5: =J5+1 -> 2012 | L5: 2013 | M5: 2014 | N5: 2015 | O5: 2016 | P5: 2017 | Q5: 2018 | R5: 2019 | S5: 2020 | T5: 2021 | U5: 2022 | V5: 2023 | W5: 2024 | X5: 2025 | Y5: 2026 | Z5: 2027 | AA5: 2028 | AB5: 2029 | AC5: 2030 | AD5: 2031 | AE5: 2032 | AF5: 2033 | AG5: 2034 | AH5: 2035 | AI5: 2036 | AJ5: 2037 | AK5: 2038 | AL5: 2039 | AM5: 2040 | AN5: 2041 | AO5: 2042 | AP5: 2043 | AQ5: 2044 | AR5: 2045 | AS5: 2046 | AT5: 2047 | AU5: 2048 | AV5: 2049 | AW5: 2050 | AX5: 2051 | AY5: 2052 | AZ5: 2053 | BA5: 2054 | BB5: 2055 | BC5: 2056 | BD5: 2057 | BE5: 2058 | BF5: 2059 | BG5: 2060 | BH5: 2061 | BI5: 2062 | BJ5: 2063 | BK5: 2064 | BL5: 2065 | BM5: 2066 | BN5: 2067 | BO5: 2068 | BP5: 2069 | BQ5: 2070
D6: Real Vanilla WACC | E6: $m Real (2010) | J6: =Inputs!J20 -> 0.07561024189 | K6: =Inputs!K20 -> 0.07561024189 | L6: =Inputs!L20 -> 0.07561024189 | M6: =Inputs!M20 -> 0.07561024189 | N6: =Inputs!N20 -> 0.07561024189 | O6: =Inputs!O20 -> 0.06288866804 | P6: =Inputs!P20 -> 0.06288866804 | Q6: =Inputs!Q20 -> 0.06288866804 | R6: =Inputs!R20 -> 0.06288866804 | S6: =Inputs!S20 -> 0.06288866804 | T6: =S6 -> 0.06288866804 | U6: =T6 -> 0.06288866804 | V6: 0.06288866804 | W6: 0.06288866804 | X6: 0.06288866804 | Y6: 0.06288866804 | Z6: 0.06288866804 | AA6: 0.06288866804 | AB6: 0.06288866804 | AC6: 0.06288866804 | AD6: 0.06288866804 | AE6: 0.06288866804 | AF6: 0.06288866804 | AG6: 0.06288866804 | AH6: 0.06288866804 | AI6: 0.06288866804 | AJ6: 0.06288866804 | AK6: 0.06288866804 | AL6: 0.06288866804 | AM6: 0.06288866804 | AN6: 0.06288866804 | AO6: 0.06288866804 | AP6: 0.06288866804 | AQ6: 0.06288866804 | AR6: 0.06288866804 | AS6: 0.06288866804 | AT6: 0.06288866804 | AU6: 0.06288866804 | AV6: 0.06288866804 | AW6: 0.06288866804 | AX6: 0.06288866804 | AY6: 0.06288866804 | AZ6: 0.06288866804 | BA6: 0.06288866804 | BB6: 0.06288866804 | BC6: 0.06288866804 | BD6: 0.06288866804 | BE6: 0.06288866804 | BF6: 0.06288866804 | BG6: 0.06288866804 | BH6: 0.06288866804 | BI6: 0.06288866804 | BJ6: 0.06288866804 | BK6: 0.06288866804 | BL6: 0.06288866804 | BM6: 0.06288866804 | BN6: 0.06288866804 | BO6: 0.06288866804 | BP6: 0.06288866804 | BQ6: 0.06288866804
D7: Nominal Vanilla WACC | E7: $m Real (2010) | J7: =Inputs!J21 -> 0.1055946318 | K7: =Inputs!K21 -> 0.1134707293 | L7: =Inputs!L21 -> 0.09716555736 | M7: =Inputs!M21 -> 0.09885525694 | N7: =Inputs!N21 -> 0.1004320167 | O7: =Inputs!O21 -> 0.08616592987 | P7: =Inputs!P21 -> 0.08616592987 | Q7: =Inputs!Q21 -> 0.08616592987 | R7: =Inputs!R21 -> 0.08616592987 | S7: =Inputs!S21 -> 0.08616592987 | T7: =S7 -> 0.08616592987 | U7: 0.08616592987 | V7: 0.08616592987 | W7: 0.08616592987 | X7: 0.08616592987 | Y7: 0.08616592987 | Z7: 0.08616592987 | AA7: 0.08616592987 | AB7: 0.08616592987 | AC7: 0.08616592987 | AD7: 0.08616592987 | AE7: 0.08616592987 | AF7: 0.08616592987 | AG7: 0.08616592987 | AH7: 0.08616592987 | AI7: 0.08616592987 | AJ7: 0.08616592987 | AK7: 0.08616592987 | AL7: 0.08616592987 | AM7: 0.08616592987 | AN7: 0.08616592987 | AO7: 0.08616592987 | AP7: 0.08616592987 | AQ7: 0.08616592987 | AR7: 0.08616592987 | AS7: 0.08616592987 | AT7: 0.08616592987 | AU7: 0.08616592987 | AV7: 0.08616592987 | AW7: 0.08616592987 | AX7: 0.08616592987 | AY7: 0.08616592987 | AZ7: 0.08616592987 | BA7: 0.08616592987 | BB7: 0.08616592987 | BC7: 0.08616592987 | BD7: 0.08616592987 | BE7: 0.08616592987 | BF7: 0.08616592987 | BG7: 0.08616592987 | BH7: 0.08616592987 | BI7: 0.08616592987 | BJ7: 0.08616592987 | BK7: 0.08616592987 | BL7: 0.08616592987 | BM7: 0.08616592987 | BN7: 0.08616592987 | BO7: 0.08616592987 | BP7: 0.08616592987 | BQ7: 0.08616592987
D9: Total Depreciation | E9: $m Real (2010) | J9: =SUMIF($D$17:$D$384, $D9, J$17:J$379) -> 44.95653484 | K9: 50.73043789 | L9: 57.63071651 | M9: 61.93327798 | N9: 63.28388847 | O9: 73.54065769 | P9: 55.05715091 | Q9: 50.46396259 | R9: 48.41437324 | S9: 46.76383225 | T9: 43.74029971 | U9: 41.44472172 | V9: 40.81124395 | W9: 40.72296313 | X9: 40.68416003 | Y9: 40.32712498 | Z9: 40.32712498 | AA9: 40.32712498 | AB9: 40.32712498 | AC9: 40.34012323 | AD9: 40.44458896 | AE9: 33.43446011 | AF9: 15.33005251 | AG9: 14.74434027 | AH9: 14.24046215 | AI9: 13.48703178 | AJ9: 13.48703178 | AK9: 13.48703178 | AL9: 12.86567428 | AM9: 8.919512393 | AN9: 8.919512393 | AO9: 8.919512393 | AP9: 8.919512393 | AQ9: 8.919512393 | AR9: 8.919512393 | AS9: 8.919512393 | AT9: 8.919512393 | AU9: 8.919512393 | AV9: 8.919512393 | AW9: 8.919512393 | AX9: 8.919512393 | AY9: 8.919512393 | AZ9: 8.919512393 | BA9: 8.919512393 | BB9: 8.88603633 | BC9: 8.663390216 | BD9: 8.208036547 | BE9: 7.797119273 | BF9: 7.266483801 | BG9: 6.667145088 | BH9: 6.725862447 | BI9: 5.310506878 | BJ9: 4.168949195 | BK9: 2.82201775 | BL9: 1.377646467 | BM9: 0.0249141312 | BN9: 0 | BO9: 0 | BP9: 0 | BQ9: 0
D10: Capex | E10: $m Real (2010) | J10: =SUMIF($C$17:$C$384, $D10, J$17:J$379) -> 96.83463117 | K10: 93.54458815 | L10: 89.27175292 | M10: 90.48051855 | N10: 96.97422839 | O10: 0 | P10: 0 | Q10: 0 | R10: 0 | S10: 0 | T10: 0 | U10: 0 | V10: 0 | W10: 0 | X10: 0 | Y10: 0 | Z10: 0 | AA10: 0 | AB10: 0 | AC10: 0 | AD10: 0 | AE10: 0 | AF10: 0 | AG10: 0 | AH10: 0 | AI10: 0 | AJ10: 0 | AK10: 0 | AL10: 0 | AM10: 0 | AN10: 0 | AO10: 0 | AP10: 0 | AQ10: 0 | AR10: 0 | AS10: 0 | AT10: 0 | AU10: 0 | AV10: 0 | AW10: 0 | AX10: 0 | AY10: 0 | AZ10: 0 | BA10: 0 | BB10: 0 | BC10: 0 | BD10: 0 | BE10: 0 | BF10: 0 | BG10: 0 | BH10: 0 | BI10: 0 | BJ10: 0 | BK10: 0 | BL10: 0 | BM10: 0 | BN10: 0 | BO10: 0 | BP10: 0 | BQ10: 0
D12: Existing Assets Closing RAB | E12: $m Real (2010) | I12: =SUMIF($D$17:$D$384, $D12, I$17:I$384) -> 764.1963843 | J12: 719.2398495 | K12: 674.2833146 | L12: 629.3267798 | M12: 584.3702449 | N12: 542.2309419 | O12: 503.3453389 | P12: 470.7341554 | Q12: 438.1229719 | R12: 405.5117884 | S12: 372.9006049 | T12: 341.5012456 | U12: 312.2000107 | V12: 283.4475711 | W12: 254.6951314 | X12: 225.9426918 | Y12: 197.1902522 | Z12: 168.4378125 | AA12: 139.6853729 | AB12: 110.9329332 | AC12: 82.18049357 | AD12: 53.42805393 | AE12: 31.35127823 | AF12: 26.78375884 | AG12: 22.21623945 | AH12: 17.64872006 | AI12: 13.08120067 | AJ12: 8.513681282 | AK12: 3.946161891 | AL12: -3.508304758e-14 | AM12: -3.508304758e-14 | AN12: -3.508304758e-14 | AO12: -3.508304758e-14 | AP12: -3.508304758e-14 | AQ12: -3.508304758e-14 | AR12: -3.508304758e-14 | AS12: -3.508304758e-14 | AT12: -3.508304758e-14 | AU12: -3.508304758e-14 | AV12: -3.508304758e-14 | AW12: -3.508304758e-14 | AX12: -3.508304758e-14 | AY12: -3.508304758e-14 | AZ12: -3.508304758e-14 | BA12: -3.508304758e-14 | BB12: -3.508304758e-14 | BC12: -3.508304758e-14 | BD12: -3.508304758e-14 | BE12: -3.508304758e-14 | BF12: -3.508304758e-14 | BG12: -3.508304758e-14 | BH12: -3.508304758e-14 | BI12: -3.508304758e-14 | BJ12: -3.508304758e-14 | BK12: -3.508304758e-14 | BL12: -3.508304758e-14 | BM12: -3.508304758e-14 | BN12: -3.508304758e-14 | BO12: -3.508304758e-14 | BP12: -3.508304758e-14 | BQ12: -3.508304758e-14
D13: Capex Closing RAB | E13: $m Real (2010) | J13: 118.6594376 | K13: 223.0124466 | L13: 322.6323621 | M13: 421.7008018 | N13: 527.540171 | O13: 501.3552266 | P13: 478.3288123 | Q13: 459.8955862 | R13: 443.5119495 | S13: 428.7788538 | T13: 415.8599545 | U13: 403.1385087 | V13: 390.5017455 | W13: 377.9532632 | X13: 365.4435839 | Y13: 353.2909396 | Z13: 341.1382954 | AA13: 328.9856511 | AB13: 316.8330069 | AC13: 304.6803627 | AD13: 292.5553796 | AE13: 280.7648614 | AF13: 269.5694945 | AG13: 258.9598399 | AH13: 248.8540634 | AI13: 239.5017172 | AJ13: 230.1493711 | AK13: 220.7970249 | AL13: 211.4446788 | AM13: 202.0923326 | AN13: 192.7399864 | AO13: 183.3876403 | AP13: 174.0352941 | AQ13: 164.682948 | AR13: 155.3306018 | AS13: 145.9782557 | AT13: 136.6259095 | AU13: 127.2735634 | AV13: 117.9212172 | AW13: 108.5688711 | AX13: 99.2165249 | AY13: 89.86417874 | AZ13: 80.51183259 | BA13: 71.15948643 | BB13: 61.80714028 | BC13: 52.5907759 | BD13: 43.8297652 | BE13: 35.47967177 | BF13: 27.66021382 | BG13: 20.44009457 | BH13: 13.70403442 | BI13: 8.393527543 | BJ13: 4.224578348 | BK13: 1.402560598 | BL13: 0.0249141312 | BM13: 1.796340854e-13 | BN13: 1.796340854e-13 | BO13: 1.796340854e-13 | BP13: 1.796340854e-13 | BQ13: 1.796340854e-13
D14: Total Closing RAB | E14: $m Real (2010) | I14: =SUM(I12:I13) -> 764.1963843 | J14: =SUM(J12:J13) -> 837.899287 | K14: =SUM(K12:K13) -> 897.2957612 | L14: 951.9591419 | M14: 1006.071047 | N14: 1069.771113 | O14: 1004.700566 | P14: 949.0629677 | Q14: 898.0185581 | R14: 849.0237379 | S14: 801.6794587 | T14: 757.3612001 | U14: 715.3385195 | V14: 673.9493166 | W14: 632.6483946 | X14: 591.3862757 | Y14: 550.4811918 | Z14: 509.5761079 | AA14: 468.671024 | AB14: 427.7659401 | AC14: 386.8608562 | AD14: 345.9834335 | AE14: 312.1161396 | AF14: 296.3532534 | AG14: 281.1760793 | AH14: 266.5027834 | AI14: 252.5829179 | AJ14: 238.6630523 | AK14: 224.7431868 | AL14: 211.4446788 | AM14: 202.0923326 | AN14: 192.7399864 | AO14: 183.3876403 | AP14: 174.0352941 | AQ14: 164.682948 | AR14: 155.3306018 | AS14: 145.9782557 | AT14: 136.6259095 | AU14: 127.2735634 | AV14: 117.9212172 | AW14: 108.5688711 | AX14: 99.2165249 | AY14: 89.86417874 | AZ14: 80.51183259 | BA14: 71.15948643 | BB14: 61.80714028 | BC14: 52.5907759 | BD14: 43.8297652 | BE14: 35.47967177 | BF14: 27.66021382 | BG14: 20.44009457 | BH14: 13.70403442 | BI14: 8.393527543 | BJ14: 4.224578348 | BK14: 1.402560598 | BL14: 0.0249141312 | BM14: 1.445510378e-13 | BN14: 1.445510378e-13 | BO14: 1.445510378e-13 | BP14: 1.445510378e-13 | BQ14: 1.445510378e-13
B17: =Inputs!C43 -> Subtransmission
C18: Remaining Life | I18: =INDEX(Inputs!$E$43:$E$49, MATCH(B17, Inputs!$C$43:$C$49,0)) -> 28.86396172
C19: Standard Life | I19: =IF(INDEX(Inputs!$F$43:$F$49,MATCH(B17,Inputs!$C$43:$C$49,0))<0,1,INDEX(Inputs!$F$43:$F$49,MATCH(B17,Inputs!$C$43:$C$49,0))) -> 44.72135881
C21: Existing Assets
D22: Depreciation on Existing Opening RAB | E22: $m Real (2010) | J22: =IF(OR($I18=0,I27=0),0,IF($I25>0,(MIN($I27/$I18, $I27-SUM($I22:I22))),(MAX($I27/$I18, $I27-SUM($I22:I22))))) -> 4.567519391 | K22: =IF(OR($I18=0,J27=0),0,IF($I25>0,(MIN($I27/$I18, $I27-SUM($I22:J22))),(MAX($I27/$I18, $I27-SUM($I22:J22))))) -> 4.567519391 | L22: =IF(OR($I18=0,K27=0),0,IF($I25>0,(MIN($I27/$I18, $I27-SUM($I22:K22))),(MAX($I27/$I18, $I27-SUM($I22:K22))))) -> 4.567519391 | M22: =IF(OR($I18=0,L27=0),0,IF($I25>0,(MIN($I27/$I18, $I27-SUM($I22:L22))),(MAX($I27/$I18, $I27-SUM($I22:L22))))) -> 4.567519391 | N22: =IF(OR($I18=0,M27=0),0,IF($I25>0,(MIN($I27/$I18, $I27-SUM($I22:M22))),(MAX($I27/$I18, $I27-SUM($I22:M22))))) -> 4.567519391 | O22: =IF(OR($I18=0,N27=0),0,IF($I25>0,(MIN($I27/$I18, $I27-SUM($I22:N22))),(MAX($I27/$I18, $I27-SUM($I22:N22))))) -> 4.567519391 | P22: =IF(OR($I18=0,O27=0),0,IF($I25>0,(MIN($I27/$I18, $I27-SUM($I22:O22))),(MAX($I27/$I18, $I27-SUM($I22:O22))))) -> 4.567519391 | Q22: =IF(OR($I18=0,P27=0),0,IF($I25>0,(MIN($I27/$I18, $I27-SUM($I22:P22))),(MAX($I27/$I18, $I27-SUM($I22:P22))))) -> 4.567519391 | R22: =IF(OR($I18=0,Q27=0),0,IF($I25>0,(MIN($I27/$I18, $I27-SUM($I22:Q22))),(MAX($I27/$I18, $I27-SUM($I22:Q22))))) -> 4.567519391 | S22: =IF(OR($I18=0,R27=0),0,IF($I25>0,(MIN($I27/$I18, $I27-SUM($I22:R22))),(MAX($I27/$I18, $I27-SUM($I22:R22))))) -> 4.567519391 | T22: =IF(OR($I18=0,S27=0),0,IF($I25>0,(MIN($I27/$I18, $I27-SUM($I22:S22))),(MAX($I27/$I18, $I27-SUM($I22:S22))))) -> 4.567519391 | U22: =IF(OR($I18=0,T27=0),0,IF($I25>0,(MIN($I27/$I18, $I27-SUM($I22:T22))),(MAX($I27/$I18, $I27-SUM($I22:T22))))) -> 4.567519391 | V22: =IF(OR($I18=0,U27=0),0,IF($I25>0,(MIN($I27/$I18, $I27-SUM($I22:U22))),(MAX($I27/$I18, $I27-SUM($I22:U22))))) -> 4.567519391 | W22: =IF(OR($I18=0,V27=0),0,IF($I25>0,(MIN($I27/$I18, $I27-SUM($I22:V22))),(MAX($I27/$I18, $I27-SUM($I22:V22))))) -> 4.567519391 | X22: =IF(OR($I18=0,W27=0),0,IF($I25>0,(MIN($I27/$I18, $I27-SUM($I22:W22))),(MAX($I27/$I18, $I27-SUM($I22:W22))))) -> 4.567519391 | Y22: =IF(OR($I18=0,X27=0),0,IF($I25>0,(MIN($I27/$I18, $I27-SUM($I22:X22))),(MAX($I27/$I18, $I27-SUM($I22:X22))))) -> 4.567519391 | Z22: =IF(OR($I18=0,Y27=0),0,IF($I25>0,(MIN($I27/$I18, $I27-SUM($I22:Y22))),(MAX($I27/$I18, $I27-SUM($I22:Y22))))) -> 4.567519391 | AA22: =IF(OR($I18=0,Z27=0),0,IF($I25>0,(MIN($I27/$I18, $I27-SUM($I22:Z22))),(MAX($I27/$I18, $I27-SUM($I22:Z22))))) -> 4.567519391 | AB22: =IF(OR($I18=0,AA27=0),0,IF($I25>0,(MIN($I27/$I18, $I27-SUM($I22:AA22))),(MAX($I27/$I18, $I27-SUM($I22:AA22))))) -> 4.567519391 | AC22: =IF(OR($I18=0,AB27=0),0,IF($I25>0,(MIN($I27/$I18, $I27-SUM($I22:AB22))),(MAX($I27/$I18, $I27-SUM($I22:AB22))))) -> 4.567519391 | AD22: =IF(OR($I18=0,AC27=0),0,IF($I25>0,(MIN($I27/$I18, $I27-SUM($I22:AC22))),(MAX($I27/$I18, $I27-SUM($I22:AC22))))) -> 4.567519391 | AE22: =IF(OR($I18=0,AD27=0),0,IF($I25>0,(MIN($I27/$I18, $I27-SUM($I22:AD22))),(MAX($I27/$I18, $I27-SUM($I22:AD22))))) -> 4.567519391 | AF22: =IF(OR($I18=0,AE27=0),0,IF($I25>0,(MIN($I27/$I18, $I27-SUM($I22:AE22))),(MAX($I27/$I18, $I27-SUM($I22:AE22))))) -> 4.567519391 | AG22: =IF(OR($I18=0,AF27=0),0,IF($I25>0,(MIN($I27/$I18, $I27-SUM($I22:AF22))),(MAX($I27/$I18, $I27-SUM($I22:AF22))))) -> 4.567519391 | AH22: =IF(OR($I18=0,AG27=0),0,IF($I25>0,(MIN($I27/$I18, $I27-SUM($I22:AG22))),(MAX($I27/$I18, $I27-SUM($I22:AG22))))) -> 4.567519391 | AI22: =IF(OR($I18=0,AH27=0),0,IF($I25>0,(MIN($I27/$I18, $I27-SUM($I22:AH22))),(MAX($I27/$I18, $I27-SUM($I22:AH22))))) -> 4.567519391 | AJ22: =IF(OR($I18=0,AI27=0),0,IF($I25>0,(MIN($I27/$I18, $I27-SUM($I22:AI22))),(MAX($I27/$I18, $I27-SUM($I22:AI22))))) -> 4.567519391 | AK22: =IF(OR($I18=0,AJ27=0),0,IF($I25>0,(MIN($I27/$I18, $I27-SUM($I22:AJ22))),(MAX($I27/$I18, $I27-SUM($I22:AJ22))))) -> 4.567519391 | AL22: =IF(OR($I18=0,AK27=0),0,IF($I25>0,(MIN($I27/$I18, $I27-SUM($I22:AK22))),(MAX($I27/$I18, $I27-SUM($I22:AK22))))) -> 3.946161891 | AM22: =IF(OR($I18=0,AL27=0),0,IF($I25>0,(MIN($I27/$I18, $I27-SUM($I22:AL22))),(MAX($I27/$I18, $I27-SUM($I22:AL22))))) -> 0 | AN22: =IF(OR($I18=0,AM27=0),0,IF($I25>0,(MIN($I27/$I18, $I27-SUM($I22:AM22))),(MAX($I27/$I18, $I27-SUM($I22:AM22))))) -> 0 | AO22: =IF(OR($I18=0,AN27=0),0,IF($I25>0,(MIN($I27/$I18, $I27-SUM($I22:AN22))),(MAX($I27/$I18, $I27-SUM($I22:AN22))))) -> 0 | AP22: =IF(OR($I18=0,AO27=0),0,IF($I25>0,(MIN($I27/$I18, $I27-SUM($I22:AO22))),(MAX($I27/$I18, $I27-SUM($I22:AO22))))) -> 0 | AQ22: =IF(OR($I18=0,AP27=0),0,IF($I25>0,(MIN($I27/$I18, $I27-SUM($I22:AP22))),(MAX($I27/$I18, $I27-SUM($I22:AP22))))) -> 0 | AR22: =IF(OR($I18=0,AQ27=0),0,IF($I25>0,(MIN($I27/$I18, $I27-SUM($I22:AQ22))),(MAX($I27/$I18, $I27-SUM($I22:AQ22))))) -> 0 | AS22: =IF(OR($I18=0,AR27=0),0,IF($I25>0,(MIN($I27/$I18, $I27-SUM($I22:AR22))),(MAX($I27/$I18, $I27-SUM($I22:AR22))))) -> 0 | AT22: =IF(OR($I18=0,AS27=0),0,IF($I25>0,(MIN($I27/$I18, $I27-SUM($I22:AS22))),(MAX($I27/$I18, $I27-SUM($I22:AS22))))) -> 0 | AU22: =IF(OR($I18=0,AT27=0),0,IF($I25>0,(MIN($I27/$I18, $I27-SUM($I22:AT22))),(MAX($I27/$I18, $I27-SUM($I22:AT22))))) -> 0 | AV22: =IF(OR($I18=0,AU27=0),0,IF($I25>0,(MIN($I27/$I18, $I27-SUM($I22:AU22))),(MAX($I27/$I18, $I27-SUM($I22:AU22))))) -> 0 | AW22: =IF(OR($I18=0,AV27=0),0,IF($I25>0,(MIN($I27/$I18, $I27-SUM($I22:AV22))),(MAX($I27/$I18, $I27-SUM($I22:AV22))))) -> 0 | AX22: =IF(OR($I18=0,AW27=0),0,IF($I25>0,(MIN($I27/$I18, $I27-SUM($I22:AW22))),(MAX($I27/$I18, $I27-SUM($I22:AW22))))) -> 0 | AY22: =IF(OR($I18=0,AX27=0),0,IF($I25>0,(MIN($I27/$I18, $I27-SUM($I22:AX22))),(MAX($I27/$I18, $I27-SUM($I22:AX22))))) -> 0 | AZ22: =IF(OR($I18=0,AY27=0),0,IF($I25>0,(MIN($I27/$I18, $I27-SUM($I22:AY22))),(MAX($I27/$I18, $I27-SUM($I22:AY22))))) -> 0 | BA22: =IF(OR($I18=0,AZ27=0),0,IF($I25>0,(MIN($I27/$I18, $I27-SUM($I22:AZ22))),(MAX($I27/$I18, $I27-SUM($I22:AZ22))))) -> 0 | BB22: =IF(OR($I18=0,BA27=0),0,IF($I25>0,(MIN($I27/$I18, $I27-SUM($I22:BA22))),(MAX($I27/$I18, $I27-SUM($I22:BA22))))) -> 0 | BC22: =IF(OR($I18=0,BB27=0),0,IF($I25>0,(MIN($I27/$I18, $I27-SUM($I22:BB22))),(MAX($I27/$I18, $I27-SUM($I22:BB22))))) -> 0 | BD22: =IF(OR($I18=0,BC27=0),0,IF($I25>0,(MIN($I27/$I18, $I27-SUM($I22:BC22))),(MAX($I27/$I18, $I27-SUM($I22:BC22))))) -> 0 | BE22: =IF(OR($I18=0,BD27=0),0,IF($I25>0,(MIN($I27/$I18, $I27-SUM($I22:BD22))),(MAX($I27/$I18, $I27-SUM($I22:BD22))))) -> 0 | BF22: =IF(OR($I18=0,BE27=0),0,IF($I25>0,(MIN($I27/$I18, $I27-SUM($I22:BE22))),(MAX($I27/$I18, $I27-SUM($I22:BE22))))) -> 0 | BG22: =IF(OR($I18=0,BF27=0),0,IF($I25>0,(MIN($I27/$I18, $I27-SUM($I22:BF22))),(MAX($I27/$I18, $I27-SUM($I22:BF22))))) -> 0 | BH22: =IF(OR($I18=0,BG27=0),0,IF($I25>0,(MIN($I27/$I18, $I27-SUM($I22:BG22))),(MAX($I27/$I18, $I27-SUM($I22:BG22))))) -> 0 | BI22: =IF(OR($I18=0,BH27=0),0,IF($I25>0,(MIN($I27/$I18, $I27-SUM($I22:BH22))),(MAX($I27/$I18, $I27-SUM($I22:BH22))))) -> 0 | BJ22: =IF(OR($I18=0,BI27=0),0,IF($I25>0,(MIN($I27/$I18, $I27-SUM($I22:BI22))),(MAX($I27/$I18, $I27-SUM($I22:BI22))))) -> 0 | BK22: =IF(OR($I18=0,BJ27=0),0,IF($I25>0,(MIN($I27/$I18, $I27-SUM($I22:BJ22))),(MAX($I27/$I18, $I27-SUM($I22:BJ22))))) -> 0 | BL22: =IF(OR($I18=0,BK27=0),0,IF($I25>0,(MIN($I27/$I18, $I27-SUM($I22:BK22))),(MAX($I27/$I18, $I27-SUM($I22:BK22))))) -> 0 | BM22: =IF(OR($I18=0,BL27=0),0,IF($I25>0,(MIN($I27/$I18, $I27-SUM($I22:BL22))),(MAX($I27/$I18, $I27-SUM($I22:BL22))))) -> 0 | BN22: =IF(OR($I18=0,BM27=0),0,IF($I25>0,(MIN($I27/$I18, $I27-SUM($I22:BM22))),(MAX($I27/$I18, $I27-SUM($I22:BM22))))) -> 0 | BO22: =IF(OR($I18=0,BN27=0),0,IF($I25>0,(MIN($I27/$I18, $I27-SUM($I22:BN22))),(MAX($I27/$I18, $I27-SUM($I22:BN22))))) -> 0 | BP22: =IF(OR($I18=0,BO27=0),0,IF($I25>0,(MIN($I27/$I18, $I27-SUM($I22:BO22))),(MAX($I27/$I18, $I27-SUM($I22:BO22))))) -> 0 | BQ22: =IF(OR($I18=0,BP27=0),0,IF($I25>0,(MIN($I27/$I18, $I27-SUM($I22:BP22))),(MAX($I27/$I18, $I27-SUM($I22:BP22))))) -> 0
D23: Depreciation on RAB adjustments | E23: $m Real (2010) | O23: =IF(OR($I18=0,N27=0),0,IF($N26>0,(MIN($N26/IF($I18<=5,1,($I18-5)),$N26-SUM($N23:N23))), (MAX($N26/IF($I18<=5,1,($I18-5)),$N26-SUM($N23:N23))))) -> 0 | P23: =IF(OR($I18=0,O27=0),0,IF($N26>0,(MIN($N26/IF($I18<=5,1,($I18-5)),$N26-SUM($N23:O23))), (MAX($N26/IF($I18<=5,1,($I18-5)),$N26-SUM($N23:O23))))) -> 0 | Q23: =IF(OR($I18=0,P27=0),0,IF($N26>0,(MIN($N26/IF($I18<=5,1,($I18-5)),$N26-SUM($N23:P23))), (MAX($N26/IF($I18<=5,1,($I18-5)),$N26-SUM($N23:P23))))) -> 0 | R23: =IF(OR($I18=0,Q27=0),0,IF($N26>0,(MIN($N26/IF($I18<=5,1,($I18-5)),$N26-SUM($N23:Q23))), (MAX($N26/IF($I18<=5,1,($I18-5)),$N26-SUM($N23:Q23))))) -> 0 | S23: =IF(OR($I18=0,R27=0),0,IF($N26>0,(MIN($N26/IF($I18<=5,1,($I18-5)),$N26-SUM($N23:R23))), (MAX($N26/IF($I18<=5,1,($I18-5)),$N26-SUM($N23:R23))))) -> 0 | T23: =IF(OR($I18=0,S27=0),0,IF($N26>0,(MIN($N26/IF($I18<=5,1,($I18-5)),$N26-SUM($N23:S23))), (MAX($N26/IF($I18<=5,1,($I18-5)),$N26-SUM($N23:S23))))) -> 0 | U23: =IF(OR($I18=0,T27=0),0,IF($N26>0,(MIN($N26/IF($I18<=5,1,($I18-5)),$N26-SUM($N23:T23))), (MAX($N26/IF($I18<=5,1,($I18-5)),$N26-SUM($N23:T23))))) -> 0 | V23: =IF(OR($I18=0,U27=0),0,IF($N26>0,(MIN($N26/IF($I18<=5,1,($I18-5)),$N26-SUM($N23:U23))), (MAX($N26/IF($I18<=5,1,($I18-5)),$N26-SUM($N23:U23))))) -> 0 | W23: =IF(OR($I18=0,V27=0),0,IF($N26>0,(MIN($N26/IF($I18<=5,1,($I18-5)),$N26-SUM($N23:V23))), (MAX($N26/IF($I18<=5,1,($I18-5)),$N26-SUM($N23:V23))))) -> 0 | X23: =IF(OR($I18=0,W27=0),0,IF($N26>0,(MIN($N26/IF($I18<=5,1,($I18-5)),$N26-SUM($N23:W23))), (MAX($N26/IF($I18<=5,1,($I18-5)),$N26-SUM($N23:W23))))) -> 0 | Y23: =IF(OR($I18=0,X27=0),0,IF($N26>0,(MIN($N26/IF($I18<=5,1,($I18-5)),$N26-SUM($N23:X23))), (MAX($N26/IF($I18<=5,1,($I18-5)),$N26-SUM($N23:X23))))) -> 0 | Z23: =IF(OR($I18=0,Y27=0),0,IF($N26>0,(MIN($N26/IF($I18<=5,1,($I18-5)),$N26-SUM($N23:Y23))), (MAX($N26/IF($I18<=5,1,($I18-5)),$N26-SUM($N23:Y23))))) -> 0 | AA23: =IF(OR($I18=0,Z27=0),0,IF($N26>0,(MIN($N26/IF($I18<=5,1,($I18-5)),$N26-SUM($N23:Z23))), (MAX($N26/IF($I18<=5,1,($I18-5)),$N26-SUM($N23:Z23))))) -> 0 | AB23: =IF(OR($I18=0,AA27=0),0,IF($N26>0,(MIN($N26/IF($I18<=5,1,($I18-5)),$N26-SUM($N23:AA23))), (MAX($N26/IF($I18<=5,1,($I18-5)),$N26-SUM($N23:AA23))))) -> 0 | AC23: =IF(OR($I18=0,AB27=0),0,IF($N26>0,(MIN($N26/IF($I18<=5,1,($I18-5)),$N26-SUM($N23:AB23))), (MAX($N26/IF($I18<=5,1,($I18-5)),$N26-SUM($N23:AB23))))) -> 0 | AD23: =IF(OR($I18=0,AC27=0),0,IF($N26>0,(MIN($N26/IF($I18<=5,1,($I18-5)),$N26-SUM($N23:AC23))), (MAX($N26/IF($I18<=5,1,($I18-5)),$N26-SUM($N23:AC23))))) -> 0 | AE23: =IF(OR($I18=0,AD27=0),0,IF($N26>0,(MIN($N26/IF($I18<=5,1,($I18-5)),$N26-SUM($N23:AD23))), (MAX($N26/IF($I18<=5,1,($I18-5)),$N26-SUM($N23:AD23))))) -> 0 | AF23: =IF(OR($I18=0,AE27=0),0,IF($N26>0,(MIN($N26/IF($I18<=5,1,($I18-5)),$N26-SUM($N23:AE23))), (MAX($N26/IF($I18<=5,1,($I18-5)),$N26-SUM($N23:AE23))))) -> 0 | AG23: =IF(OR($I18=0,AF27=0),0,IF($N26>0,(MIN($N26/IF($I18<=5,1,($I18-5)),$N26-SUM($N23:AF23))), (MAX($N26/IF($I18<=5,1,($I18-5)),$N26-SUM($N23:AF23))))) -> 0 | AH23: =IF(OR($I18=0,AG27=0),0,IF($N26>0,(MIN($N26/IF($I18<=5,1,($I18-5)),$N26-SUM($N23:AG23))), (MAX($N26/IF($I18<=5,1,($I18-5)),$N26-SUM($N23:AG23))))) -> 0 | AI23: =IF(OR($I18=0,AH27=0),0,IF($N26>0,(MIN($N26/IF($I18<=5,1,($I18-5)),$N26-SUM($N23:AH23))), (MAX($N26/IF($I18<=5,1,($I18-5)),$N26-SUM($N23:AH23))))) -> 0 | AJ23: =IF(OR($I18=0,AI27=0),0,IF($N26>0,(MIN($N26/IF($I18<=5,1,($I18-5)),$N26-SUM($N23:AI23))), (MAX($N26/IF($I18<=5,1,($I18-5)),$N26-SUM($N23:AI23))))) -> 0 | AK23: =IF(OR($I18=0,AJ27=0),0,IF($N26>0,(MIN($N26/IF($I18<=5,1,($I18-5)),$N26-SUM($N23:AJ23))), (MAX($N26/IF($I18<=5,1,($I18-5)),$N26-SUM($N23:AJ23))))) -> 0 | AL23: =IF(OR($I18=0,AK27=0),0,IF($N26>0,(MIN($N26/IF($I18<=5,1,($I18-5)),$N26-SUM($N23:AK23))), (MAX($N26/IF($I18<=5,1,($I18-5)),$N26-SUM($N23:AK23))))) -> 0 | AM23: =IF(OR($I18=0,AL27=0),0,IF($N26>0,(MIN($N26/IF($I18<=5,1,($I18-5)),$N26-SUM($N23:AL23))), (MAX($N26/IF($I18<=5,1,($I18-5)),$N26-SUM($N23:AL23))))) -> 0 | AN23: =IF(OR($I18=0,AM27=0),0,IF($N26>0,(MIN($N26/IF($I18<=5,1,($I18-5)),$N26-SUM($N23:AM23))), (MAX($N26/IF($I18<=5,1,($I18-5)),$N26-SUM($N23:AM23))))) -> 0 | AO23: =IF(OR($I18=0,AN27=0),0,IF($N26>0,(MIN($N26/IF($I18<=5,1,($I18-5)),$N26-SUM($N23:AN23))), (MAX($N26/IF($I18<=5,1,($I18-5)),$N26-SUM($N23:AN23))))) -> 0 | AP23: =IF(OR($I18=0,AO27=0),0,IF($N26>0,(MIN($N26/IF($I18<=5,1,($I18-5)),$N26-SUM($N23:AO23))), (MAX($N26/IF($I18<=5,1,($I18-5)),$N26-SUM($N23:AO23))))) -> 0 | AQ23: =IF(OR($I18=0,AP27=0),0,IF($N26>0,(MIN($N26/IF($I18<=5,1,($I18-5)),$N26-SUM($N23:AP23))), (MAX($N26/IF($I18<=5,1,($I18-5)),$N26-SUM($N23:AP23))))) -> 0 | AR23: =IF(OR($I18=0,AQ27=0),0,IF($N26>0,(MIN($N26/IF($I18<=5,1,($I18-5)),$N26-SUM($N23:AQ23))), (MAX($N26/IF($I18<=5,1,($I18-5)),$N26-SUM($N23:AQ23))))) -> 0 | AS23: =IF(OR($I18=0,AR27=0),0,IF($N26>0,(MIN($N26/IF($I18<=5,1,($I18-5)),$N26-SUM($N23:AR23))), (MAX($N26/IF($I18<=5,1,($I18-5)),$N26-SUM($N23:AR23))))) -> 0 | AT23: =IF(OR($I18=0,AS27=0),0,IF($N26>0,(MIN($N26/IF($I18<=5,1,($I18-5)),$N26-SUM($N23:AS23))), (MAX($N26/IF($I18<=5,1,($I18-5)),$N26-SUM($N23:AS23))))) -> 0 | AU23: =IF(OR($I18=0,AT27=0),0,IF($N26>0,(MIN($N26/IF($I18<=5,1,($I18-5)),$N26-SUM($N23:AT23))), (MAX($N26/IF($I18<=5,1,($I18-5)),$N26-SUM($N23:AT23))))) -> 0 | AV23: =IF(OR($I18=0,AU27=0),0,IF($N26>0,(MIN($N26/IF($I18<=5,1,($I18-5)),$N26-SUM($N23:AU23))), (MAX($N26/IF($I18<=5,1,($I18-5)),$N26-SUM($N23:AU23))))) -> 0 | AW23: =IF(OR($I18=0,AV27=0),0,IF($N26>0,(MIN($N26/IF($I18<=5,1,($I18-5)),$N26-SUM($N23:AV23))), (MAX($N26/IF($I18<=5,1,($I18-5)),$N26-SUM($N23:AV23))))) -> 0 | AX23: =IF(OR($I18=0,AW27=0),0,IF($N26>0,(MIN($N26/IF($I18<=5,1,($I18-5)),$N26-SUM($N23:AW23))), (MAX($N26/IF($I18<=5,1,($I18-5)),$N26-SUM($N23:AW23))))) -> 0 | AY23: =IF(OR($I18=0,AX27=0),0,IF($N26>0,(MIN($N26/IF($I18<=5,1,($I18-5)),$N26-SUM($N23:AX23))), (MAX($N26/IF($I18<=5,1,($I18-5)),$N26-SUM($N23:AX23))))) -> 0 | AZ23: =IF(OR($I18=0,AY27=0),0,IF($N26>0,(MIN($N26/IF($I18<=5,1,($I18-5)),$N26-SUM($N23:AY23))), (MAX($N26/IF($I18<=5,1,($I18-5)),$N26-SUM($N23:AY23))))) -> 0 | BA23: =IF(OR($I18=0,AZ27=0),0,IF($N26>0,(MIN($N26/IF($I18<=5,1,($I18-5)),$N26-SUM($N23:AZ23))), (MAX($N26/IF($I18<=5,1,($I18-5)),$N26-SUM($N23:AZ23))))) -> 0 | BB23: =IF(OR($I18=0,BA27=0),0,IF($N26>0,(MIN($N26/IF($I18<=5,1,($I18-5)),$N26-SUM($N23:BA23))), (MAX($N26/IF($I18<=5,1,($I18-5)),$N26-SUM($N23:BA23))))) -> 0 | BC23: =IF(OR($I18=0,BB27=0),0,IF($N26>0,(MIN($N26/IF($I18<=5,1,($I18-5)),$N26-SUM($N23:BB23))), (MAX($N26/IF($I18<=5,1,($I18-5)),$N26-SUM($N23:BB23))))) -> 0 | BD23: =IF(OR($I18=0,BC27=0),0,IF($N26>0,(MIN($N26/IF($I18<=5,1,($I18-5)),$N26-SUM($N23:BC23))), (MAX($N26/IF($I18<=5,1,($I18-5)),$N26-SUM($N23:BC23))))) -> 0 | BE23: =IF(OR($I18=0,BD27=0),0,IF($N26>0,(MIN($N26/IF($I18<=5,1,($I18-5)),$N26-SUM($N23:BD23))), (MAX($N26/IF($I18<=5,1,($I18-5)),$N26-SUM($N23:BD23))))) -> 0 | BF23: =IF(OR($I18=0,BE27=0),0,IF($N26>0,(MIN($N26/IF($I18<=5,1,($I18-5)),$N26-SUM($N23:BE23))), (MAX($N26/IF($I18<=5,1,($I18-5)),$N26-SUM($N23:BE23))))) -> 0 | BG23: =IF(OR($I18=0,BF27=0),0,IF($N26>0,(MIN($N26/IF($I18<=5,1,($I18-5)),$N26-SUM($N23:BF23))), (MAX($N26/IF($I18<=5,1,($I18-5)),$N26-SUM($N23:BF23))))) -> 0 | BH23: =IF(OR($I18=0,BG27=0),0,IF($N26>0,(MIN($N26/IF($I18<=5,1,($I18-5)),$N26-SUM($N23:BG23))), (MAX($N26/IF($I18<=5,1,($I18-5)),$N26-SUM($N23:BG23))))) -> 0 | BI23: =IF(OR($I18=0,BH27=0),0,IF($N26>0,(MIN($N26/IF($I18<=5,1,($I18-5)),$N26-SUM($N23:BH23))), (MAX($N26/IF($I18<=5,1,($I18-5)),$N26-SUM($N23:BH23))))) -> 0 | BJ23: =IF(OR($I18=0,BI27=0),0,IF($N26>0,(MIN($N26/IF($I18<=5,1,($I18-5)),$N26-SUM($N23:BI23))), (MAX($N26/IF($I18<=5,1,($I18-5)),$N26-SUM($N23:BI23))))) -> 0 | BK23: =IF(OR($I18=0,BJ27=0),0,IF($N26>0,(MIN($N26/IF($I18<=5,1,($I18-5)),$N26-SUM($N23:BJ23))), (MAX($N26/IF($I18<=5,1,($I18-5)),$N26-SUM($N23:BJ23))))) -> 0 | BL23: =IF(OR($I18=0,BK27=0),0,IF($N26>0,(MIN($N26/IF($I18<=5,1,($I18-5)),$N26-SUM($N23:BK23))), (MAX($N26/IF($I18<=5,1,($I18-5)),$N26-SUM($N23:BK23))))) -> 0 | BM23: =IF(OR($I18=0,BL27=0),0,IF($N26>0,(MIN($N26/IF($I18<=5,1,($I18-5)),$N26-SUM($N23:BL23))), (MAX($N26/IF($I18<=5,1,($I18-5)),$N26-SUM($N23:BL23))))) -> 0 | BN23: =IF(OR($I18=0,BM27=0),0,IF($N26>0,(MIN($N26/IF($I18<=5,1,($I18-5)),$N26-SUM($N23:BM23))), (MAX($N26/IF($I18<=5,1,($I18-5)),$N26-SUM($N23:BM23))))) -> 0 | BO23: =IF(OR($I18=0,BN27=0),0,IF($N26>0,(MIN($N26/IF($I18<=5,1,($I18-5)),$N26-SUM($N23:BN23))), (MAX($N26/IF($I18<=5,1,($I18-5)),$N26-SUM($N23:BN23))))) -> 0 | BP23: =IF(OR($I18=0,BO27=0),0,IF($N26>0,(MIN($N26/IF($I18<=5,1,($I18-5)),$N26-SUM($N23:BO23))), (MAX($N26/IF($I18<=5,1,($I18-5)),$N26-SUM($N23:BO23))))) -> 0 | BQ23: =IF(OR($I18=0,BP27=0),0,IF($N26>0,(MIN($N26/IF($I18<=5,1,($I18-5)),$N26-SUM($N23:BP23))), (MAX($N26/IF($I18<=5,1,($I18-5)),$N26-SUM($N23:BP23))))) -> 0
D24: Total Depreciation on Existing Assets | E24: $m Real (2010) | J24: =SUM(J22:J23) -> 4.567519391 | K24: =SUM(K22:K23) -> 4.567519391 | L24: 4.567519391 | M24: 4.567519391 | N24: 4.567519391 | O24: 4.567519391 | P24: 4.567519391 | Q24: 4.567519391 | R24: 4.567519391 | S24: 4.567519391 | T24: 4.567519391 | U24: 4.567519391 | V24: 4.567519391 | W24: 4.567519391 | X24: 4.567519391 | Y24: 4.567519391 | Z24: 4.567519391 | AA24: 4.567519391 | AB24: 4.567519391 | AC24: 4.567519391 | AD24: 4.567519391 | AE24: 4.567519391 | AF24: 4.567519391 | AG24: 4.567519391 | AH24: 4.567519391 | AI24: 4.567519391 | AJ24: 4.567519391 | AK24: 4.567519391 | AL24: 3.946161891 | AM24: 0 | AN24: 0 | AO24: 0 | AP24: 0 | AQ24: 0 | AR24: 0 | AS24: 0 | AT24: 0 | AU24: 0 | AV24: 0 | AW24: 0 | AX24: 0 | AY24: 0 | AZ24: 0 | BA24: 0 | BB24: 0 | BC24: 0 | BD24: 0 | BE24: 0 | BF24: 0 | BG24: 0 | BH24: 0 | BI24: 0 | BJ24: 0 | BK24: 0 | BL24: 0 | BM24: 0 | BN24: 0 | BO24: 0 | BP24: 0 | BQ24: 0
D25: 2010 Closing RAB | I25: =IF(I$5=first_reg_period, INDEX(Inputs!$I$43:$I$49,MATCH(B17,Inputs!$C$43:$C$49,0)),0) -> 131.8367048 | J25: =IF(J$5=first_reg_period, INDEX(Inputs!$I$43:$I$49,MATCH(C17,Inputs!$C$43:$C$49,0)),0) -> 0 | K25: =IF(K$5=first_reg_period, INDEX(Inputs!$I$43:$I$49,MATCH(D17,Inputs!$C$43:$C$49,0)),0) -> 0 | L25: =IF(L$5=first_reg_period, INDEX(Inputs!$I$43:$I$49,MATCH(E17,Inputs!$C$43:$C$49,0)),0) -> 0 | M25: =IF(M$5=first_reg_period, INDEX(Inputs!$I$43:$I$49,MATCH(F17,Inputs!$C$43:$C$49,0)),0) -> 0 | N25: =IF(N$5=first_reg_period, INDEX(Inputs!$I$43:$I$49,MATCH(G17,Inputs!$C$43:$C$49,0)),0) -> 0 | O25: =IF(O$5=first_reg_period, INDEX(Inputs!$I$43:$I$49,MATCH(H17,Inputs!$C$43:$C$49,0)),0) -> 0 | P25: =IF(P$5=first_reg_period, INDEX(Inputs!$I$43:$I$49,MATCH(I17,Inputs!$C$43:$C$49,0)),0) -> 0 | Q25: =IF(Q$5=first_reg_period, INDEX(Inputs!$I$43:$I$49,MATCH(J17,Inputs!$C$43:$C$49,0)),0) -> 0 | R25: =IF(R$5=first_reg_period, INDEX(Inputs!$I$43:$I$49,MATCH(K17,Inputs!$C$43:$C$49,0)),0) -> 0 | S25: =IF(S$5=first_reg_period, INDEX(Inputs!$I$43:$I$49,MATCH(L17,Inputs!$C$43:$C$49,0)),0) -> 0 | T25: =IF(T$5=first_reg_period, INDEX(Inputs!$I$43:$I$49,MATCH(M17,Inputs!$C$43:$C$49,0)),0) -> 0 | U25: =IF(U$5=first_reg_period, INDEX(Inputs!$I$43:$I$49,MATCH(N17,Inputs!$C$43:$C$49,0)),0) -> 0 | V25: =IF(V$5=first_reg_period, INDEX(Inputs!$I$43:$I$49,MATCH(O17,Inputs!$C$43:$C$49,0)),0) -> 0 | W25: =IF(W$5=first_reg_period, INDEX(Inputs!$I$43:$I$49,MATCH(P17,Inputs!$C$43:$C$49,0)),0) -> 0 | X25: =IF(X$5=first_reg_period, INDEX(Inputs!$I$43:$I$49,MATCH(Q17,Inputs!$C$43:$C$49,0)),0) -> 0 | Y25: =IF(Y$5=first_reg_period, INDEX(Inputs!$I$43:$I$49,MATCH(R17,Inputs!$C$43:$C$49,0)),0) -> 0 | Z25: =IF(Z$5=first_reg_period, INDEX(Inputs!$I$43:$I$49,MATCH(S17,Inputs!$C$43:$C$49,0)),0) -> 0 | AA25: =IF(AA$5=first_reg_period, INDEX(Inputs!$I$43:$I$49,MATCH(T17,Inputs!$C$43:$C$49,0)),0) -> 0 | AB25: =IF(AB$5=first_reg_period, INDEX(Inputs!$I$43:$I$49,MATCH(U17,Inputs!$C$43:$C$49,0)),0) -> 0 | AC25: =IF(AC$5=first_reg_period, INDEX(Inputs!$I$43:$I$49,MATCH(V17,Inputs!$C$43:$C$49,0)),0) -> 0 | AD25: =IF(AD$5=first_reg_period, INDEX(Inputs!$I$43:$I$49,MATCH(W17,Inputs!$C$43:$C$49,0)),0) -> 0 | AE25: =IF(AE$5=first_reg_period, INDEX(Inputs!$I$43:$I$49,MATCH(X17,Inputs!$C$43:$C$49,0)),0) -> 0 | AF25: =IF(AF$5=first_reg_period, INDEX(Inputs!$I$43:$I$49,MATCH(Y17,Inputs!$C$43:$C$49,0)),0) -> 0 | AG25: =IF(AG$5=first_reg_period, INDEX(Inputs!$I$43:$I$49,MATCH(Z17,Inputs!$C$43:$C$49,0)),0) -> 0 | AH25: =IF(AH$5=first_reg_period, INDEX(Inputs!$I$43:$I$49,MATCH(AA17,Inputs!$C$43:$C$49,0)),0) -> 0 | AI25: =IF(AI$5=first_reg_period, INDEX(Inputs!$I$43:$I$49,MATCH(AB17,Inputs!$C$43:$C$49,0)),0) -> 0 | AJ25: =IF(AJ$5=first_reg_period, INDEX(Inputs!$I$43:$I$49,MATCH(AC17,Inputs!$C$43:$C$49,0)),0) -> 0 | AK25: =IF(AK$5=first_reg_period, INDEX(Inputs!$I$43:$I$49,MATCH(AD17,Inputs!$C$43:$C$49,0)),0) -> 0 | AL25: =IF(AL$5=first_reg_period, INDEX(Inputs!$I$43:$I$49,MATCH(AE17,Inputs!$C$43:$C$49,0)),0) -> 0 | AM25: =IF(AM$5=first_reg_period, INDEX(Inputs!$I$43:$I$49,MATCH(AF17,Inputs!$C$43:$C$49,0)),0) -> 0 | AN25: =IF(AN$5=first_reg_period, INDEX(Inputs!$I$43:$I$49,MATCH(AG17,Inputs!$C$43:$C$49,0)),0) -> 0 | AO25: =IF(AO$5=first_reg_period, INDEX(Inputs!$I$43:$I$49,MATCH(AH17,Inputs!$C$43:$C$49,0)),0) -> 0 | AP25: =IF(AP$5=first_reg_period, INDEX(Inputs!$I$43:$I$49,MATCH(AI17,Inputs!$C$43:$C$49,0)),0) -> 0 | AQ25: =IF(AQ$5=first_reg_period, INDEX(Inputs!$I$43:$I$49,MATCH(AJ17,Inputs!$C$43:$C$49,0)),0) -> 0 | AR25: =IF(AR$5=first_reg_period, INDEX(Inputs!$I$43:$I$49,MATCH(AK17,Inputs!$C$43:$C$49,0)),0) -> 0 | AS25: =IF(AS$5=first_reg_period, INDEX(Inputs!$I$43:$I$49,MATCH(AL17,Inputs!$C$43:$C$49,0)),0) -> 0 | AT25: =IF(AT$5=first_reg_period, INDEX(Inputs!$I$43:$I$49,MATCH(AM17,Inputs!$C$43:$C$49,0)),0) -> 0 | AU25: =IF(AU$5=first_reg_period, INDEX(Inputs!$I$43:$I$49,MATCH(AN17,Inputs!$C$43:$C$49,0)),0) -> 0 | AV25: =IF(AV$5=first_reg_period, INDEX(Inputs!$I$43:$I$49,MATCH(AO17,Inputs!$C$43:$C$49,0)),0) -> 0 | AW25: =IF(AW$5=first_reg_period, INDEX(Inputs!$I$43:$I$49,MATCH(AP17,Inputs!$C$43:$C$49,0)),0) -> 0 | AX25: =IF(AX$5=first_reg_period, INDEX(Inputs!$I$43:$I$49,MATCH(AQ17,Inputs!$C$43:$C$49,0)),0) -> 0 | AY25: =IF(AY$5=first_reg_period, INDEX(Inputs!$I$43:$I$49,MATCH(AR17,Inputs!$C$43:$C$49,0)),0) -> 0 | AZ25: =IF(AZ$5=first_reg_period, INDEX(Inputs!$I$43:$I$49,MATCH(AS17,Inputs!$C$43:$C$49,0)),0) -> 0 | BA25: =IF(BA$5=first_reg_period, INDEX(Inputs!$I$43:$I$49,MATCH(AT17,Inputs!$C$43:$C$49,0)),0) -> 0 | BB25: =IF(BB$5=first_reg_period, INDEX(Inputs!$I$43:$I$49,MATCH(AU17,Inputs!$C$43:$C$49,0)),0) -> 0 | BC25: =IF(BC$5=first_reg_period, INDEX(Inputs!$I$43:$I$49,MATCH(AV17,Inputs!$C$43:$C$49,0)),0) -> 0 | BD25: =IF(BD$5=first_reg_period, INDEX(Inputs!$I$43:$I$49,MATCH(AW17,Inputs!$C$43:$C$49,0)),0) -> 0 | BE25: =IF(BE$5=first_reg_period, INDEX(Inputs!$I$43:$I$49,MATCH(AX17,Inputs!$C$43:$C$49,0)),0) -> 0 | BF25: =IF(BF$5=first_reg_period, INDEX(Inputs!$I$43:$I$49,MATCH(AY17,Inputs!$C$43:$C$49,0)),0) -> 0 | BG25: =IF(BG$5=first_reg_period, INDEX(Inputs!$I$43:$I$49,MATCH(AZ17,Inputs!$C$43:$C$49,0)),0) -> 0 | BH25: =IF(BH$5=first_reg_period, INDEX(Inputs!$I$43:$I$49,MATCH(BA17,Inputs!$C$43:$C$49,0)),0) -> 0 | BI25: =IF(BI$5=first_reg_period, INDEX(Inputs!$I$43:$I$49,MATCH(BB17,Inputs!$C$43:$C$49,0)),0) -> 0 | BJ25: =IF(BJ$5=first_reg_period, INDEX(Inputs!$I$43:$I$49,MATCH(BC17,Inputs!$C$43:$C$49,0)),0) -> 0 | BK25: =IF(BK$5=first_reg_period, INDEX(Inputs!$I$43:$I$49,MATCH(BD17,Inputs!$C$43:$C$49,0)),0) -> 0 | BL25: =IF(BL$5=first_reg_period, INDEX(Inputs!$I$43:$I$49,MATCH(BE17,Inputs!$C$43:$C$49,0)),0) -> 0 | BM25: =IF(BM$5=first_reg_period, INDEX(Inputs!$I$43:$I$49,MATCH(BF17,Inputs!$C$43:$C$49,0)),0) -> 0 | BN25: =IF(BN$5=first_reg_period, INDEX(Inputs!$I$43:$I$49,MATCH(BG17,Inputs!$C$43:$C$49,0)),0) -> 0 | BO25: =IF(BO$5=first_reg_period, INDEX(Inputs!$I$43:$I$49,MATCH(BH17,Inputs!$C$43:$C$49,0)),0) -> 0 | BP25: =IF(BP$5=first_reg_period, INDEX(Inputs!$I$43:$I$49,MATCH(BI17,Inputs!$C$43:$C$49,0)),0) -> 0 | BQ25: =IF(BQ$5=first_reg_period, INDEX(Inputs!$I$43:$I$49,MATCH(BJ17,Inputs!$C$43:$C$49,0)),0) -> 0
D26: RAB adjustments $m Real (2010) | J26: =IF(J$5=second_reg_period, INDEX(Inputs!$N$116:$N$122,MATCH($B17,Inputs!$C$116:$C$122,0)),0)/conv_2015_2010 -> 0 | K26: =IF(K$5=second_reg_period, INDEX(Inputs!$N$116:$N$122,MATCH($B17,Inputs!$C$116:$C$122,0)),0)/conv_2015_2010 -> 0 | L26: =IF(L$5=second_reg_period, INDEX(Inputs!$N$116:$N$122,MATCH($B17,Inputs!$C$116:$C$122,0)),0)/conv_2015_2010 -> 0 | M26: =IF(M$5=second_reg_period, INDEX(Inputs!$N$116:$N$122,MATCH($B17,Inputs!$C$116:$C$122,0)),0)/conv_2015_2010 -> 0 | N26: =IF(N$5=second_reg_period, INDEX(Inputs!$N$116:$N$122,MATCH($B17,Inputs!$C$116:$C$122,0)),0)/conv_2015_2010 -> 0 | O26: =IF(O$5=second_reg_period, INDEX(Inputs!$N$116:$N$122,MATCH($B17,Inputs!$C$116:$C$122,0)),0)/conv_2015_2010 -> 0 | P26: =IF(P$5=second_reg_period, INDEX(Inputs!$N$116:$N$122,MATCH($B17,Inputs!$C$116:$C$122,0)),0)/conv_2015_2010 -> 0 | Q26: =IF(Q$5=second_reg_period, INDEX(Inputs!$N$116:$N$122,MATCH($B17,Inputs!$C$116:$C$122,0)),0)/conv_2015_2010 -> 0 | R26: =IF(R$5=second_reg_period, INDEX(Inputs!$N$116:$N$122,MATCH($B17,Inputs!$C$116:$C$122,0)),0)/conv_2015_2010 -> 0 | S26: =IF(S$5=second_reg_period, INDEX(Inputs!$N$116:$N$122,MATCH($B17,Inputs!$C$116:$C$122,0)),0)/conv_2015_2010 -> 0 | T26: =IF(T$5=second_reg_period, INDEX(Inputs!$N$116:$N$122,MATCH($B17,Inputs!$C$116:$C$122,0)),0)/conv_2015_2010 -> 0 | U26: =IF(U$5=second_reg_period, INDEX(Inputs!$N$116:$N$122,MATCH($B17,Inputs!$C$116:$C$122,0)),0)/conv_2015_2010 -> 0 | V26: =IF(V$5=second_reg_period, INDEX(Inputs!$N$116:$N$122,MATCH($B17,Inputs!$C$116:$C$122,0)),0)/conv_2015_2010 -> 0 | W26: =IF(W$5=second_reg_period, INDEX(Inputs!$N$116:$N$122,MATCH($B17,Inputs!$C$116:$C$122,0)),0)/conv_2015_2010 -> 0 | X26: =IF(X$5=second_reg_period, INDEX(Inputs!$N$116:$N$122,MATCH($B17,Inputs!$C$116:$C$122,0)),0)/conv_2015_2010 -> 0 | Y26: =IF(Y$5=second_reg_period, INDEX(Inputs!$N$116:$N$122,MATCH($B17,Inputs!$C$116:$C$122,0)),0)/conv_2015_2010 -> 0 | Z26: =IF(Z$5=second_reg_period, INDEX(Inputs!$N$116:$N$122,MATCH($B17,Inputs!$C$116:$C$122,0)),0)/conv_2015_2010 -> 0 | AA26: =IF(AA$5=second_reg_period, INDEX(Inputs!$N$116:$N$122,MATCH($B17,Inputs!$C$116:$C$122,0)),0)/conv_2015_2010 -> 0 | AB26: =IF(AB$5=second_reg_period, INDEX(Inputs!$N$116:$N$122,MATCH($B17,Inputs!$C$116:$C$122,0)),0)/conv_2015_2010 -> 0 | AC26: =IF(AC$5=second_reg_period, INDEX(Inputs!$N$116:$N$122,MATCH($B17,Inputs!$C$116:$C$122,0)),0)/conv_2015_2010 -> 0 | AD26: =IF(AD$5=second_reg_period, INDEX(Inputs!$N$116:$N$122,MATCH($B17,Inputs!$C$116:$C$122,0)),0)/conv_2015_2010 -> 0 | AE26: =IF(AE$5=second_reg_period, INDEX(Inputs!$N$116:$N$122,MATCH($B17,Inputs!$C$116:$C$122,0)),0)/conv_2015_2010 -> 0 | AF26: =IF(AF$5=second_reg_period, INDEX(Inputs!$N$116:$N$122,MATCH($B17,Inputs!$C$116:$C$122,0)),0)/conv_2015_2010 -> 0 | AG26: =IF(AG$5=second_reg_period, INDEX(Inputs!$N$116:$N$122,MATCH($B17,Inputs!$C$116:$C$122,0)),0)/conv_2015_2010 -> 0 | AH26: =IF(AH$5=second_reg_period, INDEX(Inputs!$N$116:$N$122,MATCH($B17,Inputs!$C$116:$C$122,0)),0)/conv_2015_2010 -> 0 | AI26: =IF(AI$5=second_reg_period, INDEX(Inputs!$N$116:$N$122,MATCH($B17,Inputs!$C$116:$C$122,0)),0)/conv_2015_2010 -> 0 | AJ26: =IF(AJ$5=second_reg_period, INDEX(Inputs!$N$116:$N$122,MATCH($B17,Inputs!$C$116:$C$122,0)),0)/conv_2015_2010 -> 0 | AK26: =IF(AK$5=second_reg_period, INDEX(Inputs!$N$116:$N$122,MATCH($B17,Inputs!$C$116:$C$122,0)),0)/conv_2015_2010 -> 0 | AL26: =IF(AL$5=second_reg_period, INDEX(Inputs!$N$116:$N$122,MATCH($B17,Inputs!$C$116:$C$122,0)),0)/conv_2015_2010 -> 0 | AM26: =IF(AM$5=second_reg_period, INDEX(Inputs!$N$116:$N$122,MATCH($B17,Inputs!$C$116:$C$122,0)),0)/conv_2015_2010 -> 0 | AN26: =IF(AN$5=second_reg_period, INDEX(Inputs!$N$116:$N$122,MATCH($B17,Inputs!$C$116:$C$122,0)),0)/conv_2015_2010 -> 0 | AO26: =IF(AO$5=second_reg_period, INDEX(Inputs!$N$116:$N$122,MATCH($B17,Inputs!$C$116:$C$122,0)),0)/conv_2015_2010 -> 0 | AP26: =IF(AP$5=second_reg_period, INDEX(Inputs!$N$116:$N$122,MATCH($B17,Inputs!$C$116:$C$122,0)),0)/conv_2015_2010 -> 0 | AQ26: =IF(AQ$5=second_reg_period, INDEX(Inputs!$N$116:$N$122,MATCH($B17,Inputs!$C$116:$C$122,0)),0)/conv_2015_2010 -> 0 | AR26: =IF(AR$5=second_reg_period, INDEX(Inputs!$N$116:$N$122,MATCH($B17,Inputs!$C$116:$C$122,0)),0)/conv_2015_2010 -> 0 | AS26: =IF(AS$5=second_reg_period, INDEX(Inputs!$N$116:$N$122,MATCH($B17,Inputs!$C$116:$C$122,0)),0)/conv_2015_2010 -> 0 | AT26: =IF(AT$5=second_reg_period, INDEX(Inputs!$N$116:$N$122,MATCH($B17,Inputs!$C$116:$C$122,0)),0)/conv_2015_2010 -> 0 | AU26: =IF(AU$5=second_reg_period, INDEX(Inputs!$N$116:$N$122,MATCH($B17,Inputs!$C$116:$C$122,0)),0)/conv_2015_2010 -> 0 | AV26: =IF(AV$5=second_reg_period, INDEX(Inputs!$N$116:$N$122,MATCH($B17,Inputs!$C$116:$C$122,0)),0)/conv_2015_2010 -> 0 | AW26: =IF(AW$5=second_reg_period, INDEX(Inputs!$N$116:$N$122,MATCH($B17,Inputs!$C$116:$C$122,0)),0)/conv_2015_2010 -> 0 | AX26: =IF(AX$5=second_reg_period, INDEX(Inputs!$N$116:$N$122,MATCH($B17,Inputs!$C$116:$C$122,0)),0)/conv_2015_2010 -> 0 | AY26: =IF(AY$5=second_reg_period, INDEX(Inputs!$N$116:$N$122,MATCH($B17,Inputs!$C$116:$C$122,0)),0)/conv_2015_2010 -> 0 | AZ26: =IF(AZ$5=second_reg_period, INDEX(Inputs!$N$116:$N$122,MATCH($B17,Inputs!$C$116:$C$122,0)),0)/conv_2015_2010 -> 0 | BA26: =IF(BA$5=second_reg_period, INDEX(Inputs!$N$116:$N$122,MATCH($B17,Inputs!$C$116:$C$122,0)),0)/conv_2015_2010 -> 0 | BB26: =IF(BB$5=second_reg_period, INDEX(Inputs!$N$116:$N$122,MATCH($B17,Inputs!$C$116:$C$122,0)),0)/conv_2015_2010 -> 0 | BC26: =IF(BC$5=second_reg_period, INDEX(Inputs!$N$116:$N$122,MATCH($B17,Inputs!$C$116:$C$122,0)),0)/conv_2015_2010 -> 0 | BD26: =IF(BD$5=second_reg_period, INDEX(Inputs!$N$116:$N$122,MATCH($B17,Inputs!$C$116:$C$122,0)),0)/conv_2015_2010 -> 0 | BE26: =IF(BE$5=second_reg_period, INDEX(Inputs!$N$116:$N$122,MATCH($B17,Inputs!$C$116:$C$122,0)),0)/conv_2015_2010 -> 0 | BF26: =IF(BF$5=second_reg_period, INDEX(Inputs!$N$116:$N$122,MATCH($B17,Inputs!$C$116:$C$122,0)),0)/conv_2015_2010 -> 0 | BG26: =IF(BG$5=second_reg_period, INDEX(Inputs!$N$116:$N$122,MATCH($B17,Inputs!$C$116:$C$122,0)),0)/conv_2015_2010 -> 0 | BH26: =IF(BH$5=second_reg_period, INDEX(Inputs!$N$116:$N$122,MATCH($B17,Inputs!$C$116:$C$122,0)),0)/conv_2015_2010 -> 0 | BI26: =IF(BI$5=second_reg_period, INDEX(Inputs!$N$116:$N$122,MATCH($B17,Inputs!$C$116:$C$122,0)),0)/conv_2015_2010 -> 0 | BJ26: =IF(BJ$5=second_reg_period, INDEX(Inputs!$N$116:$N$122,MATCH($B17,Inputs!$C$116:$C$122,0)),0)/conv_2015_2010 -> 0 | BK26: =IF(BK$5=second_reg_period, INDEX(Inputs!$N$116:$N$122,MATCH($B17,Inputs!$C$116:$C$122,0)),0)/conv_2015_2010 -> 0 | BL26: =IF(BL$5=second_reg_period, INDEX(Inputs!$N$116:$N$122,MATCH($B17,Inputs!$C$116:$C$122,0)),0)/conv_2015_2010 -> 0 | BM26: =IF(BM$5=second_reg_period, INDEX(Inputs!$N$116:$N$122,MATCH($B17,Inputs!$C$116:$C$122,0)),0)/conv_2015_2010 -> 0 | BN26: =IF(BN$5=second_reg_period, INDEX(Inputs!$N$116:$N$122,MATCH($B17,Inputs!$C$116:$C$122,0)),0)/conv_2015_2010 -> 0 | BO26: =IF(BO$5=second_reg_period, INDEX(Inputs!$N$116:$N$122,MATCH($B17,Inputs!$C$116:$C$122,0)),0)/conv_2015_2010 -> 0 | BP26: =IF(BP$5=second_reg_period, INDEX(Inputs!$N$116:$N$122,MATCH($B17,Inputs!$C$116:$C$122,0)),0)/conv_2015_2010 -> 0 | BQ26: =IF(BQ$5=second_reg_period, INDEX(Inputs!$N$116:$N$122,MATCH($B17,Inputs!$C$116:$C$122,0)),0)/conv_2015_2010 -> 0
D27: Existing Assets Closing RAB | E27: $m Real (2010) | I27: =H27-I22+I25+I26 -> 131.8367048 | J27: =I27-J24+J25+J26 -> 127.2691854 | K27: =J27-K24+K25+K26 -> 122.701666 | L27: 118.1341467 | M27: 113.5666273 | N27: 108.9991079 | O27: 104.4315885 | P27: 99.86406909 | Q27: 95.2965497 | R27: 90.72903031 | S27: 86.16151092 | T27: 81.59399153 | U27: 77.02647214 | V27: 72.45895275 | W27: 67.89143336 | X27: 63.32391397 | Y27: 58.75639458 | Z27: 54.18887519 | AA27: 49.6213558 | AB27: 45.05383641 | AC27: 40.48631702 | AD27: 35.91879762 | AE27: 31.35127823 | AF27: 26.78375884 | AG27: 22.21623945 | AH27: 17.64872006 | AI27: 13.08120067 | AJ27: 8.513681282 | AK27: 3.946161891 | AL27: 1.421085472e-14 | AM27: 1.421085472e-14 | AN27: 1.421085472e-14 | AO27: 1.421085472e-14 | AP27: 1.421085472e-14 | AQ27: 1.421085472e-14 | AR27: 1.421085472e-14 | AS27: 1.421085472e-14 | AT27: 1.421085472e-14 | AU27: 1.421085472e-14 | AV27: 1.421085472e-14 | AW27: 1.421085472e-14 | AX27: 1.421085472e-14 | AY27: 1.421085472e-14 | AZ27: 1.421085472e-14 | BA27: 1.421085472e-14 | BB27: 1.421085472e-14 | BC27: 1.421085472e-14 | BD27: 1.421085472e-14 | BE27: 1.421085472e-14 | BF27: 1.421085472e-14 | BG27: 1.421085472e-14 | BH27: 1.421085472e-14 | BI27: 1.421085472e-14 | BJ27: 1.421085472e-14 | BK27: 1.421085472e-14 | BL27: 1.421085472e-14 | BM27: 1.421085472e-14 | BN27: 1.421085472e-14 | BO27: 1.421085472e-14 | BP27: 1.421085472e-14 | BQ27: 1.421085472e-14
D29: 2010 adj capex | N29: =INDEX(Inputs!$N$104:$N$110,MATCH($B17,Inputs!$C$104:$C$110,0))/conv_2015_2010 -> 4.772139712
C30: Capex (with half year WACC applied) | E30: $m Real (2010) | J30: =INDEX(Inputs!J$43:J$49,MATCH($B17,Inputs!$C$43:$C$49,0))*(1+IF(J$5<=second_reg_period, J$7, J$6))^0.5 -> 21.82480641 | K30: =INDEX(Inputs!K$43:K$49,MATCH($B17,Inputs!$C$43:$C$49,0))*(1+IF(K$5<=second_reg_period, K$7, K$6))^0.5 -> 16.58232391 | L30: =INDEX(Inputs!L$43:L$49,MATCH($B17,Inputs!$C$43:$C$49,0))*(1+IF(L$5<=second_reg_period, L$7, L$6))^0.5 -> 23.02234427 | M30: =INDEX(Inputs!M$43:M$49,MATCH($B17,Inputs!$C$43:$C$49,0))*(1+IF(M$5<=second_reg_period, M$7, M$6))^0.5 -> 25.56466426 | N30: =INDEX(Inputs!N$43:N$49,MATCH($B17,Inputs!$C$43:$C$49,0))*(1+IF(N$5<=second_reg_period, N$7, N$6))^0.5 -> 30.00972627 | O30: =INDEX(Inputs!O$43:O$49,MATCH($B17,Inputs!$C$43:$C$49,0))*(1+IF(O$5<=second_reg_period, O$7, O$6))^0.5 -> 0 | P30: =INDEX(Inputs!P$43:P$49,MATCH($B17,Inputs!$C$43:$C$49,0))*(1+IF(P$5<=second_reg_period, P$7, P$6))^0.5 -> 0 | Q30: =INDEX(Inputs!Q$43:Q$49,MATCH($B17,Inputs!$C$43:$C$49,0))*(1+IF(Q$5<=second_reg_period, Q$7, Q$6))^0.5 -> 0 | R30: =INDEX(Inputs!R$43:R$49,MATCH($B17,Inputs!$C$43:$C$49,0))*(1+IF(R$5<=second_reg_period, R$7, R$6))^0.5 -> 0 | S30: =INDEX(Inputs!S$43:S$49,MATCH($B17,Inputs!$C$43:$C$49,0))*(1+IF(S$5<=second_reg_period, S$7, S$6))^0.5 -> 0 | T30: =INDEX(Inputs!T$43:T$49,MATCH($B17,Inputs!$C$43:$C$49,0))*(1+IF(T$5<=second_reg_period, T$7, T$6))^0.5 -> 0 | U30: =INDEX(Inputs!U$43:U$49,MATCH($B17,Inputs!$C$43:$C$49,0))*(1+IF(U$5<=second_reg_period, U$7, U$6))^0.5 -> 0 | V30: =INDEX(Inputs!V$43:V$49,MATCH($B17,Inputs!$C$43:$C$49,0))*(1+IF(V$5<=second_reg_period, V$7, V$6))^0.5 -> 0 | W30: =INDEX(Inputs!W$43:W$49,MATCH($B17,Inputs!$C$43:$C$49,0))*(1+IF(W$5<=second_reg_period, W$7, W$6))^0.5 -> 0 | X30: =INDEX(Inputs!X$43:X$49,MATCH($B17,Inputs!$C$43:$C$49,0))*(1+IF(X$5<=second_reg_period, X$7, X$6))^0.5 -> 0 | Y30: =INDEX(Inputs!Y$43:Y$49,MATCH($B17,Inputs!$C$43:$C$49,0))*(1+IF(Y$5<=second_reg_period, Y$7, Y$6))^0.5 -> 0 | Z30: =INDEX(Inputs!Z$43:Z$49,MATCH($B17,Inputs!$C$43:$C$49,0))*(1+IF(Z$5<=second_reg_period, Z$7, Z$6))^0.5 -> 0 | AA30: =INDEX(Inputs!AA$43:AA$49,MATCH($B17,Inputs!$C$43:$C$49,0))*(1+IF(AA$5<=second_reg_period, AA$7, AA$6))^0.5 -> 0 | AB30: =INDEX(Inputs!AB$43:AB$49,MATCH($B17,Inputs!$C$43:$C$49,0))*(1+IF(AB$5<=second_reg_period, AB$7, AB$6))^0.5 -> 0 | AC30: =INDEX(Inputs!AC$43:AC$49,MATCH($B17,Inputs!$C$43:$C$49,0))*(1+IF(AC$5<=second_reg_period, AC$7, AC$6))^0.5 -> 0 | AD30: =INDEX(Inputs!AD$43:AD$49,MATCH($B17,Inputs!$C$43:$C$49,0))*(1+IF(AD$5<=second_reg_period, AD$7, AD$6))^0.5 -> 0 | AE30: =INDEX(Inputs!AE$43:AE$49,MATCH($B17,Inputs!$C$43:$C$49,0))*(1+IF(AE$5<=second_reg_period, AE$7, AE$6))^0.5 -> 0 | AF30: =INDEX(Inputs!AF$43:AF$49,MATCH($B17,Inputs!$C$43:$C$49,0))*(1+IF(AF$5<=second_reg_period, AF$7, AF$6))^0.5 -> 0 | AG30: =INDEX(Inputs!AG$43:AG$49,MATCH($B17,Inputs!$C$43:$C$49,0))*(1+IF(AG$5<=second_reg_period, AG$7, AG$6))^0.5 -> 0 | AH30: =INDEX(Inputs!AH$43:AH$49,MATCH($B17,Inputs!$C$43:$C$49,0))*(1+IF(AH$5<=second_reg_period, AH$7, AH$6))^0.5 -> 0 | AI30: =INDEX(Inputs!AI$43:AI$49,MATCH($B17,Inputs!$C$43:$C$49,0))*(1+IF(AI$5<=second_reg_period, AI$7, AI$6))^0.5 -> 0 | AJ30: =INDEX(Inputs!AJ$43:AJ$49,MATCH($B17,Inputs!$C$43:$C$49,0))*(1+IF(AJ$5<=second_reg_period, AJ$7, AJ$6))^0.5 -> 0 | AK30: =INDEX(Inputs!AK$43:AK$49,MATCH($B17,Inputs!$C$43:$C$49,0))*(1+IF(AK$5<=second_reg_period, AK$7, AK$6))^0.5 -> 0 | AL30: =INDEX(Inputs!AL$43:AL$49,MATCH($B17,Inputs!$C$43:$C$49,0))*(1+IF(AL$5<=second_reg_period, AL$7, AL$6))^0.5 -> 0 | AM30: =INDEX(Inputs!AM$43:AM$49,MATCH($B17,Inputs!$C$43:$C$49,0))*(1+IF(AM$5<=second_reg_period, AM$7, AM$6))^0.5 -> 0 | AN30: =INDEX(Inputs!AN$43:AN$49,MATCH($B17,Inputs!$C$43:$C$49,0))*(1+IF(AN$5<=second_reg_period, AN$7, AN$6))^0.5 -> 0 | AO30: =INDEX(Inputs!AO$43:AO$49,MATCH($B17,Inputs!$C$43:$C$49,0))*(1+IF(AO$5<=second_reg_period, AO$7, AO$6))^0.5 -> 0 | AP30: =INDEX(Inputs!AP$43:AP$49,MATCH($B17,Inputs!$C$43:$C$49,0))*(1+IF(AP$5<=second_reg_period, AP$7, AP$6))^0.5 -> 0 | AQ30: =INDEX(Inputs!AQ$43:AQ$49,MATCH($B17,Inputs!$C$43:$C$49,0))*(1+IF(AQ$5<=second_reg_period, AQ$7, AQ$6))^0.5 -> 0 | AR30: =INDEX(Inputs!AR$43:AR$49,MATCH($B17,Inputs!$C$43:$C$49,0))*(1+IF(AR$5<=second_reg_period, AR$7, AR$6))^0.5 -> 0 | AS30: =INDEX(Inputs!AS$43:AS$49,MATCH($B17,Inputs!$C$43:$C$49,0))*(1+IF(AS$5<=second_reg_period, AS$7, AS$6))^0.5 -> 0 | AT30: =INDEX(Inputs!AT$43:AT$49,MATCH($B17,Inputs!$C$43:$C$49,0))*(1+IF(AT$5<=second_reg_period, AT$7, AT$6))^0.5 -> 0 | AU30: =INDEX(Inputs!AU$43:AU$49,MATCH($B17,Inputs!$C$43:$C$49,0))*(1+IF(AU$5<=second_reg_period, AU$7, AU$6))^0.5 -> 0 | AV30: =INDEX(Inputs!AV$43:AV$49,MATCH($B17,Inputs!$C$43:$C$49,0))*(1+IF(AV$5<=second_reg_period, AV$7, AV$6))^0.5 -> 0 | AW30: =INDEX(Inputs!AW$43:AW$49,MATCH($B17,Inputs!$C$43:$C$49,0))*(1+IF(AW$5<=second_reg_period, AW$7, AW$6))^0.5 -> 0 | AX30: =INDEX(Inputs!AX$43:AX$49,MATCH($B17,Inputs!$C$43:$C$49,0))*(1+IF(AX$5<=second_reg_period, AX$7, AX$6))^0.5 -> 0 | AY30: =INDEX(Inputs!AY$43:AY$49,MATCH($B17,Inputs!$C$43:$C$49,0))*(1+IF(AY$5<=second_reg_period, AY$7, AY$6))^0.5 -> 0 | AZ30: =INDEX(Inputs!AZ$43:AZ$49,MATCH($B17,Inputs!$C$43:$C$49,0))*(1+IF(AZ$5<=second_reg_period, AZ$7, AZ$6))^0.5 -> 0 | BA30: =INDEX(Inputs!BA$43:BA$49,MATCH($B17,Inputs!$C$43:$C$49,0))*(1+IF(BA$5<=second_reg_period, BA$7, BA$6))^0.5 -> 0 | BB30: =INDEX(Inputs!BB$43:BB$49,MATCH($B17,Inputs!$C$43:$C$49,0))*(1+IF(BB$5<=second_reg_period, BB$7, BB$6))^0.5 -> 0 | BC30: =INDEX(Inputs!BC$43:BC$49,MATCH($B17,Inputs!$C$43:$C$49,0))*(1+IF(BC$5<=second_reg_period, BC$7, BC$6))^0.5 -> 0 | BD30: =INDEX(Inputs!BD$43:BD$49,MATCH($B17,Inputs!$C$43:$C$49,0))*(1+IF(BD$5<=second_reg_period, BD$7, BD$6))^0.5 -> 0 | BE30: =INDEX(Inputs!BE$43:BE$49,MATCH($B17,Inputs!$C$43:$C$49,0))*(1+IF(BE$5<=second_reg_period, BE$7, BE$6))^0.5 -> 0 | BF30: =INDEX(Inputs!BF$43:BF$49,MATCH($B17,Inputs!$C$43:$C$49,0))*(1+IF(BF$5<=second_reg_period, BF$7, BF$6))^0.5 -> 0 | BG30: =INDEX(Inputs!BG$43:BG$49,MATCH($B17,Inputs!$C$43:$C$49,0))*(1+IF(BG$5<=second_reg_period, BG$7, BG$6))^0.5 -> 0 | BH30: =INDEX(Inputs!BH$43:BH$49,MATCH($B17,Inputs!$C$43:$C$49,0))*(1+IF(BH$5<=second_reg_period, BH$7, BH$6))^0.5 -> 0 | BI30: =INDEX(Inputs!BI$43:BI$49,MATCH($B17,Inputs!$C$43:$C$49,0))*(1+IF(BI$5<=second_reg_period, BI$7, BI$6))^0.5 -> 0 | BJ30: =INDEX(Inputs!BJ$43:BJ$49,MATCH($B17,Inputs!$C$43:$C$49,0))*(1+IF(BJ$5<=second_reg_period, BJ$7, BJ$6))^0.5 -> 0 | BK30: =INDEX(Inputs!BK$43:BK$49,MATCH($B17,Inputs!$C$43:$C$49,0))*(1+IF(BK$5<=second_reg_period, BK$7, BK$6))^0.5 -> 0 | BL30: =INDEX(Inputs!BL$43:BL$49,MATCH($B17,Inputs!$C$43:$C$49,0))*(1+IF(BL$5<=second_reg_period, BL$7, BL$6))^0.5 -> 0 | BM30: =INDEX(Inputs!BM$43:BM$49,MATCH($B17,Inputs!$C$43:$C$49,0))*(1+IF(BM$5<=second_reg_period, BM$7, BM$6))^0.5 -> 0 | BN30: =INDEX(Inputs!BN$43:BN$49,MATCH($B17,Inputs!$C$43:$C$49,0))*(1+IF(BN$5<=second_reg_period, BN$7, BN$6))^0.5 -> 0 | BO30: =INDEX(Inputs!BO$43:BO$49,MATCH($B17,Inputs!$C$43:$C$49,0))*(1+IF(BO$5<=second_reg_period, BO$7, BO$6))^0.5 -> 0 | BP30: =INDEX(Inputs!BP$43:BP$49,MATCH($B17,Inputs!$C$43:$C$49,0))*(1+IF(BP$5<=second_reg_period, BP$7, BP$6))^0.5 -> 0 | BQ30: =INDEX(Inputs!BQ$43:BQ$49,MATCH($B17,Inputs!$C$43:$C$49,0))*(1+IF(BQ$5<=second_reg_period, BQ$7, BQ$6))^0.5 -> 0
D31: Capex Depreciation
D32: 2010 adj capex | E32: $m Real (2010) | O32: =IF($I19="n/a",0,IF(O$5-$N$5>$I19-5,$N29-SUM($J32:N32),$N29/($I19-5))) -> 0.1201403944 | P32: =IF($I19="n/a",0,IF(P$5-$N$5>$I19-5,$N29-SUM($J32:O32),$N29/($I19-5))) -> 0.1201403944 | Q32: =IF($I19="n/a",0,IF(Q$5-$N$5>$I19-5,$N29-SUM($J32:P32),$N29/($I19-5))) -> 0.1201403944 | R32: =IF($I19="n/a",0,IF(R$5-$N$5>$I19-5,$N29-SUM($J32:Q32),$N29/($I19-5))) -> 0.1201403944 | S32: =IF($I19="n/a",0,IF(S$5-$N$5>$I19-5,$N29-SUM($J32:R32),$N29/($I19-5))) -> 0.1201403944 | T32: =IF($I19="n/a",0,IF(T$5-$N$5>$I19-5,$N29-SUM($J32:S32),$N29/($I19-5))) -> 0.1201403944 | U32: =IF($I19="n/a",0,IF(U$5-$N$5>$I19-5,$N29-SUM($J32:T32),$N29/($I19-5))) -> 0.1201403944 | V32: =IF($I19="n/a",0,IF(V$5-$N$5>$I19-5,$N29-SUM($J32:U32),$N29/($I19-5))) -> 0.1201403944 | W32: =IF($I19="n/a",0,IF(W$5-$N$5>$I19-5,$N29-SUM($J32:V32),$N29/($I19-5))) -> 0.1201403944 | X32: =IF($I19="n/a",0,IF(X$5-$N$5>$I19-5,$N29-SUM($J32:W32),$N29/($I19-5))) -> 0.1201403944 | Y32: =IF($I19="n/a",0,IF(Y$5-$N$5>$I19-5,$N29-SUM($J32:X32),$N29/($I19-5))) -> 0.1201403944 | Z32: =IF($I19="n/a",0,IF(Z$5-$N$5>$I19-5,$N29-SUM($J32:Y32),$N29/($I19-5))) -> 0.1201403944 | AA32: =IF($I19="n/a",0,IF(AA$5-$N$5>$I19-5,$N29-SUM($J32:Z32),$N29/($I19-5))) -> 0.1201403944 | AB32: =IF($I19="n/a",0,IF(AB$5-$N$5>$I19-5,$N29-SUM($J32:AA32),$N29/($I19-5))) -> 0.1201403944 | AC32: =IF($I19="n/a",0,IF(AC$5-$N$5>$I19-5,$N29-SUM($J32:AB32),$N29/($I19-5))) -> 0.1201403944 | AD32: =IF($I19="n/a",0,IF(AD$5-$N$5>$I19-5,$N29-SUM($J32:AC32),$N29/($I19-5))) -> 0.1201403944 | AE32: =IF($I19="n/a",0,IF(AE$5-$N$5>$I19-5,$N29-SUM($J32:AD32),$N29/($I19-5))) -> 0.1201403944 | AF32: =IF($I19="n/a",0,IF(AF$5-$N$5>$I19-5,$N29-SUM($J32:AE32),$N29/($I19-5))) -> 0.1201403944 | AG32: =IF($I19="n/a",0,IF(AG$5-$N$5>$I19-5,$N29-SUM($J32:AF32),$N29/($I19-5))) -> 0.1201403944 | AH32: =IF($I19="n/a",0,IF(AH$5-$N$5>$I19-5,$N29-SUM($J32:AG32),$N29/($I19-5))) -> 0.1201403944 | AI32: =IF($I19="n/a",0,IF(AI$5-$N$5>$I19-5,$N29-SUM($J32:AH32),$N29/($I19-5))) -> 0.1201403944 | AJ32: =IF($I19="n/a",0,IF(AJ$5-$N$5>$I19-5,$N29-SUM($J32:AI32),$N29/($I19-5))) -> 0.1201403944 | AK32: =IF($I19="n/a",0,IF(AK$5-$N$5>$I19-5,$N29-SUM($J32:AJ32),$N29/($I19-5))) -> 0.1201403944 | AL32: =IF($I19="n/a",0,IF(AL$5-$N$5>$I19-5,$N29-SUM($J32:AK32),$N29/($I19-5))) -> 0.1201403944 | AM32: =IF($I19="n/a",0,IF(AM$5-$N$5>$I19-5,$N29-SUM($J32:AL32),$N29/($I19-5))) -> 0.1201403944 | AN32: =IF($I19="n/a",0,IF(AN$5-$N$5>$I19-5,$N29-SUM($J32:AM32),$N29/($I19-5))) -> 0.1201403944 | AO32: =IF($I19="n/a",0,IF(AO$5-$N$5>$I19-5,$N29-SUM($J32:AN32),$N29/($I19-5))) -> 0.1201403944 | AP32: =IF($I19="n/a",0,IF(AP$5-$N$5>$I19-5,$N29-SUM($J32:AO32),$N29/($I19-5))) -> 0.1201403944 | AQ32: =IF($I19="n/a",0,IF(AQ$5-$N$5>$I19-5,$N29-SUM($J32:AP32),$N29/($I19-5))) -> 0.1201403944 | AR32: =IF($I19="n/a",0,IF(AR$5-$N$5>$I19-5,$N29-SUM($J32:AQ32),$N29/($I19-5))) -> 0.1201403944 | AS32: =IF($I19="n/a",0,IF(AS$5-$N$5>$I19-5,$N29-SUM($J32:AR32),$N29/($I19-5))) -> 0.1201403944 | AT32: =IF($I19="n/a",0,IF(AT$5-$N$5>$I19-5,$N29-SUM($J32:AS32),$N29/($I19-5))) -> 0.1201403944 | AU32: =IF($I19="n/a",0,IF(AU$5-$N$5>$I19-5,$N29-SUM($J32:AT32),$N29/($I19-5))) -> 0.1201403944 | AV32: =IF($I19="n/a",0,IF(AV$5-$N$5>$I19-5,$N29-SUM($J32:AU32),$N29/($I19-5))) -> 0.1201403944 | AW32: =IF($I19="n/a",0,IF(AW$5-$N$5>$I19-5,$N29-SUM($J32:AV32),$N29/($I19-5))) -> 0.1201403944 | AX32: =IF($I19="n/a",0,IF(AX$5-$N$5>$I19-5,$N29-SUM($J32:AW32),$N29/($I19-5))) -> 0.1201403944 | AY32: =IF($I19="n/a",0,IF(AY$5-$N$5>$I19-5,$N29-SUM($J32:AX32),$N29/($I19-5))) -> 0.1201403944 | AZ32: =IF($I19="n/a",0,IF(AZ$5-$N$5>$I19-5,$N29-SUM($J32:AY32),$N29/($I19-5))) -> 0.1201403944 | BA32: =IF($I19="n/a",0,IF(BA$5-$N$5>$I19-5,$N29-SUM($J32:AZ32),$N29/($I19-5))) -> 0.1201403944 | BB32: =IF($I19="n/a",0,IF(BB$5-$N$5>$I19-5,$N29-SUM($J32:BA32),$N29/($I19-5))) -> 0.08666433166 | BC32: =IF($I19="n/a",0,IF(BC$5-$N$5>$I19-5,$N29-SUM($J32:BB32),$N29/($I19-5))) -> 0 | BD32: =IF($I19="n/a",0,IF(BD$5-$N$5>$I19-5,$N29-SUM($J32:BC32),$N29/($I19-5))) -> 0 | BE32: =IF($I19="n/a",0,IF(BE$5-$N$5>$I19-5,$N29-SUM($J32:BD32),$N29/($I19-5))) -> 0 | BF32: =IF($I19="n/a",0,IF(BF$5-$N$5>$I19-5,$N29-SUM($J32:BE32),$N29/($I19-5))) -> 0 | BG32: =IF($I19="n/a",0,IF(BG$5-$N$5>$I19-5,$N29-SUM($J32:BF32),$N29/($I19-5))) -> 0 | BH32: =IF($I19="n/a",0,IF(BH$5-$N$5>$I19-5,$N29-SUM($J32:BG32),$N29/($I19-5))) -> 0 | BI32: =IF($I19="n/a",0,IF(BI$5-$N$5>$I19-5,$N29-SUM($J32:BH32),$N29/($I19-5))) -> 0 | BJ32: =IF($I19="n/a",0,IF(BJ$5-$N$5>$I19-5,$N29-SUM($J32:BI32),$N29/($I19-5))) -> 0 | BK32: =IF($I19="n/a",0,IF(BK$5-$N$5>$I19-5,$N29-SUM($J32:BJ32),$N29/($I19-5))) -> 0 | BL32: =IF($I19="n/a",0,IF(BL$5-$N$5>$I19-5,$N29-SUM($J32:BK32),$N29/($I19-5))) -> 0 | BM32: =IF($I19="n/a",0,IF(BM$5-$N$5>$I19-5,$N29-SUM($J32:BL32),$N29/($I19-5))) -> 0 | BN32: =IF($I19="n/a",0,IF(BN$5-$N$5>$I19-5,$N29-SUM($J32:BM32),$N29/($I19-5))) -> 0 | BO32: =IF($I19="n/a",0,IF(BO$5-$N$5>$I19-5,$N29-SUM($J32:BN32),$N29/($I19-5))) -> 0 | BP32: =IF($I19="n/a",0,IF(BP$5-$N$5>$I19-5,$N29-SUM($J32:BO32),$N29/($I19-5))) -> 0 | BQ32: =IF($I19="n/a",0,IF(BQ$5-$N$5>$I19-5,$N29-SUM($J32:BP32),$N29/($I19-5))) -> 0
D33: 2011 | E33: $m Real (2010) | J33: =IF(J$5<=$D33,0,IF(SUM($D33,I19)>J$5,$J30/I19,$J30-SUM($I33:I33))) -> 0 | K33: =IF(K$5<=$D33,0,IF(SUM($D33,I19)>K$5,$J30/I19,$J30-SUM($I33:J33))) -> 0.4880175153 | L33: =IF(L$5<=$D33,0,IF(SUM($D33,I19)>L$5,$J30/I19,$J30-SUM($I33:K33))) -> 0.4880175153 | M33: =IF(M$5<=$D33,0,IF(SUM($D33,I19)>M$5,$J30/I19,$J30-SUM($I33:L33))) -> 0.4880175153 | N33: =IF(N$5<=$D33,0,IF(SUM($D33,I19)>N$5,$J30/I19,$J30-SUM($I33:M33))) -> 0.4880175153 | O33: =IF(O$5<=$D33,0,IF(SUM($D33,I19)>O$5,$J30/I19,$J30-SUM($I33:N33))) -> 0.4880175153 | P33: =IF(P$5<=$D33,0,IF(SUM($D33,I19)>P$5,$J30/I19,$J30-SUM($I33:O33))) -> 0.4880175153 | Q33: =IF(Q$5<=$D33,0,IF(SUM($D33,I19)>Q$5,$J30/I19,$J30-SUM($I33:P33))) -> 0.4880175153 | R33: =IF(R$5<=$D33,0,IF(SUM($D33,I19)>R$5,$J30/I19,$J30-SUM($I33:Q33))) -> 0.4880175153 | S33: =IF(S$5<=$D33,0,IF(SUM($D33,I19)>S$5,$J30/I19,$J30-SUM($I33:R33))) -> 0.4880175153 | T33: =IF(T$5<=$D33,0,IF(SUM($D33,I19)>T$5,$J30/I19,$J30-SUM($I33:S33))) -> 0.4880175153 | U33: =IF(U$5<=$D33,0,IF(SUM($D33,I19)>U$5,$J30/I19,$J30-SUM($I33:T33))) -> 0.4880175153 | V33: =IF(V$5<=$D33,0,IF(SUM($D33,I19)>V$5,$J30/I19,$J30-SUM($I33:U33))) -> 0.4880175153 | W33: =IF(W$5<=$D33,0,IF(SUM($D33,I19)>W$5,$J30/I19,$J30-SUM($I33:V33))) -> 0.4880175153 | X33: =IF(X$5<=$D33,0,IF(SUM($D33,I19)>X$5,$J30/I19,$J30-SUM($I33:W33))) -> 0.4880175153 | Y33: =IF(Y$5<=$D33,0,IF(SUM($D33,I19)>Y$5,$J30/I19,$J30-SUM($I33:X33))) -> 0.4880175153 | Z33: =IF(Z$5<=$D33,0,IF(SUM($D33,I19)>Z$5,$J30/I19,$J30-SUM($I33:Y33))) -> 0.4880175153 | AA33: =IF(AA$5<=$D33,0,IF(SUM($D33,I19)>AA$5,$J30/I19,$J30-SUM($I33:Z33))) -> 0.4880175153 | AB33: =IF(AB$5<=$D33,0,IF(SUM($D33,I19)>AB$5,$J30/I19,$J30-SUM($I33:AA33))) -> 0.4880175153 | AC33: =IF(AC$5<=$D33,0,IF(SUM($D33,I19)>AC$5,$J30/I19,$J30-SUM($I33:AB33))) -> 0.4880175153 | AD33: =IF(AD$5<=$D33,0,IF(SUM($D33,I19)>AD$5,$J30/I19,$J30-SUM($I33:AC33))) -> 0.4880175153 | AE33: =IF(AE$5<=$D33,0,IF(SUM($D33,I19)>AE$5,$J30/I19,$J30-SUM($I33:AD33))) -> 0.4880175153 | AF33: =IF(AF$5<=$D33,0,IF(SUM($D33,I19)>AF$5,$J30/I19,$J30-SUM($I33:AE33))) -> 0.4880175153 | AG33: =IF(AG$5<=$D33,0,IF(SUM($D33,I19)>AG$5,$J30/I19,$J30-SUM($I33:AF33))) -> 0.4880175153 | AH33: =IF(AH$5<=$D33,0,IF(SUM($D33,I19)>AH$5,$J30/I19,$J30-SUM($I33:AG33))) -> 0.4880175153 | AI33: =IF(AI$5<=$D33,0,IF(SUM($D33,I19)>AI$5,$J30/I19,$J30-SUM($I33:AH33))) -> 0.4880175153 | AJ33: =IF(AJ$5<=$D33,0,IF(SUM($D33,I19)>AJ$5,$J30/I19,$J30-SUM($I33:AI33))) -> 0.4880175153 | AK33: =IF(AK$5<=$D33,0,IF(SUM($D33,I19)>AK$5,$J30/I19,$J30-SUM($I33:AJ33))) -> 0.4880175153 | AL33: =IF(AL$5<=$D33,0,IF(SUM($D33,I19)>AL$5,$J30/I19,$J30-SUM($I33:AK33))) -> 0.4880175153 | AM33: =IF(AM$5<=$D33,0,IF(SUM($D33,I19)>AM$5,$J30/I19,$J30-SUM($I33:AL33))) -> 0.4880175153 | AN33: =IF(AN$5<=$D33,0,IF(SUM($D33,I19)>AN$5,$J30/I19,$J30-SUM($I33:AM33))) -> 0.4880175153 | AO33: =IF(AO$5<=$D33,0,IF(SUM($D33,I19)>AO$5,$J30/I19,$J30-SUM($I33:AN33))) -> 0.4880175153 | AP33: =IF(AP$5<=$D33,0,IF(SUM($D33,I19)>AP$5,$J30/I19,$J30-SUM($I33:AO33))) -> 0.4880175153 | AQ33: =IF(AQ$5<=$D33,0,IF(SUM($D33,I19)>AQ$5,$J30/I19,$J30-SUM($I33:AP33))) -> 0.4880175153 | AR33: =IF(AR$5<=$D33,0,IF(SUM($D33,I19)>AR$5,$J30/I19,$J30-SUM($I33:AQ33))) -> 0.4880175153 | AS33: =IF(AS$5<=$D33,0,IF(SUM($D33,I19)>AS$5,$J30/I19,$J30-SUM($I33:AR33))) -> 0.4880175153 | AT33: =IF(AT$5<=$D33,0,IF(SUM($D33,I19)>AT$5,$J30/I19,$J30-SUM($I33:AS33))) -> 0.4880175153 | AU33: =IF(AU$5<=$D33,0,IF(SUM($D33,I19)>AU$5,$J30/I19,$J30-SUM($I33:AT33))) -> 0.4880175153 | AV33: =IF(AV$5<=$D33,0,IF(SUM($D33,I19)>AV$5,$J30/I19,$J30-SUM($I33:AU33))) -> 0.4880175153 | AW33: =IF(AW$5<=$D33,0,IF(SUM($D33,I19)>AW$5,$J30/I19,$J30-SUM($I33:AV33))) -> 0.4880175153 | AX33: =IF(AX$5<=$D33,0,IF(SUM($D33,I19)>AX$5,$J30/I19,$J30-SUM($I33:AW33))) -> 0.4880175153 | AY33: =IF(AY$5<=$D33,0,IF(SUM($D33,I19)>AY$5,$J30/I19,$J30-SUM($I33:AX33))) -> 0.4880175153 | AZ33: =IF(AZ$5<=$D33,0,IF(SUM($D33,I19)>AZ$5,$J30/I19,$J30-SUM($I33:AY33))) -> 0.4880175153 | BA33: =IF(BA$5<=$D33,0,IF(SUM($D33,I19)>BA$5,$J30/I19,$J30-SUM($I33:AZ33))) -> 0.4880175153 | BB33: =IF(BB$5<=$D33,0,IF(SUM($D33,I19)>BB$5,$J30/I19,$J30-SUM($I33:BA33))) -> 0.4880175153 | BC33: =IF(BC$5<=$D33,0,IF(SUM($D33,I19)>BC$5,$J30/I19,$J30-SUM($I33:BB33))) -> 0.3520357331 | BD33: =IF(BD$5<=$D33,0,IF(SUM($D33,I19)>BD$5,$J30/I19,$J30-SUM($I33:BC33))) -> 0 | BE33: =IF(BE$5<=$D33,0,IF(SUM($D33,I19)>BE$5,$J30/I19,$J30-SUM($I33:BD33))) -> 0 | BF33: =IF(BF$5<=$D33,0,IF(SUM($D33,I19)>BF$5,$J30/I19,$J30-SUM($I33:BE33))) -> 0 | BG33: =IF(BG$5<=$D33,0,IF(SUM($D33,I19)>BG$5,$J30/I19,$J30-SUM($I33:BF33))) -> 0 | BH33: =IF(BH$5<=$D33,0,IF(SUM($D33,I19)>BH$5,$J30/I19,$J30-SUM($I33:BG33))) -> 0 | BI33: =IF(BI$5<=$D33,0,IF(SUM($D33,I19)>BI$5,$J30/I19,$J30-SUM($I33:BH33))) -> 0 | BJ33: =IF(BJ$5<=$D33,0,IF(SUM($D33,I19)>BJ$5,$J30/I19,$J30-SUM($I33:BI33))) -> 0 | BK33: =IF(BK$5<=$D33,0,IF(SUM($D33,I19)>BK$5,$J30/I19,$J30-SUM($I33:BJ33))) -> 0 | BL33: =IF(BL$5<=$D33,0,IF(SUM($D33,I19)>BL$5,$J30/I19,$J30-SUM($I33:BK33))) -> 0 | BM33: =IF(BM$5<=$D33,0,IF(SUM($D33,I19)>BM$5,$J30/I19,$J30-SUM($I33:BL33))) -> 0 | BN33: =IF(BN$5<=$D33,0,IF(SUM($D33,I19)>BN$5,$J30/I19,$J30-SUM($I33:BM33))) -> 0 | BO33: =IF(BO$5<=$D33,0,IF(SUM($D33,I19)>BO$5,$J30/I19,$J30-SUM($I33:BN33))) -> 0 | BP33: =IF(BP$5<=$D33,0,IF(SUM($D33,I19)>BP$5,$J30/I19,$J30-SUM($I33:BO33))) -> 0 | BQ33: =IF(BQ$5<=$D33,0,IF(SUM($D33,I19)>BQ$5,$J30/I19,$J30-SUM($I33:BP33))) -> 0
D34: =D33+1 -> 2012 | E34: $m Real (2010) | J34: =IF(J$5<=$D34,0,IF(SUM($D34,I19)>J$5,$K30/I19,$K30-SUM($I34:I34))) -> 0 | K34: =IF(K$5<=$D34,0,IF(SUM($D34,I19)>K$5,$K30/I19,$K30-SUM($I34:J34))) -> 0 | L34: =IF(L$5<=$D34,0,IF(SUM($D34,I19)>L$5,$K30/I19,$K30-SUM($I34:K34))) -> 0.370792041 | M34: =IF(M$5<=$D34,0,IF(SUM($D34,I19)>M$5,$K30/I19,$K30-SUM($I34:L34))) -> 0.370792041 | N34: =IF(N$5<=$D34,0,IF(SUM($D34,I19)>N$5,$K30/I19,$K30-SUM($I34:M34))) -> 0.370792041 | O34: =IF(O$5<=$D34,0,IF(SUM($D34,I19)>O$5,$K30/I19,$K30-SUM($I34:N34))) -> 0.370792041 | P34: =IF(P$5<=$D34,0,IF(SUM($D34,I19)>P$5,$K30/I19,$K30-SUM($I34:O34))) -> 0.370792041 | Q34: =IF(Q$5<=$D34,0,IF(SUM($D34,I19)>Q$5,$K30/I19,$K30-SUM($I34:P34))) -> 0.370792041 | R34: =IF(R$5<=$D34,0,IF(SUM($D34,I19)>R$5,$K30/I19,$K30-SUM($I34:Q34))) -> 0.370792041 | S34: =IF(S$5<=$D34,0,IF(SUM($D34,I19)>S$5,$K30/I19,$K30-SUM($I34:R34))) -> 0.370792041 | T34: =IF(T$5<=$D34,0,IF(SUM($D34,I19)>T$5,$K30/I19,$K30-SUM($I34:S34))) -> 0.370792041 | U34: =IF(U$5<=$D34,0,IF(SUM($D34,I19)>U$5,$K30/I19,$K30-SUM($I34:T34))) -> 0.370792041 | V34: =IF(V$5<=$D34,0,IF(SUM($D34,I19)>V$5,$K30/I19,$K30-SUM($I34:U34))) -> 0.370792041 | W34: =IF(W$5<=$D34,0,IF(SUM($D34,I19)>W$5,$K30/I19,$K30-SUM($I34:V34))) -> 0.370792041 | X34: =IF(X$5<=$D34,0,IF(SUM($D34,I19)>X$5,$K30/I19,$K30-SUM($I34:W34))) -> 0.370792041 | Y34: =IF(Y$5<=$D34,0,IF(SUM($D34,I19)>Y$5,$K30/I19,$K30-SUM($I34:X34))) -> 0.370792041 | Z34: =IF(Z$5<=$D34,0,IF(SUM($D34,I19)>Z$5,$K30/I19,$K30-SUM($I34:Y34))) -> 0.370792041 | AA34: =IF(AA$5<=$D34,0,IF(SUM($D34,I19)>AA$5,$K30/I19,$K30-SUM($I34:Z34))) -> 0.370792041 | AB34: =IF(AB$5<=$D34,0,IF(SUM($D34,I19)>AB$5,$K30/I19,$K30-SUM($I34:AA34))) -> 0.370792041 | AC34: =IF(AC$5<=$D34,0,IF(SUM($D34,I19)>AC$5,$K30/I19,$K30-SUM($I34:AB34))) -> 0.370792041 | AD34: =IF(AD$5<=$D34,0,IF(SUM($D34,I19)>AD$5,$K30/I19,$K30-SUM($I34:AC34))) -> 0.370792041 | AE34: =IF(AE$5<=$D34,0,IF(SUM($D34,I19)>AE$5,$K30/I19,$K30-SUM($I34:AD34))) -> 0.370792041 | AF34: =IF(AF$5<=$D34,0,IF(SUM($D34,I19)>AF$5,$K30/I19,$K30-SUM($I34:AE34))) -> 0.370792041 | AG34: =IF(AG$5<=$D34,0,IF(SUM($D34,I19)>AG$5,$K30/I19,$K30-SUM($I34:AF34))) -> 0.370792041 | AH34: =IF(AH$5<=$D34,0,IF(SUM($D34,I19)>AH$5,$K30/I19,$K30-SUM($I34:AG34))) -> 0.370792041 | AI34: =IF(AI$5<=$D34,0,IF(SUM($D34,I19)>AI$5,$K30/I19,$K30-SUM($I34:AH34))) -> 0.370792041 | AJ34: =IF(AJ$5<=$D34,0,IF(SUM($D34,I19)>AJ$5,$K30/I19,$K30-SUM($I34:AI34))) -> 0.370792041 | AK34: =IF(AK$5<=$D34,0,IF(SUM($D34,I19)>AK$5,$K30/I19,$K30-SUM($I34:AJ34))) -> 0.370792041 | AL34: =IF(AL$5<=$D34,0,IF(SUM($D34,I19)>AL$5,$K30/I19,$K30-SUM($I34:AK34))) -> 0.370792041 | AM34: =IF(AM$5<=$D34,0,IF(SUM($D34,I19)>AM$5,$K30/I19,$K30-SUM($I34:AL34))) -> 0.370792041 | AN34: =IF(AN$5<=$D34,0,IF(SUM($D34,I19)>AN$5,$K30/I19,$K30-SUM($I34:AM34))) -> 0.370792041 | AO34: =IF(AO$5<=$D34,0,IF(SUM($D34,I19)>AO$5,$K30/I19,$K30-SUM($I34:AN34))) -> 0.370792041 | AP34: =IF(AP$5<=$D34,0,IF(SUM($D34,I19)>AP$5,$K30/I19,$K30-SUM($I34:AO34))) -> 0.370792041 | AQ34: =IF(AQ$5<=$D34,0,IF(SUM($D34,I19)>AQ$5,$K30/I19,$K30-SUM($I34:AP34))) -> 0.370792041 | AR34: =IF(AR$5<=$D34,0,IF(SUM($D34,I19)>AR$5,$K30/I19,$K30-SUM($I34:AQ34))) -> 0.370792041 | AS34: =IF(AS$5<=$D34,0,IF(SUM($D34,I19)>AS$5,$K30/I19,$K30-SUM($I34:AR34))) -> 0.370792041 | AT34: =IF(AT$5<=$D34,0,IF(SUM($D34,I19)>AT$5,$K30/I19,$K30-SUM($I34:AS34))) -> 0.370792041 | AU34: =IF(AU$5<=$D34,0,IF(SUM($D34,I19)>AU$5,$K30/I19,$K30-SUM($I34:AT34))) -> 0.370792041 | AV34: =IF(AV$5<=$D34,0,IF(SUM($D34,I19)>AV$5,$K30/I19,$K30-SUM($I34:AU34))) -> 0.370792041 | AW34: =IF(AW$5<=$D34,0,IF(SUM($D34,I19)>AW$5,$K30/I19,$K30-SUM($I34:AV34))) -> 0.370792041 | AX34: =IF(AX$5<=$D34,0,IF(SUM($D34,I19)>AX$5,$K30/I19,$K30-SUM($I34:AW34))) -> 0.370792041 | AY34: =IF(AY$5<=$D34,0,IF(SUM($D34,I19)>AY$5,$K30/I19,$K30-SUM($I34:AX34))) -> 0.370792041 | AZ34: =IF(AZ$5<=$D34,0,IF(SUM($D34,I19)>AZ$5,$K30/I19,$K30-SUM($I34:AY34))) -> 0.370792041 | BA34: =IF(BA$5<=$D34,0,IF(SUM($D34,I19)>BA$5,$K30/I19,$K30-SUM($I34:AZ34))) -> 0.370792041 | BB34: =IF(BB$5<=$D34,0,IF(SUM($D34,I19)>BB$5,$K30/I19,$K30-SUM($I34:BA34))) -> 0.370792041 | BC34: =IF(BC$5<=$D34,0,IF(SUM($D34,I19)>BC$5,$K30/I19,$K30-SUM($I34:BB34))) -> 0.370792041 | BD34: =IF(BD$5<=$D34,0,IF(SUM($D34,I19)>BD$5,$K30/I19,$K30-SUM($I34:BC34))) -> 0.2674741047 | BE34: =IF(BE$5<=$D34,0,IF(SUM($D34,I19)>BE$5,$K30/I19,$K30-SUM($I34:BD34))) -> 0 | BF34: =IF(BF$5<=$D34,0,IF(SUM($D34,I19)>BF$5,$K30/I19,$K30-SUM($I34:BE34))) -> 0 | BG34: =IF(BG$5<=$D34,0,IF(SUM($D34,I19)>BG$5,$K30/I19,$K30-SUM($I34:BF34))) -> 0 | BH34: =IF(BH$5<=$D34,0,IF(SUM($D34,I19)>BH$5,$K30/I19,$K30-SUM($I34:BG34))) -> 0 | BI34: =IF(BI$5<=$D34,0,IF(SUM($D34,I19)>BI$5,$K30/I19,$K30-SUM($I34:BH34))) -> 0 | BJ34: =IF(BJ$5<=$D34,0,IF(SUM($D34,I19)>BJ$5,$K30/I19,$K30-SUM($I34:BI34))) -> 0 | BK34: =IF(BK$5<=$D34,0,IF(SUM($D34,I19)>BK$5,$K30/I19,$K30-SUM($I34:BJ34))) -> 0 | BL34: =IF(BL$5<=$D34,0,IF(SUM($D34,I19)>BL$5,$K30/I19,$K30-SUM($I34:BK34))) -> 0 | BM34: =IF(BM$5<=$D34,0,IF(SUM($D34,I19)>BM$5,$K30/I19,$K30-SUM($I34:BL34))) -> 0 | BN34: =IF(BN$5<=$D34,0,IF(SUM($D34,I19)>BN$5,$K30/I19,$K30-SUM($I34:BM34))) -> 0 | BO34: =IF(BO$5<=$D34,0,IF(SUM($D34,I19)>BO$5,$K30/I19,$K30-SUM($I34:BN34))) -> 0 | BP34: =IF(BP$5<=$D34,0,IF(SUM($D34,I19)>BP$5,$K30/I19,$K30-SUM($I34:BO34))) -> 0 | BQ34: =IF(BQ$5<=$D34,0,IF(SUM($D34,I19)>BQ$5,$K30/I19,$K30-SUM($I34:BP34))) -> 0
D35: =D34+1 -> 2013 | E35: $m Real (2010) | J35: =IF(J$5<=$D35,0,IF(SUM($D35,I19)>J$5,$L30/I19,$L30-SUM($I35:I35))) -> 0 | K35: =IF(K$5<=$D35,0,IF(SUM($D35,I19)>K$5,$L30/I19,$L30-SUM($I35:J35))) -> 0 | L35: =IF(L$5<=$D35,0,IF(SUM($D35,I19)>L$5,$L30/I19,$L30-SUM($I35:K35))) -> 0 | M35: =IF(M$5<=$D35,0,IF(SUM($D35,I19)>M$5,$L30/I19,$L30-SUM($I35:L35))) -> 0.5147952763 | N35: =IF(N$5<=$D35,0,IF(SUM($D35,I19)>N$5,$L30/I19,$L30-SUM($I35:M35))) -> 0.5147952763 | O35: =IF(O$5<=$D35,0,IF(SUM($D35,I19)>O$5,$L30/I19,$L30-SUM($I35:N35))) -> 0.5147952763 | P35: =IF(P$5<=$D35,0,IF(SUM($D35,I19)>P$5,$L30/I19,$L30-SUM($I35:O35))) -> 0.5147952763 | Q35: =IF(Q$5<=$D35,0,IF(SUM($D35,I19)>Q$5,$L30/I19,$L30-SUM($I35:P35))) -> 0.5147952763 | R35: =IF(R$5<=$D35,0,IF(SUM($D35,I19)>R$5,$L30/I19,$L30-SUM($I35:Q35))) -> 0.5147952763 | S35: =IF(S$5<=$D35,0,IF(SUM($D35,I19)>S$5,$L30/I19,$L30-SUM($I35:R35))) -> 0.5147952763 | T35: =IF(T$5<=$D35,0,IF(SUM($D35,I19)>T$5,$L30/I19,$L30-SUM($I35:S35))) -> 0.5147952763 | U35: =IF(U$5<=$D35,0,IF(SUM($D35,I19)>U$5,$L30/I19,$L30-SUM($I35:T35))) -> 0.5147952763 | V35: =IF(V$5<=$D35,0,IF(SUM($D35,I19)>V$5,$L30/I19,$L30-SUM($I35:U35))) -> 0.5147952763 | W35: =IF(W$5<=$D35,0,IF(SUM($D35,I19)>W$5,$L30/I19,$L30-SUM($I35:V35))) -> 0.5147952763 | X35: =IF(X$5<=$D35,0,IF(SUM($D35,I19)>X$5,$L30/I19,$L30-SUM($I35:W35))) -> 0.5147952763 | Y35: =IF(Y$5<=$D35,0,IF(SUM($D35,I19)>Y$5,$L30/I19,$L30-SUM($I35:X35))) -> 0.5147952763 | Z35: =IF(Z$5<=$D35,0,IF(SUM($D35,I19)>Z$5,$L30/I19,$L30-SUM($I35:Y35))) -> 0.5147952763 | AA35: =IF(AA$5<=$D35,0,IF(SUM($D35,I19)>AA$5,$L30/I19,$L30-SUM($I35:Z35))) -> 0.5147952763 | AB35: =IF(AB$5<=$D35,0,IF(SUM($D35,I19)>AB$5,$L30/I19,$L30-SUM($I35:AA35))) -> 0.5147952763 | AC35: =IF(AC$5<=$D35,0,IF(SUM($D35,I19)>AC$5,$L30/I19,$L30-SUM($I35:AB35))) -> 0.5147952763 | AD35: =IF(AD$5<=$D35,0,IF(SUM($D35,I19)>AD$5,$L30/I19,$L30-SUM($I35:AC35))) -> 0.5147952763 | AE35: =IF(AE$5<=$D35,0,IF(SUM($D35,I19)>AE$5,$L30/I19,$L30-SUM($I35:AD35))) -> 0.5147952763 | AF35: =IF(AF$5<=$D35,0,IF(SUM($D35,I19)>AF$5,$L30/I19,$L30-SUM($I35:AE35))) -> 0.5147952763 | AG35: =IF(AG$5<=$D35,0,IF(SUM($D35,I19)>AG$5,$L30/I19,$L30-SUM($I35:AF35))) -> 0.5147952763 | AH35: =IF(AH$5<=$D35,0,IF(SUM($D35,I19)>AH$5,$L30/I19,$L30-SUM($I35:AG35))) -> 0.5147952763 | AI35: =IF(AI$5<=$D35,0,IF(SUM($D35,I19)>AI$5,$L30/I19,$L30-SUM($I35:AH35))) -> 0.5147952763 | AJ35: =IF(AJ$5<=$D35,0,IF(SUM($D35,I19)>AJ$5,$L30/I19,$L30-SUM($I35:AI35))) -> 0.5147952763 | AK35: =IF(AK$5<=$D35,0,IF(SUM($D35,I19)>AK$5,$L30/I19,$L30-SUM($I35:AJ35))) -> 0.5147952763 | AL35: =IF(AL$5<=$D35,0,IF(SUM($D35,I19)>AL$5,$L30/I19,$L30-SUM($I35:AK35))) -> 0.5147952763 | AM35: =IF(AM$5<=$D35,0,IF(SUM($D35,I19)>AM$5,$L30/I19,$L30-SUM($I35:AL35))) -> 0.5147952763 | AN35: =IF(AN$5<=$D35,0,IF(SUM($D35,I19)>AN$5,$L30/I19,$L30-SUM($I35:AM35))) -> 0.5147952763 | AO35: =IF(AO$5<=$D35,0,IF(SUM($D35,I19)>AO$5,$L30/I19,$L30-SUM($I35:AN35))) -> 0.5147952763 | AP35: =IF(AP$5<=$D35,0,IF(SUM($D35,I19)>AP$5,$L30/I19,$L30-SUM($I35:AO35))) -> 0.5147952763 | AQ35: =IF(AQ$5<=$D35,0,IF(SUM($D35,I19)>AQ$5,$L30/I19,$L30-SUM($I35:AP35))) -> 0.5147952763 | AR35: =IF(AR$5<=$D35,0,IF(SUM($D35,I19)>AR$5,$L30/I19,$L30-SUM($I35:AQ35))) -> 0.5147952763 | AS35: =IF(AS$5<=$D35,0,IF(SUM($D35,I19)>AS$5,$L30/I19,$L30-SUM($I35:AR35))) -> 0.5147952763 | AT35: =IF(AT$5<=$D35,0,IF(SUM($D35,I19)>AT$5,$L30/I19,$L30-SUM($I35:AS35))) -> 0.5147952763 | AU35: =IF(AU$5<=$D35,0,IF(SUM($D35,I19)>AU$5,$L30/I19,$L30-SUM($I35:AT35))) -> 0.5147952763 | AV35: =IF(AV$5<=$D35,0,IF(SUM($D35,I19)>AV$5,$L30/I19,$L30-SUM($I35:AU35))) -> 0.5147952763 | AW35: =IF(AW$5<=$D35,0,IF(SUM($D35,I19)>AW$5,$L30/I19,$L30-SUM($I35:AV35))) -> 0.5147952763 | AX35: =IF(AX$5<=$D35,0,IF(SUM($D35,I19)>AX$5,$L30/I19,$L30-SUM($I35:AW35))) -> 0.5147952763 | AY35: =IF(AY$5<=$D35,0,IF(SUM($D35,I19)>AY$5,$L30/I19,$L30-SUM($I35:AX35))) -> 0.5147952763 | AZ35: =IF(AZ$5<=$D35,0,IF(SUM($D35,I19)>AZ$5,$L30/I19,$L30-SUM($I35:AY35))) -> 0.5147952763 | BA35: =IF(BA$5<=$D35,0,IF(SUM($D35,I19)>BA$5,$L30/I19,$L30-SUM($I35:AZ35))) -> 0.5147952763 | BB35: =IF(BB$5<=$D35,0,IF(SUM($D35,I19)>BB$5,$L30/I19,$L30-SUM($I35:BA35))) -> 0.5147952763 | BC35: =IF(BC$5<=$D35,0,IF(SUM($D35,I19)>BC$5,$L30/I19,$L30-SUM($I35:BB35))) -> 0.5147952763 | BD35: =IF(BD$5<=$D35,0,IF(SUM($D35,I19)>BD$5,$L30/I19,$L30-SUM($I35:BC35))) -> 0.5147952763 | BE35: =IF(BE$5<=$D35,0,IF(SUM($D35,I19)>BE$5,$L30/I19,$L30-SUM($I35:BD35))) -> 0.3713521069 | BF35: =IF(BF$5<=$D35,0,IF(SUM($D35,I19)>BF$5,$L30/I19,$L30-SUM($I35:BE35))) -> 0 | BG35: =IF(BG$5<=$D35,0,IF(SUM($D35,I19)>BG$5,$L30/I19,$L30-SUM($I35:BF35))) -> 0 | BH35: =IF(BH$5<=$D35,0,IF(SUM($D35,I19)>BH$5,$L30/I19,$L30-SUM($I35:BG35))) -> 0 | BI35: =IF(BI$5<=$D35,0,IF(SUM($D35,I19)>BI$5,$L30/I19,$L30-SUM($I35:BH35))) -> 0 | BJ35: =IF(BJ$5<=$D35,0,IF(SUM($D35,I19)>BJ$5,$L30/I19,$L30-SUM($I35:BI35))) -> 0 | BK35: =IF(BK$5<=$D35,0,IF(SUM($D35,I19)>BK$5,$L30/I19,$L30-SUM($I35:BJ35))) -> 0 | BL35: =IF(BL$5<=$D35,0,IF(SUM($D35,I19)>BL$5,$L30/I19,$L30-SUM($I35:BK35))) -> 0 | BM35: =IF(BM$5<=$D35,0,IF(SUM($D35,I19)>BM$5,$L30/I19,$L30-SUM($I35:BL35))) -> 0 | BN35: =IF(BN$5<=$D35,0,IF(SUM($D35,I19)>BN$5,$L30/I19,$L30-SUM($I35:BM35))) -> 0 | BO35: =IF(BO$5<=$D35,0,IF(SUM($D35,I19)>BO$5,$L30/I19,$L30-SUM($I35:BN35))) -> 0 | BP35: =IF(BP$5<=$D35,0,IF(SUM($D35,I19)>BP$5,$L30/I19,$L30-SUM($I35:BO35))) -> 0 | BQ35: =IF(BQ$5<=$D35,0,IF(SUM($D35,I19)>BQ$5,$L30/I19,$L30-SUM($I35:BP35))) -> 0
D36: 2014 | E36: $m Real (2010) | J36: =IF(J$5<=$D36,0,IF(SUM($D36,I19)>J$5,$M30/I19,$M30-SUM($I36:I36))) -> 0 | K36: =IF(K$5<=$D36,0,IF(SUM($D36,I19)>K$5,$M30/I19,$M30-SUM($I36:J36))) -> 0 | L36: =IF(L$5<=$D36,0,IF(SUM($D36,I19)>L$5,$M30/I19,$M30-SUM($I36:K36))) -> 0 | M36: =IF(M$5<=$D36,0,IF(SUM($D36,I19)>M$5,$M30/I19,$M30-SUM($I36:L36))) -> 0 | N36: =IF(N$5<=$D36,0,IF(SUM($D36,I19)>N$5,$M30/I19,$M30-SUM($I36:M36))) -> 0.5716432805 | O36: =IF(O$5<=$D36,0,IF(SUM($D36,I19)>O$5,$M30/I19,$M30-SUM($I36:N36))) -> 0.5716432805 | P36: =IF(P$5<=$D36,0,IF(SUM($D36,I19)>P$5,$M30/I19,$M30-SUM($I36:O36))) -> 0.5716432805 | Q36: =IF(Q$5<=$D36,0,IF(SUM($D36,I19)>Q$5,$M30/I19,$M30-SUM($I36:P36))) -> 0.5716432805 | R36: =IF(R$5<=$D36,0,IF(SUM($D36,I19)>R$5,$M30/I19,$M30-SUM($I36:Q36))) -> 0.5716432805 | S36: =IF(S$5<=$D36,0,IF(SUM($D36,I19)>S$5,$M30/I19,$M30-SUM($I36:R36))) -> 0.5716432805 | T36: =IF(T$5<=$D36,0,IF(SUM($D36,I19)>T$5,$M30/I19,$M30-SUM($I36:S36))) -> 0.5716432805 | U36: =IF(U$5<=$D36,0,IF(SUM($D36,I19)>U$5,$M30/I19,$M30-SUM($I36:T36))) -> 0.5716432805 | V36: =IF(V$5<=$D36,0,IF(SUM($D36,I19)>V$5,$M30/I19,$M30-SUM($I36:U36))) -> 0.5716432805 | W36: =IF(W$5<=$D36,0,IF(SUM($D36,I19)>W$5,$M30/I19,$M30-SUM($I36:V36))) -> 0.5716432805 | X36: =IF(X$5<=$D36,0,IF(SUM($D36,I19)>X$5,$M30/I19,$M30-SUM($I36:W36))) -> 0.5716432805 | Y36: =IF(Y$5<=$D36,0,IF(SUM($D36,I19)>Y$5,$M30/I19,$M30-SUM($I36:X36))) -> 0.5716432805 | Z36: =IF(Z$5<=$D36,0,IF(SUM($D36,I19)>Z$5,$M30/I19,$M30-SUM($I36:Y36))) -> 0.5716432805 | AA36: =IF(AA$5<=$D36,0,IF(SUM($D36,I19)>AA$5,$M30/I19,$M30-SUM($I36:Z36))) -> 0.5716432805 | AB36: =IF(AB$5<=$D36,0,IF(SUM($D36,I19)>AB$5,$M30/I19,$M30-SUM($I36:AA36))) -> 0.5716432805 | AC36: =IF(AC$5<=$D36,0,IF(SUM($D36,I19)>AC$5,$M30/I19,$M30-SUM($I36:AB36))) -> 0.5716432805 | AD36: =IF(AD$5<=$D36,0,IF(SUM($D36,I19)>AD$5,$M30/I19,$M30-SUM($I36:AC36))) -> 0.5716432805 | AE36: =IF(AE$5<=$D36,0,IF(SUM($D36,I19)>AE$5,$M30/I19,$M30-SUM($I36:AD36))) -> 0.5716432805 | AF36: =IF(AF$5<=$D36,0,IF(SUM($D36,I19)>AF$5,$M30/I19,$M30-SUM($I36:AE36))) -> 0.5716432805 | AG36: =IF(AG$5<=$D36,0,IF(SUM($D36,I19)>AG$5,$M30/I19,$M30-SUM($I36:AF36))) -> 0.5716432805 | AH36: =IF(AH$5<=$D36,0,IF(SUM($D36,I19)>AH$5,$M30/I19,$M30-SUM($I36:AG36))) -> 0.5716432805 | AI36: =IF(AI$5<=$D36,0,IF(SUM($D36,I19)>AI$5,$M30/I19,$M30-SUM($I36:AH36))) -> 0.5716432805 | AJ36: =IF(AJ$5<=$D36,0,IF(SUM($D36,I19)>AJ$5,$M30/I19,$M30-SUM($I36:AI36))) -> 0.5716432805 | AK36: =IF(AK$5<=$D36,0,IF(SUM($D36,I19)>AK$5,$M30/I19,$M30-SUM($I36:AJ36))) -> 0.5716432805 | AL36: =IF(AL$5<=$D36,0,IF(SUM($D36,I19)>AL$5,$M30/I19,$M30-SUM($I36:AK36))) -> 0.5716432805 | AM36: =IF(AM$5<=$D36,0,IF(SUM($D36,I19)>AM$5,$M30/I19,$M30-SUM($I36:AL36))) -> 0.5716432805 | AN36: =IF(AN$5<=$D36,0,IF(SUM($D36,I19)>AN$5,$M30/I19,$M30-SUM($I36:AM36))) -> 0.5716432805 | AO36: =IF(AO$5<=$D36,0,IF(SUM($D36,I19)>AO$5,$M30/I19,$M30-SUM($I36:AN36))) -> 0.5716432805 | AP36: =IF(AP$5<=$D36,0,IF(SUM($D36,I19)>AP$5,$M30/I19,$M30-SUM($I36:AO36))) -> 0.5716432805 | AQ36: =IF(AQ$5<=$D36,0,IF(SUM($D36,I19)>AQ$5,$M30/I19,$M30-SUM($I36:AP36))) -> 0.5716432805 | AR36: =IF(AR$5<=$D36,0,IF(SUM($D36,I19)>AR$5,$M30/I19,$M30-SUM($I36:AQ36))) -> 0.5716432805 | AS36: =IF(AS$5<=$D36,0,IF(SUM($D36,I19)>AS$5,$M30/I19,$M30-SUM($I36:AR36))) -> 0.5716432805 | AT36: =IF(AT$5<=$D36,0,IF(SUM($D36,I19)>AT$5,$M30/I19,$M30-SUM($I36:AS36))) -> 0.5716432805 | AU36: =IF(AU$5<=$D36,0,IF(SUM($D36,I19)>AU$5,$M30/I19,$M30-SUM($I36:AT36))) -> 0.5716432805 | AV36: =IF(AV$5<=$D36,0,IF(SUM($D36,I19)>AV$5,$M30/I19,$M30-SUM($I36:AU36))) -> 0.5716432805 | AW36: =IF(AW$5<=$D36,0,IF(SUM($D36,I19)>AW$5,$M30/I19,$M30-SUM($I36:AV36))) -> 0.5716432805 | AX36: =IF(AX$5<=$D36,0,IF(SUM($D36,I19)>AX$5,$M30/I19,$M30-SUM($I36:AW36))) -> 0.5716432805 | AY36: =IF(AY$5<=$D36,0,IF(SUM($D36,I19)>AY$5,$M30/I19,$M30-SUM($I36:AX36))) -> 0.5716432805 | AZ36: =IF(AZ$5<=$D36,0,IF(SUM($D36,I19)>AZ$5,$M30/I19,$M30-SUM($I36:AY36))) -> 0.5716432805 | BA36: =IF(BA$5<=$D36,0,IF(SUM($D36,I19)>BA$5,$M30/I19,$M30-SUM($I36:AZ36))) -> 0.5716432805 | BB36: =IF(BB$5<=$D36,0,IF(SUM($D36,I19)>BB$5,$M30/I19,$M30-SUM($I36:BA36))) -> 0.5716432805 | BC36: =IF(BC$5<=$D36,0,IF(SUM($D36,I19)>BC$5,$M30/I19,$M30-SUM($I36:BB36))) -> 0.5716432805 | BD36: =IF(BD$5<=$D36,0,IF(SUM($D36,I19)>BD$5,$M30/I19,$M30-SUM($I36:BC36))) -> 0.5716432805 | BE36: =IF(BE$5<=$D36,0,IF(SUM($D36,I19)>BE$5,$M30/I19,$M30-SUM($I36:BD36))) -> 0.5716432805 | BF36: =IF(BF$5<=$D36,0,IF(SUM($D36,I19)>BF$5,$M30/I19,$M30-SUM($I36:BE36))) -> 0.4123599154 | BG36: =IF(BG$5<=$D36,0,IF(SUM($D36,I19)>BG$5,$M30/I19,$M30-SUM($I36:BF36))) -> 0 | BH36: =IF(BH$5<=$D36,0,IF(SUM($D36,I19)>BH$5,$M30/I19,$M30-SUM($I36:BG36))) -> 0 | BI36: =IF(BI$5<=$D36,0,IF(SUM($D36,I19)>BI$5,$M30/I19,$M30-SUM($I36:BH36))) -> 0 | BJ36: =IF(BJ$5<=$D36,0,IF(SUM($D36,I19)>BJ$5,$M30/I19,$M30-SUM($I36:BI36))) -> 0 | BK36: =IF(BK$5<=$D36,0,IF(SUM($D36,I19)>BK$5,$M30/I19,$M30-SUM($I36:BJ36))) -> 0 | BL36: =IF(BL$5<=$D36,0,IF(SUM($D36,I19)>BL$5,$M30/I19,$M30-SUM($I36:BK36))) -> 0 | BM36: =IF(BM$5<=$D36,0,IF(SUM($D36,I19)>BM$5,$M30/I19,$M30-SUM($I36:BL36))) -> 0 | BN36: =IF(BN$5<=$D36,0,IF(SUM($D36,I19)>BN$5,$M30/I19,$M30-SUM($I36:BM36))) -> 0 | BO36: =IF(BO$5<=$D36,0,IF(SUM($D36,I19)>BO$5,$M30/I19,$M30-SUM($I36:BN36))) -> 0 | BP36: =IF(BP$5<=$D36,0,IF(SUM($D36,I19)>BP$5,$M30/I19,$M30-SUM($I36:BO36))) -> 0 | BQ36: =IF(BQ$5<=$D36,0,IF(SUM($D36,I19)>BQ$5,$M30/I19,$M30-SUM($I36:BP36))) -> 0
D37: 2015 | E37: $m Real (2010) | J37: =IF(J$5<=$D37,0,IF(SUM($D37,I19)>J$5,$N30/I19,$N30-SUM($I37:I37))) -> 0 | K37: =IF(K$5<=$D37,0,IF(SUM($D37,I19)>K$5,$N30/I19,$N30-SUM($I37:J37))) -> 0 | L37: =IF(L$5<=$D37,0,IF(SUM($D37,I19)>L$5,$N30/I19,$N30-SUM($I37:K37))) -> 0 | M37: =IF(M$5<=$D37,0,IF(SUM($D37,I19)>M$5,$N30/I19,$N30-SUM($I37:L37))) -> 0 | N37: =IF(N$5<=$D37,0,IF(SUM($D37,I19)>N$5,$N30/I19,$N30-SUM($I37:M37))) -> 0 | O37: =IF(O$5<=$D37,0,IF(SUM($D37,I19)>O$5,$N30/I19,$N30-SUM($I37:N37))) -> 0.6710378905 | P37: =IF(P$5<=$D37,0,IF(SUM($D37,I19)>P$5,$N30/I19,$N30-SUM($I37:O37))) -> 0.6710378905 | Q37: =IF(Q$5<=$D37,0,IF(SUM($D37,I19)>Q$5,$N30/I19,$N30-SUM($I37:P37))) -> 0.6710378905 | R37: =IF(R$5<=$D37,0,IF(SUM($D37,I19)>R$5,$N30/I19,$N30-SUM($I37:Q37))) -> 0.6710378905 | S37: =IF(S$5<=$D37,0,IF(SUM($D37,I19)>S$5,$N30/I19,$N30-SUM($I37:R37))) -> 0.6710378905 | T37: =IF(T$5<=$D37,0,IF(SUM($D37,I19)>T$5,$N30/I19,$N30-SUM($I37:S37))) -> 0.6710378905 | U37: =IF(U$5<=$D37,0,IF(SUM($D37,I19)>U$5,$N30/I19,$N30-SUM($I37:T37))) -> 0.6710378905 | V37: =IF(V$5<=$D37,0,IF(SUM($D37,I19)>V$5,$N30/I19,$N30-SUM($I37:U37))) -> 0.6710378905 | W37: =IF(W$5<=$D37,0,IF(SUM($D37,I19)>W$5,$N30/I19,$N30-SUM($I37:V37))) -> 0.6710378905 | X37: =IF(X$5<=$D37,0,IF(SUM($D37,I19)>X$5,$N30/I19,$N30-SUM($I37:W37))) -> 0.6710378905 | Y37: =IF(Y$5<=$D37,0,IF(SUM($D37,I19)>Y$5,$N30/I19,$N30-SUM($I37:X37))) -> 0.6710378905 | Z37: =IF(Z$5<=$D37,0,IF(SUM($D37,I19)>Z$5,$N30/I19,$N30-SUM($I37:Y37))) -> 0.6710378905 | AA37: =IF(AA$5<=$D37,0,IF(SUM($D37,I19)>AA$5,$N30/I19,$N30-SUM($I37:Z37))) -> 0.6710378905 | AB37: =IF(AB$5<=$D37,0,IF(SUM($D37,I19)>AB$5,$N30/I19,$N30-SUM($I37:AA37))) -> 0.6710378905 | AC37: =IF(AC$5<=$D37,0,IF(SUM($D37,I19)>AC$5,$N30/I19,$N30-SUM($I37:AB37))) -> 0.6710378905 | AD37: =IF(AD$5<=$D37,0,IF(SUM($D37,I19)>AD$5,$N30/I19,$N30-SUM($I37:AC37))) -> 0.6710378905 | AE37: =IF(AE$5<=$D37,0,IF(SUM($D37,I19)>AE$5,$N30/I19,$N30-SUM($I37:AD37))) -> 0.6710378905 | AF37: =IF(AF$5<=$D37,0,IF(SUM($D37,I19)>AF$5,$N30/I19,$N30-SUM($I37:AE37))) -> 0.6710378905 | AG37: =IF(AG$5<=$D37,0,IF(SUM($D37,I19)>AG$5,$N30/I19,$N30-SUM($I37:AF37))) -> 0.6710378905 | AH37: =IF(AH$5<=$D37,0,IF(SUM($D37,I19)>AH$5,$N30/I19,$N30-SUM($I37:AG37))) -> 0.6710378905 | AI37: =IF(AI$5<=$D37,0,IF(SUM($D37,I19)>AI$5,$N30/I19,$N30-SUM($I37:AH37))) -> 0.6710378905 | AJ37: =IF(AJ$5<=$D37,0,IF(SUM($D37,I19)>AJ$5,$N30/I19,$N30-SUM($I37:AI37))) -> 0.6710378905 | AK37: =IF(AK$5<=$D37,0,IF(SUM($D37,I19)>AK$5,$N30/I19,$N30-SUM($I37:AJ37))) -> 0.6710378905 | AL37: =IF(AL$5<=$D37,0,IF(SUM($D37,I19)>AL$5,$N30/I19,$N30-SUM($I37:AK37))) -> 0.6710378905 | AM37: =IF(AM$5<=$D37,0,IF(SUM($D37,I19)>AM$5,$N30/I19,$N30-SUM($I37:AL37))) -> 0.6710378905 | AN37: =IF(AN$5<=$D37,0,IF(SUM($D37,I19)>AN$5,$N30/I19,$N30-SUM($I37:AM37))) -> 0.6710378905 | AO37: =IF(AO$5<=$D37,0,IF(SUM($D37,I19)>AO$5,$N30/I19,$N30-SUM($I37:AN37))) -> 0.6710378905 | AP37: =IF(AP$5<=$D37,0,IF(SUM($D37,I19)>AP$5,$N30/I19,$N30-SUM($I37:AO37))) -> 0.6710378905 | AQ37: =IF(AQ$5<=$D37,0,IF(SUM($D37,I19)>AQ$5,$N30/I19,$N30-SUM($I37:AP37))) -> 0.6710378905 | AR37: =IF(AR$5<=$D37,0,IF(SUM($D37,I19)>AR$5,$N30/I19,$N30-SUM($I37:AQ37))) -> 0.6710378905 | AS37: =IF(AS$5<=$D37,0,IF(SUM($D37,I19)>AS$5,$N30/I19,$N30-SUM($I37:AR37))) -> 0.6710378905 | AT37: =IF(AT$5<=$D37,0,IF(SUM($D37,I19)>AT$5,$N30/I19,$N30-SUM($I37:AS37))) -> 0.6710378905 | AU37: =IF(AU$5<=$D37,0,IF(SUM($D37,I19)>AU$5,$N30/I19,$N30-SUM($I37:AT37))) -> 0.6710378905 | AV37: =IF(AV$5<=$D37,0,IF(SUM($D37,I19)>AV$5,$N30/I19,$N30-SUM($I37:AU37))) -> 0.6710378905 | AW37: =IF(AW$5<=$D37,0,IF(SUM($D37,I19)>AW$5,$N30/I19,$N30-SUM($I37:AV37))) -> 0.6710378905 | AX37: =IF(AX$5<=$D37,0,IF(SUM($D37,I19)>AX$5,$N30/I19,$N30-SUM($I37:AW37))) -> 0.6710378905 | AY37: =IF(AY$5<=$D37,0,IF(SUM($D37,I19)>AY$5,$N30/I19,$N30-SUM($I37:AX37))) -> 0.6710378905 | AZ37: =IF(AZ$5<=$D37,0,IF(SUM($D37,I19)>AZ$5,$N30/I19,$N30-SUM($I37:AY37))) -> 0.6710378905 | BA37: =IF(BA$5<=$D37,0,IF(SUM($D37,I19)>BA$5,$N30/I19,$N30-SUM($I37:AZ37))) -> 0.6710378905 | BB37: =IF(BB$5<=$D37,0,IF(SUM($D37,I19)>BB$5,$N30/I19,$N30-SUM($I37:BA37))) -> 0.6710378905 | BC37: =IF(BC$5<=$D37,0,IF(SUM($D37,I19)>BC$5,$N30/I19,$N30-SUM($I37:BB37))) -> 0.6710378905 | BD37: =IF(BD$5<=$D37,0,IF(SUM($D37,I19)>BD$5,$N30/I19,$N30-SUM($I37:BC37))) -> 0.6710378905 | BE37: =IF(BE$5<=$D37,0,IF(SUM($D37,I19)>BE$5,$N30/I19,$N30-SUM($I37:BD37))) -> 0.6710378905 | BF37: =IF(BF$5<=$D37,0,IF(SUM($D37,I19)>BF$5,$N30/I19,$N30-SUM($I37:BE37))) -> 0.6710378905 | BG37: =IF(BG$5<=$D37,0,IF(SUM($D37,I19)>BG$5,$N30/I19,$N30-SUM($I37:BF37))) -> 0.4840590928 | BH37: =IF(BH$5<=$D37,0,IF(SUM($D37,I19)>BH$5,$N30/I19,$N30-SUM($I37:BG37))) -> 0 | BI37: =IF(BI$5<=$D37,0,IF(SUM($D37,I19)>BI$5,$N30/I19,$N30-SUM($I37:BH37))) -> 0 | BJ37: =IF(BJ$5<=$D37,0,IF(SUM($D37,I19)>BJ$5,$N30/I19,$N30-SUM($I37:BI37))) -> 0 | BK37: =IF(BK$5<=$D37,0,IF(SUM($D37,I19)>BK$5,$N30/I19,$N30-SUM($I37:BJ37))) -> 0 | BL37: =IF(BL$5<=$D37,0,IF(SUM($D37,I19)>BL$5,$N30/I19,$N30-SUM($I37:BK37))) -> 0 | BM37: =IF(BM$5<=$D37,0,IF(SUM($D37,I19)>BM$5,$N30/I19,$N30-SUM($I37:BL37))) -> 0 | BN37: =IF(BN$5<=$D37,0,IF(SUM($D37,I19)>BN$5,$N30/I19,$N30-SUM($I37:BM37))) -> 0 | BO37: =IF(BO$5<=$D37,0,IF(SUM($D37,I19)>BO$5,$N30/I19,$N30-SUM($I37:BN37))) -> 0 | BP37: =IF(BP$5<=$D37,0,IF(SUM($D37,I19)>BP$5,$N30/I19,$N30-SUM($I37:BO37))) -> 0 | BQ37: =IF(BQ$5<=$D37,0,IF(SUM($D37,I19)>BQ$5,$N30/I19,$N30-SUM($I37:BP37))) -> 0
D38: 2016 | E38: $m Real (2010) | J38: =IF(J$5<=$D38,0,IF(SUM($D38,I19)>J$5,$O30/I19,$O30-SUM($I38:I38))) -> 0 | K38: =IF(K$5<=$D38,0,IF(SUM($D38,I19)>K$5,$O30/I19,$O30-SUM($I38:J38))) -> 0 | L38: =IF(L$5<=$D38,0,IF(SUM($D38,I19)>L$5,$O30/I19,$O30-SUM($I38:K38))) -> 0 | M38: =IF(M$5<=$D38,0,IF(SUM($D38,I19)>M$5,$O30/I19,$O30-SUM($I38:L38))) -> 0 | N38: =IF(N$5<=$D38,0,IF(SUM($D38,I19)>N$5,$O30/I19,$O30-SUM($I38:M38))) -> 0 | O38: =IF(O$5<=$D38,0,IF(SUM($D38,I19)>O$5,$O30/I19,$O30-SUM($I38:N38))) -> 0 | P38: =IF(P$5<=$D38,0,IF(SUM($D38,I19)>P$5,$O30/I19,$O30-SUM($I38:O38))) -> 0 | Q38: =IF(Q$5<=$D38,0,IF(SUM($D38,I19)>Q$5,$O30/I19,$O30-SUM($I38:P38))) -> 0 | R38: =IF(R$5<=$D38,0,IF(SUM($D38,I19)>R$5,$O30/I19,$O30-SUM($I38:Q38))) -> 0 | S38: =IF(S$5<=$D38,0,IF(SUM($D38,I19)>S$5,$O30/I19,$O30-SUM($I38:R38))) -> 0 | T38: =IF(T$5<=$D38,0,IF(SUM($D38,I19)>T$5,$O30/I19,$O30-SUM($I38:S38))) -> 0 | U38: =IF(U$5<=$D38,0,IF(SUM($D38,I19)>U$5,$O30/I19,$O30-SUM($I38:T38))) -> 0 | V38: =IF(V$5<=$D38,0,IF(SUM($D38,I19)>V$5,$O30/I19,$O30-SUM($I38:U38))) -> 0 | W38: =IF(W$5<=$D38,0,IF(SUM($D38,I19)>W$5,$O30/I19,$O30-SUM($I38:V38))) -> 0 | X38: =IF(X$5<=$D38,0,IF(SUM($D38,I19)>X$5,$O30/I19,$O30-SUM($I38:W38))) -> 0 | Y38: =IF(Y$5<=$D38,0,IF(SUM($D38,I19)>Y$5,$O30/I19,$O30-SUM($I38:X38))) -> 0 | Z38: =IF(Z$5<=$D38,0,IF(SUM($D38,I19)>Z$5,$O30/I19,$O30-SUM($I38:Y38))) -> 0 | AA38: =IF(AA$5<=$D38,0,IF(SUM($D38,I19)>AA$5,$O30/I19,$O30-SUM($I38:Z38))) -> 0 | AB38: =IF(AB$5<=$D38,0,IF(SUM($D38,I19)>AB$5,$O30/I19,$O30-SUM($I38:AA38))) -> 0 | AC38: =IF(AC$5<=$D38,0,IF(SUM($D38,I19)>AC$5,$O30/I19,$O30-SUM($I38:AB38))) -> 0 | AD38: =IF(AD$5<=$D38,0,IF(SUM($D38,I19)>AD$5,$O30/I19,$O30-SUM($I38:AC38))) -> 0 | AE38: =IF(AE$5<=$D38,0,IF(SUM($D38,I19)>AE$5,$O30/I19,$O30-SUM($I38:AD38))) -> 0 | AF38: =IF(AF$5<=$D38,0,IF(SUM($D38,I19)>AF$5,$O30/I19,$O30-SUM($I38:AE38))) -> 0 | AG38: =IF(AG$5<=$D38,0,IF(SUM($D38,I19)>AG$5,$O30/I19,$O30-SUM($I38:AF38))) -> 0 | AH38: =IF(AH$5<=$D38,0,IF(SUM($D38,I19)>AH$5,$O30/I19,$O30-SUM($I38:AG38))) -> 0 | AI38: =IF(AI$5<=$D38,0,IF(SUM($D38,I19)>AI$5,$O30/I19,$O30-SUM($I38:AH38))) -> 0 | AJ38: =IF(AJ$5<=$D38,0,IF(SUM($D38,I19)>AJ$5,$O30/I19,$O30-SUM($I38:AI38))) -> 0 | AK38: =IF(AK$5<=$D38,0,IF(SUM($D38,I19)>AK$5,$O30/I19,$O30-SUM($I38:AJ38))) -> 0 | AL38: =IF(AL$5<=$D38,0,IF(SUM($D38,I19)>AL$5,$O30/I19,$O30-SUM($I38:AK38))) -> 0 | AM38: =IF(AM$5<=$D38,0,IF(SUM($D38,I19)>AM$5,$O30/I19,$O30-SUM($I38:AL38))) -> 0 | AN38: =IF(AN$5<=$D38,0,IF(SUM($D38,I19)>AN$5,$O30/I19,$O30-SUM($I38:AM38))) -> 0 | AO38: =IF(AO$5<=$D38,0,IF(SUM($D38,I19)>AO$5,$O30/I19,$O30-SUM($I38:AN38))) -> 0 | AP38: =IF(AP$5<=$D38,0,IF(SUM($D38,I19)>AP$5,$O30/I19,$O30-SUM($I38:AO38))) -> 0 | AQ38: =IF(AQ$5<=$D38,0,IF(SUM($D38,I19)>AQ$5,$O30/I19,$O30-SUM($I38:AP38))) -> 0 | AR38: =IF(AR$5<=$D38,0,IF(SUM($D38,I19)>AR$5,$O30/I19,$O30-SUM($I38:AQ38))) -> 0 | AS38: =IF(AS$5<=$D38,0,IF(SUM($D38,I19)>AS$5,$O30/I19,$O30-SUM($I38:AR38))) -> 0 | AT38: =IF(AT$5<=$D38,0,IF(SUM($D38,I19)>AT$5,$O30/I19,$O30-SUM($I38:AS38))) -> 0 | AU38: =IF(AU$5<=$D38,0,IF(SUM($D38,I19)>AU$5,$O30/I19,$O30-SUM($I38:AT38))) -> 0 | AV38: =IF(AV$5<=$D38,0,IF(SUM($D38,I19)>AV$5,$O30/I19,$O30-SUM($I38:AU38))) -> 0 | AW38: =IF(AW$5<=$D38,0,IF(SUM($D38,I19)>AW$5,$O30/I19,$O30-SUM($I38:AV38))) -> 0 | AX38: =IF(AX$5<=$D38,0,IF(SUM($D38,I19)>AX$5,$O30/I19,$O30-SUM($I38:AW38))) -> 0 | AY38: =IF(AY$5<=$D38,0,IF(SUM($D38,I19)>AY$5,$O30/I19,$O30-SUM($I38:AX38))) -> 0 | AZ38: =IF(AZ$5<=$D38,0,IF(SUM($D38,I19)>AZ$5,$O30/I19,$O30-SUM($I38:AY38))) -> 0 | BA38: =IF(BA$5<=$D38,0,IF(SUM($D38,I19)>BA$5,$O30/I19,$O30-SUM($I38:AZ38))) -> 0 | BB38: =IF(BB$5<=$D38,0,IF(SUM($D38,I19)>BB$5,$O30/I19,$O30-SUM($I38:BA38))) -> 0 | BC38: =IF(BC$5<=$D38,0,IF(SUM($D38,I19)>BC$5,$O30/I19,$O30-SUM($I38:BB38))) -> 0 | BD38: =IF(BD$5<=$D38,0,IF(SUM($D38,I19)>BD$5,$O30/I19,$O30-SUM($I38:BC38))) -> 0 | BE38: =IF(BE$5<=$D38,0,IF(SUM($D38,I19)>BE$5,$O30/I19,$O30-SUM($I38:BD38))) -> 0 | BF38: =IF(BF$5<=$D38,0,IF(SUM($D38,I19)>BF$5,$O30/I19,$O30-SUM($I38:BE38))) -> 0 | BG38: =IF(BG$5<=$D38,0,IF(SUM($D38,I19)>BG$5,$O30/I19,$O30-SUM($I38:BF38))) -> 0 | BH38: =IF(BH$5<=$D38,0,IF(SUM($D38,I19)>BH$5,$O30/I19,$O30-SUM($I38:BG38))) -> 0 | BI38: =IF(BI$5<=$D38,0,IF(SUM($D38,I19)>BI$5,$O30/I19,$O30-SUM($I38:BH38))) -> 0 | BJ38: =IF(BJ$5<=$D38,0,IF(SUM($D38,I19)>BJ$5,$O30/I19,$O30-SUM($I38:BI38))) -> 0 | BK38: =IF(BK$5<=$D38,0,IF(SUM($D38,I19)>BK$5,$O30/I19,$O30-SUM($I38:BJ38))) -> 0 | BL38: =IF(BL$5<=$D38,0,IF(SUM($D38,I19)>BL$5,$O30/I19,$O30-SUM($I38:BK38))) -> 0 | BM38: =IF(BM$5<=$D38,0,IF(SUM($D38,I19)>BM$5,$O30/I19,$O30-SUM($I38:BL38))) -> 0 | BN38: =IF(BN$5<=$D38,0,IF(SUM($D38,I19)>BN$5,$O30/I19,$O30-SUM($I38:BM38))) -> 0 | BO38: =IF(BO$5<=$D38,0,IF(SUM($D38,I19)>BO$5,$O30/I19,$O30-SUM($I38:BN38))) -> 0 | BP38: =IF(BP$5<=$D38,0,IF(SUM($D38,I19)>BP$5,$O30/I19,$O30-SUM($I38:BO38))) -> 0 | BQ38: =IF(BQ$5<=$D38,0,IF(SUM($D38,I19)>BQ$5,$O30/I19,$O30-SUM($I38:BP38))) -> 0
D39: 2017 | E39: $m Real (2010) | J39: =IF(J$5<=$D39,0,IF(SUM($D39,I19)>J$5,$P30/I19,$P30-SUM($I39:I39))) -> 0 | K39: =IF(K$5<=$D39,0,IF(SUM($D39,I19)>K$5,$P30/I19,$P30-SUM($I39:J39))) -> 0 | L39: =IF(L$5<=$D39,0,IF(SUM($D39,I19)>L$5,$P30/I19,$P30-SUM($I39:K39))) -> 0 | M39: =IF(M$5<=$D39,0,IF(SUM($D39,I19)>M$5,$P30/I19,$P30-SUM($I39:L39))) -> 0 | N39: =IF(N$5<=$D39,0,IF(SUM($D39,I19)>N$5,$P30/I19,$P30-SUM($I39:M39))) -> 0 | O39: =IF(O$5<=$D39,0,IF(SUM($D39,I19)>O$5,$P30/I19,$P30-SUM($I39:N39))) -> 0 | P39: =IF(P$5<=$D39,0,IF(SUM($D39,I19)>P$5,$P30/I19,$P30-SUM($I39:O39))) -> 0 | Q39: =IF(Q$5<=$D39,0,IF(SUM($D39,I19)>Q$5,$P30/I19,$P30-SUM($I39:P39))) -> 0 | R39: =IF(R$5<=$D39,0,IF(SUM($D39,I19)>R$5,$P30/I19,$P30-SUM($I39:Q39))) -> 0 | S39: =IF(S$5<=$D39,0,IF(SUM($D39,I19)>S$5,$P30/I19,$P30-SUM($I39:R39))) -> 0 | T39: =IF(T$5<=$D39,0,IF(SUM($D39,I19)>T$5,$P30/I19,$P30-SUM($I39:S39))) -> 0 | U39: =IF(U$5<=$D39,0,IF(SUM($D39,I19)>U$5,$P30/I19,$P30-SUM($I39:T39))) -> 0 | V39: =IF(V$5<=$D39,0,IF(SUM($D39,I19)>V$5,$P30/I19,$P30-SUM($I39:U39))) -> 0 | W39: =IF(W$5<=$D39,0,IF(SUM($D39,I19)>W$5,$P30/I19,$P30-SUM($I39:V39))) -> 0 | X39: =IF(X$5<=$D39,0,IF(SUM($D39,I19)>X$5,$P30/I19,$P30-SUM($I39:W39))) -> 0 | Y39: =IF(Y$5<=$D39,0,IF(SUM($D39,I19)>Y$5,$P30/I19,$P30-SUM($I39:X39))) -> 0 | Z39: =IF(Z$5<=$D39,0,IF(SUM($D39,I19)>Z$5,$P30/I19,$P30-SUM($I39:Y39))) -> 0 | AA39: =IF(AA$5<=$D39,0,IF(SUM($D39,I19)>AA$5,$P30/I19,$P30-SUM($I39:Z39))) -> 0 | AB39: =IF(AB$5<=$D39,0,IF(SUM($D39,I19)>AB$5,$P30/I19,$P30-SUM($I39:AA39))) -> 0 | AC39: =IF(AC$5<=$D39,0,IF(SUM($D39,I19)>AC$5,$P30/I19,$P30-SUM($I39:AB39))) -> 0 | AD39: =IF(AD$5<=$D39,0,IF(SUM($D39,I19)>AD$5,$P30/I19,$P30-SUM($I39:AC39))) -> 0 | AE39: =IF(AE$5<=$D39,0,IF(SUM($D39,I19)>AE$5,$P30/I19,$P30-SUM($I39:AD39))) -> 0 | AF39: =IF(AF$5<=$D39,0,IF(SUM($D39,I19)>AF$5,$P30/I19,$P30-SUM($I39:AE39))) -> 0 | AG39: =IF(AG$5<=$D39,0,IF(SUM($D39,I19)>AG$5,$P30/I19,$P30-SUM($I39:AF39))) -> 0 | AH39: =IF(AH$5<=$D39,0,IF(SUM($D39,I19)>AH$5,$P30/I19,$P30-SUM($I39:AG39))) -> 0 | AI39: =IF(AI$5<=$D39,0,IF(SUM($D39,I19)>AI$5,$P30/I19,$P30-SUM($I39:AH39))) -> 0 | AJ39: =IF(AJ$5<=$D39,0,IF(SUM($D39,I19)>AJ$5,$P30/I19,$P30-SUM($I39:AI39))) -> 0 | AK39: =IF(AK$5<=$D39,0,IF(SUM($D39,I19)>AK$5,$P30/I19,$P30-SUM($I39:AJ39))) -> 0 | AL39: =IF(AL$5<=$D39,0,IF(SUM($D39,I19)>AL$5,$P30/I19,$P30-SUM($I39:AK39))) -> 0 | AM39: =IF(AM$5<=$D39,0,IF(SUM($D39,I19)>AM$5,$P30/I19,$P30-SUM($I39:AL39))) -> 0 | AN39: =IF(AN$5<=$D39,0,IF(SUM($D39,I19)>AN$5,$P30/I19,$P30-SUM($I39:AM39))) -> 0 | AO39: =IF(AO$5<=$D39,0,IF(SUM($D39,I19)>AO$5,$P30/I19,$P30-SUM($I39:AN39))) -> 0 | AP39: =IF(AP$5<=$D39,0,IF(SUM($D39,I19)>AP$5,$P30/I19,$P30-SUM($I39:AO39))) -> 0 | AQ39: =IF(AQ$5<=$D39,0,IF(SUM($D39,I19)>AQ$5,$P30/I19,$P30-SUM($I39:AP39))) -> 0 | AR39: =IF(AR$5<=$D39,0,IF(SUM($D39,I19)>AR$5,$P30/I19,$P30-SUM($I39:AQ39))) -> 0 | AS39: =IF(AS$5<=$D39,0,IF(SUM($D39,I19)>AS$5,$P30/I19,$P30-SUM($I39:AR39))) -> 0 | AT39: =IF(AT$5<=$D39,0,IF(SUM($D39,I19)>AT$5,$P30/I19,$P30-SUM($I39:AS39))) -> 0 | AU39: =IF(AU$5<=$D39,0,IF(SUM($D39,I19)>AU$5,$P30/I19,$P30-SUM($I39:AT39))) -> 0 | AV39: =IF(AV$5<=$D39,0,IF(SUM($D39,I19)>AV$5,$P30/I19,$P30-SUM($I39:AU39))) -> 0 | AW39: =IF(AW$5<=$D39,0,IF(SUM($D39,I19)>AW$5,$P30/I19,$P30-SUM($I39:AV39))) -> 0 | AX39: =IF(AX$5<=$D39,0,IF(SUM($D39,I19)>AX$5,$P30/I19,$P30-SUM($I39:AW39))) -> 0 | AY39: =IF(AY$5<=$D39,0,IF(SUM($D39,I19)>AY$5,$P30/I19,$P30-SUM($I39:AX39))) -> 0 | AZ39: =IF(AZ$5<=$D39,0,IF(SUM($D39,I19)>AZ$5,$P30/I19,$P30-SUM($I39:AY39))) -> 0 | BA39: =IF(BA$5<=$D39,0,IF(SUM($D39,I19)>BA$5,$P30/I19,$P30-SUM($I39:AZ39))) -> 0 | BB39: =IF(BB$5<=$D39,0,IF(SUM($D39,I19)>BB$5,$P30/I19,$P30-SUM($I39:BA39))) -> 0 | BC39: =IF(BC$5<=$D39,0,IF(SUM($D39,I19)>BC$5,$P30/I19,$P30-SUM($I39:BB39))) -> 0 | BD39: =IF(BD$5<=$D39,0,IF(SUM($D39,I19)>BD$5,$P30/I19,$P30-SUM($I39:BC39))) -> 0 | BE39: =IF(BE$5<=$D39,0,IF(SUM($D39,I19)>BE$5,$P30/I19,$P30-SUM($I39:BD39))) -> 0 | BF39: =IF(BF$5<=$D39,0,IF(SUM($D39,I19)>BF$5,$P30/I19,$P30-SUM($I39:BE39))) -> 0 | BG39: =IF(BG$5<=$D39,0,IF(SUM($D39,I19)>BG$5,$P30/I19,$P30-SUM($I39:BF39))) -> 0 | BH39: =IF(BH$5<=$D39,0,IF(SUM($D39,I19)>BH$5,$P30/I19,$P30-SUM($I39:BG39))) -> 0 | BI39: =IF(BI$5<=$D39,0,IF(SUM($D39,I19)>BI$5,$P30/I19,$P30-SUM($I39:BH39))) -> 0 | BJ39: =IF(BJ$5<=$D39,0,IF(SUM($D39,I19)>BJ$5,$P30/I19,$P30-SUM($I39:BI39))) -> 0 | BK39: =IF(BK$5<=$D39,0,IF(SUM($D39,I19)>BK$5,$P30/I19,$P30-SUM($I39:BJ39))) -> 0 | BL39: =IF(BL$5<=$D39,0,IF(SUM($D39,I19)>BL$5,$P30/I19,$P30-SUM($I39:BK39))) -> 0 | BM39: =IF(BM$5<=$D39,0,IF(SUM($D39,I19)>BM$5,$P30/I19,$P30-SUM($I39:BL39))) -> 0 | BN39: =IF(BN$5<=$D39,0,IF(SUM($D39,I19)>BN$5,$P30/I19,$P30-SUM($I39:BM39))) -> 0 | BO39: =IF(BO$5<=$D39,0,IF(SUM($D39,I19)>BO$5,$P30/I19,$P30-SUM($I39:BN39))) -> 0 | BP39: =IF(BP$5<=$D39,0,IF(SUM($D39,I19)>BP$5,$P30/I19,$P30-SUM($I39:BO39))) -> 0 | BQ39: =IF(BQ$5<=$D39,0,IF(SUM($D39,I19)>BQ$5,$P30/I19,$P30-SUM($I39:BP39))) -> 0
D40: 2018 | E40: $m Real (2010) | J40: =IF(J$5<=$D40,0,IF(SUM($D40,I19)>J$5,$Q30/I19,$Q30-SUM($I40:I40))) -> 0 | K40: =IF(K$5<=$D40,0,IF(SUM($D40,I19)>K$5,$Q30/I19,$Q30-SUM($I40:J40))) -> 0 | L40: =IF(L$5<=$D40,0,IF(SUM($D40,I19)>L$5,$Q30/I19,$Q30-SUM($I40:K40))) -> 0 | M40: =IF(M$5<=$D40,0,IF(SUM($D40,I19)>M$5,$Q30/I19,$Q30-SUM($I40:L40))) -> 0 | N40: =IF(N$5<=$D40,0,IF(SUM($D40,I19)>N$5,$Q30/I19,$Q30-SUM($I40:M40))) -> 0 | O40: =IF(O$5<=$D40,0,IF(SUM($D40,I19)>O$5,$Q30/I19,$Q30-SUM($I40:N40))) -> 0 | P40: =IF(P$5<=$D40,0,IF(SUM($D40,I19)>P$5,$Q30/I19,$Q30-SUM($I40:O40))) -> 0 | Q40: =IF(Q$5<=$D40,0,IF(SUM($D40,I19)>Q$5,$Q30/I19,$Q30-SUM($I40:P40))) -> 0 | R40: =IF(R$5<=$D40,0,IF(SUM($D40,I19)>R$5,$Q30/I19,$Q30-SUM($I40:Q40))) -> 0 | S40: =IF(S$5<=$D40,0,IF(SUM($D40,I19)>S$5,$Q30/I19,$Q30-SUM($I40:R40))) -> 0 | T40: =IF(T$5<=$D40,0,IF(SUM($D40,I19)>T$5,$Q30/I19,$Q30-SUM($I40:S40))) -> 0 | U40: =IF(U$5<=$D40,0,IF(SUM($D40,I19)>U$5,$Q30/I19,$Q30-SUM($I40:T40))) -> 0 | V40: =IF(V$5<=$D40,0,IF(SUM($D40,I19)>V$5,$Q30/I19,$Q30-SUM($I40:U40))) -> 0 | W40: =IF(W$5<=$D40,0,IF(SUM($D40,I19)>W$5,$Q30/I19,$Q30-SUM($I40:V40))) -> 0 | X40: =IF(X$5<=$D40,0,IF(SUM($D40,I19)>X$5,$Q30/I19,$Q30-SUM($I40:W40))) -> 0 | Y40: =IF(Y$5<=$D40,0,IF(SUM($D40,I19)>Y$5,$Q30/I19,$Q30-SUM($I40:X40))) -> 0 | Z40: =IF(Z$5<=$D40,0,IF(SUM($D40,I19)>Z$5,$Q30/I19,$Q30-SUM($I40:Y40))) -> 0 | AA40: =IF(AA$5<=$D40,0,IF(SUM($D40,I19)>AA$5,$Q30/I19,$Q30-SUM($I40:Z40))) -> 0 | AB40: =IF(AB$5<=$D40,0,IF(SUM($D40,I19)>AB$5,$Q30/I19,$Q30-SUM($I40:AA40))) -> 0 | AC40: =IF(AC$5<=$D40,0,IF(SUM($D40,I19)>AC$5,$Q30/I19,$Q30-SUM($I40:AB40))) -> 0 | AD40: =IF(AD$5<=$D40,0,IF(SUM($D40,I19)>AD$5,$Q30/I19,$Q30-SUM($I40:AC40))) -> 0 | AE40: =IF(AE$5<=$D40,0,IF(SUM($D40,I19)>AE$5,$Q30/I19,$Q30-SUM($I40:AD40))) -> 0 | AF40: =IF(AF$5<=$D40,0,IF(SUM($D40,I19)>AF$5,$Q30/I19,$Q30-SUM($I40:AE40))) -> 0 | AG40: =IF(AG$5<=$D40,0,IF(SUM($D40,I19)>AG$5,$Q30/I19,$Q30-SUM($I40:AF40))) -> 0 | AH40: =IF(AH$5<=$D40,0,IF(SUM($D40,I19)>AH$5,$Q30/I19,$Q30-SUM($I40:AG40))) -> 0 | AI40: =IF(AI$5<=$D40,0,IF(SUM($D40,I19)>AI$5,$Q30/I19,$Q30-SUM($I40:AH40))) -> 0 | AJ40: =IF(AJ$5<=$D40,0,IF(SUM($D40,I19)>AJ$5,$Q30/I19,$Q30-SUM($I40:AI40))) -> 0 | AK40: =IF(AK$5<=$D40,0,IF(SUM($D40,I19)>AK$5,$Q30/I19,$Q30-SUM($I40:AJ40))) -> 0 | AL40: =IF(AL$5<=$D40,0,IF(SUM($D40,I19)>AL$5,$Q30/I19,$Q30-SUM($I40:AK40))) -> 0 | AM40: =IF(AM$5<=$D40,0,IF(SUM($D40,I19)>AM$5,$Q30/I19,$Q30-SUM($I40:AL40))) -> 0 | AN40: =IF(AN$5<=$D40,0,IF(SUM($D40,I19)>AN$5,$Q30/I19,$Q30-SUM($I40:AM40))) -> 0 | AO40: =IF(AO$5<=$D40,0,IF(SUM($D40,I19)>AO$5,$Q30/I19,$Q30-SUM($I40:AN40))) -> 0 | AP40: =IF(AP$5<=$D40,0,IF(SUM($D40,I19)>AP$5,$Q30/I19,$Q30-SUM($I40:AO40))) -> 0 | AQ40: =IF(AQ$5<=$D40,0,IF(SUM($D40,I19)>AQ$5,$Q30/I19,$Q30-SUM($I40:AP40))) -> 0 | AR40: =IF(AR$5<=$D40,0,IF(SUM($D40,I19)>AR$5,$Q30/I19,$Q30-SUM($I40:AQ40))) -> 0 | AS40: =IF(AS$5<=$D40,0,IF(SUM($D40,I19)>AS$5,$Q30/I19,$Q30-SUM($I40:AR40))) -> 0 | AT40: =IF(AT$5<=$D40,0,IF(SUM($D40,I19)>AT$5,$Q30/I19,$Q30-SUM($I40:AS40))) -> 0 | AU40: =IF(AU$5<=$D40,0,IF(SUM($D40,I19)>AU$5,$Q30/I19,$Q30-SUM($I40:AT40))) -> 0 | AV40: =IF(AV$5<=$D40,0,IF(SUM($D40,I19)>AV$5,$Q30/I19,$Q30-SUM($I40:AU40))) -> 0 | AW40: =IF(AW$5<=$D40,0,IF(SUM($D40,I19)>AW$5,$Q30/I19,$Q30-SUM($I40:AV40))) -> 0 | AX40: =IF(AX$5<=$D40,0,IF(SUM($D40,I19)>AX$5,$Q30/I19,$Q30-SUM($I40:AW40))) -> 0 | AY40: =IF(AY$5<=$D40,0,IF(SUM($D40,I19)>AY$5,$Q30/I19,$Q30-SUM($I40:AX40))) -> 0 | AZ40: =IF(AZ$5<=$D40,0,IF(SUM($D40,I19)>AZ$5,$Q30/I19,$Q30-SUM($I40:AY40))) -> 0 | BA40: =IF(BA$5<=$D40,0,IF(SUM($D40,I19)>BA$5,$Q30/I19,$Q30-SUM($I40:AZ40))) -> 0 | BB40: =IF(BB$5<=$D40,0,IF(SUM($D40,I19)>BB$5,$Q30/I19,$Q30-SUM($I40:BA40))) -> 0 | BC40: =IF(BC$5<=$D40,0,IF(SUM($D40,I19)>BC$5,$Q30/I19,$Q30-SUM($I40:BB40))) -> 0 | BD40: =IF(BD$5<=$D40,0,IF(SUM($D40,I19)>BD$5,$Q30/I19,$Q30-SUM($I40:BC40))) -> 0 | BE40: =IF(BE$5<=$D40,0,IF(SUM($D40,I19)>BE$5,$Q30/I19,$Q30-SUM($I40:BD40))) -> 0 | BF40: =IF(BF$5<=$D40,0,IF(SUM($D40,I19)>BF$5,$Q30/I19,$Q30-SUM($I40:BE40))) -> 0 | BG40: =IF(BG$5<=$D40,0,IF(SUM($D40,I19)>BG$5,$Q30/I19,$Q30-SUM($I40:BF40))) -> 0 | BH40: =IF(BH$5<=$D40,0,IF(SUM($D40,I19)>BH$5,$Q30/I19,$Q30-SUM($I40:BG40))) -> 0 | BI40: =IF(BI$5<=$D40,0,IF(SUM($D40,I19)>BI$5,$Q30/I19,$Q30-SUM($I40:BH40))) -> 0 | BJ40: =IF(BJ$5<=$D40,0,IF(SUM($D40,I19)>BJ$5,$Q30/I19,$Q30-SUM($I40:BI40))) -> 0 | BK40: =IF(BK$5<=$D40,0,IF(SUM($D40,I19)>BK$5,$Q30/I19,$Q30-SUM($I40:BJ40))) -> 0 | BL40: =IF(BL$5<=$D40,0,IF(SUM($D40,I19)>BL$5,$Q30/I19,$Q30-SUM($I40:BK40))) -> 0 | BM40: =IF(BM$5<=$D40,0,IF(SUM($D40,I19)>BM$5,$Q30/I19,$Q30-SUM($I40:BL40))) -> 0 | BN40: =IF(BN$5<=$D40,0,IF(SUM($D40,I19)>BN$5,$Q30/I19,$Q30-SUM($I40:BM40))) -> 0 | BO40: =IF(BO$5<=$D40,0,IF(SUM($D40,I19)>BO$5,$Q30/I19,$Q30-SUM($I40:BN40))) -> 0 | BP40: =IF(BP$5<=$D40,0,IF(SUM($D40,I19)>BP$5,$Q30/I19,$Q30-SUM($I40:BO40))) -> 0 | BQ40: =IF(BQ$5<=$D40,0,IF(SUM($D40,I19)>BQ$5,$Q30/I19,$Q30-SUM($I40:BP40))) -> 0
D41: 2019 | E41: $m Real (2010) | J41: =IF(J$5<=$D41,0,IF(SUM($D41,I19)>J$5,$R30/I19,$R30-SUM($I41:I41))) -> 0 | K41: =IF(K$5<=$D41,0,IF(SUM($D41,I19)>K$5,$R30/I19,$R30-SUM($I41:J41))) -> 0 | L41: =IF(L$5<=$D41,0,IF(SUM($D41,I19)>L$5,$R30/I19,$R30-SUM($I41:K41))) -> 0 | M41: =IF(M$5<=$D41,0,IF(SUM($D41,I19)>M$5,$R30/I19,$R30-SUM($I41:L41))) -> 0 | N41: =IF(N$5<=$D41,0,IF(SUM($D41,I19)>N$5,$R30/I19,$R30-SUM($I41:M41))) -> 0 | O41: =IF(O$5<=$D41,0,IF(SUM($D41,I19)>O$5,$R30/I19,$R30-SUM($I41:N41))) -> 0 | P41: =IF(P$5<=$D41,0,IF(SUM($D41,I19)>P$5,$R30/I19,$R30-SUM($I41:O41))) -> 0 | Q41: =IF(Q$5<=$D41,0,IF(SUM($D41,I19)>Q$5,$R30/I19,$R30-SUM($I41:P41))) -> 0 | R41: =IF(R$5<=$D41,0,IF(SUM($D41,I19)>R$5,$R30/I19,$R30-SUM($I41:Q41))) -> 0 | S41: =IF(S$5<=$D41,0,IF(SUM($D41,I19)>S$5,$R30/I19,$R30-SUM($I41:R41))) -> 0 | T41: =IF(T$5<=$D41,0,IF(SUM($D41,I19)>T$5,$R30/I19,$R30-SUM($I41:S41))) -> 0 | U41: =IF(U$5<=$D41,0,IF(SUM($D41,I19)>U$5,$R30/I19,$R30-SUM($I41:T41))) -> 0 | V41: =IF(V$5<=$D41,0,IF(SUM($D41,I19)>V$5,$R30/I19,$R30-SUM($I41:U41))) -> 0 | W41: =IF(W$5<=$D41,0,IF(SUM($D41,I19)>W$5,$R30/I19,$R30-SUM($I41:V41))) -> 0 | X41: =IF(X$5<=$D41,0,IF(SUM($D41,I19)>X$5,$R30/I19,$R30-SUM($I41:W41))) -> 0 | Y41: =IF(Y$5<=$D41,0,IF(SUM($D41,I19)>Y$5,$R30/I19,$R30-SUM($I41:X41))) -> 0 | Z41: =IF(Z$5<=$D41,0,IF(SUM($D41,I19)>Z$5,$R30/I19,$R30-SUM($I41:Y41))) -> 0 | AA41: =IF(AA$5<=$D41,0,IF(SUM($D41,I19)>AA$5,$R30/I19,$R30-SUM($I41:Z41))) -> 0 | AB41: =IF(AB$5<=$D41,0,IF(SUM($D41,I19)>AB$5,$R30/I19,$R30-SUM($I41:AA41))) -> 0 | AC41: =IF(AC$5<=$D41,0,IF(SUM($D41,I19)>AC$5,$R30/I19,$R30-SUM($I41:AB41))) -> 0 | AD41: =IF(AD$5<=$D41,0,IF(SUM($D41,I19)>AD$5,$R30/I19,$R30-SUM($I41:AC41))) -> 0 | AE41: =IF(AE$5<=$D41,0,IF(SUM($D41,I19)>AE$5,$R30/I19,$R30-SUM($I41:AD41))) -> 0 | AF41: =IF(AF$5<=$D41,0,IF(SUM($D41,I19)>AF$5,$R30/I19,$R30-SUM($I41:AE41))) -> 0 | AG41: =IF(AG$5<=$D41,0,IF(SUM($D41,I19)>AG$5,$R30/I19,$R30-SUM($I41:AF41))) -> 0 | AH41: =IF(AH$5<=$D41,0,IF(SUM($D41,I19)>AH$5,$R30/I19,$R30-SUM($I41:AG41))) -> 0 | AI41: =IF(AI$5<=$D41,0,IF(SUM($D41,I19)>AI$5,$R30/I19,$R30-SUM($I41:AH41))) -> 0 | AJ41: =IF(AJ$5<=$D41,0,IF(SUM($D41,I19)>AJ$5,$R30/I19,$R30-SUM($I41:AI41))) -> 0 | AK41: =IF(AK$5<=$D41,0,IF(SUM($D41,I19)>AK$5,$R30/I19,$R30-SUM($I41:AJ41))) -> 0 | AL41: =IF(AL$5<=$D41,0,IF(SUM($D41,I19)>AL$5,$R30/I19,$R30-SUM($I41:AK41))) -> 0 | AM41: =IF(AM$5<=$D41,0,IF(SUM($D41,I19)>AM$5,$R30/I19,$R30-SUM($I41:AL41))) -> 0 | AN41: =IF(AN$5<=$D41,0,IF(SUM($D41,I19)>AN$5,$R30/I19,$R30-SUM($I41:AM41))) -> 0 | AO41: =IF(AO$5<=$D41,0,IF(SUM($D41,I19)>AO$5,$R30/I19,$R30-SUM($I41:AN41))) -> 0 | AP41: =IF(AP$5<=$D41,0,IF(SUM($D41,I19)>AP$5,$R30/I19,$R30-SUM($I41:AO41))) -> 0 | AQ41: =IF(AQ$5<=$D41,0,IF(SUM($D41,I19)>AQ$5,$R30/I19,$R30-SUM($I41:AP41))) -> 0 | AR41: =IF(AR$5<=$D41,0,IF(SUM($D41,I19)>AR$5,$R30/I19,$R30-SUM($I41:AQ41))) -> 0 | AS41: =IF(AS$5<=$D41,0,IF(SUM($D41,I19)>AS$5,$R30/I19,$R30-SUM($I41:AR41))) -> 0 | AT41: =IF(AT$5<=$D41,0,IF(SUM($D41,I19)>AT$5,$R30/I19,$R30-SUM($I41:AS41))) -> 0 | AU41: =IF(AU$5<=$D41,0,IF(SUM($D41,I19)>AU$5,$R30/I19,$R30-SUM($I41:AT41))) -> 0 | AV41: =IF(AV$5<=$D41,0,IF(SUM($D41,I19)>AV$5,$R30/I19,$R30-SUM($I41:AU41))) -> 0 | AW41: =IF(AW$5<=$D41,0,IF(SUM($D41,I19)>AW$5,$R30/I19,$R30-SUM($I41:AV41))) -> 0 | AX41: =IF(AX$5<=$D41,0,IF(SUM($D41,I19)>AX$5,$R30/I19,$R30-SUM($I41:AW41))) -> 0 | AY41: =IF(AY$5<=$D41,0,IF(SUM($D41,I19)>AY$5,$R30/I19,$R30-SUM($I41:AX41))) -> 0 | AZ41: =IF(AZ$5<=$D41,0,IF(SUM($D41,I19)>AZ$5,$R30/I19,$R30-SUM($I41:AY41))) -> 0 | BA41: =IF(BA$5<=$D41,0,IF(SUM($D41,I19)>BA$5,$R30/I19,$R30-SUM($I41:AZ41))) -> 0 | BB41: =IF(BB$5<=$D41,0,IF(SUM($D41,I19)>BB$5,$R30/I19,$R30-SUM($I41:BA41))) -> 0 | BC41: =IF(BC$5<=$D41,0,IF(SUM($D41,I19)>BC$5,$R30/I19,$R30-SUM($I41:BB41))) -> 0 | BD41: =IF(BD$5<=$D41,0,IF(SUM($D41,I19)>BD$5,$R30/I19,$R30-SUM($I41:BC41))) -> 0 | BE41: =IF(BE$5<=$D41,0,IF(SUM($D41,I19)>BE$5,$R30/I19,$R30-SUM($I41:BD41))) -> 0 | BF41: =IF(BF$5<=$D41,0,IF(SUM($D41,I19)>BF$5,$R30/I19,$R30-SUM($I41:BE41))) -> 0 | BG41: =IF(BG$5<=$D41,0,IF(SUM($D41,I19)>BG$5,$R30/I19,$R30-SUM($I41:BF41))) -> 0 | BH41: =IF(BH$5<=$D41,0,IF(SUM($D41,I19)>BH$5,$R30/I19,$R30-SUM($I41:BG41))) -> 0 | BI41: =IF(BI$5<=$D41,0,IF(SUM($D41,I19)>BI$5,$R30/I19,$R30-SUM($I41:BH41))) -> 0 | BJ41: =IF(BJ$5<=$D41,0,IF(SUM($D41,I19)>BJ$5,$R30/I19,$R30-SUM($I41:BI41))) -> 0 | BK41: =IF(BK$5<=$D41,0,IF(SUM($D41,I19)>BK$5,$R30/I19,$R30-SUM($I41:BJ41))) -> 0 | BL41: =IF(BL$5<=$D41,0,IF(SUM($D41,I19)>BL$5,$R30/I19,$R30-SUM($I41:BK41))) -> 0 | BM41: =IF(BM$5<=$D41,0,IF(SUM($D41,I19)>BM$5,$R30/I19,$R30-SUM($I41:BL41))) -> 0 | BN41: =IF(BN$5<=$D41,0,IF(SUM($D41,I19)>BN$5,$R30/I19,$R30-SUM($I41:BM41))) -> 0 | BO41: =IF(BO$5<=$D41,0,IF(SUM($D41,I19)>BO$5,$R30/I19,$R30-SUM($I41:BN41))) -> 0 | BP41: =IF(BP$5<=$D41,0,IF(SUM($D41,I19)>BP$5,$R30/I19,$R30-SUM($I41:BO41))) -> 0 | BQ41: =IF(BQ$5<=$D41,0,IF(SUM($D41,I19)>BQ$5,$R30/I19,$R30-SUM($I41:BP41))) -> 0
D42: 2020 | E42: $m Real (2010) | J42: =IF(J$5<=$D42,0,IF(SUM($D42,I19)>J$5,$S30/I19,$S30-SUM($I42:I42))) -> 0 | K42: =IF(K$5<=$D42,0,IF(SUM($D42,I19)>K$5,$S30/I19,$S30-SUM($I42:J42))) -> 0 | L42: =IF(L$5<=$D42,0,IF(SUM($D42,I19)>L$5,$S30/I19,$S30-SUM($I42:K42))) -> 0 | M42: =IF(M$5<=$D42,0,IF(SUM($D42,I19)>M$5,$S30/I19,$S30-SUM($I42:L42))) -> 0 | N42: =IF(N$5<=$D42,0,IF(SUM($D42,I19)>N$5,$S30/I19,$S30-SUM($I42:M42))) -> 0 | O42: =IF(O$5<=$D42,0,IF(SUM($D42,I19)>O$5,$S30/I19,$S30-SUM($I42:N42))) -> 0 | P42: =IF(P$5<=$D42,0,IF(SUM($D42,I19)>P$5,$S30/I19,$S30-SUM($I42:O42))) -> 0 | Q42: =IF(Q$5<=$D42,0,IF(SUM($D42,I19)>Q$5,$S30/I19,$S30-SUM($I42:P42))) -> 0 | R42: =IF(R$5<=$D42,0,IF(SUM($D42,I19)>R$5,$S30/I19,$S30-SUM($I42:Q42))) -> 0 | S42: =IF(S$5<=$D42,0,IF(SUM($D42,I19)>S$5,$S30/I19,$S30-SUM($I42:R42))) -> 0 | T42: =IF(T$5<=$D42,0,IF(SUM($D42,I19)>T$5,$S30/I19,$S30-SUM($I42:S42))) -> 0 | U42: =IF(U$5<=$D42,0,IF(SUM($D42,I19)>U$5,$S30/I19,$S30-SUM($I42:T42))) -> 0 | V42: =IF(V$5<=$D42,0,IF(SUM($D42,I19)>V$5,$S30/I19,$S30-SUM($I42:U42))) -> 0 | W42: =IF(W$5<=$D42,0,IF(SUM($D42,I19)>W$5,$S30/I19,$S30-SUM($I42:V42))) -> 0 | X42: =IF(X$5<=$D42,0,IF(SUM($D42,I19)>X$5,$S30/I19,$S30-SUM($I42:W42))) -> 0 | Y42: =IF(Y$5<=$D42,0,IF(SUM($D42,I19)>Y$5,$S30/I19,$S30-SUM($I42:X42))) -> 0 | Z42: =IF(Z$5<=$D42,0,IF(SUM($D42,I19)>Z$5,$S30/I19,$S30-SUM($I42:Y42))) -> 0 | AA42: =IF(AA$5<=$D42,0,IF(SUM($D42,I19)>AA$5,$S30/I19,$S30-SUM($I42:Z42))) -> 0 | AB42: =IF(AB$5<=$D42,0,IF(SUM($D42,I19)>AB$5,$S30/I19,$S30-SUM($I42:AA42))) -> 0 | AC42: =IF(AC$5<=$D42,0,IF(SUM($D42,I19)>AC$5,$S30/I19,$S30-SUM($I42:AB42))) -> 0 | AD42: =IF(AD$5<=$D42,0,IF(SUM($D42,I19)>AD$5,$S30/I19,$S30-SUM($I42:AC42))) -> 0 | AE42: =IF(AE$5<=$D42,0,IF(SUM($D42,I19)>AE$5,$S30/I19,$S30-SUM($I42:AD42))) -> 0 | AF42: =IF(AF$5<=$D42,0,IF(SUM($D42,I19)>AF$5,$S30/I19,$S30-SUM($I42:AE42))) -> 0 | AG42: =IF(AG$5<=$D42,0,IF(SUM($D42,I19)>AG$5,$S30/I19,$S30-SUM($I42:AF42))) -> 0 | AH42: =IF(AH$5<=$D42,0,IF(SUM($D42,I19)>AH$5,$S30/I19,$S30-SUM($I42:AG42))) -> 0 | AI42: =IF(AI$5<=$D42,0,IF(SUM($D42,I19)>AI$5,$S30/I19,$S30-SUM($I42:AH42))) -> 0 | AJ42: =IF(AJ$5<=$D42,0,IF(SUM($D42,I19)>AJ$5,$S30/I19,$S30-SUM($I42:AI42))) -> 0 | AK42: =IF(AK$5<=$D42,0,IF(SUM($D42,I19)>AK$5,$S30/I19,$S30-SUM($I42:AJ42))) -> 0 | AL42: =IF(AL$5<=$D42,0,IF(SUM($D42,I19)>AL$5,$S30/I19,$S30-SUM($I42:AK42))) -> 0 | AM42: =IF(AM$5<=$D42,0,IF(SUM($D42,I19)>AM$5,$S30/I19,$S30-SUM($I42:AL42))) -> 0 | AN42: =IF(AN$5<=$D42,0,IF(SUM($D42,I19)>AN$5,$S30/I19,$S30-SUM($I42:AM42))) -> 0 | AO42: =IF(AO$5<=$D42,0,IF(SUM($D42,I19)>AO$5,$S30/I19,$S30-SUM($I42:AN42))) -> 0 | AP42: =IF(AP$5<=$D42,0,IF(SUM($D42,I19)>AP$5,$S30/I19,$S30-SUM($I42:AO42))) -> 0 | AQ42: =IF(AQ$5<=$D42,0,IF(SUM($D42,I19)>AQ$5,$S30/I19,$S30-SUM($I42:AP42))) -> 0 | AR42: =IF(AR$5<=$D42,0,IF(SUM($D42,I19)>AR$5,$S30/I19,$S30-SUM($I42:AQ42))) -> 0 | AS42: =IF(AS$5<=$D42,0,IF(SUM($D42,I19)>AS$5,$S30/I19,$S30-SUM($I42:AR42))) -> 0 | AT42: =IF(AT$5<=$D42,0,IF(SUM($D42,I19)>AT$5,$S30/I19,$S30-SUM($I42:AS42))) -> 0 | AU42: =IF(AU$5<=$D42,0,IF(SUM($D42,I19)>AU$5,$S30/I19,$S30-SUM($I42:AT42))) -> 0 | AV42: =IF(AV$5<=$D42,0,IF(SUM($D42,I19)>AV$5,$S30/I19,$S30-SUM($I42:AU42))) -> 0 | AW42: =IF(AW$5<=$D42,0,IF(SUM($D42,I19)>AW$5,$S30/I19,$S30-SUM($I42:AV42))) -> 0 | AX42: =IF(AX$5<=$D42,0,IF(SUM($D42,I19)>AX$5,$S30/I19,$S30-SUM($I42:AW42))) -> 0 | AY42: =IF(AY$5<=$D42,0,IF(SUM($D42,I19)>AY$5,$S30/I19,$S30-SUM($I42:AX42))) -> 0 | AZ42: =IF(AZ$5<=$D42,0,IF(SUM($D42,I19)>AZ$5,$S30/I19,$S30-SUM($I42:AY42))) -> 0 | BA42: =IF(BA$5<=$D42,0,IF(SUM($D42,I19)>BA$5,$S30/I19,$S30-SUM($I42:AZ42))) -> 0 | BB42: =IF(BB$5<=$D42,0,IF(SUM($D42,I19)>BB$5,$S30/I19,$S30-SUM($I42:BA42))) -> 0 | BC42: =IF(BC$5<=$D42,0,IF(SUM($D42,I19)>BC$5,$S30/I19,$S30-SUM($I42:BB42))) -> 0 | BD42: =IF(BD$5<=$D42,0,IF(SUM($D42,I19)>BD$5,$S30/I19,$S30-SUM($I42:BC42))) -> 0 | BE42: =IF(BE$5<=$D42,0,IF(SUM($D42,I19)>BE$5,$S30/I19,$S30-SUM($I42:BD42))) -> 0 | BF42: =IF(BF$5<=$D42,0,IF(SUM($D42,I19)>BF$5,$S30/I19,$S30-SUM($I42:BE42))) -> 0 | BG42: =IF(BG$5<=$D42,0,IF(SUM($D42,I19)>BG$5,$S30/I19,$S30-SUM($I42:BF42))) -> 0 | BH42: =IF(BH$5<=$D42,0,IF(SUM($D42,I19)>BH$5,$S30/I19,$S30-SUM($I42:BG42))) -> 0 | BI42: =IF(BI$5<=$D42,0,IF(SUM($D42,I19)>BI$5,$S30/I19,$S30-SUM($I42:BH42))) -> 0 | BJ42: =IF(BJ$5<=$D42,0,IF(SUM($D42,I19)>BJ$5,$S30/I19,$S30-SUM($I42:BI42))) -> 0 | BK42: =IF(BK$5<=$D42,0,IF(SUM($D42,I19)>BK$5,$S30/I19,$S30-SUM($I42:BJ42))) -> 0 | BL42: =IF(BL$5<=$D42,0,IF(SUM($D42,I19)>BL$5,$S30/I19,$S30-SUM($I42:BK42))) -> 0 | BM42: =IF(BM$5<=$D42,0,IF(SUM($D42,I19)>BM$5,$S30/I19,$S30-SUM($I42:BL42))) -> 0 | BN42: =IF(BN$5<=$D42,0,IF(SUM($D42,I19)>BN$5,$S30/I19,$S30-SUM($I42:BM42))) -> 0 | BO42: =IF(BO$5<=$D42,0,IF(SUM($D42,I19)>BO$5,$S30/I19,$S30-SUM($I42:BN42))) -> 0 | BP42: =IF(BP$5<=$D42,0,IF(SUM($D42,I19)>BP$5,$S30/I19,$S30-SUM($I42:BO42))) -> 0 | BQ42: =IF(BQ$5<=$D42,0,IF(SUM($D42,I19)>BQ$5,$S30/I19,$S30-SUM($I42:BP42))) -> 0
D43: 2021 | E43: $m Real (2010) | J43: =IF(J$5<=$D43,0,IF(SUM($D43,I19)>J$5,$T30/I19,$T30-SUM($I43:I43))) -> 0 | K43: =IF(K$5<=$D43,0,IF(SUM($D43,I19)>K$5,$T30/I19,$T30-SUM($I43:J43))) -> 0 | L43: =IF(L$5<=$D43,0,IF(SUM($D43,I19)>L$5,$T30/I19,$T30-SUM($I43:K43))) -> 0 | M43: =IF(M$5<=$D43,0,IF(SUM($D43,I19)>M$5,$T30/I19,$T30-SUM($I43:L43))) -> 0 | N43: =IF(N$5<=$D43,0,IF(SUM($D43,I19)>N$5,$T30/I19,$T30-SUM($I43:M43))) -> 0 | O43: =IF(O$5<=$D43,0,IF(SUM($D43,I19)>O$5,$T30/I19,$T30-SUM($I43:N43))) -> 0 | P43: =IF(P$5<=$D43,0,IF(SUM($D43,I19)>P$5,$T30/I19,$T30-SUM($I43:O43))) -> 0 | Q43: =IF(Q$5<=$D43,0,IF(SUM($D43,I19)>Q$5,$T30/I19,$T30-SUM($I43:P43))) -> 0 | R43: =IF(R$5<=$D43,0,IF(SUM($D43,I19)>R$5,$T30/I19,$T30-SUM($I43:Q43))) -> 0 | S43: =IF(S$5<=$D43,0,IF(SUM($D43,I19)>S$5,$T30/I19,$T30-SUM($I43:R43))) -> 0 | T43: =IF(T$5<=$D43,0,IF(SUM($D43,I19)>T$5,$T30/I19,$T30-SUM($I43:S43))) -> 0 | U43: =IF(U$5<=$D43,0,IF(SUM($D43,I19)>U$5,$T30/I19,$T30-SUM($I43:T43))) -> 0 | V43: =IF(V$5<=$D43,0,IF(SUM($D43,I19)>V$5,$T30/I19,$T30-SUM($I43:U43))) -> 0 | W43: =IF(W$5<=$D43,0,IF(SUM($D43,I19)>W$5,$T30/I19,$T30-SUM($I43:V43))) -> 0 | X43: =IF(X$5<=$D43,0,IF(SUM($D43,I19)>X$5,$T30/I19,$T30-SUM($I43:W43))) -> 0 | Y43: =IF(Y$5<=$D43,0,IF(SUM($D43,I19)>Y$5,$T30/I19,$T30-SUM($I43:X43))) -> 0 | Z43: =IF(Z$5<=$D43,0,IF(SUM($D43,I19)>Z$5,$T30/I19,$T30-SUM($I43:Y43))) -> 0 | AA43: =IF(AA$5<=$D43,0,IF(SUM($D43,I19)>AA$5,$T30/I19,$T30-SUM($I43:Z43))) -> 0 | AB43: =IF(AB$5<=$D43,0,IF(SUM($D43,I19)>AB$5,$T30/I19,$T30-SUM($I43:AA43))) -> 0 | AC43: =IF(AC$5<=$D43,0,IF(SUM($D43,I19)>AC$5,$T30/I19,$T30-SUM($I43:AB43))) -> 0 | AD43: =IF(AD$5<=$D43,0,IF(SUM($D43,I19)>AD$5,$T30/I19,$T30-SUM($I43:AC43))) -> 0 | AE43: =IF(AE$5<=$D43,0,IF(SUM($D43,I19)>AE$5,$T30/I19,$T30-SUM($I43:AD43))) -> 0 | AF43: =IF(AF$5<=$D43,0,IF(SUM($D43,I19)>AF$5,$T30/I19,$T30-SUM($I43:AE43))) -> 0 | AG43: =IF(AG$5<=$D43,0,IF(SUM($D43,I19)>AG$5,$T30/I19,$T30-SUM($I43:AF43))) -> 0 | AH43: =IF(AH$5<=$D43,0,IF(SUM($D43,I19)>AH$5,$T30/I19,$T30-SUM($I43:AG43))) -> 0 | AI43: =IF(AI$5<=$D43,0,IF(SUM($D43,I19)>AI$5,$T30/I19,$T30-SUM($I43:AH43))) -> 0 | AJ43: =IF(AJ$5<=$D43,0,IF(SUM($D43,I19)>AJ$5,$T30/I19,$T30-SUM($I43:AI43))) -> 0 | AK43: =IF(AK$5<=$D43,0,IF(SUM($D43,I19)>AK$5,$T30/I19,$T30-SUM($I43:AJ43))) -> 0 | AL43: =IF(AL$5<=$D43,0,IF(SUM($D43,I19)>AL$5,$T30/I19,$T30-SUM($I43:AK43))) -> 0 | AM43: =IF(AM$5<=$D43,0,IF(SUM($D43,I19)>AM$5,$T30/I19,$T30-SUM($I43:AL43))) -> 0 | AN43: =IF(AN$5<=$D43,0,IF(SUM($D43,I19)>AN$5,$T30/I19,$T30-SUM($I43:AM43))) -> 0 | AO43: =IF(AO$5<=$D43,0,IF(SUM($D43,I19)>AO$5,$T30/I19,$T30-SUM($I43:AN43))) -> 0 | AP43: =IF(AP$5<=$D43,0,IF(SUM($D43,I19)>AP$5,$T30/I19,$T30-SUM($I43:AO43))) -> 0 | AQ43: =IF(AQ$5<=$D43,0,IF(SUM($D43,I19)>AQ$5,$T30/I19,$T30-SUM($I43:AP43))) -> 0 | AR43: =IF(AR$5<=$D43,0,IF(SUM($D43,I19)>AR$5,$T30/I19,$T30-SUM($I43:AQ43))) -> 0 | AS43: =IF(AS$5<=$D43,0,IF(SUM($D43,I19)>AS$5,$T30/I19,$T30-SUM($I43:AR43))) -> 0 | AT43: =IF(AT$5<=$D43,0,IF(SUM($D43,I19)>AT$5,$T30/I19,$T30-SUM($I43:AS43))) -> 0 | AU43: =IF(AU$5<=$D43,0,IF(SUM($D43,I19)>AU$5,$T30/I19,$T30-SUM($I43:AT43))) -> 0 | AV43: =IF(AV$5<=$D43,0,IF(SUM($D43,I19)>AV$5,$T30/I19,$T30-SUM($I43:AU43))) -> 0 | AW43: =IF(AW$5<=$D43,0,IF(SUM($D43,I19)>AW$5,$T30/I19,$T30-SUM($I43:AV43))) -> 0 | AX43: =IF(AX$5<=$D43,0,IF(SUM($D43,I19)>AX$5,$T30/I19,$T30-SUM($I43:AW43))) -> 0 | AY43: =IF(AY$5<=$D43,0,IF(SUM($D43,I19)>AY$5,$T30/I19,$T30-SUM($I43:AX43))) -> 0 | AZ43: =IF(AZ$5<=$D43,0,IF(SUM($D43,I19)>AZ$5,$T30/I19,$T30-SUM($I43:AY43))) -> 0 | BA43: =IF(BA$5<=$D43,0,IF(SUM($D43,I19)>BA$5,$T30/I19,$T30-SUM($I43:AZ43))) -> 0 | BB43: =IF(BB$5<=$D43,0,IF(SUM($D43,I19)>BB$5,$T30/I19,$T30-SUM($I43:BA43))) -> 0 | BC43: =IF(BC$5<=$D43,0,IF(SUM($D43,I19)>BC$5,$T30/I19,$T30-SUM($I43:BB43))) -> 0 | BD43: =IF(BD$5<=$D43,0,IF(SUM($D43,I19)>BD$5,$T30/I19,$T30-SUM($I43:BC43))) -> 0 | BE43: =IF(BE$5<=$D43,0,IF(SUM($D43,I19)>BE$5,$T30/I19,$T30-SUM($I43:BD43))) -> 0 | BF43: =IF(BF$5<=$D43,0,IF(SUM($D43,I19)>BF$5,$T30/I19,$T30-SUM($I43:BE43))) -> 0 | BG43: =IF(BG$5<=$D43,0,IF(SUM($D43,I19)>BG$5,$T30/I19,$T30-SUM($I43:BF43))) -> 0 | BH43: =IF(BH$5<=$D43,0,IF(SUM($D43,I19)>BH$5,$T30/I19,$T30-SUM($I43:BG43))) -> 0 | BI43: =IF(BI$5<=$D43,0,IF(SUM($D43,I19)>BI$5,$T30/I19,$T30-SUM($I43:BH43))) -> 0 | BJ43: =IF(BJ$5<=$D43,0,IF(SUM($D43,I19)>BJ$5,$T30/I19,$T30-SUM($I43:BI43))) -> 0 | BK43: =IF(BK$5<=$D43,0,IF(SUM($D43,I19)>BK$5,$T30/I19,$T30-SUM($I43:BJ43))) -> 0 | BL43: =IF(BL$5<=$D43,0,IF(SUM($D43,I19)>BL$5,$T30/I19,$T30-SUM($I43:BK43))) -> 0 | BM43: =IF(BM$5<=$D43,0,IF(SUM($D43,I19)>BM$5,$T30/I19,$T30-SUM($I43:BL43))) -> 0 | BN43: =IF(BN$5<=$D43,0,IF(SUM($D43,I19)>BN$5,$T30/I19,$T30-SUM($I43:BM43))) -> 0 | BO43: =IF(BO$5<=$D43,0,IF(SUM($D43,I19)>BO$5,$T30/I19,$T30-SUM($I43:BN43))) -> 0 | BP43: =IF(BP$5<=$D43,0,IF(SUM($D43,I19)>BP$5,$T30/I19,$T30-SUM($I43:BO43))) -> 0 | BQ43: =IF(BQ$5<=$D43,0,IF(SUM($D43,I19)>BQ$5,$T30/I19,$T30-SUM($I43:BP43))) -> 0
D44: 2022 | E44: $m Real (2010) | J44: =IF(J$5<=$D44,0,IF(SUM($D44,I19)>J$5,$U30/I19,$U30-SUM($I44:I44))) -> 0 | K44: =IF(K$5<=$D44,0,IF(SUM($D44,I19)>K$5,$U30/I19,$U30-SUM($I44:J44))) -> 0 | L44: =IF(L$5<=$D44,0,IF(SUM($D44,I19)>L$5,$U30/I19,$U30-SUM($I44:K44))) -> 0 | M44: =IF(M$5<=$D44,0,IF(SUM($D44,I19)>M$5,$U30/I19,$U30-SUM($I44:L44))) -> 0 | N44: =IF(N$5<=$D44,0,IF(SUM($D44,I19)>N$5,$U30/I19,$U30-SUM($I44:M44))) -> 0 | O44: =IF(O$5<=$D44,0,IF(SUM($D44,I19)>O$5,$U30/I19,$U30-SUM($I44:N44))) -> 0 | P44: =IF(P$5<=$D44,0,IF(SUM($D44,I19)>P$5,$U30/I19,$U30-SUM($I44:O44))) -> 0 | Q44: =IF(Q$5<=$D44,0,IF(SUM($D44,I19)>Q$5,$U30/I19,$U30-SUM($I44:P44))) -> 0 | R44: =IF(R$5<=$D44,0,IF(SUM($D44,I19)>R$5,$U30/I19,$U30-SUM($I44:Q44))) -> 0 | S44: =IF(S$5<=$D44,0,IF(SUM($D44,I19)>S$5,$U30/I19,$U30-SUM($I44:R44))) -> 0 | T44: =IF(T$5<=$D44,0,IF(SUM($D44,I19)>T$5,$U30/I19,$U30-SUM($I44:S44))) -> 0 | U44: =IF(U$5<=$D44,0,IF(SUM($D44,I19)>U$5,$U30/I19,$U30-SUM($I44:T44))) -> 0 | V44: =IF(V$5<=$D44,0,IF(SUM($D44,I19)>V$5,$U30/I19,$U30-SUM($I44:U44))) -> 0 | W44: =IF(W$5<=$D44,0,IF(SUM($D44,I19)>W$5,$U30/I19,$U30-SUM($I44:V44))) -> 0 | X44: =IF(X$5<=$D44,0,IF(SUM($D44,I19)>X$5,$U30/I19,$U30-SUM($I44:W44))) -> 0 | Y44: =IF(Y$5<=$D44,0,IF(SUM($D44,I19)>Y$5,$U30/I19,$U30-SUM($I44:X44))) -> 0 | Z44: =IF(Z$5<=$D44,0,IF(SUM($D44,I19)>Z$5,$U30/I19,$U30-SUM($I44:Y44))) -> 0 | AA44: =IF(AA$5<=$D44,0,IF(SUM($D44,I19)>AA$5,$U30/I19,$U30-SUM($I44:Z44))) -> 0 | AB44: =IF(AB$5<=$D44,0,IF(SUM($D44,I19)>AB$5,$U30/I19,$U30-SUM($I44:AA44))) -> 0 | AC44: =IF(AC$5<=$D44,0,IF(SUM($D44,I19)>AC$5,$U30/I19,$U30-SUM($I44:AB44))) -> 0 | AD44: =IF(AD$5<=$D44,0,IF(SUM($D44,I19)>AD$5,$U30/I19,$U30-SUM($I44:AC44))) -> 0 | AE44: =IF(AE$5<=$D44,0,IF(SUM($D44,I19)>AE$5,$U30/I19,$U30-SUM($I44:AD44))) -> 0 | AF44: =IF(AF$5<=$D44,0,IF(SUM($D44,I19)>AF$5,$U30/I19,$U30-SUM($I44:AE44))) -> 0 | AG44: =IF(AG$5<=$D44,0,IF(SUM($D44,I19)>AG$5,$U30/I19,$U30-SUM($I44:AF44))) -> 0 | AH44: =IF(AH$5<=$D44,0,IF(SUM($D44,I19)>AH$5,$U30/I19,$U30-SUM($I44:AG44))) -> 0 | AI44: =IF(AI$5<=$D44,0,IF(SUM($D44,I19)>AI$5,$U30/I19,$U30-SUM($I44:AH44))) -> 0 | AJ44: =IF(AJ$5<=$D44,0,IF(SUM($D44,I19)>AJ$5,$U30/I19,$U30-SUM($I44:AI44))) -> 0 | AK44: =IF(AK$5<=$D44,0,IF(SUM($D44,I19)>AK$5,$U30/I19,$U30-SUM($I44:AJ44))) -> 0 | AL44: =IF(AL$5<=$D44,0,IF(SUM($D44,I19)>AL$5,$U30/I19,$U30-SUM($I44:AK44))) -> 0 | AM44: =IF(AM$5<=$D44,0,IF(SUM($D44,I19)>AM$5,$U30/I19,$U30-SUM($I44:AL44))) -> 0 | AN44: =IF(AN$5<=$D44,0,IF(SUM($D44,I19)>AN$5,$U30/I19,$U30-SUM($I44:AM44))) -> 0 | AO44: =IF(AO$5<=$D44,0,IF(SUM($D44,I19)>AO$5,$U30/I19,$U30-SUM($I44:AN44))) -> 0 | AP44: =IF(AP$5<=$D44,0,IF(SUM($D44,I19)>AP$5,$U30/I19,$U30-SUM($I44:AO44))) -> 0 | AQ44: =IF(AQ$5<=$D44,0,IF(SUM($D44,I19)>AQ$5,$U30/I19,$U30-SUM($I44:AP44))) -> 0 | AR44: =IF(AR$5<=$D44,0,IF(SUM($D44,I19)>AR$5,$U30/I19,$U30-SUM($I44:AQ44))) -> 0 | AS44: =IF(AS$5<=$D44,0,IF(SUM($D44,I19)>AS$5,$U30/I19,$U30-SUM($I44:AR44))) -> 0 | AT44: =IF(AT$5<=$D44,0,IF(SUM($D44,I19)>AT$5,$U30/I19,$U30-SUM($I44:AS44))) -> 0 | AU44: =IF(AU$5<=$D44,0,IF(SUM($D44,I19)>AU$5,$U30/I19,$U30-SUM($I44:AT44))) -> 0 | AV44: =IF(AV$5<=$D44,0,IF(SUM($D44,I19)>AV$5,$U30/I19,$U30-SUM($I44:AU44))) -> 0 | AW44: =IF(AW$5<=$D44,0,IF(SUM($D44,I19)>AW$5,$U30/I19,$U30-SUM($I44:AV44))) -> 0 | AX44: =IF(AX$5<=$D44,0,IF(SUM($D44,I19)>AX$5,$U30/I19,$U30-SUM($I44:AW44))) -> 0 | AY44: =IF(AY$5<=$D44,0,IF(SUM($D44,I19)>AY$5,$U30/I19,$U30-SUM($I44:AX44))) -> 0 | AZ44: =IF(AZ$5<=$D44,0,IF(SUM($D44,I19)>AZ$5,$U30/I19,$U30-SUM($I44:AY44))) -> 0 | BA44: =IF(BA$5<=$D44,0,IF(SUM($D44,I19)>BA$5,$U30/I19,$U30-SUM($I44:AZ44))) -> 0 | BB44: =IF(BB$5<=$D44,0,IF(SUM($D44,I19)>BB$5,$U30/I19,$U30-SUM($I44:BA44))) -> 0 | BC44: =IF(BC$5<=$D44,0,IF(SUM($D44,I19)>BC$5,$U30/I19,$U30-SUM($I44:BB44))) -> 0 | BD44: =IF(BD$5<=$D44,0,IF(SUM($D44,I19)>BD$5,$U30/I19,$U30-SUM($I44:BC44))) -> 0 | BE44: =IF(BE$5<=$D44,0,IF(SUM($D44,I19)>BE$5,$U30/I19,$U30-SUM($I44:BD44))) -> 0 | BF44: =IF(BF$5<=$D44,0,IF(SUM($D44,I19)>BF$5,$U30/I19,$U30-SUM($I44:BE44))) -> 0 | BG44: =IF(BG$5<=$D44,0,IF(SUM($D44,I19)>BG$5,$U30/I19,$U30-SUM($I44:BF44))) -> 0 | BH44: =IF(BH$5<=$D44,0,IF(SUM($D44,I19)>BH$5,$U30/I19,$U30-SUM($I44:BG44))) -> 0 | BI44: =IF(BI$5<=$D44,0,IF(SUM($D44,I19)>BI$5,$U30/I19,$U30-SUM($I44:BH44))) -> 0 | BJ44: =IF(BJ$5<=$D44,0,IF(SUM($D44,I19)>BJ$5,$U30/I19,$U30-SUM($I44:BI44))) -> 0 | BK44: =IF(BK$5<=$D44,0,IF(SUM($D44,I19)>BK$5,$U30/I19,$U30-SUM($I44:BJ44))) -> 0 | BL44: =IF(BL$5<=$D44,0,IF(SUM($D44,I19)>BL$5,$U30/I19,$U30-SUM($I44:BK44))) -> 0 | BM44: =IF(BM$5<=$D44,0,IF(SUM($D44,I19)>BM$5,$U30/I19,$U30-SUM($I44:BL44))) -> 0 | BN44: =IF(BN$5<=$D44,0,IF(SUM($D44,I19)>BN$5,$U30/I19,$U30-SUM($I44:BM44))) -> 0 | BO44: =IF(BO$5<=$D44,0,IF(SUM($D44,I19)>BO$5,$U30/I19,$U30-SUM($I44:BN44))) -> 0 | BP44: =IF(BP$5<=$D44,0,IF(SUM($D44,I19)>BP$5,$U30/I19,$U30-SUM($I44:BO44))) -> 0 | BQ44: =IF(BQ$5<=$D44,0,IF(SUM($D44,I19)>BQ$5,$U30/I19,$U30-SUM($I44:BP44))) -> 0
D45: 2023 | E45: $m Real (2010) | J45: =IF(J$5<=$D45,0,IF(SUM($D45,I19)>J$5,$V30/I19,$V30-SUM($I45:I45))) -> 0 | K45: =IF(K$5<=$D45,0,IF(SUM($D45,I19)>K$5,$V30/I19,$V30-SUM($I45:J45))) -> 0 | L45: =IF(L$5<=$D45,0,IF(SUM($D45,I19)>L$5,$V30/I19,$V30-SUM($I45:K45))) -> 0 | M45: =IF(M$5<=$D45,0,IF(SUM($D45,I19)>M$5,$V30/I19,$V30-SUM($I45:L45))) -> 0 | N45: =IF(N$5<=$D45,0,IF(SUM($D45,I19)>N$5,$V30/I19,$V30-SUM($I45:M45))) -> 0 | O45: =IF(O$5<=$D45,0,IF(SUM($D45,I19)>O$5,$V30/I19,$V30-SUM($I45:N45))) -> 0 | P45: =IF(P$5<=$D45,0,IF(SUM($D45,I19)>P$5,$V30/I19,$V30-SUM($I45:O45))) -> 0 | Q45: =IF(Q$5<=$D45,0,IF(SUM($D45,I19)>Q$5,$V30/I19,$V30-SUM($I45:P45))) -> 0 | R45: =IF(R$5<=$D45,0,IF(SUM($D45,I19)>R$5,$V30/I19,$V30-SUM($I45:Q45))) -> 0 | S45: =IF(S$5<=$D45,0,IF(SUM($D45,I19)>S$5,$V30/I19,$V30-SUM($I45:R45))) -> 0 | T45: =IF(T$5<=$D45,0,IF(SUM($D45,I19)>T$5,$V30/I19,$V30-SUM($I45:S45))) -> 0 | U45: =IF(U$5<=$D45,0,IF(SUM($D45,I19)>U$5,$V30/I19,$V30-SUM($I45:T45))) -> 0 | V45: =IF(V$5<=$D45,0,IF(SUM($D45,I19)>V$5,$V30/I19,$V30-SUM($I45:U45))) -> 0 | W45: =IF(W$5<=$D45,0,IF(SUM($D45,I19)>W$5,$V30/I19,$V30-SUM($I45:V45))) -> 0 | X45: =IF(X$5<=$D45,0,IF(SUM($D45,I19)>X$5,$V30/I19,$V30-SUM($I45:W45))) -> 0 | Y45: =IF(Y$5<=$D45,0,IF(SUM($D45,I19)>Y$5,$V30/I19,$V30-SUM($I45:X45))) -> 0 | Z45: =IF(Z$5<=$D45,0,IF(SUM($D45,I19)>Z$5,$V30/I19,$V30-SUM($I45:Y45))) -> 0 | AA45: =IF(AA$5<=$D45,0,IF(SUM($D45,I19)>AA$5,$V30/I19,$V30-SUM($I45:Z45))) -> 0 | AB45: =IF(AB$5<=$D45,0,IF(SUM($D45,I19)>AB$5,$V30/I19,$V30-SUM($I45:AA45))) -> 0 | AC45: =IF(AC$5<=$D45,0,IF(SUM($D45,I19)>AC$5,$V30/I19,$V30-SUM($I45:AB45))) -> 0 | AD45: =IF(AD$5<=$D45,0,IF(SUM($D45,I19)>AD$5,$V30/I19,$V30-SUM($I45:AC45))) -> 0 | AE45: =IF(AE$5<=$D45,0,IF(SUM($D45,I19)>AE$5,$V30/I19,$V30-SUM($I45:AD45))) -> 0 | AF45: =IF(AF$5<=$D45,0,IF(SUM($D45,I19)>AF$5,$V30/I19,$V30-SUM($I45:AE45))) -> 0 | AG45: =IF(AG$5<=$D45,0,IF(SUM($D45,I19)>AG$5,$V30/I19,$V30-SUM($I45:AF45))) -> 0 | AH45: =IF(AH$5<=$D45,0,IF(SUM($D45,I19)>AH$5,$V30/I19,$V30-SUM($I45:AG45))) -> 0 | AI45: =IF(AI$5<=$D45,0,IF(SUM($D45,I19)>AI$5,$V30/I19,$V30-SUM($I45:AH45))) -> 0 | AJ45: =IF(AJ$5<=$D45,0,IF(SUM($D45,I19)>AJ$5,$V30/I19,$V30-SUM($I45:AI45))) -> 0 | AK45: =IF(AK$5<=$D45,0,IF(SUM($D45,I19)>AK$5,$V30/I19,$V30-SUM($I45:AJ45))) -> 0 | AL45: =IF(AL$5<=$D45,0,IF(SUM($D45,I19)>AL$5,$V30/I19,$V30-SUM($I45:AK45))) -> 0 | AM45: =IF(AM$5<=$D45,0,IF(SUM($D45,I19)>AM$5,$V30/I19,$V30-SUM($I45:AL45))) -> 0 | AN45: =IF(AN$5<=$D45,0,IF(SUM($D45,I19)>AN$5,$V30/I19,$V30-SUM($I45:AM45))) -> 0 | AO45: =IF(AO$5<=$D45,0,IF(SUM($D45,I19)>AO$5,$V30/I19,$V30-SUM($I45:AN45))) -> 0 | AP45: =IF(AP$5<=$D45,0,IF(SUM($D45,I19)>AP$5,$V30/I19,$V30-SUM($I45:AO45))) -> 0 | AQ45: =IF(AQ$5<=$D45,0,IF(SUM($D45,I19)>AQ$5,$V30/I19,$V30-SUM($I45:AP45))) -> 0 | AR45: =IF(AR$5<=$D45,0,IF(SUM($D45,I19)>AR$5,$V30/I19,$V30-SUM($I45:AQ45))) -> 0 | AS45: =IF(AS$5<=$D45,0,IF(SUM($D45,I19)>AS$5,$V30/I19,$V30-SUM($I45:AR45))) -> 0 | AT45: =IF(AT$5<=$D45,0,IF(SUM($D45,I19)>AT$5,$V30/I19,$V30-SUM($I45:AS45))) -> 0 | AU45: =IF(AU$5<=$D45,0,IF(SUM($D45,I19)>AU$5,$V30/I19,$V30-SUM($I45:AT45))) -> 0 | AV45: =IF(AV$5<=$D45,0,IF(SUM($D45,I19)>AV$5,$V30/I19,$V30-SUM($I45:AU45))) -> 0 | AW45: =IF(AW$5<=$D45,0,IF(SUM($D45,I19)>AW$5,$V30/I19,$V30-SUM($I45:AV45))) -> 0 | AX45: =IF(AX$5<=$D45,0,IF(SUM($D45,I19)>AX$5,$V30/I19,$V30-SUM($I45:AW45))) -> 0 | AY45: =IF(AY$5<=$D45,0,IF(SUM($D45,I19)>AY$5,$V30/I19,$V30-SUM($I45:AX45))) -> 0 | AZ45: =IF(AZ$5<=$D45,0,IF(SUM($D45,I19)>AZ$5,$V30/I19,$V30-SUM($I45:AY45))) -> 0 | BA45: =IF(BA$5<=$D45,0,IF(SUM($D45,I19)>BA$5,$V30/I19,$V30-SUM($I45:AZ45))) -> 0 | BB45: =IF(BB$5<=$D45,0,IF(SUM($D45,I19)>BB$5,$V30/I19,$V30-SUM($I45:BA45))) -> 0 | BC45: =IF(BC$5<=$D45,0,IF(SUM($D45,I19)>BC$5,$V30/I19,$V30-SUM($I45:BB45))) -> 0 | BD45: =IF(BD$5<=$D45,0,IF(SUM($D45,I19)>BD$5,$V30/I19,$V30-SUM($I45:BC45))) -> 0 | BE45: =IF(BE$5<=$D45,0,IF(SUM($D45,I19)>BE$5,$V30/I19,$V30-SUM($I45:BD45))) -> 0 | BF45: =IF(BF$5<=$D45,0,IF(SUM($D45,I19)>BF$5,$V30/I19,$V30-SUM($I45:BE45))) -> 0 | BG45: =IF(BG$5<=$D45,0,IF(SUM($D45,I19)>BG$5,$V30/I19,$V30-SUM($I45:BF45))) -> 0 | BH45: =IF(BH$5<=$D45,0,IF(SUM($D45,I19)>BH$5,$V30/I19,$V30-SUM($I45:BG45))) -> 0 | BI45: =IF(BI$5<=$D45,0,IF(SUM($D45,I19)>BI$5,$V30/I19,$V30-SUM($I45:BH45))) -> 0 | BJ45: =IF(BJ$5<=$D45,0,IF(SUM($D45,I19)>BJ$5,$V30/I19,$V30-SUM($I45:BI45))) -> 0 | BK45: =IF(BK$5<=$D45,0,IF(SUM($D45,I19)>BK$5,$V30/I19,$V30-SUM($I45:BJ45))) -> 0 | BL45: =IF(BL$5<=$D45,0,IF(SUM($D45,I19)>BL$5,$V30/I19,$V30-SUM($I45:BK45))) -> 0 | BM45: =IF(BM$5<=$D45,0,IF(SUM($D45,I19)>BM$5,$V30/I19,$V30-SUM($I45:BL45))) -> 0 | BN45: =IF(BN$5<=$D45,0,IF(SUM($D45,I19)>BN$5,$V30/I19,$V30-SUM($I45:BM45))) -> 0 | BO45: =IF(BO$5<=$D45,0,IF(SUM($D45,I19)>BO$5,$V30/I19,$V30-SUM($I45:BN45))) -> 0 | BP45: =IF(BP$5<=$D45,0,IF(SUM($D45,I19)>BP$5,$V30/I19,$V30-SUM($I45:BO45))) -> 0 | BQ45: =IF(BQ$5<=$D45,0,IF(SUM($D45,I19)>BQ$5,$V30/I19,$V30-SUM($I45:BP45))) -> 0
D46: 2024 | E46: $m Real (2010) | J46: =IF(J$5<=$D46,0,IF(SUM($D46,I19)>J$5,$W30/I19,$W30-SUM($I46:I46))) -> 0 | K46: =IF(K$5<=$D46,0,IF(SUM($D46,I19)>K$5,$W30/I19,$W30-SUM($I46:J46))) -> 0 | L46: =IF(L$5<=$D46,0,IF(SUM($D46,I19)>L$5,$W30/I19,$W30-SUM($I46:K46))) -> 0 | M46: =IF(M$5<=$D46,0,IF(SUM($D46,I19)>M$5,$W30/I19,$W30-SUM($I46:L46))) -> 0 | N46: =IF(N$5<=$D46,0,IF(SUM($D46,I19)>N$5,$W30/I19,$W30-SUM($I46:M46))) -> 0 | O46: =IF(O$5<=$D46,0,IF(SUM($D46,I19)>O$5,$W30/I19,$W30-SUM($I46:N46))) -> 0 | P46: =IF(P$5<=$D46,0,IF(SUM($D46,I19)>P$5,$W30/I19,$W30-SUM($I46:O46))) -> 0 | Q46: =IF(Q$5<=$D46,0,IF(SUM($D46,I19)>Q$5,$W30/I19,$W30-SUM($I46:P46))) -> 0 | R46: =IF(R$5<=$D46,0,IF(SUM($D46,I19)>R$5,$W30/I19,$W30-SUM($I46:Q46))) -> 0 | S46: =IF(S$5<=$D46,0,IF(SUM($D46,I19)>S$5,$W30/I19,$W30-SUM($I46:R46))) -> 0 | T46: =IF(T$5<=$D46,0,IF(SUM($D46,I19)>T$5,$W30/I19,$W30-SUM($I46:S46))) -> 0 | U46: =IF(U$5<=$D46,0,IF(SUM($D46,I19)>U$5,$W30/I19,$W30-SUM($I46:T46))) -> 0 | V46: =IF(V$5<=$D46,0,IF(SUM($D46,I19)>V$5,$W30/I19,$W30-SUM($I46:U46))) -> 0 | W46: =IF(W$5<=$D46,0,IF(SUM($D46,I19)>W$5,$W30/I19,$W30-SUM($I46:V46))) -> 0 | X46: =IF(X$5<=$D46,0,IF(SUM($D46,I19)>X$5,$W30/I19,$W30-SUM($I46:W46))) -> 0 | Y46: =IF(Y$5<=$D46,0,IF(SUM($D46,I19)>Y$5,$W30/I19,$W30-SUM($I46:X46))) -> 0 | Z46: =IF(Z$5<=$D46,0,IF(SUM($D46,I19)>Z$5,$W30/I19,$W30-SUM($I46:Y46))) -> 0 | AA46: =IF(AA$5<=$D46,0,IF(SUM($D46,I19)>AA$5,$W30/I19,$W30-SUM($I46:Z46))) -> 0 | AB46: =IF(AB$5<=$D46,0,IF(SUM($D46,I19)>AB$5,$W30/I19,$W30-SUM($I46:AA46))) -> 0 | AC46: =IF(AC$5<=$D46,0,IF(SUM($D46,I19)>AC$5,$W30/I19,$W30-SUM($I46:AB46))) -> 0 | AD46: =IF(AD$5<=$D46,0,IF(SUM($D46,I19)>AD$5,$W30/I19,$W30-SUM($I46:AC46))) -> 0 | AE46: =IF(AE$5<=$D46,0,IF(SUM($D46,I19)>AE$5,$W30/I19,$W30-SUM($I46:AD46))) -> 0 | AF46: =IF(AF$5<=$D46,0,IF(SUM($D46,I19)>AF$5,$W30/I19,$W30-SUM($I46:AE46))) -> 0 | AG46: =IF(AG$5<=$D46,0,IF(SUM($D46,I19)>AG$5,$W30/I19,$W30-SUM($I46:AF46))) -> 0 | AH46: =IF(AH$5<=$D46,0,IF(SUM($D46,I19)>AH$5,$W30/I19,$W30-SUM($I46:AG46))) -> 0 | AI46: =IF(AI$5<=$D46,0,IF(SUM($D46,I19)>AI$5,$W30/I19,$W30-SUM($I46:AH46))) -> 0 | AJ46: =IF(AJ$5<=$D46,0,IF(SUM($D46,I19)>AJ$5,$W30/I19,$W30-SUM($I46:AI46))) -> 0 | AK46: =IF(AK$5<=$D46,0,IF(SUM($D46,I19)>AK$5,$W30/I19,$W30-SUM($I46:AJ46))) -> 0 | AL46: =IF(AL$5<=$D46,0,IF(SUM($D46,I19)>AL$5,$W30/I19,$W30-SUM($I46:AK46))) -> 0 | AM46: =IF(AM$5<=$D46,0,IF(SUM($D46,I19)>AM$5,$W30/I19,$W30-SUM($I46:AL46))) -> 0 | AN46: =IF(AN$5<=$D46,0,IF(SUM($D46,I19)>AN$5,$W30/I19,$W30-SUM($I46:AM46))) -> 0 | AO46: =IF(AO$5<=$D46,0,IF(SUM($D46,I19)>AO$5,$W30/I19,$W30-SUM($I46:AN46))) -> 0 | AP46: =IF(AP$5<=$D46,0,IF(SUM($D46,I19)>AP$5,$W30/I19,$W30-SUM($I46:AO46))) -> 0 | AQ46: =IF(AQ$5<=$D46,0,IF(SUM($D46,I19)>AQ$5,$W30/I19,$W30-SUM($I46:AP46))) -> 0 | AR46: =IF(AR$5<=$D46,0,IF(SUM($D46,I19)>AR$5,$W30/I19,$W30-SUM($I46:AQ46))) -> 0 | AS46: =IF(AS$5<=$D46,0,IF(SUM($D46,I19)>AS$5,$W30/I19,$W30-SUM($I46:AR46))) -> 0 | AT46: =IF(AT$5<=$D46,0,IF(SUM($D46,I19)>AT$5,$W30/I19,$W30-SUM($I46:AS46))) -> 0 | AU46: =IF(AU$5<=$D46,0,IF(SUM($D46,I19)>AU$5,$W30/I19,$W30-SUM($I46:AT46))) -> 0 | AV46: =IF(AV$5<=$D46,0,IF(SUM($D46,I19)>AV$5,$W30/I19,$W30-SUM($I46:AU46))) -> 0 | AW46: =IF(AW$5<=$D46,0,IF(SUM($D46,I19)>AW$5,$W30/I19,$W30-SUM($I46:AV46))) -> 0 | AX46: =IF(AX$5<=$D46,0,IF(SUM($D46,I19)>AX$5,$W30/I19,$W30-SUM($I46:AW46))) -> 0 | AY46: =IF(AY$5<=$D46,0,IF(SUM($D46,I19)>AY$5,$W30/I19,$W30-SUM($I46:AX46))) -> 0 | AZ46: =IF(AZ$5<=$D46,0,IF(SUM($D46,I19)>AZ$5,$W30/I19,$W30-SUM($I46:AY46))) -> 0 | BA46: =IF(BA$5<=$D46,0,IF(SUM($D46,I19)>BA$5,$W30/I19,$W30-SUM($I46:AZ46))) -> 0 | BB46: =IF(BB$5<=$D46,0,IF(SUM($D46,I19)>BB$5,$W30/I19,$W30-SUM($I46:BA46))) -> 0 | BC46: =IF(BC$5<=$D46,0,IF(SUM($D46,I19)>BC$5,$W30/I19,$W30-SUM($I46:BB46))) -> 0 | BD46: =IF(BD$5<=$D46,0,IF(SUM($D46,I19)>BD$5,$W30/I19,$W30-SUM($I46:BC46))) -> 0 | BE46: =IF(BE$5<=$D46,0,IF(SUM($D46,I19)>BE$5,$W30/I19,$W30-SUM($I46:BD46))) -> 0 | BF46: =IF(BF$5<=$D46,0,IF(SUM($D46,I19)>BF$5,$W30/I19,$W30-SUM($I46:BE46))) -> 0 | BG46: =IF(BG$5<=$D46,0,IF(SUM($D46,I19)>BG$5,$W30/I19,$W30-SUM($I46:BF46))) -> 0 | BH46: =IF(BH$5<=$D46,0,IF(SUM($D46,I19)>BH$5,$W30/I19,$W30-SUM($I46:BG46))) -> 0 | BI46: =IF(BI$5<=$D46,0,IF(SUM($D46,I19)>BI$5,$W30/I19,$W30-SUM($I46:BH46))) -> 0 | BJ46: =IF(BJ$5<=$D46,0,IF(SUM($D46,I19)>BJ$5,$W30/I19,$W30-SUM($I46:BI46))) -> 0 | BK46: =IF(BK$5<=$D46,0,IF(SUM($D46,I19)>BK$5,$W30/I19,$W30-SUM($I46:BJ46))) -> 0 | BL46: =IF(BL$5<=$D46,0,IF(SUM($D46,I19)>BL$5,$W30/I19,$W30-SUM($I46:BK46))) -> 0 | BM46: =IF(BM$5<=$D46,0,IF(SUM($D46,I19)>BM$5,$W30/I19,$W30-SUM($I46:BL46))) -> 0 | BN46: =IF(BN$5<=$D46,0,IF(SUM($D46,I19)>BN$5,$W30/I19,$W30-SUM($I46:BM46))) -> 0 | BO46: =IF(BO$5<=$D46,0,IF(SUM($D46,I19)>BO$5,$W30/I19,$W30-SUM($I46:BN46))) -> 0 | BP46: =IF(BP$5<=$D46,0,IF(SUM($D46,I19)>BP$5,$W30/I19,$W30-SUM($I46:BO46))) -> 0 | BQ46: =IF(BQ$5<=$D46,0,IF(SUM($D46,I19)>BQ$5,$W30/I19,$W30-SUM($I46:BP46))) -> 0
D47: 2025 | E47: $m Real (2010) | J47: =IF(J$5<=$D47,0,IF(SUM($D47,I19)>J$5,$X30/I19,$X30-SUM($I47:I47))) -> 0 | K47: =IF(K$5<=$D47,0,IF(SUM($D47,I19)>K$5,$X30/I19,$X30-SUM($I47:J47))) -> 0 | L47: =IF(L$5<=$D47,0,IF(SUM($D47,I19)>L$5,$X30/I19,$X30-SUM($I47:K47))) -> 0 | M47: =IF(M$5<=$D47,0,IF(SUM($D47,I19)>M$5,$X30/I19,$X30-SUM($I47:L47))) -> 0 | N47: =IF(N$5<=$D47,0,IF(SUM($D47,I19)>N$5,$X30/I19,$X30-SUM($I47:M47))) -> 0 | O47: =IF(O$5<=$D47,0,IF(SUM($D47,I19)>O$5,$X30/I19,$X30-SUM($I47:N47))) -> 0 | P47: =IF(P$5<=$D47,0,IF(SUM($D47,I19)>P$5,$X30/I19,$X30-SUM($I47:O47))) -> 0 | Q47: =IF(Q$5<=$D47,0,IF(SUM($D47,I19)>Q$5,$X30/I19,$X30-SUM($I47:P47))) -> 0 | R47: =IF(R$5<=$D47,0,IF(SUM($D47,I19)>R$5,$X30/I19,$X30-SUM($I47:Q47))) -> 0 | S47: =IF(S$5<=$D47,0,IF(SUM($D47,I19)>S$5,$X30/I19,$X30-SUM($I47:R47))) -> 0 | T47: =IF(T$5<=$D47,0,IF(SUM($D47,I19)>T$5,$X30/I19,$X30-SUM($I47:S47))) -> 0 | U47: =IF(U$5<=$D47,0,IF(SUM($D47,I19)>U$5,$X30/I19,$X30-SUM($I47:T47))) -> 0 | V47: =IF(V$5<=$D47,0,IF(SUM($D47,I19)>V$5,$X30/I19,$X30-SUM($I47:U47))) -> 0 | W47: =IF(W$5<=$D47,0,IF(SUM($D47,I19)>W$5,$X30/I19,$X30-SUM($I47:V47))) -> 0 | X47: =IF(X$5<=$D47,0,IF(SUM($D47,I19)>X$5,$X30/I19,$X30-SUM($I47:W47))) -> 0 | Y47: =IF(Y$5<=$D47,0,IF(SUM($D47,I19)>Y$5,$X30/I19,$X30-SUM($I47:X47))) -> 0 | Z47: =IF(Z$5<=$D47,0,IF(SUM($D47,I19)>Z$5,$X30/I19,$X30-SUM($I47:Y47))) -> 0 | AA47: =IF(AA$5<=$D47,0,IF(SUM($D47,I19)>AA$5,$X30/I19,$X30-SUM($I47:Z47))) -> 0 | AB47: =IF(AB$5<=$D47,0,IF(SUM($D47,I19)>AB$5,$X30/I19,$X30-SUM($I47:AA47))) -> 0 | AC47: =IF(AC$5<=$D47,0,IF(SUM($D47,I19)>AC$5,$X30/I19,$X30-SUM($I47:AB47))) -> 0 | AD47: =IF(AD$5<=$D47,0,IF(SUM($D47,I19)>AD$5,$X30/I19,$X30-SUM($I47:AC47))) -> 0 | AE47: =IF(AE$5<=$D47,0,IF(SUM($D47,I19)>AE$5,$X30/I19,$X30-SUM($I47:AD47))) -> 0 | AF47: =IF(AF$5<=$D47,0,IF(SUM($D47,I19)>AF$5,$X30/I19,$X30-SUM($I47:AE47))) -> 0 | AG47: =IF(AG$5<=$D47,0,IF(SUM($D47,I19)>AG$5,$X30/I19,$X30-SUM($I47:AF47))) -> 0 | AH47: =IF(AH$5<=$D47,0,IF(SUM($D47,I19)>AH$5,$X30/I19,$X30-SUM($I47:AG47))) -> 0 | AI47: =IF(AI$5<=$D47,0,IF(SUM($D47,I19)>AI$5,$X30/I19,$X30-SUM($I47:AH47))) -> 0 | AJ47: =IF(AJ$5<=$D47,0,IF(SUM($D47,I19)>AJ$5,$X30/I19,$X30-SUM($I47:AI47))) -> 0 | AK47: =IF(AK$5<=$D47,0,IF(SUM($D47,I19)>AK$5,$X30/I19,$X30-SUM($I47:AJ47))) -> 0 | AL47: =IF(AL$5<=$D47,0,IF(SUM($D47,I19)>AL$5,$X30/I19,$X30-SUM($I47:AK47))) -> 0 | AM47: =IF(AM$5<=$D47,0,IF(SUM($D47,I19)>AM$5,$X30/I19,$X30-SUM($I47:AL47))) -> 0 | AN47: =IF(AN$5<=$D47,0,IF(SUM($D47,I19)>AN$5,$X30/I19,$X30-SUM($I47:AM47))) -> 0 | AO47: =IF(AO$5<=$D47,0,IF(SUM($D47,I19)>AO$5,$X30/I19,$X30-SUM($I47:AN47))) -> 0 | AP47: =IF(AP$5<=$D47,0,IF(SUM($D47,I19)>AP$5,$X30/I19,$X30-SUM($I47:AO47))) -> 0 | AQ47: =IF(AQ$5<=$D47,0,IF(SUM($D47,I19)>AQ$5,$X30/I19,$X30-SUM($I47:AP47))) -> 0 | AR47: =IF(AR$5<=$D47,0,IF(SUM($D47,I19)>AR$5,$X30/I19,$X30-SUM($I47:AQ47))) -> 0 | AS47: =IF(AS$5<=$D47,0,IF(SUM($D47,I19)>AS$5,$X30/I19,$X30-SUM($I47:AR47))) -> 0 | AT47: =IF(AT$5<=$D47,0,IF(SUM($D47,I19)>AT$5,$X30/I19,$X30-SUM($I47:AS47))) -> 0 | AU47: =IF(AU$5<=$D47,0,IF(SUM($D47,I19)>AU$5,$X30/I19,$X30-SUM($I47:AT47))) -> 0 | AV47: =IF(AV$5<=$D47,0,IF(SUM($D47,I19)>AV$5,$X30/I19,$X30-SUM($I47:AU47))) -> 0 | AW47: =IF(AW$5<=$D47,0,IF(SUM($D47,I19)>AW$5,$X30/I19,$X30-SUM($I47:AV47))) -> 0 | AX47: =IF(AX$5<=$D47,0,IF(SUM($D47,I19)>AX$5,$X30/I19,$X30-SUM($I47:AW47))) -> 0 | AY47: =IF(AY$5<=$D47,0,IF(SUM($D47,I19)>AY$5,$X30/I19,$X30-SUM($I47:AX47))) -> 0 | AZ47: =IF(AZ$5<=$D47,0,IF(SUM($D47,I19)>AZ$5,$X30/I19,$X30-SUM($I47:AY47))) -> 0 | BA47: =IF(BA$5<=$D47,0,IF(SUM($D47,I19)>BA$5,$X30/I19,$X30-SUM($I47:AZ47))) -> 0 | BB47: =IF(BB$5<=$D47,0,IF(SUM($D47,I19)>BB$5,$X30/I19,$X30-SUM($I47:BA47))) -> 0 | BC47: =IF(BC$5<=$D47,0,IF(SUM($D47,I19)>BC$5,$X30/I19,$X30-SUM($I47:BB47))) -> 0 | BD47: =IF(BD$5<=$D47,0,IF(SUM($D47,I19)>BD$5,$X30/I19,$X30-SUM($I47:BC47))) -> 0 | BE47: =IF(BE$5<=$D47,0,IF(SUM($D47,I19)>BE$5,$X30/I19,$X30-SUM($I47:BD47))) -> 0 | BF47: =IF(BF$5<=$D47,0,IF(SUM($D47,I19)>BF$5,$X30/I19,$X30-SUM($I47:BE47))) -> 0 | BG47: =IF(BG$5<=$D47,0,IF(SUM($D47,I19)>BG$5,$X30/I19,$X30-SUM($I47:BF47))) -> 0 | BH47: =IF(BH$5<=$D47,0,IF(SUM($D47,I19)>BH$5,$X30/I19,$X30-SUM($I47:BG47))) -> 0 | BI47: =IF(BI$5<=$D47,0,IF(SUM($D47,I19)>BI$5,$X30/I19,$X30-SUM($I47:BH47))) -> 0 | BJ47: =IF(BJ$5<=$D47,0,IF(SUM($D47,I19)>BJ$5,$X30/I19,$X30-SUM($I47:BI47))) -> 0 | BK47: =IF(BK$5<=$D47,0,IF(SUM($D47,I19)>BK$5,$X30/I19,$X30-SUM($I47:BJ47))) -> 0 | BL47: =IF(BL$5<=$D47,0,IF(SUM($D47,I19)>BL$5,$X30/I19,$X30-SUM($I47:BK47))) -> 0 | BM47: =IF(BM$5<=$D47,0,IF(SUM($D47,I19)>BM$5,$X30/I19,$X30-SUM($I47:BL47))) -> 0 | BN47: =IF(BN$5<=$D47,0,IF(SUM($D47,I19)>BN$5,$X30/I19,$X30-SUM($I47:BM47))) -> 0 | BO47: =IF(BO$5<=$D47,0,IF(SUM($D47,I19)>BO$5,$X30/I19,$X30-SUM($I47:BN47))) -> 0 | BP47: =IF(BP$5<=$D47,0,IF(SUM($D47,I19)>BP$5,$X30/I19,$X30-SUM($I47:BO47))) -> 0 | BQ47: =IF(BQ$5<=$D47,0,IF(SUM($D47,I19)>BQ$5,$X30/I19,$X30-SUM($I47:BP47))) -> 0
D48: 2026 | E48: $m Real (2010) | J48: =IF(J$5<=$D48,0,IF(SUM($D48,I19)>J$5,$Y30/I19,$Y30-SUM($I48:I48))) -> 0 | K48: =IF(K$5<=$D48,0,IF(SUM($D48,I19)>K$5,$Y30/I19,$Y30-SUM($I48:J48))) -> 0 | L48: =IF(L$5<=$D48,0,IF(SUM($D48,I19)>L$5,$Y30/I19,$Y30-SUM($I48:K48))) -> 0 | M48: =IF(M$5<=$D48,0,IF(SUM($D48,I19)>M$5,$Y30/I19,$Y30-SUM($I48:L48))) -> 0 | N48: =IF(N$5<=$D48,0,IF(SUM($D48,I19)>N$5,$Y30/I19,$Y30-SUM($I48:M48))) -> 0 | O48: =IF(O$5<=$D48,0,IF(SUM($D48,I19)>O$5,$Y30/I19,$Y30-SUM($I48:N48))) -> 0 | P48: =IF(P$5<=$D48,0,IF(SUM($D48,I19)>P$5,$Y30/I19,$Y30-SUM($I48:O48))) -> 0 | Q48: =IF(Q$5<=$D48,0,IF(SUM($D48,I19)>Q$5,$Y30/I19,$Y30-SUM($I48:P48))) -> 0 | R48: =IF(R$5<=$D48,0,IF(SUM($D48,I19)>R$5,$Y30/I19,$Y30-SUM($I48:Q48))) -> 0 | S48: =IF(S$5<=$D48,0,IF(SUM($D48,I19)>S$5,$Y30/I19,$Y30-SUM($I48:R48))) -> 0 | T48: =IF(T$5<=$D48,0,IF(SUM($D48,I19)>T$5,$Y30/I19,$Y30-SUM($I48:S48))) -> 0 | U48: =IF(U$5<=$D48,0,IF(SUM($D48,I19)>U$5,$Y30/I19,$Y30-SUM($I48:T48))) -> 0 | V48: =IF(V$5<=$D48,0,IF(SUM($D48,I19)>V$5,$Y30/I19,$Y30-SUM($I48:U48))) -> 0 | W48: =IF(W$5<=$D48,0,IF(SUM($D48,I19)>W$5,$Y30/I19,$Y30-SUM($I48:V48))) -> 0 | X48: =IF(X$5<=$D48,0,IF(SUM($D48,I19)>X$5,$Y30/I19,$Y30-SUM($I48:W48))) -> 0 | Y48: =IF(Y$5<=$D48,0,IF(SUM($D48,I19)>Y$5,$Y30/I19,$Y30-SUM($I48:X48))) -> 0 | Z48: =IF(Z$5<=$D48,0,IF(SUM($D48,I19)>Z$5,$Y30/I19,$Y30-SUM($I48:Y48))) -> 0 | AA48: =IF(AA$5<=$D48,0,IF(SUM($D48,I19)>AA$5,$Y30/I19,$Y30-SUM($I48:Z48))) -> 0 | AB48: =IF(AB$5<=$D48,0,IF(SUM($D48,I19)>AB$5,$Y30/I19,$Y30-SUM($I48:AA48))) -> 0 | AC48: =IF(AC$5<=$D48,0,IF(SUM($D48,I19)>AC$5,$Y30/I19,$Y30-SUM($I48:AB48))) -> 0 | AD48: =IF(AD$5<=$D48,0,IF(SUM($D48,I19)>AD$5,$Y30/I19,$Y30-SUM($I48:AC48))) -> 0 | AE48: =IF(AE$5<=$D48,0,IF(SUM($D48,I19)>AE$5,$Y30/I19,$Y30-SUM($I48:AD48))) -> 0 | AF48: =IF(AF$5<=$D48,0,IF(SUM($D48,I19)>AF$5,$Y30/I19,$Y30-SUM($I48:AE48))) -> 0 | AG48: =IF(AG$5<=$D48,0,IF(SUM($D48,I19)>AG$5,$Y30/I19,$Y30-SUM($I48:AF48))) -> 0 | AH48: =IF(AH$5<=$D48,0,IF(SUM($D48,I19)>AH$5,$Y30/I19,$Y30-SUM($I48:AG48))) -> 0 | AI48: =IF(AI$5<=$D48,0,IF(SUM($D48,I19)>AI$5,$Y30/I19,$Y30-SUM($I48:AH48))) -> 0 | AJ48: =IF(AJ$5<=$D48,0,IF(SUM($D48,I19)>AJ$5,$Y30/I19,$Y30-SUM($I48:AI48))) -> 0 | AK48: =IF(AK$5<=$D48,0,IF(SUM($D48,I19)>AK$5,$Y30/I19,$Y30-SUM($I48:AJ48))) -> 0 | AL48: =IF(AL$5<=$D48,0,IF(SUM($D48,I19)>AL$5,$Y30/I19,$Y30-SUM($I48:AK48))) -> 0 | AM48: =IF(AM$5<=$D48,0,IF(SUM($D48,I19)>AM$5,$Y30/I19,$Y30-SUM($I48:AL48))) -> 0 | AN48: =IF(AN$5<=$D48,0,IF(SUM($D48,I19)>AN$5,$Y30/I19,$Y30-SUM($I48:AM48))) -> 0 | AO48: =IF(AO$5<=$D48,0,IF(SUM($D48,I19)>AO$5,$Y30/I19,$Y30-SUM($I48:AN48))) -> 0 | AP48: =IF(AP$5<=$D48,0,IF(SUM($D48,I19)>AP$5,$Y30/I19,$Y30-SUM($I48:AO48))) -> 0 | AQ48: =IF(AQ$5<=$D48,0,IF(SUM($D48,I19)>AQ$5,$Y30/I19,$Y30-SUM($I48:AP48))) -> 0 | AR48: =IF(AR$5<=$D48,0,IF(SUM($D48,I19)>AR$5,$Y30/I19,$Y30-SUM($I48:AQ48))) -> 0 | AS48: =IF(AS$5<=$D48,0,IF(SUM($D48,I19)>AS$5,$Y30/I19,$Y30-SUM($I48:AR48))) -> 0 | AT48: =IF(AT$5<=$D48,0,IF(SUM($D48,I19)>AT$5,$Y30/I19,$Y30-SUM($I48:AS48))) -> 0 | AU48: =IF(AU$5<=$D48,0,IF(SUM($D48,I19)>AU$5,$Y30/I19,$Y30-SUM($I48:AT48))) -> 0 | AV48: =IF(AV$5<=$D48,0,IF(SUM($D48,I19)>AV$5,$Y30/I19,$Y30-SUM($I48:AU48))) -> 0 | AW48: =IF(AW$5<=$D48,0,IF(SUM($D48,I19)>AW$5,$Y30/I19,$Y30-SUM($I48:AV48))) -> 0 | AX48: =IF(AX$5<=$D48,0,IF(SUM($D48,I19)>AX$5,$Y30/I19,$Y30-SUM($I48:AW48))) -> 0 | AY48: =IF(AY$5<=$D48,0,IF(SUM($D48,I19)>AY$5,$Y30/I19,$Y30-SUM($I48:AX48))) -> 0 | AZ48: =IF(AZ$5<=$D48,0,IF(SUM($D48,I19)>AZ$5,$Y30/I19,$Y30-SUM($I48:AY48))) -> 0 | BA48: =IF(BA$5<=$D48,0,IF(SUM($D48,I19)>BA$5,$Y30/I19,$Y30-SUM($I48:AZ48))) -> 0 | BB48: =IF(BB$5<=$D48,0,IF(SUM($D48,I19)>BB$5,$Y30/I19,$Y30-SUM($I48:BA48))) -> 0 | BC48: =IF(BC$5<=$D48,0,IF(SUM($D48,I19)>BC$5,$Y30/I19,$Y30-SUM($I48:BB48))) -> 0 | BD48: =IF(BD$5<=$D48,0,IF(SUM($D48,I19)>BD$5,$Y30/I19,$Y30-SUM($I48:BC48))) -> 0 | BE48: =IF(BE$5<=$D48,0,IF(SUM($D48,I19)>BE$5,$Y30/I19,$Y30-SUM($I48:BD48))) -> 0 | BF48: =IF(BF$5<=$D48,0,IF(SUM($D48,I19)>BF$5,$Y30/I19,$Y30-SUM($I48:BE48))) -> 0 | BG48: =IF(BG$5<=$D48,0,IF(SUM($D48,I19)>BG$5,$Y30/I19,$Y30-SUM($I48:BF48))) -> 0 | BH48: =IF(BH$5<=$D48,0,IF(SUM($D48,I19)>BH$5,$Y30/I19,$Y30-SUM($I48:BG48))) -> 0 | BI48: =IF(BI$5<=$D48,0,IF(SUM($D48,I19)>BI$5,$Y30/I19,$Y30-SUM($I48:BH48))) -> 0 | BJ48: =IF(BJ$5<=$D48,0,IF(SUM($D48,I19)>BJ$5,$Y30/I19,$Y30-SUM($I48:BI48))) -> 0 | BK48: =IF(BK$5<=$D48,0,IF(SUM($D48,I19)>BK$5,$Y30/I19,$Y30-SUM($I48:BJ48))) -> 0 | BL48: =IF(BL$5<=$D48,0,IF(SUM($D48,I19)>BL$5,$Y30/I19,$Y30-SUM($I48:BK48))) -> 0 | BM48: =IF(BM$5<=$D48,0,IF(SUM($D48,I19)>BM$5,$Y30/I19,$Y30-SUM($I48:BL48))) -> 0 | BN48: =IF(BN$5<=$D48,0,IF(SUM($D48,I19)>BN$5,$Y30/I19,$Y30-SUM($I48:BM48))) -> 0 | BO48: =IF(BO$5<=$D48,0,IF(SUM($D48,I19)>BO$5,$Y30/I19,$Y30-SUM($I48:BN48))) -> 0 | BP48: =IF(BP$5<=$D48,0,IF(SUM($D48,I19)>BP$5,$Y30/I19,$Y30-SUM($I48:BO48))) -> 0 | BQ48: =IF(BQ$5<=$D48,0,IF(SUM($D48,I19)>BQ$5,$Y30/I19,$Y30-SUM($I48:BP48))) -> 0
D49: 2027 | E49: $m Real (2010) | J49: =IF(J$5<=$D49,0,IF(SUM($D49,I19)>J$5,$Z30/I19,$Z30-SUM($I49:I49))) -> 0 | K49: =IF(K$5<=$D49,0,IF(SUM($D49,I19)>K$5,$Z30/I19,$Z30-SUM($I49:J49))) -> 0 | L49: =IF(L$5<=$D49,0,IF(SUM($D49,I19)>L$5,$Z30/I19,$Z30-SUM($I49:K49))) -> 0 | M49: =IF(M$5<=$D49,0,IF(SUM($D49,I19)>M$5,$Z30/I19,$Z30-SUM($I49:L49))) -> 0 | N49: =IF(N$5<=$D49,0,IF(SUM($D49,I19)>N$5,$Z30/I19,$Z30-SUM($I49:M49))) -> 0 | O49: =IF(O$5<=$D49,0,IF(SUM($D49,I19)>O$5,$Z30/I19,$Z30-SUM($I49:N49))) -> 0 | P49: =IF(P$5<=$D49,0,IF(SUM($D49,I19)>P$5,$Z30/I19,$Z30-SUM($I49:O49))) -> 0 | Q49: =IF(Q$5<=$D49,0,IF(SUM($D49,I19)>Q$5,$Z30/I19,$Z30-SUM($I49:P49))) -> 0 | R49: =IF(R$5<=$D49,0,IF(SUM($D49,I19)>R$5,$Z30/I19,$Z30-SUM($I49:Q49))) -> 0 | S49: =IF(S$5<=$D49,0,IF(SUM($D49,I19)>S$5,$Z30/I19,$Z30-SUM($I49:R49))) -> 0 | T49: =IF(T$5<=$D49,0,IF(SUM($D49,I19)>T$5,$Z30/I19,$Z30-SUM($I49:S49))) -> 0 | U49: =IF(U$5<=$D49,0,IF(SUM($D49,I19)>U$5,$Z30/I19,$Z30-SUM($I49:T49))) -> 0 | V49: =IF(V$5<=$D49,0,IF(SUM($D49,I19)>V$5,$Z30/I19,$Z30-SUM($I49:U49))) -> 0 | W49: =IF(W$5<=$D49,0,IF(SUM($D49,I19)>W$5,$Z30/I19,$Z30-SUM($I49:V49))) -> 0 | X49: =IF(X$5<=$D49,0,IF(SUM($D49,I19)>X$5,$Z30/I19,$Z30-SUM($I49:W49))) -> 0 | Y49: =IF(Y$5<=$D49,0,IF(SUM($D49,I19)>Y$5,$Z30/I19,$Z30-SUM($I49:X49))) -> 0 | Z49: =IF(Z$5<=$D49,0,IF(SUM($D49,I19)>Z$5,$Z30/I19,$Z30-SUM($I49:Y49))) -> 0 | AA49: =IF(AA$5<=$D49,0,IF(SUM($D49,I19)>AA$5,$Z30/I19,$Z30-SUM($I49:Z49))) -> 0 | AB49: =IF(AB$5<=$D49,0,IF(SUM($D49,I19)>AB$5,$Z30/I19,$Z30-SUM($I49:AA49))) -> 0 | AC49: =IF(AC$5<=$D49,0,IF(SUM($D49,I19)>AC$5,$Z30/I19,$Z30-SUM($I49:AB49))) -> 0 | AD49: =IF(AD$5<=$D49,0,IF(SUM($D49,I19)>AD$5,$Z30/I19,$Z30-SUM($I49:AC49))) -> 0 | AE49: =IF(AE$5<=$D49,0,IF(SUM($D49,I19)>AE$5,$Z30/I19,$Z30-SUM($I49:AD49))) -> 0 | AF49: =IF(AF$5<=$D49,0,IF(SUM($D49,I19)>AF$5,$Z30/I19,$Z30-SUM($I49:AE49))) -> 0 | AG49: =IF(AG$5<=$D49,0,IF(SUM($D49,I19)>AG$5,$Z30/I19,$Z30-SUM($I49:AF49))) -> 0 | AH49: =IF(AH$5<=$D49,0,IF(SUM($D49,I19)>AH$5,$Z30/I19,$Z30-SUM($I49:AG49))) -> 0 | AI49: =IF(AI$5<=$D49,0,IF(SUM($D49,I19)>AI$5,$Z30/I19,$Z30-SUM($I49:AH49))) -> 0 | AJ49: =IF(AJ$5<=$D49,0,IF(SUM($D49,I19)>AJ$5,$Z30/I19,$Z30-SUM($I49:AI49))) -> 0 | AK49: =IF(AK$5<=$D49,0,IF(SUM($D49,I19)>AK$5,$Z30/I19,$Z30-SUM($I49:AJ49))) -> 0 | AL49: =IF(AL$5<=$D49,0,IF(SUM($D49,I19)>AL$5,$Z30/I19,$Z30-SUM($I49:AK49))) -> 0 | AM49: =IF(AM$5<=$D49,0,IF(SUM($D49,I19)>AM$5,$Z30/I19,$Z30-SUM($I49:AL49))) -> 0 | AN49: =IF(AN$5<=$D49,0,IF(SUM($D49,I19)>AN$5,$Z30/I19,$Z30-SUM($I49:AM49))) -> 0 | AO49: =IF(AO$5<=$D49,0,IF(SUM($D49,I19)>AO$5,$Z30/I19,$Z30-SUM($I49:AN49))) -> 0 | AP49: =IF(AP$5<=$D49,0,IF(SUM($D49,I19)>AP$5,$Z30/I19,$Z30-SUM($I49:AO49))) -> 0 | AQ49: =IF(AQ$5<=$D49,0,IF(SUM($D49,I19)>AQ$5,$Z30/I19,$Z30-SUM($I49:AP49))) -> 0 | AR49: =IF(AR$5<=$D49,0,IF(SUM($D49,I19)>AR$5,$Z30/I19,$Z30-SUM($I49:AQ49))) -> 0 | AS49: =IF(AS$5<=$D49,0,IF(SUM($D49,I19)>AS$5,$Z30/I19,$Z30-SUM($I49:AR49))) -> 0 | AT49: =IF(AT$5<=$D49,0,IF(SUM($D49,I19)>AT$5,$Z30/I19,$Z30-SUM($I49:AS49))) -> 0 | AU49: =IF(AU$5<=$D49,0,IF(SUM($D49,I19)>AU$5,$Z30/I19,$Z30-SUM($I49:AT49))) -> 0 | AV49: =IF(AV$5<=$D49,0,IF(SUM($D49,I19)>AV$5,$Z30/I19,$Z30-SUM($I49:AU49))) -> 0 | AW49: =IF(AW$5<=$D49,0,IF(SUM($D49,I19)>AW$5,$Z30/I19,$Z30-SUM($I49:AV49))) -> 0 | AX49: =IF(AX$5<=$D49,0,IF(SUM($D49,I19)>AX$5,$Z30/I19,$Z30-SUM($I49:AW49))) -> 0 | AY49: =IF(AY$5<=$D49,0,IF(SUM($D49,I19)>AY$5,$Z30/I19,$Z30-SUM($I49:AX49))) -> 0 | AZ49: =IF(AZ$5<=$D49,0,IF(SUM($D49,I19)>AZ$5,$Z30/I19,$Z30-SUM($I49:AY49))) -> 0 | BA49: =IF(BA$5<=$D49,0,IF(SUM($D49,I19)>BA$5,$Z30/I19,$Z30-SUM($I49:AZ49))) -> 0 | BB49: =IF(BB$5<=$D49,0,IF(SUM($D49,I19)>BB$5,$Z30/I19,$Z30-SUM($I49:BA49))) -> 0 | BC49: =IF(BC$5<=$D49,0,IF(SUM($D49,I19)>BC$5,$Z30/I19,$Z30-SUM($I49:BB49))) -> 0 | BD49: =IF(BD$5<=$D49,0,IF(SUM($D49,I19)>BD$5,$Z30/I19,$Z30-SUM($I49:BC49))) -> 0 | BE49: =IF(BE$5<=$D49,0,IF(SUM($D49,I19)>BE$5,$Z30/I19,$Z30-SUM($I49:BD49))) -> 0 | BF49: =IF(BF$5<=$D49,0,IF(SUM($D49,I19)>BF$5,$Z30/I19,$Z30-SUM($I49:BE49))) -> 0 | BG49: =IF(BG$5<=$D49,0,IF(SUM($D49,I19)>BG$5,$Z30/I19,$Z30-SUM($I49:BF49))) -> 0 | BH49: =IF(BH$5<=$D49,0,IF(SUM($D49,I19)>BH$5,$Z30/I19,$Z30-SUM($I49:BG49))) -> 0 | BI49: =IF(BI$5<=$D49,0,IF(SUM($D49,I19)>BI$5,$Z30/I19,$Z30-SUM($I49:BH49))) -> 0 | BJ49: =IF(BJ$5<=$D49,0,IF(SUM($D49,I19)>BJ$5,$Z30/I19,$Z30-SUM($I49:BI49))) -> 0 | BK49: =IF(BK$5<=$D49,0,IF(SUM($D49,I19)>BK$5,$Z30/I19,$Z30-SUM($I49:BJ49))) -> 0 | BL49: =IF(BL$5<=$D49,0,IF(SUM($D49,I19)>BL$5,$Z30/I19,$Z30-SUM($I49:BK49))) -> 0 | BM49: =IF(BM$5<=$D49,0,IF(SUM($D49,I19)>BM$5,$Z30/I19,$Z30-SUM($I49:BL49))) -> 0 | BN49: =IF(BN$5<=$D49,0,IF(SUM($D49,I19)>BN$5,$Z30/I19,$Z30-SUM($I49:BM49))) -> 0 | BO49: =IF(BO$5<=$D49,0,IF(SUM($D49,I19)>BO$5,$Z30/I19,$Z30-SUM($I49:BN49))) -> 0 | BP49: =IF(BP$5<=$D49,0,IF(SUM($D49,I19)>BP$5,$Z30/I19,$Z30-SUM($I49:BO49))) -> 0 | BQ49: =IF(BQ$5<=$D49,0,IF(SUM($D49,I19)>BQ$5,$Z30/I19,$Z30-SUM($I49:BP49))) -> 0
D50: 2028 | E50: $m Real (2010) | J50: =IF(J$5<=$D50,0,IF(SUM($D50,I19)>J$5,$AA30/I19,$AA30-SUM($I50:I50))) -> 0 | K50: =IF(K$5<=$D50,0,IF(SUM($D50,I19)>K$5,$AA30/I19,$AA30-SUM($I50:J50))) -> 0 | L50: =IF(L$5<=$D50,0,IF(SUM($D50,I19)>L$5,$AA30/I19,$AA30-SUM($I50:K50))) -> 0 | M50: =IF(M$5<=$D50,0,IF(SUM($D50,I19)>M$5,$AA30/I19,$AA30-SUM($I50:L50))) -> 0 | N50: =IF(N$5<=$D50,0,IF(SUM($D50,I19)>N$5,$AA30/I19,$AA30-SUM($I50:M50))) -> 0 | O50: =IF(O$5<=$D50,0,IF(SUM($D50,I19)>O$5,$AA30/I19,$AA30-SUM($I50:N50))) -> 0 | P50: =IF(P$5<=$D50,0,IF(SUM($D50,I19)>P$5,$AA30/I19,$AA30-SUM($I50:O50))) -> 0 | Q50: =IF(Q$5<=$D50,0,IF(SUM($D50,I19)>Q$5,$AA30/I19,$AA30-SUM($I50:P50))) -> 0 | R50: =IF(R$5<=$D50,0,IF(SUM($D50,I19)>R$5,$AA30/I19,$AA30-SUM($I50:Q50))) -> 0 | S50: =IF(S$5<=$D50,0,IF(SUM($D50,I19)>S$5,$AA30/I19,$AA30-SUM($I50:R50))) -> 0 | T50: =IF(T$5<=$D50,0,IF(SUM($D50,I19)>T$5,$AA30/I19,$AA30-SUM($I50:S50))) -> 0 | U50: =IF(U$5<=$D50,0,IF(SUM($D50,I19)>U$5,$AA30/I19,$AA30-SUM($I50:T50))) -> 0 | V50: =IF(V$5<=$D50,0,IF(SUM($D50,I19)>V$5,$AA30/I19,$AA30-SUM($I50:U50))) -> 0 | W50: =IF(W$5<=$D50,0,IF(SUM($D50,I19)>W$5,$AA30/I19,$AA30-SUM($I50:V50))) -> 0 | X50: =IF(X$5<=$D50,0,IF(SUM($D50,I19)>X$5,$AA30/I19,$AA30-SUM($I50:W50))) -> 0 | Y50: =IF(Y$5<=$D50,0,IF(SUM($D50,I19)>Y$5,$AA30/I19,$AA30-SUM($I50:X50))) -> 0 | Z50: =IF(Z$5<=$D50,0,IF(SUM($D50,I19)>Z$5,$AA30/I19,$AA30-SUM($I50:Y50))) -> 0 | AA50: =IF(AA$5<=$D50,0,IF(SUM($D50,I19)>AA$5,$AA30/I19,$AA30-SUM($I50:Z50))) -> 0 | AB50: =IF(AB$5<=$D50,0,IF(SUM($D50,I19)>AB$5,$AA30/I19,$AA30-SUM($I50:AA50))) -> 0 | AC50: =IF(AC$5<=$D50,0,IF(SUM($D50,I19)>AC$5,$AA30/I19,$AA30-SUM($I50:AB50))) -> 0 | AD50: =IF(AD$5<=$D50,0,IF(SUM($D50,I19)>AD$5,$AA30/I19,$AA30-SUM($I50:AC50))) -> 0 | AE50: =IF(AE$5<=$D50,0,IF(SUM($D50,I19)>AE$5,$AA30/I19,$AA30-SUM($I50:AD50))) -> 0 | AF50: =IF(AF$5<=$D50,0,IF(SUM($D50,I19)>AF$5,$AA30/I19,$AA30-SUM($I50:AE50))) -> 0 | AG50: =IF(AG$5<=$D50,0,IF(SUM($D50,I19)>AG$5,$AA30/I19,$AA30-SUM($I50:AF50))) -> 0 | AH50: =IF(AH$5<=$D50,0,IF(SUM($D50,I19)>AH$5,$AA30/I19,$AA30-SUM($I50:AG50))) -> 0 | AI50: =IF(AI$5<=$D50,0,IF(SUM($D50,I19)>AI$5,$AA30/I19,$AA30-SUM($I50:AH50))) -> 0 | AJ50: =IF(AJ$5<=$D50,0,IF(SUM($D50,I19)>AJ$5,$AA30/I19,$AA30-SUM($I50:AI50))) -> 0 | AK50: =IF(AK$5<=$D50,0,IF(SUM($D50,I19)>AK$5,$AA30/I19,$AA30-SUM($I50:AJ50))) -> 0 | AL50: =IF(AL$5<=$D50,0,IF(SUM($D50,I19)>AL$5,$AA30/I19,$AA30-SUM($I50:AK50))) -> 0 | AM50: =IF(AM$5<=$D50,0,IF(SUM($D50,I19)>AM$5,$AA30/I19,$AA30-SUM($I50:AL50))) -> 0 | AN50: =IF(AN$5<=$D50,0,IF(SUM($D50,I19)>AN$5,$AA30/I19,$AA30-SUM($I50:AM50))) -> 0 | AO50: =IF(AO$5<=$D50,0,IF(SUM($D50,I19)>AO$5,$AA30/I19,$AA30-SUM($I50:AN50))) -> 0 | AP50: =IF(AP$5<=$D50,0,IF(SUM($D50,I19)>AP$5,$AA30/I19,$AA30-SUM($I50:AO50))) -> 0 | AQ50: =IF(AQ$5<=$D50,0,IF(SUM($D50,I19)>AQ$5,$AA30/I19,$AA30-SUM($I50:AP50))) -> 0 | AR50: =IF(AR$5<=$D50,0,IF(SUM($D50,I19)>AR$5,$AA30/I19,$AA30-SUM($I50:AQ50))) -> 0 | AS50: =IF(AS$5<=$D50,0,IF(SUM($D50,I19)>AS$5,$AA30/I19,$AA30-SUM($I50:AR50))) -> 0 | AT50: =IF(AT$5<=$D50,0,IF(SUM($D50,I19)>AT$5,$AA30/I19,$AA30-SUM($I50:AS50))) -> 0 | AU50: =IF(AU$5<=$D50,0,IF(SUM($D50,I19)>AU$5,$AA30/I19,$AA30-SUM($I50:AT50))) -> 0 | AV50: =IF(AV$5<=$D50,0,IF(SUM($D50,I19)>AV$5,$AA30/I19,$AA30-SUM($I50:AU50))) -> 0 | AW50: =IF(AW$5<=$D50,0,IF(SUM($D50,I19)>AW$5,$AA30/I19,$AA30-SUM($I50:AV50))) -> 0 | AX50: =IF(AX$5<=$D50,0,IF(SUM($D50,I19)>AX$5,$AA30/I19,$AA30-SUM($I50:AW50))) -> 0 | AY50: =IF(AY$5<=$D50,0,IF(SUM($D50,I19)>AY$5,$AA30/I19,$AA30-SUM($I50:AX50))) -> 0 | AZ50: =IF(AZ$5<=$D50,0,IF(SUM($D50,I19)>AZ$5,$AA30/I19,$AA30-SUM($I50:AY50))) -> 0 | BA50: =IF(BA$5<=$D50,0,IF(SUM($D50,I19)>BA$5,$AA30/I19,$AA30-SUM($I50:AZ50))) -> 0 | BB50: =IF(BB$5<=$D50,0,IF(SUM($D50,I19)>BB$5,$AA30/I19,$AA30-SUM($I50:BA50))) -> 0 | BC50: =IF(BC$5<=$D50,0,IF(SUM($D50,I19)>BC$5,$AA30/I19,$AA30-SUM($I50:BB50))) -> 0 | BD50: =IF(BD$5<=$D50,0,IF(SUM($D50,I19)>BD$5,$AA30/I19,$AA30-SUM($I50:BC50))) -> 0 | BE50: =IF(BE$5<=$D50,0,IF(SUM($D50,I19)>BE$5,$AA30/I19,$AA30-SUM($I50:BD50))) -> 0 | BF50: =IF(BF$5<=$D50,0,IF(SUM($D50,I19)>BF$5,$AA30/I19,$AA30-SUM($I50:BE50))) -> 0 | BG50: =IF(BG$5<=$D50,0,IF(SUM($D50,I19)>BG$5,$AA30/I19,$AA30-SUM($I50:BF50))) -> 0 | BH50: =IF(BH$5<=$D50,0,IF(SUM($D50,I19)>BH$5,$AA30/I19,$AA30-SUM($I50:BG50))) -> 0 | BI50: =IF(BI$5<=$D50,0,IF(SUM($D50,I19)>BI$5,$AA30/I19,$AA30-SUM($I50:BH50))) -> 0 | BJ50: =IF(BJ$5<=$D50,0,IF(SUM($D50,I19)>BJ$5,$AA30/I19,$AA30-SUM($I50:BI50))) -> 0 | BK50: =IF(BK$5<=$D50,0,IF(SUM($D50,I19)>BK$5,$AA30/I19,$AA30-SUM($I50:BJ50))) -> 0 | BL50: =IF(BL$5<=$D50,0,IF(SUM($D50,I19)>BL$5,$AA30/I19,$AA30-SUM($I50:BK50))) -> 0 | BM50: =IF(BM$5<=$D50,0,IF(SUM($D50,I19)>BM$5,$AA30/I19,$AA30-SUM($I50:BL50))) -> 0 | BN50: =IF(BN$5<=$D50,0,IF(SUM($D50,I19)>BN$5,$AA30/I19,$AA30-SUM($I50:BM50))) -> 0 | BO50: =IF(BO$5<=$D50,0,IF(SUM($D50,I19)>BO$5,$AA30/I19,$AA30-SUM($I50:BN50))) -> 0 | BP50: =IF(BP$5<=$D50,0,IF(SUM($D50,I19)>BP$5,$AA30/I19,$AA30-SUM($I50:BO50))) -> 0 | BQ50: =IF(BQ$5<=$D50,0,IF(SUM($D50,I19)>BQ$5,$AA30/I19,$AA30-SUM($I50:BP50))) -> 0
D51: 2029 | E51: $m Real (2010) | J51: =IF(J$5<=$D51,0,IF(SUM($D51,I19)>J$5,$AB30/I19,$AB30-SUM($I51:I51))) -> 0 | K51: =IF(K$5<=$D51,0,IF(SUM($D51,I19)>K$5,$AB30/I19,$AB30-SUM($I51:J51))) -> 0 | L51: =IF(L$5<=$D51,0,IF(SUM($D51,I19)>L$5,$AB30/I19,$AB30-SUM($I51:K51))) -> 0 | M51: =IF(M$5<=$D51,0,IF(SUM($D51,I19)>M$5,$AB30/I19,$AB30-SUM($I51:L51))) -> 0 | N51: =IF(N$5<=$D51,0,IF(SUM($D51,I19)>N$5,$AB30/I19,$AB30-SUM($I51:M51))) -> 0 | O51: =IF(O$5<=$D51,0,IF(SUM($D51,I19)>O$5,$AB30/I19,$AB30-SUM($I51:N51))) -> 0 | P51: =IF(P$5<=$D51,0,IF(SUM($D51,I19)>P$5,$AB30/I19,$AB30-SUM($I51:O51))) -> 0 | Q51: =IF(Q$5<=$D51,0,IF(SUM($D51,I19)>Q$5,$AB30/I19,$AB30-SUM($I51:P51))) -> 0 | R51: =IF(R$5<=$D51,0,IF(SUM($D51,I19)>R$5,$AB30/I19,$AB30-SUM($I51:Q51))) -> 0 | S51: =IF(S$5<=$D51,0,IF(SUM($D51,I19)>S$5,$AB30/I19,$AB30-SUM($I51:R51))) -> 0 | T51: =IF(T$5<=$D51,0,IF(SUM($D51,I19)>T$5,$AB30/I19,$AB30-SUM($I51:S51))) -> 0 | U51: =IF(U$5<=$D51,0,IF(SUM($D51,I19)>U$5,$AB30/I19,$AB30-SUM($I51:T51))) -> 0 | V51: =IF(V$5<=$D51,0,IF(SUM($D51,I19)>V$5,$AB30/I19,$AB30-SUM($I51:U51))) -> 0 | W51: =IF(W$5<=$D51,0,IF(SUM($D51,I19)>W$5,$AB30/I19,$AB30-SUM($I51:V51))) -> 0 | X51: =IF(X$5<=$D51,0,IF(SUM($D51,I19)>X$5,$AB30/I19,$AB30-SUM($I51:W51))) -> 0 | Y51: =IF(Y$5<=$D51,0,IF(SUM($D51,I19)>Y$5,$AB30/I19,$AB30-SUM($I51:X51))) -> 0 | Z51: =IF(Z$5<=$D51,0,IF(SUM($D51,I19)>Z$5,$AB30/I19,$AB30-SUM($I51:Y51))) -> 0 | AA51: =IF(AA$5<=$D51,0,IF(SUM($D51,I19)>AA$5,$AB30/I19,$AB30-SUM($I51:Z51))) -> 0 | AB51: =IF(AB$5<=$D51,0,IF(SUM($D51,I19)>AB$5,$AB30/I19,$AB30-SUM($I51:AA51))) -> 0 | AC51: =IF(AC$5<=$D51,0,IF(SUM($D51,I19)>AC$5,$AB30/I19,$AB30-SUM($I51:AB51))) -> 0 | AD51: =IF(AD$5<=$D51,0,IF(SUM($D51,I19)>AD$5,$AB30/I19,$AB30-SUM($I51:AC51))) -> 0 | AE51: =IF(AE$5<=$D51,0,IF(SUM($D51,I19)>AE$5,$AB30/I19,$AB30-SUM($I51:AD51))) -> 0 | AF51: =IF(AF$5<=$D51,0,IF(SUM($D51,I19)>AF$5,$AB30/I19,$AB30-SUM($I51:AE51))) -> 0 | AG51: =IF(AG$5<=$D51,0,IF(SUM($D51,I19)>AG$5,$AB30/I19,$AB30-SUM($I51:AF51))) -> 0 | AH51: =IF(AH$5<=$D51,0,IF(SUM($D51,I19)>AH$5,$AB30/I19,$AB30-SUM($I51:AG51))) -> 0 | AI51: =IF(AI$5<=$D51,0,IF(SUM($D51,I19)>AI$5,$AB30/I19,$AB30-SUM($I51:AH51))) -> 0 | AJ51: =IF(AJ$5<=$D51,0,IF(SUM($D51,I19)>AJ$5,$AB30/I19,$AB30-SUM($I51:AI51))) -> 0 | AK51: =IF(AK$5<=$D51,0,IF(SUM($D51,I19)>AK$5,$AB30/I19,$AB30-SUM($I51:AJ51))) -> 0 | AL51: =IF(AL$5<=$D51,0,IF(SUM($D51,I19)>AL$5,$AB30/I19,$AB30-SUM($I51:AK51))) -> 0 | AM51: =IF(AM$5<=$D51,0,IF(SUM($D51,I19)>AM$5,$AB30/I19,$AB30-SUM($I51:AL51))) -> 0 | AN51: =IF(AN$5<=$D51,0,IF(SUM($D51,I19)>AN$5,$AB30/I19,$AB30-SUM($I51:AM51))) -> 0 | AO51: =IF(AO$5<=$D51,0,IF(SUM($D51,I19)>AO$5,$AB30/I19,$AB30-SUM($I51:AN51))) -> 0 | AP51: =IF(AP$5<=$D51,0,IF(SUM($D51,I19)>AP$5,$AB30/I19,$AB30-SUM($I51:AO51))) -> 0 | AQ51: =IF(AQ$5<=$D51,0,IF(SUM($D51,I19)>AQ$5,$AB30/I19,$AB30-SUM($I51:AP51))) -> 0 | AR51: =IF(AR$5<=$D51,0,IF(SUM($D51,I19)>AR$5,$AB30/I19,$AB30-SUM($I51:AQ51))) -> 0 | AS51: =IF(AS$5<=$D51,0,IF(SUM($D51,I19)>AS$5,$AB30/I19,$AB30-SUM($I51:AR51))) -> 0 | AT51: =IF(AT$5<=$D51,0,IF(SUM($D51,I19)>AT$5,$AB30/I19,$AB30-SUM($I51:AS51))) -> 0 | AU51: =IF(AU$5<=$D51,0,IF(SUM($D51,I19)>AU$5,$AB30/I19,$AB30-SUM($I51:AT51))) -> 0 | AV51: =IF(AV$5<=$D51,0,IF(SUM($D51,I19)>AV$5,$AB30/I19,$AB30-SUM($I51:AU51))) -> 0 | AW51: =IF(AW$5<=$D51,0,IF(SUM($D51,I19)>AW$5,$AB30/I19,$AB30-SUM($I51:AV51))) -> 0 | AX51: =IF(AX$5<=$D51,0,IF(SUM($D51,I19)>AX$5,$AB30/I19,$AB30-SUM($I51:AW51))) -> 0 | AY51: =IF(AY$5<=$D51,0,IF(SUM($D51,I19)>AY$5,$AB30/I19,$AB30-SUM($I51:AX51))) -> 0 | AZ51: =IF(AZ$5<=$D51,0,IF(SUM($D51,I19)>AZ$5,$AB30/I19,$AB30-SUM($I51:AY51))) -> 0 | BA51: =IF(BA$5<=$D51,0,IF(SUM($D51,I19)>BA$5,$AB30/I19,$AB30-SUM($I51:AZ51))) -> 0 | BB51: =IF(BB$5<=$D51,0,IF(SUM($D51,I19)>BB$5,$AB30/I19,$AB30-SUM($I51:BA51))) -> 0 | BC51: =IF(BC$5<=$D51,0,IF(SUM($D51,I19)>BC$5,$AB30/I19,$AB30-SUM($I51:BB51))) -> 0 | BD51: =IF(BD$5<=$D51,0,IF(SUM($D51,I19)>BD$5,$AB30/I19,$AB30-SUM($I51:BC51))) -> 0 | BE51: =IF(BE$5<=$D51,0,IF(SUM($D51,I19)>BE$5,$AB30/I19,$AB30-SUM($I51:BD51))) -> 0 | BF51: =IF(BF$5<=$D51,0,IF(SUM($D51,I19)>BF$5,$AB30/I19,$AB30-SUM($I51:BE51))) -> 0 | BG51: =IF(BG$5<=$D51,0,IF(SUM($D51,I19)>BG$5,$AB30/I19,$AB30-SUM($I51:BF51))) -> 0 | BH51: =IF(BH$5<=$D51,0,IF(SUM($D51,I19)>BH$5,$AB30/I19,$AB30-SUM($I51:BG51))) -> 0 | BI51: =IF(BI$5<=$D51,0,IF(SUM($D51,I19)>BI$5,$AB30/I19,$AB30-SUM($I51:BH51))) -> 0 | BJ51: =IF(BJ$5<=$D51,0,IF(SUM($D51,I19)>BJ$5,$AB30/I19,$AB30-SUM($I51:BI51))) -> 0 | BK51: =IF(BK$5<=$D51,0,IF(SUM($D51,I19)>BK$5,$AB30/I19,$AB30-SUM($I51:BJ51))) -> 0 | BL51: =IF(BL$5<=$D51,0,IF(SUM($D51,I19)>BL$5,$AB30/I19,$AB30-SUM($I51:BK51))) -> 0 | BM51: =IF(BM$5<=$D51,0,IF(SUM($D51,I19)>BM$5,$AB30/I19,$AB30-SUM($I51:BL51))) -> 0 | BN51: =IF(BN$5<=$D51,0,IF(SUM($D51,I19)>BN$5,$AB30/I19,$AB30-SUM($I51:BM51))) -> 0 | BO51: =IF(BO$5<=$D51,0,IF(SUM($D51,I19)>BO$5,$AB30/I19,$AB30-SUM($I51:BN51))) -> 0 | BP51: =IF(BP$5<=$D51,0,IF(SUM($D51,I19)>BP$5,$AB30/I19,$AB30-SUM($I51:BO51))) -> 0 | BQ51: =IF(BQ$5<=$D51,0,IF(SUM($D51,I19)>BQ$5,$AB30/I19,$AB30-SUM($I51:BP51))) -> 0
D52: 2030 | E52: $m Real (2010) | J52: =IF(J$5<=$D52,0,IF(SUM($D52,I19)>J$5,$AC30/I19,$AC30-SUM($I52:I52))) -> 0 | K52: =IF(K$5<=$D52,0,IF(SUM($D52,I19)>K$5,$AC30/I19,$AC30-SUM($I52:J52))) -> 0 | L52: =IF(L$5<=$D52,0,IF(SUM($D52,I19)>L$5,$AC30/I19,$AC30-SUM($I52:K52))) -> 0 | M52: =IF(M$5<=$D52,0,IF(SUM($D52,I19)>M$5,$AC30/I19,$AC30-SUM($I52:L52))) -> 0 | N52: =IF(N$5<=$D52,0,IF(SUM($D52,I19)>N$5,$AC30/I19,$AC30-SUM($I52:M52))) -> 0 | O52: =IF(O$5<=$D52,0,IF(SUM($D52,I19)>O$5,$AC30/I19,$AC30-SUM($I52:N52))) -> 0 | P52: =IF(P$5<=$D52,0,IF(SUM($D52,I19)>P$5,$AC30/I19,$AC30-SUM($I52:O52))) -> 0 | Q52: =IF(Q$5<=$D52,0,IF(SUM($D52,I19)>Q$5,$AC30/I19,$AC30-SUM($I52:P52))) -> 0 | R52: =IF(R$5<=$D52,0,IF(SUM($D52,I19)>R$5,$AC30/I19,$AC30-SUM($I52:Q52))) -> 0 | S52: =IF(S$5<=$D52,0,IF(SUM($D52,I19)>S$5,$AC30/I19,$AC30-SUM($I52:R52))) -> 0 | T52: =IF(T$5<=$D52,0,IF(SUM($D52,I19)>T$5,$AC30/I19,$AC30-SUM($I52:S52))) -> 0 | U52: =IF(U$5<=$D52,0,IF(SUM($D52,I19)>U$5,$AC30/I19,$AC30-SUM($I52:T52))) -> 0 | V52: =IF(V$5<=$D52,0,IF(SUM($D52,I19)>V$5,$AC30/I19,$AC30-SUM($I52:U52))) -> 0 | W52: =IF(W$5<=$D52,0,IF(SUM($D52,I19)>W$5,$AC30/I19,$AC30-SUM($I52:V52))) -> 0 | X52: =IF(X$5<=$D52,0,IF(SUM($D52,I19)>X$5,$AC30/I19,$AC30-SUM($I52:W52))) -> 0 | Y52: =IF(Y$5<=$D52,0,IF(SUM($D52,I19)>Y$5,$AC30/I19,$AC30-SUM($I52:X52))) -> 0 | Z52: =IF(Z$5<=$D52,0,IF(SUM($D52,I19)>Z$5,$AC30/I19,$AC30-SUM($I52:Y52))) -> 0 | AA52: =IF(AA$5<=$D52,0,IF(SUM($D52,I19)>AA$5,$AC30/I19,$AC30-SUM($I52:Z52))) -> 0 | AB52: =IF(AB$5<=$D52,0,IF(SUM($D52,I19)>AB$5,$AC30/I19,$AC30-SUM($I52:AA52))) -> 0 | AC52: =IF(AC$5<=$D52,0,IF(SUM($D52,I19)>AC$5,$AC30/I19,$AC30-SUM($I52:AB52))) -> 0 | AD52: =IF(AD$5<=$D52,0,IF(SUM($D52,I19)>AD$5,$AC30/I19,$AC30-SUM($I52:AC52))) -> 0 | AE52: =IF(AE$5<=$D52,0,IF(SUM($D52,I19)>AE$5,$AC30/I19,$AC30-SUM($I52:AD52))) -> 0 | AF52: =IF(AF$5<=$D52,0,IF(SUM($D52,I19)>AF$5,$AC30/I19,$AC30-SUM($I52:AE52))) -> 0 | AG52: =IF(AG$5<=$D52,0,IF(SUM($D52,I19)>AG$5,$AC30/I19,$AC30-SUM($I52:AF52))) -> 0 | AH52: =IF(AH$5<=$D52,0,IF(SUM($D52,I19)>AH$5,$AC30/I19,$AC30-SUM($I52:AG52))) -> 0 | AI52: =IF(AI$5<=$D52,0,IF(SUM($D52,I19)>AI$5,$AC30/I19,$AC30-SUM($I52:AH52))) -> 0 | AJ52: =IF(AJ$5<=$D52,0,IF(SUM($D52,I19)>AJ$5,$AC30/I19,$AC30-SUM($I52:AI52))) -> 0 | AK52: =IF(AK$5<=$D52,0,IF(SUM($D52,I19)>AK$5,$AC30/I19,$AC30-SUM($I52:AJ52))) -> 0 | AL52: =IF(AL$5<=$D52,0,IF(SUM($D52,I19)>AL$5,$AC30/I19,$AC30-SUM($I52:AK52))) -> 0 | AM52: =IF(AM$5<=$D52,0,IF(SUM($D52,I19)>AM$5,$AC30/I19,$AC30-SUM($I52:AL52))) -> 0 | AN52: =IF(AN$5<=$D52,0,IF(SUM($D52,I19)>AN$5,$AC30/I19,$AC30-SUM($I52:AM52))) -> 0 | AO52: =IF(AO$5<=$D52,0,IF(SUM($D52,I19)>AO$5,$AC30/I19,$AC30-SUM($I52:AN52))) -> 0 | AP52: =IF(AP$5<=$D52,0,IF(SUM($D52,I19)>AP$5,$AC30/I19,$AC30-SUM($I52:AO52))) -> 0 | AQ52: =IF(AQ$5<=$D52,0,IF(SUM($D52,I19)>AQ$5,$AC30/I19,$AC30-SUM($I52:AP52))) -> 0 | AR52: =IF(AR$5<=$D52,0,IF(SUM($D52,I19)>AR$5,$AC30/I19,$AC30-SUM($I52:AQ52))) -> 0 | AS52: =IF(AS$5<=$D52,0,IF(SUM($D52,I19)>AS$5,$AC30/I19,$AC30-SUM($I52:AR52))) -> 0 | AT52: =IF(AT$5<=$D52,0,IF(SUM($D52,I19)>AT$5,$AC30/I19,$AC30-SUM($I52:AS52))) -> 0 | AU52: =IF(AU$5<=$D52,0,IF(SUM($D52,I19)>AU$5,$AC30/I19,$AC30-SUM($I52:AT52))) -> 0 | AV52: =IF(AV$5<=$D52,0,IF(SUM($D52,I19)>AV$5,$AC30/I19,$AC30-SUM($I52:AU52))) -> 0 | AW52: =IF(AW$5<=$D52,0,IF(SUM($D52,I19)>AW$5,$AC30/I19,$AC30-SUM($I52:AV52))) -> 0 | AX52: =IF(AX$5<=$D52,0,IF(SUM($D52,I19)>AX$5,$AC30/I19,$AC30-SUM($I52:AW52))) -> 0 | AY52: =IF(AY$5<=$D52,0,IF(SUM($D52,I19)>AY$5,$AC30/I19,$AC30-SUM($I52:AX52))) -> 0 | AZ52: =IF(AZ$5<=$D52,0,IF(SUM($D52,I19)>AZ$5,$AC30/I19,$AC30-SUM($I52:AY52))) -> 0 | BA52: =IF(BA$5<=$D52,0,IF(SUM($D52,I19)>BA$5,$AC30/I19,$AC30-SUM($I52:AZ52))) -> 0 | BB52: =IF(BB$5<=$D52,0,IF(SUM($D52,I19)>BB$5,$AC30/I19,$AC30-SUM($I52:BA52))) -> 0 | BC52: =IF(BC$5<=$D52,0,IF(SUM($D52,I19)>BC$5,$AC30/I19,$AC30-SUM($I52:BB52))) -> 0 | BD52: =IF(BD$5<=$D52,0,IF(SUM($D52,I19)>BD$5,$AC30/I19,$AC30-SUM($I52:BC52))) -> 0 | BE52: =IF(BE$5<=$D52,0,IF(SUM($D52,I19)>BE$5,$AC30/I19,$AC30-SUM($I52:BD52))) -> 0 | BF52: =IF(BF$5<=$D52,0,IF(SUM($D52,I19)>BF$5,$AC30/I19,$AC30-SUM($I52:BE52))) -> 0 | BG52: =IF(BG$5<=$D52,0,IF(SUM($D52,I19)>BG$5,$AC30/I19,$AC30-SUM($I52:BF52))) -> 0 | BH52: =IF(BH$5<=$D52,0,IF(SUM($D52,I19)>BH$5,$AC30/I19,$AC30-SUM($I52:BG52))) -> 0 | BI52: =IF(BI$5<=$D52,0,IF(SUM($D52,I19)>BI$5,$AC30/I19,$AC30-SUM($I52:BH52))) -> 0 | BJ52: =IF(BJ$5<=$D52,0,IF(SUM($D52,I19)>BJ$5,$AC30/I19,$AC30-SUM($I52:BI52))) -> 0 | BK52: =IF(BK$5<=$D52,0,IF(SUM($D52,I19)>BK$5,$AC30/I19,$AC30-SUM($I52:BJ52))) -> 0 | BL52: =IF(BL$5<=$D52,0,IF(SUM($D52,I19)>BL$5,$AC30/I19,$AC30-SUM($I52:BK52))) -> 0 | BM52: =IF(BM$5<=$D52,0,IF(SUM($D52,I19)>BM$5,$AC30/I19,$AC30-SUM($I52:BL52))) -> 0 | BN52: =IF(BN$5<=$D52,0,IF(SUM($D52,I19)>BN$5,$AC30/I19,$AC30-SUM($I52:BM52))) -> 0 | BO52: =IF(BO$5<=$D52,0,IF(SUM($D52,I19)>BO$5,$AC30/I19,$AC30-SUM($I52:BN52))) -> 0 | BP52: =IF(BP$5<=$D52,0,IF(SUM($D52,I19)>BP$5,$AC30/I19,$AC30-SUM($I52:BO52))) -> 0 | BQ52: =IF(BQ$5<=$D52,0,IF(SUM($D52,I19)>BQ$5,$AC30/I19,$AC30-SUM($I52:BP52))) -> 0
D53: 2031 | E53: $m Real (2010) | J53: =IF(J$5<=$D53,0,IF(SUM($D53,I19)>J$5,$AD30/I19,$AD30-SUM($I53:I53))) -> 0 | K53: =IF(K$5<=$D53,0,IF(SUM($D53,I19)>K$5,$AD30/I19,$AD30-SUM($I53:J53))) -> 0 | L53: =IF(L$5<=$D53,0,IF(SUM($D53,I19)>L$5,$AD30/I19,$AD30-SUM($I53:K53))) -> 0 | M53: =IF(M$5<=$D53,0,IF(SUM($D53,I19)>M$5,$AD30/I19,$AD30-SUM($I53:L53))) -> 0 | N53: =IF(N$5<=$D53,0,IF(SUM($D53,I19)>N$5,$AD30/I19,$AD30-SUM($I53:M53))) -> 0 | O53: =IF(O$5<=$D53,0,IF(SUM($D53,I19)>O$5,$AD30/I19,$AD30-SUM($I53:N53))) -> 0 | P53: =IF(P$5<=$D53,0,IF(SUM($D53,I19)>P$5,$AD30/I19,$AD30-SUM($I53:O53))) -> 0 | Q53: =IF(Q$5<=$D53,0,IF(SUM($D53,I19)>Q$5,$AD30/I19,$AD30-SUM($I53:P53))) -> 0 | R53: =IF(R$5<=$D53,0,IF(SUM($D53,I19)>R$5,$AD30/I19,$AD30-SUM($I53:Q53))) -> 0 | S53: =IF(S$5<=$D53,0,IF(SUM($D53,I19)>S$5,$AD30/I19,$AD30-SUM($I53:R53))) -> 0 | T53: =IF(T$5<=$D53,0,IF(SUM($D53,I19)>T$5,$AD30/I19,$AD30-SUM($I53:S53))) -> 0 | U53: =IF(U$5<=$D53,0,IF(SUM($D53,I19)>U$5,$AD30/I19,$AD30-SUM($I53:T53))) -> 0 | V53: =IF(V$5<=$D53,0,IF(SUM($D53,I19)>V$5,$AD30/I19,$AD30-SUM($I53:U53))) -> 0 | W53: =IF(W$5<=$D53,0,IF(SUM($D53,I19)>W$5,$AD30/I19,$AD30-SUM($I53:V53))) -> 0 | X53: =IF(X$5<=$D53,0,IF(SUM($D53,I19)>X$5,$AD30/I19,$AD30-SUM($I53:W53))) -> 0 | Y53: =IF(Y$5<=$D53,0,IF(SUM($D53,I19)>Y$5,$AD30/I19,$AD30-SUM($I53:X53))) -> 0 | Z53: =IF(Z$5<=$D53,0,IF(SUM($D53,I19)>Z$5,$AD30/I19,$AD30-SUM($I53:Y53))) -> 0 | AA53: =IF(AA$5<=$D53,0,IF(SUM($D53,I19)>AA$5,$AD30/I19,$AD30-SUM($I53:Z53))) -> 0 | AB53: =IF(AB$5<=$D53,0,IF(SUM($D53,I19)>AB$5,$AD30/I19,$AD30-SUM($I53:AA53))) -> 0 | AC53: =IF(AC$5<=$D53,0,IF(SUM($D53,I19)>AC$5,$AD30/I19,$AD30-SUM($I53:AB53))) -> 0 | AD53: =IF(AD$5<=$D53,0,IF(SUM($D53,I19)>AD$5,$AD30/I19,$AD30-SUM($I53:AC53))) -> 0 | AE53: =IF(AE$5<=$D53,0,IF(SUM($D53,I19)>AE$5,$AD30/I19,$AD30-SUM($I53:AD53))) -> 0 | AF53: =IF(AF$5<=$D53,0,IF(SUM($D53,I19)>AF$5,$AD30/I19,$AD30-SUM($I53:AE53))) -> 0 | AG53: =IF(AG$5<=$D53,0,IF(SUM($D53,I19)>AG$5,$AD30/I19,$AD30-SUM($I53:AF53))) -> 0 | AH53: =IF(AH$5<=$D53,0,IF(SUM($D53,I19)>AH$5,$AD30/I19,$AD30-SUM($I53:AG53))) -> 0 | AI53: =IF(AI$5<=$D53,0,IF(SUM($D53,I19)>AI$5,$AD30/I19,$AD30-SUM($I53:AH53))) -> 0 | AJ53: =IF(AJ$5<=$D53,0,IF(SUM($D53,I19)>AJ$5,$AD30/I19,$AD30-SUM($I53:AI53))) -> 0 | AK53: =IF(AK$5<=$D53,0,IF(SUM($D53,I19)>AK$5,$AD30/I19,$AD30-SUM($I53:AJ53))) -> 0 | AL53: =IF(AL$5<=$D53,0,IF(SUM($D53,I19)>AL$5,$AD30/I19,$AD30-SUM($I53:AK53))) -> 0 | AM53: =IF(AM$5<=$D53,0,IF(SUM($D53,I19)>AM$5,$AD30/I19,$AD30-SUM($I53:AL53))) -> 0 | AN53: =IF(AN$5<=$D53,0,IF(SUM($D53,I19)>AN$5,$AD30/I19,$AD30-SUM($I53:AM53))) -> 0 | AO53: =IF(AO$5<=$D53,0,IF(SUM($D53,I19)>AO$5,$AD30/I19,$AD30-SUM($I53:AN53))) -> 0 | AP53: =IF(AP$5<=$D53,0,IF(SUM($D53,I19)>AP$5,$AD30/I19,$AD30-SUM($I53:AO53))) -> 0 | AQ53: =IF(AQ$5<=$D53,0,IF(SUM($D53,I19)>AQ$5,$AD30/I19,$AD30-SUM($I53:AP53))) -> 0 | AR53: =IF(AR$5<=$D53,0,IF(SUM($D53,I19)>AR$5,$AD30/I19,$AD30-SUM($I53:AQ53))) -> 0 | AS53: =IF(AS$5<=$D53,0,IF(SUM($D53,I19)>AS$5,$AD30/I19,$AD30-SUM($I53:AR53))) -> 0 | AT53: =IF(AT$5<=$D53,0,IF(SUM($D53,I19)>AT$5,$AD30/I19,$AD30-SUM($I53:AS53))) -> 0 | AU53: =IF(AU$5<=$D53,0,IF(SUM($D53,I19)>AU$5,$AD30/I19,$AD30-SUM($I53:AT53))) -> 0 | AV53: =IF(AV$5<=$D53,0,IF(SUM($D53,I19)>AV$5,$AD30/I19,$AD30-SUM($I53:AU53))) -> 0 | AW53: =IF(AW$5<=$D53,0,IF(SUM($D53,I19)>AW$5,$AD30/I19,$AD30-SUM($I53:AV53))) -> 0 | AX53: =IF(AX$5<=$D53,0,IF(SUM($D53,I19)>AX$5,$AD30/I19,$AD30-SUM($I53:AW53))) -> 0 | AY53: =IF(AY$5<=$D53,0,IF(SUM($D53,I19)>AY$5,$AD30/I19,$AD30-SUM($I53:AX53))) -> 0 | AZ53: =IF(AZ$5<=$D53,0,IF(SUM($D53,I19)>AZ$5,$AD30/I19,$AD30-SUM($I53:AY53))) -> 0 | BA53: =IF(BA$5<=$D53,0,IF(SUM($D53,I19)>BA$5,$AD30/I19,$AD30-SUM($I53:AZ53))) -> 0 | BB53: =IF(BB$5<=$D53,0,IF(SUM($D53,I19)>BB$5,$AD30/I19,$AD30-SUM($I53:BA53))) -> 0 | BC53: =IF(BC$5<=$D53,0,IF(SUM($D53,I19)>BC$5,$AD30/I19,$AD30-SUM($I53:BB53))) -> 0 | BD53: =IF(BD$5<=$D53,0,IF(SUM($D53,I19)>BD$5,$AD30/I19,$AD30-SUM($I53:BC53))) -> 0 | BE53: =IF(BE$5<=$D53,0,IF(SUM($D53,I19)>BE$5,$AD30/I19,$AD30-SUM($I53:BD53))) -> 0 | BF53: =IF(BF$5<=$D53,0,IF(SUM($D53,I19)>BF$5,$AD30/I19,$AD30-SUM($I53:BE53))) -> 0 | BG53: =IF(BG$5<=$D53,0,IF(SUM($D53,I19)>BG$5,$AD30/I19,$AD30-SUM($I53:BF53))) -> 0 | BH53: =IF(BH$5<=$D53,0,IF(SUM($D53,I19)>BH$5,$AD30/I19,$AD30-SUM($I53:BG53))) -> 0 | BI53: =IF(BI$5<=$D53,0,IF(SUM($D53,I19)>BI$5,$AD30/I19,$AD30-SUM($I53:BH53))) -> 0 | BJ53: =IF(BJ$5<=$D53,0,IF(SUM($D53,I19)>BJ$5,$AD30/I19,$AD30-SUM($I53:BI53))) -> 0 | BK53: =IF(BK$5<=$D53,0,IF(SUM($D53,I19)>BK$5,$AD30/I19,$AD30-SUM($I53:BJ53))) -> 0 | BL53: =IF(BL$5<=$D53,0,IF(SUM($D53,I19)>BL$5,$AD30/I19,$AD30-SUM($I53:BK53))) -> 0 | BM53: =IF(BM$5<=$D53,0,IF(SUM($D53,I19)>BM$5,$AD30/I19,$AD30-SUM($I53:BL53))) -> 0 | BN53: =IF(BN$5<=$D53,0,IF(SUM($D53,I19)>BN$5,$AD30/I19,$AD30-SUM($I53:BM53))) -> 0 | BO53: =IF(BO$5<=$D53,0,IF(SUM($D53,I19)>BO$5,$AD30/I19,$AD30-SUM($I53:BN53))) -> 0 | BP53: =IF(BP$5<=$D53,0,IF(SUM($D53,I19)>BP$5,$AD30/I19,$AD30-SUM($I53:BO53))) -> 0 | BQ53: =IF(BQ$5<=$D53,0,IF(SUM($D53,I19)>BQ$5,$AD30/I19,$AD30-SUM($I53:BP53))) -> 0
D54: 2032 | E54: $m Real (2010) | J54: =IF(J$5<=$D54,0,IF(SUM($D54,I19)>J$5,$AE30/I19,$AE30-SUM($I54:I54))) -> 0 | K54: =IF(K$5<=$D54,0,IF(SUM($D54,I19)>K$5,$AE30/I19,$AE30-SUM($I54:J54))) -> 0 | L54: =IF(L$5<=$D54,0,IF(SUM($D54,I19)>L$5,$AE30/I19,$AE30-SUM($I54:K54))) -> 0 | M54: =IF(M$5<=$D54,0,IF(SUM($D54,I19)>M$5,$AE30/I19,$AE30-SUM($I54:L54))) -> 0 | N54: =IF(N$5<=$D54,0,IF(SUM($D54,I19)>N$5,$AE30/I19,$AE30-SUM($I54:M54))) -> 0 | O54: =IF(O$5<=$D54,0,IF(SUM($D54,I19)>O$5,$AE30/I19,$AE30-SUM($I54:N54))) -> 0 | P54: =IF(P$5<=$D54,0,IF(SUM($D54,I19)>P$5,$AE30/I19,$AE30-SUM($I54:O54))) -> 0 | Q54: =IF(Q$5<=$D54,0,IF(SUM($D54,I19)>Q$5,$AE30/I19,$AE30-SUM($I54:P54))) -> 0 | R54: =IF(R$5<=$D54,0,IF(SUM($D54,I19)>R$5,$AE30/I19,$AE30-SUM($I54:Q54))) -> 0 | S54: =IF(S$5<=$D54,0,IF(SUM($D54,I19)>S$5,$AE30/I19,$AE30-SUM($I54:R54))) -> 0 | T54: =IF(T$5<=$D54,0,IF(SUM($D54,I19)>T$5,$AE30/I19,$AE30-SUM($I54:S54))) -> 0 | U54: =IF(U$5<=$D54,0,IF(SUM($D54,I19)>U$5,$AE30/I19,$AE30-SUM($I54:T54))) -> 0 | V54: =IF(V$5<=$D54,0,IF(SUM($D54,I19)>V$5,$AE30/I19,$AE30-SUM($I54:U54))) -> 0 | W54: =IF(W$5<=$D54,0,IF(SUM($D54,I19)>W$5,$AE30/I19,$AE30-SUM($I54:V54))) -> 0 | X54: =IF(X$5<=$D54,0,IF(SUM($D54,I19)>X$5,$AE30/I19,$AE30-SUM($I54:W54))) -> 0 | Y54: =IF(Y$5<=$D54,0,IF(SUM($D54,I19)>Y$5,$AE30/I19,$AE30-SUM($I54:X54))) -> 0 | Z54: =IF(Z$5<=$D54,0,IF(SUM($D54,I19)>Z$5,$AE30/I19,$AE30-SUM($I54:Y54))) -> 0 | AA54: =IF(AA$5<=$D54,0,IF(SUM($D54,I19)>AA$5,$AE30/I19,$AE30-SUM($I54:Z54))) -> 0 | AB54: =IF(AB$5<=$D54,0,IF(SUM($D54,I19)>AB$5,$AE30/I19,$AE30-SUM($I54:AA54))) -> 0 | AC54: =IF(AC$5<=$D54,0,IF(SUM($D54,I19)>AC$5,$AE30/I19,$AE30-SUM($I54:AB54))) -> 0 | AD54: =IF(AD$5<=$D54,0,IF(SUM($D54,I19)>AD$5,$AE30/I19,$AE30-SUM($I54:AC54))) -> 0 | AE54: =IF(AE$5<=$D54,0,IF(SUM($D54,I19)>AE$5,$AE30/I19,$AE30-SUM($I54:AD54))) -> 0 | AF54: =IF(AF$5<=$D54,0,IF(SUM($D54,I19)>AF$5,$AE30/I19,$AE30-SUM($I54:AE54))) -> 0 | AG54: =IF(AG$5<=$D54,0,IF(SUM($D54,I19)>AG$5,$AE30/I19,$AE30-SUM($I54:AF54))) -> 0 | AH54: =IF(AH$5<=$D54,0,IF(SUM($D54,I19)>AH$5,$AE30/I19,$AE30-SUM($I54:AG54))) -> 0 | AI54: =IF(AI$5<=$D54,0,IF(SUM($D54,I19)>AI$5,$AE30/I19,$AE30-SUM($I54:AH54))) -> 0 | AJ54: =IF(AJ$5<=$D54,0,IF(SUM($D54,I19)>AJ$5,$AE30/I19,$AE30-SUM($I54:AI54))) -> 0 | AK54: =IF(AK$5<=$D54,0,IF(SUM($D54,I19)>AK$5,$AE30/I19,$AE30-SUM($I54:AJ54))) -> 0 | AL54: =IF(AL$5<=$D54,0,IF(SUM($D54,I19)>AL$5,$AE30/I19,$AE30-SUM($I54:AK54))) -> 0 | AM54: =IF(AM$5<=$D54,0,IF(SUM($D54,I19)>AM$5,$AE30/I19,$AE30-SUM($I54:AL54))) -> 0 | AN54: =IF(AN$5<=$D54,0,IF(SUM($D54,I19)>AN$5,$AE30/I19,$AE30-SUM($I54:AM54))) -> 0 | AO54: =IF(AO$5<=$D54,0,IF(SUM($D54,I19)>AO$5,$AE30/I19,$AE30-SUM($I54:AN54))) -> 0 | AP54: =IF(AP$5<=$D54,0,IF(SUM($D54,I19)>AP$5,$AE30/I19,$AE30-SUM($I54:AO54))) -> 0 | AQ54: =IF(AQ$5<=$D54,0,IF(SUM($D54,I19)>AQ$5,$AE30/I19,$AE30-SUM($I54:AP54))) -> 0 | AR54: =IF(AR$5<=$D54,0,IF(SUM($D54,I19)>AR$5,$AE30/I19,$AE30-SUM($I54:AQ54))) -> 0 | AS54: =IF(AS$5<=$D54,0,IF(SUM($D54,I19)>AS$5,$AE30/I19,$AE30-SUM($I54:AR54))) -> 0 | AT54: =IF(AT$5<=$D54,0,IF(SUM($D54,I19)>AT$5,$AE30/I19,$AE30-SUM($I54:AS54))) -> 0 | AU54: =IF(AU$5<=$D54,0,IF(SUM($D54,I19)>AU$5,$AE30/I19,$AE30-SUM($I54:AT54))) -> 0 | AV54: =IF(AV$5<=$D54,0,IF(SUM($D54,I19)>AV$5,$AE30/I19,$AE30-SUM($I54:AU54))) -> 0 | AW54: =IF(AW$5<=$D54,0,IF(SUM($D54,I19)>AW$5,$AE30/I19,$AE30-SUM($I54:AV54))) -> 0 | AX54: =IF(AX$5<=$D54,0,IF(SUM($D54,I19)>AX$5,$AE30/I19,$AE30-SUM($I54:AW54))) -> 0 | AY54: =IF(AY$5<=$D54,0,IF(SUM($D54,I19)>AY$5,$AE30/I19,$AE30-SUM($I54:AX54))) -> 0 | AZ54: =IF(AZ$5<=$D54,0,IF(SUM($D54,I19)>AZ$5,$AE30/I19,$AE30-SUM($I54:AY54))) -> 0 | BA54: =IF(BA$5<=$D54,0,IF(SUM($D54,I19)>BA$5,$AE30/I19,$AE30-SUM($I54:AZ54))) -> 0 | BB54: =IF(BB$5<=$D54,0,IF(SUM($D54,I19)>BB$5,$AE30/I19,$AE30-SUM($I54:BA54))) -> 0 | BC54: =IF(BC$5<=$D54,0,IF(SUM($D54,I19)>BC$5,$AE30/I19,$AE30-SUM($I54:BB54))) -> 0 | BD54: =IF(BD$5<=$D54,0,IF(SUM($D54,I19)>BD$5,$AE30/I19,$AE30-SUM($I54:BC54))) -> 0 | BE54: =IF(BE$5<=$D54,0,IF(SUM($D54,I19)>BE$5,$AE30/I19,$AE30-SUM($I54:BD54))) -> 0 | BF54: =IF(BF$5<=$D54,0,IF(SUM($D54,I19)>BF$5,$AE30/I19,$AE30-SUM($I54:BE54))) -> 0 | BG54: =IF(BG$5<=$D54,0,IF(SUM($D54,I19)>BG$5,$AE30/I19,$AE30-SUM($I54:BF54))) -> 0 | BH54: =IF(BH$5<=$D54,0,IF(SUM($D54,I19)>BH$5,$AE30/I19,$AE30-SUM($I54:BG54))) -> 0 | BI54: =IF(BI$5<=$D54,0,IF(SUM($D54,I19)>BI$5,$AE30/I19,$AE30-SUM($I54:BH54))) -> 0 | BJ54: =IF(BJ$5<=$D54,0,IF(SUM($D54,I19)>BJ$5,$AE30/I19,$AE30-SUM($I54:BI54))) -> 0 | BK54: =IF(BK$5<=$D54,0,IF(SUM($D54,I19)>BK$5,$AE30/I19,$AE30-SUM($I54:BJ54))) -> 0 | BL54: =IF(BL$5<=$D54,0,IF(SUM($D54,I19)>BL$5,$AE30/I19,$AE30-SUM($I54:BK54))) -> 0 | BM54: =IF(BM$5<=$D54,0,IF(SUM($D54,I19)>BM$5,$AE30/I19,$AE30-SUM($I54:BL54))) -> 0 | BN54: =IF(BN$5<=$D54,0,IF(SUM($D54,I19)>BN$5,$AE30/I19,$AE30-SUM($I54:BM54))) -> 0 | BO54: =IF(BO$5<=$D54,0,IF(SUM($D54,I19)>BO$5,$AE30/I19,$AE30-SUM($I54:BN54))) -> 0 | BP54: =IF(BP$5<=$D54,0,IF(SUM($D54,I19)>BP$5,$AE30/I19,$AE30-SUM($I54:BO54))) -> 0 | BQ54: =IF(BQ$5<=$D54,0,IF(SUM($D54,I19)>BQ$5,$AE30/I19,$AE30-SUM($I54:BP54))) -> 0
D55: 2033 | E55: $m Real (2010) | J55: =IF(J$5<=$D55,0,IF(SUM($D55,I19)>J$5,$AF30/I19,$AF30-SUM($I55:I55))) -> 0 | K55: =IF(K$5<=$D55,0,IF(SUM($D55,I19)>K$5,$AF30/I19,$AF30-SUM($I55:J55))) -> 0 | L55: =IF(L$5<=$D55,0,IF(SUM($D55,I19)>L$5,$AF30/I19,$AF30-SUM($I55:K55))) -> 0 | M55: =IF(M$5<=$D55,0,IF(SUM($D55,I19)>M$5,$AF30/I19,$AF30-SUM($I55:L55))) -> 0 | N55: =IF(N$5<=$D55,0,IF(SUM($D55,I19)>N$5,$AF30/I19,$AF30-SUM($I55:M55))) -> 0 | O55: =IF(O$5<=$D55,0,IF(SUM($D55,I19)>O$5,$AF30/I19,$AF30-SUM($I55:N55))) -> 0 | P55: =IF(P$5<=$D55,0,IF(SUM($D55,I19)>P$5,$AF30/I19,$AF30-SUM($I55:O55))) -> 0 | Q55: =IF(Q$5<=$D55,0,IF(SUM($D55,I19)>Q$5,$AF30/I19,$AF30-SUM($I55:P55))) -> 0 | R55: =IF(R$5<=$D55,0,IF(SUM($D55,I19)>R$5,$AF30/I19,$AF30-SUM($I55:Q55))) -> 0 | S55: =IF(S$5<=$D55,0,IF(SUM($D55,I19)>S$5,$AF30/I19,$AF30-SUM($I55:R55))) -> 0 | T55: =IF(T$5<=$D55,0,IF(SUM($D55,I19)>T$5,$AF30/I19,$AF30-SUM($I55:S55))) -> 0 | U55: =IF(U$5<=$D55,0,IF(SUM($D55,I19)>U$5,$AF30/I19,$AF30-SUM($I55:T55))) -> 0 | V55: =IF(V$5<=$D55,0,IF(SUM($D55,I19)>V$5,$AF30/I19,$AF30-SUM($I55:U55))) -> 0 | W55: =IF(W$5<=$D55,0,IF(SUM($D55,I19)>W$5,$AF30/I19,$AF30-SUM($I55:V55))) -> 0 | X55: =IF(X$5<=$D55,0,IF(SUM($D55,I19)>X$5,$AF30/I19,$AF30-SUM($I55:W55))) -> 0 | Y55: =IF(Y$5<=$D55,0,IF(SUM($D55,I19)>Y$5,$AF30/I19,$AF30-SUM($I55:X55))) -> 0 | Z55: =IF(Z$5<=$D55,0,IF(SUM($D55,I19)>Z$5,$AF30/I19,$AF30-SUM($I55:Y55))) -> 0 | AA55: =IF(AA$5<=$D55,0,IF(SUM($D55,I19)>AA$5,$AF30/I19,$AF30-SUM($I55:Z55))) -> 0 | AB55: =IF(AB$5<=$D55,0,IF(SUM($D55,I19)>AB$5,$AF30/I19,$AF30-SUM($I55:AA55))) -> 0 | AC55: =IF(AC$5<=$D55,0,IF(SUM($D55,I19)>AC$5,$AF30/I19,$AF30-SUM($I55:AB55))) -> 0 | AD55: =IF(AD$5<=$D55,0,IF(SUM($D55,I19)>AD$5,$AF30/I19,$AF30-SUM($I55:AC55))) -> 0 | AE55: =IF(AE$5<=$D55,0,IF(SUM($D55,I19)>AE$5,$AF30/I19,$AF30-SUM($I55:AD55))) -> 0 | AF55: =IF(AF$5<=$D55,0,IF(SUM($D55,I19)>AF$5,$AF30/I19,$AF30-SUM($I55:AE55))) -> 0 | AG55: =IF(AG$5<=$D55,0,IF(SUM($D55,I19)>AG$5,$AF30/I19,$AF30-SUM($I55:AF55))) -> 0 | AH55: =IF(AH$5<=$D55,0,IF(SUM($D55,I19)>AH$5,$AF30/I19,$AF30-SUM($I55:AG55))) -> 0 | AI55: =IF(AI$5<=$D55,0,IF(SUM($D55,I19)>AI$5,$AF30/I19,$AF30-SUM($I55:AH55))) -> 0 | AJ55: =IF(AJ$5<=$D55,0,IF(SUM($D55,I19)>AJ$5,$AF30/I19,$AF30-SUM($I55:AI55))) -> 0 | AK55: =IF(AK$5<=$D55,0,IF(SUM($D55,I19)>AK$5,$AF30/I19,$AF30-SUM($I55:AJ55))) -> 0 | AL55: =IF(AL$5<=$D55,0,IF(SUM($D55,I19)>AL$5,$AF30/I19,$AF30-SUM($I55:AK55))) -> 0 | AM55: =IF(AM$5<=$D55,0,IF(SUM($D55,I19)>AM$5,$AF30/I19,$AF30-SUM($I55:AL55))) -> 0 | AN55: =IF(AN$5<=$D55,0,IF(SUM($D55,I19)>AN$5,$AF30/I19,$AF30-SUM($I55:AM55))) -> 0 | AO55: =IF(AO$5<=$D55,0,IF(SUM($D55,I19)>AO$5,$AF30/I19,$AF30-SUM($I55:AN55))) -> 0 | AP55: =IF(AP$5<=$D55,0,IF(SUM($D55,I19)>AP$5,$AF30/I19,$AF30-SUM($I55:AO55))) -> 0 | AQ55: =IF(AQ$5<=$D55,0,IF(SUM($D55,I19)>AQ$5,$AF30/I19,$AF30-SUM($I55:AP55))) -> 0 | AR55: =IF(AR$5<=$D55,0,IF(SUM($D55,I19)>AR$5,$AF30/I19,$AF30-SUM($I55:AQ55))) -> 0 | AS55: =IF(AS$5<=$D55,0,IF(SUM($D55,I19)>AS$5,$AF30/I19,$AF30-SUM($I55:AR55))) -> 0 | AT55: =IF(AT$5<=$D55,0,IF(SUM($D55,I19)>AT$5,$AF30/I19,$AF30-SUM($I55:AS55))) -> 0 | AU55: =IF(AU$5<=$D55,0,IF(SUM($D55,I19)>AU$5,$AF30/I19,$AF30-SUM($I55:AT55))) -> 0 | AV55: =IF(AV$5<=$D55,0,IF(SUM($D55,I19)>AV$5,$AF30/I19,$AF30-SUM($I55:AU55))) -> 0 | AW55: =IF(AW$5<=$D55,0,IF(SUM($D55,I19)>AW$5,$AF30/I19,$AF30-SUM($I55:AV55))) -> 0 | AX55: =IF(AX$5<=$D55,0,IF(SUM($D55,I19)>AX$5,$AF30/I19,$AF30-SUM($I55:AW55))) -> 0 | AY55: =IF(AY$5<=$D55,0,IF(SUM($D55,I19)>AY$5,$AF30/I19,$AF30-SUM($I55:AX55))) -> 0 | AZ55: =IF(AZ$5<=$D55,0,IF(SUM($D55,I19)>AZ$5,$AF30/I19,$AF30-SUM($I55:AY55))) -> 0 | BA55: =IF(BA$5<=$D55,0,IF(SUM($D55,I19)>BA$5,$AF30/I19,$AF30-SUM($I55:AZ55))) -> 0 | BB55: =IF(BB$5<=$D55,0,IF(SUM($D55,I19)>BB$5,$AF30/I19,$AF30-SUM($I55:BA55))) -> 0 | BC55: =IF(BC$5<=$D55,0,IF(SUM($D55,I19)>BC$5,$AF30/I19,$AF30-SUM($I55:BB55))) -> 0 | BD55: =IF(BD$5<=$D55,0,IF(SUM($D55,I19)>BD$5,$AF30/I19,$AF30-SUM($I55:BC55))) -> 0 | BE55: =IF(BE$5<=$D55,0,IF(SUM($D55,I19)>BE$5,$AF30/I19,$AF30-SUM($I55:BD55))) -> 0 | BF55: =IF(BF$5<=$D55,0,IF(SUM($D55,I19)>BF$5,$AF30/I19,$AF30-SUM($I55:BE55))) -> 0 | BG55: =IF(BG$5<=$D55,0,IF(SUM($D55,I19)>BG$5,$AF30/I19,$AF30-SUM($I55:BF55))) -> 0 | BH55: =IF(BH$5<=$D55,0,IF(SUM($D55,I19)>BH$5,$AF30/I19,$AF30-SUM($I55:BG55))) -> 0 | BI55: =IF(BI$5<=$D55,0,IF(SUM($D55,I19)>BI$5,$AF30/I19,$AF30-SUM($I55:BH55))) -> 0 | BJ55: =IF(BJ$5<=$D55,0,IF(SUM($D55,I19)>BJ$5,$AF30/I19,$AF30-SUM($I55:BI55))) -> 0 | BK55: =IF(BK$5<=$D55,0,IF(SUM($D55,I19)>BK$5,$AF30/I19,$AF30-SUM($I55:BJ55))) -> 0 | BL55: =IF(BL$5<=$D55,0,IF(SUM($D55,I19)>BL$5,$AF30/I19,$AF30-SUM($I55:BK55))) -> 0 | BM55: =IF(BM$5<=$D55,0,IF(SUM($D55,I19)>BM$5,$AF30/I19,$AF30-SUM($I55:BL55))) -> 0 | BN55: =IF(BN$5<=$D55,0,IF(SUM($D55,I19)>BN$5,$AF30/I19,$AF30-SUM($I55:BM55))) -> 0 | BO55: =IF(BO$5<=$D55,0,IF(SUM($D55,I19)>BO$5,$AF30/I19,$AF30-SUM($I55:BN55))) -> 0 | BP55: =IF(BP$5<=$D55,0,IF(SUM($D55,I19)>BP$5,$AF30/I19,$AF30-SUM($I55:BO55))) -> 0 | BQ55: =IF(BQ$5<=$D55,0,IF(SUM($D55,I19)>BQ$5,$AF30/I19,$AF30-SUM($I55:BP55))) -> 0
D56: 2034 | E56: $m Real (2010) | J56: =IF(J$5<=$D56,0,IF(SUM($D56,I19)>J$5,$AG30/I19,$AG30-SUM($I56:I56))) -> 0 | K56: =IF(K$5<=$D56,0,IF(SUM($D56,I19)>K$5,$AG30/I19,$AG30-SUM($I56:J56))) -> 0 | L56: =IF(L$5<=$D56,0,IF(SUM($D56,I19)>L$5,$AG30/I19,$AG30-SUM($I56:K56))) -> 0 | M56: =IF(M$5<=$D56,0,IF(SUM($D56,I19)>M$5,$AG30/I19,$AG30-SUM($I56:L56))) -> 0 | N56: =IF(N$5<=$D56,0,IF(SUM($D56,I19)>N$5,$AG30/I19,$AG30-SUM($I56:M56))) -> 0 | O56: =IF(O$5<=$D56,0,IF(SUM($D56,I19)>O$5,$AG30/I19,$AG30-SUM($I56:N56))) -> 0 | P56: =IF(P$5<=$D56,0,IF(SUM($D56,I19)>P$5,$AG30/I19,$AG30-SUM($I56:O56))) -> 0 | Q56: =IF(Q$5<=$D56,0,IF(SUM($D56,I19)>Q$5,$AG30/I19,$AG30-SUM($I56:P56))) -> 0 | R56: =IF(R$5<=$D56,0,IF(SUM($D56,I19)>R$5,$AG30/I19,$AG30-SUM($I56:Q56))) -> 0 | S56: =IF(S$5<=$D56,0,IF(SUM($D56,I19)>S$5,$AG30/I19,$AG30-SUM($I56:R56))) -> 0 | T56: =IF(T$5<=$D56,0,IF(SUM($D56,I19)>T$5,$AG30/I19,$AG30-SUM($I56:S56))) -> 0 | U56: =IF(U$5<=$D56,0,IF(SUM($D56,I19)>U$5,$AG30/I19,$AG30-SUM($I56:T56))) -> 0 | V56: =IF(V$5<=$D56,0,IF(SUM($D56,I19)>V$5,$AG30/I19,$AG30-SUM($I56:U56))) -> 0 | W56: =IF(W$5<=$D56,0,IF(SUM($D56,I19)>W$5,$AG30/I19,$AG30-SUM($I56:V56))) -> 0 | X56: =IF(X$5<=$D56,0,IF(SUM($D56,I19)>X$5,$AG30/I19,$AG30-SUM($I56:W56))) -> 0 | Y56: =IF(Y$5<=$D56,0,IF(SUM($D56,I19)>Y$5,$AG30/I19,$AG30-SUM($I56:X56))) -> 0 | Z56: =IF(Z$5<=$D56,0,IF(SUM($D56,I19)>Z$5,$AG30/I19,$AG30-SUM($I56:Y56))) -> 0 | AA56: =IF(AA$5<=$D56,0,IF(SUM($D56,I19)>AA$5,$AG30/I19,$AG30-SUM($I56:Z56))) -> 0 | AB56: =IF(AB$5<=$D56,0,IF(SUM($D56,I19)>AB$5,$AG30/I19,$AG30-SUM($I56:AA56))) -> 0 | AC56: =IF(AC$5<=$D56,0,IF(SUM($D56,I19)>AC$5,$AG30/I19,$AG30-SUM($I56:AB56))) -> 0 | AD56: =IF(AD$5<=$D56,0,IF(SUM($D56,I19)>AD$5,$AG30/I19,$AG30-SUM($I56:AC56))) -> 0 | AE56: =IF(AE$5<=$D56,0,IF(SUM($D56,I19)>AE$5,$AG30/I19,$AG30-SUM($I56:AD56))) -> 0 | AF56: =IF(AF$5<=$D56,0,IF(SUM($D56,I19)>AF$5,$AG30/I19,$AG30-SUM($I56:AE56))) -> 0 | AG56: =IF(AG$5<=$D56,0,IF(SUM($D56,I19)>AG$5,$AG30/I19,$AG30-SUM($I56:AF56))) -> 0 | AH56: =IF(AH$5<=$D56,0,IF(SUM($D56,I19)>AH$5,$AG30/I19,$AG30-SUM($I56:AG56))) -> 0 | AI56: =IF(AI$5<=$D56,0,IF(SUM($D56,I19)>AI$5,$AG30/I19,$AG30-SUM($I56:AH56))) -> 0 | AJ56: =IF(AJ$5<=$D56,0,IF(SUM($D56,I19)>AJ$5,$AG30/I19,$AG30-SUM($I56:AI56))) -> 0 | AK56: =IF(AK$5<=$D56,0,IF(SUM($D56,I19)>AK$5,$AG30/I19,$AG30-SUM($I56:AJ56))) -> 0 | AL56: =IF(AL$5<=$D56,0,IF(SUM($D56,I19)>AL$5,$AG30/I19,$AG30-SUM($I56:AK56))) -> 0 | AM56: =IF(AM$5<=$D56,0,IF(SUM($D56,I19)>AM$5,$AG30/I19,$AG30-SUM($I56:AL56))) -> 0 | AN56: =IF(AN$5<=$D56,0,IF(SUM($D56,I19)>AN$5,$AG30/I19,$AG30-SUM($I56:AM56))) -> 0 | AO56: =IF(AO$5<=$D56,0,IF(SUM($D56,I19)>AO$5,$AG30/I19,$AG30-SUM($I56:AN56))) -> 0 | AP56: =IF(AP$5<=$D56,0,IF(SUM($D56,I19)>AP$5,$AG30/I19,$AG30-SUM($I56:AO56))) -> 0 | AQ56: =IF(AQ$5<=$D56,0,IF(SUM($D56,I19)>AQ$5,$AG30/I19,$AG30-SUM($I56:AP56))) -> 0 | AR56: =IF(AR$5<=$D56,0,IF(SUM($D56,I19)>AR$5,$AG30/I19,$AG30-SUM($I56:AQ56))) -> 0 | AS56: =IF(AS$5<=$D56,0,IF(SUM($D56,I19)>AS$5,$AG30/I19,$AG30-SUM($I56:AR56))) -> 0 | AT56: =IF(AT$5<=$D56,0,IF(SUM($D56,I19)>AT$5,$AG30/I19,$AG30-SUM($I56:AS56))) -> 0 | AU56: =IF(AU$5<=$D56,0,IF(SUM($D56,I19)>AU$5,$AG30/I19,$AG30-SUM($I56:AT56))) -> 0 | AV56: =IF(AV$5<=$D56,0,IF(SUM($D56,I19)>AV$5,$AG30/I19,$AG30-SUM($I56:AU56))) -> 0 | AW56: =IF(AW$5<=$D56,0,IF(SUM($D56,I19)>AW$5,$AG30/I19,$AG30-SUM($I56:AV56))) -> 0 | AX56: =IF(AX$5<=$D56,0,IF(SUM($D56,I19)>AX$5,$AG30/I19,$AG30-SUM($I56:AW56))) -> 0 | AY56: =IF(AY$5<=$D56,0,IF(SUM($D56,I19)>AY$5,$AG30/I19,$AG30-SUM($I56:AX56))) -> 0 | AZ56: =IF(AZ$5<=$D56,0,IF(SUM($D56,I19)>AZ$5,$AG30/I19,$AG30-SUM($I56:AY56))) -> 0 | BA56: =IF(BA$5<=$D56,0,IF(SUM($D56,I19)>BA$5,$AG30/I19,$AG30-SUM($I56:AZ56))) -> 0 | BB56: =IF(BB$5<=$D56,0,IF(SUM($D56,I19)>BB$5,$AG30/I19,$AG30-SUM($I56:BA56))) -> 0 | BC56: =IF(BC$5<=$D56,0,IF(SUM($D56,I19)>BC$5,$AG30/I19,$AG30-SUM($I56:BB56))) -> 0 | BD56: =IF(BD$5<=$D56,0,IF(SUM($D56,I19)>BD$5,$AG30/I19,$AG30-SUM($I56:BC56))) -> 0 | BE56: =IF(BE$5<=$D56,0,IF(SUM($D56,I19)>BE$5,$AG30/I19,$AG30-SUM($I56:BD56))) -> 0 | BF56: =IF(BF$5<=$D56,0,IF(SUM($D56,I19)>BF$5,$AG30/I19,$AG30-SUM($I56:BE56))) -> 0 | BG56: =IF(BG$5<=$D56,0,IF(SUM($D56,I19)>BG$5,$AG30/I19,$AG30-SUM($I56:BF56))) -> 0 | BH56: =IF(BH$5<=$D56,0,IF(SUM($D56,I19)>BH$5,$AG30/I19,$AG30-SUM($I56:BG56))) -> 0 | BI56: =IF(BI$5<=$D56,0,IF(SUM($D56,I19)>BI$5,$AG30/I19,$AG30-SUM($I56:BH56))) -> 0 | BJ56: =IF(BJ$5<=$D56,0,IF(SUM($D56,I19)>BJ$5,$AG30/I19,$AG30-SUM($I56:BI56))) -> 0 | BK56: =IF(BK$5<=$D56,0,IF(SUM($D56,I19)>BK$5,$AG30/I19,$AG30-SUM($I56:BJ56))) -> 0 | BL56: =IF(BL$5<=$D56,0,IF(SUM($D56,I19)>BL$5,$AG30/I19,$AG30-SUM($I56:BK56))) -> 0 | BM56: =IF(BM$5<=$D56,0,IF(SUM($D56,I19)>BM$5,$AG30/I19,$AG30-SUM($I56:BL56))) -> 0 | BN56: =IF(BN$5<=$D56,0,IF(SUM($D56,I19)>BN$5,$AG30/I19,$AG30-SUM($I56:BM56))) -> 0 | BO56: =IF(BO$5<=$D56,0,IF(SUM($D56,I19)>BO$5,$AG30/I19,$AG30-SUM($I56:BN56))) -> 0 | BP56: =IF(BP$5<=$D56,0,IF(SUM($D56,I19)>BP$5,$AG30/I19,$AG30-SUM($I56:BO56))) -> 0 | BQ56: =IF(BQ$5<=$D56,0,IF(SUM($D56,I19)>BQ$5,$AG30/I19,$AG30-SUM($I56:BP56))) -> 0
D57: 2035 | E57: $m Real (2010) | J57: =IF(J$5<=$D57,0,IF(SUM($D57,I19)>J$5,$AH30/I19,$AH30-SUM($I57:I57))) -> 0 | K57: =IF(K$5<=$D57,0,IF(SUM($D57,I19)>K$5,$AH30/I19,$AH30-SUM($I57:J57))) -> 0 | L57: =IF(L$5<=$D57,0,IF(SUM($D57,I19)>L$5,$AH30/I19,$AH30-SUM($I57:K57))) -> 0 | M57: =IF(M$5<=$D57,0,IF(SUM($D57,I19)>M$5,$AH30/I19,$AH30-SUM($I57:L57))) -> 0 | N57: =IF(N$5<=$D57,0,IF(SUM($D57,I19)>N$5,$AH30/I19,$AH30-SUM($I57:M57))) -> 0 | O57: =IF(O$5<=$D57,0,IF(SUM($D57,I19)>O$5,$AH30/I19,$AH30-SUM($I57:N57))) -> 0 | P57: =IF(P$5<=$D57,0,IF(SUM($D57,I19)>P$5,$AH30/I19,$AH30-SUM($I57:O57))) -> 0 | Q57: =IF(Q$5<=$D57,0,IF(SUM($D57,I19)>Q$5,$AH30/I19,$AH30-SUM($I57:P57))) -> 0 | R57: =IF(R$5<=$D57,0,IF(SUM($D57,I19)>R$5,$AH30/I19,$AH30-SUM($I57:Q57))) -> 0 | S57: =IF(S$5<=$D57,0,IF(SUM($D57,I19)>S$5,$AH30/I19,$AH30-SUM($I57:R57))) -> 0 | T57: =IF(T$5<=$D57,0,IF(SUM($D57,I19)>T$5,$AH30/I19,$AH30-SUM($I57:S57))) -> 0 | U57: =IF(U$5<=$D57,0,IF(SUM($D57,I19)>U$5,$AH30/I19,$AH30-SUM($I57:T57))) -> 0 | V57: =IF(V$5<=$D57,0,IF(SUM($D57,I19)>V$5,$AH30/I19,$AH30-SUM($I57:U57))) -> 0 | W57: =IF(W$5<=$D57,0,IF(SUM($D57,I19)>W$5,$AH30/I19,$AH30-SUM($I57:V57))) -> 0 | X57: =IF(X$5<=$D57,0,IF(SUM($D57,I19)>X$5,$AH30/I19,$AH30-SUM($I57:W57))) -> 0 | Y57: =IF(Y$5<=$D57,0,IF(SUM($D57,I19)>Y$5,$AH30/I19,$AH30-SUM($I57:X57))) -> 0 | Z57: =IF(Z$5<=$D57,0,IF(SUM($D57,I19)>Z$5,$AH30/I19,$AH30-SUM($I57:Y57))) -> 0 | AA57: =IF(AA$5<=$D57,0,IF(SUM($D57,I19)>AA$5,$AH30/I19,$AH30-SUM($I57:Z57))) -> 0 | AB57: =IF(AB$5<=$D57,0,IF(SUM($D57,I19)>AB$5,$AH30/I19,$AH30-SUM($I57:AA57))) -> 0 | AC57: =IF(AC$5<=$D57,0,IF(SUM($D57,I19)>AC$5,$AH30/I19,$AH30-SUM($I57:AB57))) -> 0 | AD57: =IF(AD$5<=$D57,0,IF(SUM($D57,I19)>AD$5,$AH30/I19,$AH30-SUM($I57:AC57))) -> 0 | AE57: =IF(AE$5<=$D57,0,IF(SUM($D57,I19)>AE$5,$AH30/I19,$AH30-SUM($I57:AD57))) -> 0 | AF57: =IF(AF$5<=$D57,0,IF(SUM($D57,I19)>AF$5,$AH30/I19,$AH30-SUM($I57:AE57))) -> 0 | AG57: =IF(AG$5<=$D57,0,IF(SUM($D57,I19)>AG$5,$AH30/I19,$AH30-SUM($I57:AF57))) -> 0 | AH57: =IF(AH$5<=$D57,0,IF(SUM($D57,I19)>AH$5,$AH30/I19,$AH30-SUM($I57:AG57))) -> 0 | AI57: =IF(AI$5<=$D57,0,IF(SUM($D57,I19)>AI$5,$AH30/I19,$AH30-SUM($I57:AH57))) -> 0 | AJ57: =IF(AJ$5<=$D57,0,IF(SUM($D57,I19)>AJ$5,$AH30/I19,$AH30-SUM($I57:AI57))) -> 0 | AK57: =IF(AK$5<=$D57,0,IF(SUM($D57,I19)>AK$5,$AH30/I19,$AH30-SUM($I57:AJ57))) -> 0 | AL57: =IF(AL$5<=$D57,0,IF(SUM($D57,I19)>AL$5,$AH30/I19,$AH30-SUM($I57:AK57))) -> 0 | AM57: =IF(AM$5<=$D57,0,IF(SUM($D57,I19)>AM$5,$AH30/I19,$AH30-SUM($I57:AL57))) -> 0 | AN57: =IF(AN$5<=$D57,0,IF(SUM($D57,I19)>AN$5,$AH30/I19,$AH30-SUM($I57:AM57))) -> 0 | AO57: =IF(AO$5<=$D57,0,IF(SUM($D57,I19)>AO$5,$AH30/I19,$AH30-SUM($I57:AN57))) -> 0 | AP57: =IF(AP$5<=$D57,0,IF(SUM($D57,I19)>AP$5,$AH30/I19,$AH30-SUM($I57:AO57))) -> 0 | AQ57: =IF(AQ$5<=$D57,0,IF(SUM($D57,I19)>AQ$5,$AH30/I19,$AH30-SUM($I57:AP57))) -> 0 | AR57: =IF(AR$5<=$D57,0,IF(SUM($D57,I19)>AR$5,$AH30/I19,$AH30-SUM($I57:AQ57))) -> 0 | AS57: =IF(AS$5<=$D57,0,IF(SUM($D57,I19)>AS$5,$AH30/I19,$AH30-SUM($I57:AR57))) -> 0 | AT57: =IF(AT$5<=$D57,0,IF(SUM($D57,I19)>AT$5,$AH30/I19,$AH30-SUM($I57:AS57))) -> 0 | AU57: =IF(AU$5<=$D57,0,IF(SUM($D57,I19)>AU$5,$AH30/I19,$AH30-SUM($I57:AT57))) -> 0 | AV57: =IF(AV$5<=$D57,0,IF(SUM($D57,I19)>AV$5,$AH30/I19,$AH30-SUM($I57:AU57))) -> 0 | AW57: =IF(AW$5<=$D57,0,IF(SUM($D57,I19)>AW$5,$AH30/I19,$AH30-SUM($I57:AV57))) -> 0 | AX57: =IF(AX$5<=$D57,0,IF(SUM($D57,I19)>AX$5,$AH30/I19,$AH30-SUM($I57:AW57))) -> 0 | AY57: =IF(AY$5<=$D57,0,IF(SUM($D57,I19)>AY$5,$AH30/I19,$AH30-SUM($I57:AX57))) -> 0 | AZ57: =IF(AZ$5<=$D57,0,IF(SUM($D57,I19)>AZ$5,$AH30/I19,$AH30-SUM($I57:AY57))) -> 0 | BA57: =IF(BA$5<=$D57,0,IF(SUM($D57,I19)>BA$5,$AH30/I19,$AH30-SUM($I57:AZ57))) -> 0 | BB57: =IF(BB$5<=$D57,0,IF(SUM($D57,I19)>BB$5,$AH30/I19,$AH30-SUM($I57:BA57))) -> 0 | BC57: =IF(BC$5<=$D57,0,IF(SUM($D57,I19)>BC$5,$AH30/I19,$AH30-SUM($I57:BB57))) -> 0 | BD57: =IF(BD$5<=$D57,0,IF(SUM($D57,I19)>BD$5,$AH30/I19,$AH30-SUM($I57:BC57))) -> 0 | BE57: =IF(BE$5<=$D57,0,IF(SUM($D57,I19)>BE$5,$AH30/I19,$AH30-SUM($I57:BD57))) -> 0 | BF57: =IF(BF$5<=$D57,0,IF(SUM($D57,I19)>BF$5,$AH30/I19,$AH30-SUM($I57:BE57))) -> 0 | BG57: =IF(BG$5<=$D57,0,IF(SUM($D57,I19)>BG$5,$AH30/I19,$AH30-SUM($I57:BF57))) -> 0 | BH57: =IF(BH$5<=$D57,0,IF(SUM($D57,I19)>BH$5,$AH30/I19,$AH30-SUM($I57:BG57))) -> 0 | BI57: =IF(BI$5<=$D57,0,IF(SUM($D57,I19)>BI$5,$AH30/I19,$AH30-SUM($I57:BH57))) -> 0 | BJ57: =IF(BJ$5<=$D57,0,IF(SUM($D57,I19)>BJ$5,$AH30/I19,$AH30-SUM($I57:BI57))) -> 0 | BK57: =IF(BK$5<=$D57,0,IF(SUM($D57,I19)>BK$5,$AH30/I19,$AH30-SUM($I57:BJ57))) -> 0 | BL57: =IF(BL$5<=$D57,0,IF(SUM($D57,I19)>BL$5,$AH30/I19,$AH30-SUM($I57:BK57))) -> 0 | BM57: =IF(BM$5<=$D57,0,IF(SUM($D57,I19)>BM$5,$AH30/I19,$AH30-SUM($I57:BL57))) -> 0 | BN57: =IF(BN$5<=$D57,0,IF(SUM($D57,I19)>BN$5,$AH30/I19,$AH30-SUM($I57:BM57))) -> 0 | BO57: =IF(BO$5<=$D57,0,IF(SUM($D57,I19)>BO$5,$AH30/I19,$AH30-SUM($I57:BN57))) -> 0 | BP57: =IF(BP$5<=$D57,0,IF(SUM($D57,I19)>BP$5,$AH30/I19,$AH30-SUM($I57:BO57))) -> 0 | BQ57: =IF(BQ$5<=$D57,0,IF(SUM($D57,I19)>BQ$5,$AH30/I19,$AH30-SUM($I57:BP57))) -> 0
D58: 2036 | E58: $m Real (2010) | J58: =IF(J$5<=$D58,0,IF(SUM($D58,I19)>J$5,$AI30/I19,$AI30-SUM($I58:I58))) -> 0 | K58: =IF(K$5<=$D58,0,IF(SUM($D58,I19)>K$5,$AI30/I19,$AI30-SUM($I58:J58))) -> 0 | L58: =IF(L$5<=$D58,0,IF(SUM($D58,I19)>L$5,$AI30/I19,$AI30-SUM($I58:K58))) -> 0 | M58: =IF(M$5<=$D58,0,IF(SUM($D58,I19)>M$5,$AI30/I19,$AI30-SUM($I58:L58))) -> 0 | N58: =IF(N$5<=$D58,0,IF(SUM($D58,I19)>N$5,$AI30/I19,$AI30-SUM($I58:M58))) -> 0 | O58: =IF(O$5<=$D58,0,IF(SUM($D58,I19)>O$5,$AI30/I19,$AI30-SUM($I58:N58))) -> 0 | P58: =IF(P$5<=$D58,0,IF(SUM($D58,I19)>P$5,$AI30/I19,$AI30-SUM($I58:O58))) -> 0 | Q58: =IF(Q$5<=$D58,0,IF(SUM($D58,I19)>Q$5,$AI30/I19,$AI30-SUM($I58:P58))) -> 0 | R58: =IF(R$5<=$D58,0,IF(SUM($D58,I19)>R$5,$AI30/I19,$AI30-SUM($I58:Q58))) -> 0 | S58: =IF(S$5<=$D58,0,IF(SUM($D58,I19)>S$5,$AI30/I19,$AI30-SUM($I58:R58))) -> 0 | T58: =IF(T$5<=$D58,0,IF(SUM($D58,I19)>T$5,$AI30/I19,$AI30-SUM($I58:S58))) -> 0 | U58: =IF(U$5<=$D58,0,IF(SUM($D58,I19)>U$5,$AI30/I19,$AI30-SUM($I58:T58))) -> 0 | V58: =IF(V$5<=$D58,0,IF(SUM($D58,I19)>V$5,$AI30/I19,$AI30-SUM($I58:U58))) -> 0 | W58: =IF(W$5<=$D58,0,IF(SUM($D58,I19)>W$5,$AI30/I19,$AI30-SUM($I58:V58))) -> 0 | X58: =IF(X$5<=$D58,0,IF(SUM($D58,I19)>X$5,$AI30/I19,$AI30-SUM($I58:W58))) -> 0 | Y58: =IF(Y$5<=$D58,0,IF(SUM($D58,I19)>Y$5,$AI30/I19,$AI30-SUM($I58:X58))) -> 0 | Z58: =IF(Z$5<=$D58,0,IF(SUM($D58,I19)>Z$5,$AI30/I19,$AI30-SUM($I58:Y58))) -> 0 | AA58: =IF(AA$5<=$D58,0,IF(SUM($D58,I19)>AA$5,$AI30/I19,$AI30-SUM($I58:Z58))) -> 0 | AB58: =IF(AB$5<=$D58,0,IF(SUM($D58,I19)>AB$5,$AI30/I19,$AI30-SUM($I58:AA58))) -> 0 | AC58: =IF(AC$5<=$D58,0,IF(SUM($D58,I19)>AC$5,$AI30/I19,$AI30-SUM($I58:AB58))) -> 0 | AD58: =IF(AD$5<=$D58,0,IF(SUM($D58,I19)>AD$5,$AI30/I19,$AI30-SUM($I58:AC58))) -> 0 | AE58: =IF(AE$5<=$D58,0,IF(SUM($D58,I19)>AE$5,$AI30/I19,$AI30-SUM($I58:AD58))) -> 0 | AF58: =IF(AF$5<=$D58,0,IF(SUM($D58,I19)>AF$5,$AI30/I19,$AI30-SUM($I58:AE58))) -> 0 | AG58: =IF(AG$5<=$D58,0,IF(SUM($D58,I19)>AG$5,$AI30/I19,$AI30-SUM($I58:AF58))) -> 0 | AH58: =IF(AH$5<=$D58,0,IF(SUM($D58,I19)>AH$5,$AI30/I19,$AI30-SUM($I58:AG58))) -> 0 | AI58: =IF(AI$5<=$D58,0,IF(SUM($D58,I19)>AI$5,$AI30/I19,$AI30-SUM($I58:AH58))) -> 0 | AJ58: =IF(AJ$5<=$D58,0,IF(SUM($D58,I19)>AJ$5,$AI30/I19,$AI30-SUM($I58:AI58))) -> 0 | AK58: =IF(AK$5<=$D58,0,IF(SUM($D58,I19)>AK$5,$AI30/I19,$AI30-SUM($I58:AJ58))) -> 0 | AL58: =IF(AL$5<=$D58,0,IF(SUM($D58,I19)>AL$5,$AI30/I19,$AI30-SUM($I58:AK58))) -> 0 | AM58: =IF(AM$5<=$D58,0,IF(SUM($D58,I19)>AM$5,$AI30/I19,$AI30-SUM($I58:AL58))) -> 0 | AN58: =IF(AN$5<=$D58,0,IF(SUM($D58,I19)>AN$5,$AI30/I19,$AI30-SUM($I58:AM58))) -> 0 | AO58: =IF(AO$5<=$D58,0,IF(SUM($D58,I19)>AO$5,$AI30/I19,$AI30-SUM($I58:AN58))) -> 0 | AP58: =IF(AP$5<=$D58,0,IF(SUM($D58,I19)>AP$5,$AI30/I19,$AI30-SUM($I58:AO58))) -> 0 | AQ58: =IF(AQ$5<=$D58,0,IF(SUM($D58,I19)>AQ$5,$AI30/I19,$AI30-SUM($I58:AP58))) -> 0 | AR58: =IF(AR$5<=$D58,0,IF(SUM($D58,I19)>AR$5,$AI30/I19,$AI30-SUM($I58:AQ58))) -> 0 | AS58: =IF(AS$5<=$D58,0,IF(SUM($D58,I19)>AS$5,$AI30/I19,$AI30-SUM($I58:AR58))) -> 0 | AT58: =IF(AT$5<=$D58,0,IF(SUM($D58,I19)>AT$5,$AI30/I19,$AI30-SUM($I58:AS58))) -> 0 | AU58: =IF(AU$5<=$D58,0,IF(SUM($D58,I19)>AU$5,$AI30/I19,$AI30-SUM($I58:AT58))) -> 0 | AV58: =IF(AV$5<=$D58,0,IF(SUM($D58,I19)>AV$5,$AI30/I19,$AI30-SUM($I58:AU58))) -> 0 | AW58: =IF(AW$5<=$D58,0,IF(SUM($D58,I19)>AW$5,$AI30/I19,$AI30-SUM($I58:AV58))) -> 0 | AX58: =IF(AX$5<=$D58,0,IF(SUM($D58,I19)>AX$5,$AI30/I19,$AI30-SUM($I58:AW58))) -> 0 | AY58: =IF(AY$5<=$D58,0,IF(SUM($D58,I19)>AY$5,$AI30/I19,$AI30-SUM($I58:AX58))) -> 0 | AZ58: =IF(AZ$5<=$D58,0,IF(SUM($D58,I19)>AZ$5,$AI30/I19,$AI30-SUM($I58:AY58))) -> 0 | BA58: =IF(BA$5<=$D58,0,IF(SUM($D58,I19)>BA$5,$AI30/I19,$AI30-SUM($I58:AZ58))) -> 0 | BB58: =IF(BB$5<=$D58,0,IF(SUM($D58,I19)>BB$5,$AI30/I19,$AI30-SUM($I58:BA58))) -> 0 | BC58: =IF(BC$5<=$D58,0,IF(SUM($D58,I19)>BC$5,$AI30/I19,$AI30-SUM($I58:BB58))) -> 0 | BD58: =IF(BD$5<=$D58,0,IF(SUM($D58,I19)>BD$5,$AI30/I19,$AI30-SUM($I58:BC58))) -> 0 | BE58: =IF(BE$5<=$D58,0,IF(SUM($D58,I19)>BE$5,$AI30/I19,$AI30-SUM($I58:BD58))) -> 0 | BF58: =IF(BF$5<=$D58,0,IF(SUM($D58,I19)>BF$5,$AI30/I19,$AI30-SUM($I58:BE58))) -> 0 | BG58: =IF(BG$5<=$D58,0,IF(SUM($D58,I19)>BG$5,$AI30/I19,$AI30-SUM($I58:BF58))) -> 0 | BH58: =IF(BH$5<=$D58,0,IF(SUM($D58,I19)>BH$5,$AI30/I19,$AI30-SUM($I58:BG58))) -> 0 | BI58: =IF(BI$5<=$D58,0,IF(SUM($D58,I19)>BI$5,$AI30/I19,$AI30-SUM($I58:BH58))) -> 0 | BJ58: =IF(BJ$5<=$D58,0,IF(SUM($D58,I19)>BJ$5,$AI30/I19,$AI30-SUM($I58:BI58))) -> 0 | BK58: =IF(BK$5<=$D58,0,IF(SUM($D58,I19)>BK$5,$AI30/I19,$AI30-SUM($I58:BJ58))) -> 0 | BL58: =IF(BL$5<=$D58,0,IF(SUM($D58,I19)>BL$5,$AI30/I19,$AI30-SUM($I58:BK58))) -> 0 | BM58: =IF(BM$5<=$D58,0,IF(SUM($D58,I19)>BM$5,$AI30/I19,$AI30-SUM($I58:BL58))) -> 0 | BN58: =IF(BN$5<=$D58,0,IF(SUM($D58,I19)>BN$5,$AI30/I19,$AI30-SUM($I58:BM58))) -> 0 | BO58: =IF(BO$5<=$D58,0,IF(SUM($D58,I19)>BO$5,$AI30/I19,$AI30-SUM($I58:BN58))) -> 0 | BP58: =IF(BP$5<=$D58,0,IF(SUM($D58,I19)>BP$5,$AI30/I19,$AI30-SUM($I58:BO58))) -> 0 | BQ58: =IF(BQ$5<=$D58,0,IF(SUM($D58,I19)>BQ$5,$AI30/I19,$AI30-SUM($I58:BP58))) -> 0
D59: 2037 | E59: $m Real (2010) | J59: =IF(J$5<=$D59,0,IF(SUM($D59,I19)>J$5,$AJ30/I19,$AJ30-SUM($I59:I59))) -> 0 | K59: =IF(K$5<=$D59,0,IF(SUM($D59,I19)>K$5,$AJ30/I19,$AJ30-SUM($I59:J59))) -> 0 | L59: =IF(L$5<=$D59,0,IF(SUM($D59,I19)>L$5,$AJ30/I19,$AJ30-SUM($I59:K59))) -> 0 | M59: =IF(M$5<=$D59,0,IF(SUM($D59,I19)>M$5,$AJ30/I19,$AJ30-SUM($I59:L59))) -> 0 | N59: =IF(N$5<=$D59,0,IF(SUM($D59,I19)>N$5,$AJ30/I19,$AJ30-SUM($I59:M59))) -> 0 | O59: =IF(O$5<=$D59,0,IF(SUM($D59,I19)>O$5,$AJ30/I19,$AJ30-SUM($I59:N59))) -> 0 | P59: =IF(P$5<=$D59,0,IF(SUM($D59,I19)>P$5,$AJ30/I19,$AJ30-SUM($I59:O59))) -> 0 | Q59: =IF(Q$5<=$D59,0,IF(SUM($D59,I19)>Q$5,$AJ30/I19,$AJ30-SUM($I59:P59))) -> 0 | R59: =IF(R$5<=$D59,0,IF(SUM($D59,I19)>R$5,$AJ30/I19,$AJ30-SUM($I59:Q59))) -> 0 | S59: =IF(S$5<=$D59,0,IF(SUM($D59,I19)>S$5,$AJ30/I19,$AJ30-SUM($I59:R59))) -> 0 | T59: =IF(T$5<=$D59,0,IF(SUM($D59,I19)>T$5,$AJ30/I19,$AJ30-SUM($I59:S59))) -> 0 | U59: =IF(U$5<=$D59,0,IF(SUM($D59,I19)>U$5,$AJ30/I19,$AJ30-SUM($I59:T59))) -> 0 | V59: =IF(V$5<=$D59,0,IF(SUM($D59,I19)>V$5,$AJ30/I19,$AJ30-SUM($I59:U59))) -> 0 | W59: =IF(W$5<=$D59,0,IF(SUM($D59,I19)>W$5,$AJ30/I19,$AJ30-SUM($I59:V59))) -> 0 | X59: =IF(X$5<=$D59,0,IF(SUM($D59,I19)>X$5,$AJ30/I19,$AJ30-SUM($I59:W59))) -> 0 | Y59: =IF(Y$5<=$D59,0,IF(SUM($D59,I19)>Y$5,$AJ30/I19,$AJ30-SUM($I59:X59))) -> 0 | Z59: =IF(Z$5<=$D59,0,IF(SUM($D59,I19)>Z$5,$AJ30/I19,$AJ30-SUM($I59:Y59))) -> 0 | AA59: =IF(AA$5<=$D59,0,IF(SUM($D59,I19)>AA$5,$AJ30/I19,$AJ30-SUM($I59:Z59))) -> 0 | AB59: =IF(AB$5<=$D59,0,IF(SUM($D59,I19)>AB$5,$AJ30/I19,$AJ30-SUM($I59:AA59))) -> 0 | AC59: =IF(AC$5<=$D59,0,IF(SUM($D59,I19)>AC$5,$AJ30/I19,$AJ30-SUM($I59:AB59))) -> 0 | AD59: =IF(AD$5<=$D59,0,IF(SUM($D59,I19)>AD$5,$AJ30/I19,$AJ30-SUM($I59:AC59))) -> 0 | AE59: =IF(AE$5<=$D59,0,IF(SUM($D59,I19)>AE$5,$AJ30/I19,$AJ30-SUM($I59:AD59))) -> 0 | AF59: =IF(AF$5<=$D59,0,IF(SUM($D59,I19)>AF$5,$AJ30/I19,$AJ30-SUM($I59:AE59))) -> 0 | AG59: =IF(AG$5<=$D59,0,IF(SUM($D59,I19)>AG$5,$AJ30/I19,$AJ30-SUM($I59:AF59))) -> 0 | AH59: =IF(AH$5<=$D59,0,IF(SUM($D59,I19)>AH$5,$AJ30/I19,$AJ30-SUM($I59:AG59))) -> 0 | AI59: =IF(AI$5<=$D59,0,IF(SUM($D59,I19)>AI$5,$AJ30/I19,$AJ30-SUM($I59:AH59))) -> 0 | AJ59: =IF(AJ$5<=$D59,0,IF(SUM($D59,I19)>AJ$5,$AJ30/I19,$AJ30-SUM($I59:AI59))) -> 0 | AK59: =IF(AK$5<=$D59,0,IF(SUM($D59,I19)>AK$5,$AJ30/I19,$AJ30-SUM($I59:AJ59))) -> 0 | AL59: =IF(AL$5<=$D59,0,IF(SUM($D59,I19)>AL$5,$AJ30/I19,$AJ30-SUM($I59:AK59))) -> 0 | AM59: =IF(AM$5<=$D59,0,IF(SUM($D59,I19)>AM$5,$AJ30/I19,$AJ30-SUM($I59:AL59))) -> 0 | AN59: =IF(AN$5<=$D59,0,IF(SUM($D59,I19)>AN$5,$AJ30/I19,$AJ30-SUM($I59:AM59))) -> 0 | AO59: =IF(AO$5<=$D59,0,IF(SUM($D59,I19)>AO$5,$AJ30/I19,$AJ30-SUM($I59:AN59))) -> 0 | AP59: =IF(AP$5<=$D59,0,IF(SUM($D59,I19)>AP$5,$AJ30/I19,$AJ30-SUM($I59:AO59))) -> 0 | AQ59: =IF(AQ$5<=$D59,0,IF(SUM($D59,I19)>AQ$5,$AJ30/I19,$AJ30-SUM($I59:AP59))) -> 0 | AR59: =IF(AR$5<=$D59,0,IF(SUM($D59,I19)>AR$5,$AJ30/I19,$AJ30-SUM($I59:AQ59))) -> 0 | AS59: =IF(AS$5<=$D59,0,IF(SUM($D59,I19)>AS$5,$AJ30/I19,$AJ30-SUM($I59:AR59))) -> 0 | AT59: =IF(AT$5<=$D59,0,IF(SUM($D59,I19)>AT$5,$AJ30/I19,$AJ30-SUM($I59:AS59))) -> 0 | AU59: =IF(AU$5<=$D59,0,IF(SUM($D59,I19)>AU$5,$AJ30/I19,$AJ30-SUM($I59:AT59))) -> 0 | AV59: =IF(AV$5<=$D59,0,IF(SUM($D59,I19)>AV$5,$AJ30/I19,$AJ30-SUM($I59:AU59))) -> 0 | AW59: =IF(AW$5<=$D59,0,IF(SUM($D59,I19)>AW$5,$AJ30/I19,$AJ30-SUM($I59:AV59))) -> 0 | AX59: =IF(AX$5<=$D59,0,IF(SUM($D59,I19)>AX$5,$AJ30/I19,$AJ30-SUM($I59:AW59))) -> 0 | AY59: =IF(AY$5<=$D59,0,IF(SUM($D59,I19)>AY$5,$AJ30/I19,$AJ30-SUM($I59:AX59))) -> 0 | AZ59: =IF(AZ$5<=$D59,0,IF(SUM($D59,I19)>AZ$5,$AJ30/I19,$AJ30-SUM($I59:AY59))) -> 0 | BA59: =IF(BA$5<=$D59,0,IF(SUM($D59,I19)>BA$5,$AJ30/I19,$AJ30-SUM($I59:AZ59))) -> 0 | BB59: =IF(BB$5<=$D59,0,IF(SUM($D59,I19)>BB$5,$AJ30/I19,$AJ30-SUM($I59:BA59))) -> 0 | BC59: =IF(BC$5<=$D59,0,IF(SUM($D59,I19)>BC$5,$AJ30/I19,$AJ30-SUM($I59:BB59))) -> 0 | BD59: =IF(BD$5<=$D59,0,IF(SUM($D59,I19)>BD$5,$AJ30/I19,$AJ30-SUM($I59:BC59))) -> 0 | BE59: =IF(BE$5<=$D59,0,IF(SUM($D59,I19)>BE$5,$AJ30/I19,$AJ30-SUM($I59:BD59))) -> 0 | BF59: =IF(BF$5<=$D59,0,IF(SUM($D59,I19)>BF$5,$AJ30/I19,$AJ30-SUM($I59:BE59))) -> 0 | BG59: =IF(BG$5<=$D59,0,IF(SUM($D59,I19)>BG$5,$AJ30/I19,$AJ30-SUM($I59:BF59))) -> 0 | BH59: =IF(BH$5<=$D59,0,IF(SUM($D59,I19)>BH$5,$AJ30/I19,$AJ30-SUM($I59:BG59))) -> 0 | BI59: =IF(BI$5<=$D59,0,IF(SUM($D59,I19)>BI$5,$AJ30/I19,$AJ30-SUM($I59:BH59))) -> 0 | BJ59: =IF(BJ$5<=$D59,0,IF(SUM($D59,I19)>BJ$5,$AJ30/I19,$AJ30-SUM($I59:BI59))) -> 0 | BK59: =IF(BK$5<=$D59,0,IF(SUM($D59,I19)>BK$5,$AJ30/I19,$AJ30-SUM($I59:BJ59))) -> 0 | BL59: =IF(BL$5<=$D59,0,IF(SUM($D59,I19)>BL$5,$AJ30/I19,$AJ30-SUM($I59:BK59))) -> 0 | BM59: =IF(BM$5<=$D59,0,IF(SUM($D59,I19)>BM$5,$AJ30/I19,$AJ30-SUM($I59:BL59))) -> 0 | BN59: =IF(BN$5<=$D59,0,IF(SUM($D59,I19)>BN$5,$AJ30/I19,$AJ30-SUM($I59:BM59))) -> 0 | BO59: =IF(BO$5<=$D59,0,IF(SUM($D59,I19)>BO$5,$AJ30/I19,$AJ30-SUM($I59:BN59))) -> 0 | BP59: =IF(BP$5<=$D59,0,IF(SUM($D59,I19)>BP$5,$AJ30/I19,$AJ30-SUM($I59:BO59))) -> 0 | BQ59: =IF(BQ$5<=$D59,0,IF(SUM($D59,I19)>BQ$5,$AJ30/I19,$AJ30-SUM($I59:BP59))) -> 0
D60: 2038 | E60: $m Real (2010) | J60: =IF(J$5<=$D60,0,IF(SUM($D60,I19)>J$5,$AK30/I19,$AK30-SUM($I60:I60))) -> 0 | K60: =IF(K$5<=$D60,0,IF(SUM($D60,I19)>K$5,$AK30/I19,$AK30-SUM($I60:J60))) -> 0 | L60: =IF(L$5<=$D60,0,IF(SUM($D60,I19)>L$5,$AK30/I19,$AK30-SUM($I60:K60))) -> 0 | M60: =IF(M$5<=$D60,0,IF(SUM($D60,I19)>M$5,$AK30/I19,$AK30-SUM($I60:L60))) -> 0 | N60: =IF(N$5<=$D60,0,IF(SUM($D60,I19)>N$5,$AK30/I19,$AK30-SUM($I60:M60))) -> 0 | O60: =IF(O$5<=$D60,0,IF(SUM($D60,I19)>O$5,$AK30/I19,$AK30-SUM($I60:N60))) -> 0 | P60: =IF(P$5<=$D60,0,IF(SUM($D60,I19)>P$5,$AK30/I19,$AK30-SUM($I60:O60))) -> 0 | Q60: =IF(Q$5<=$D60,0,IF(SUM($D60,I19)>Q$5,$AK30/I19,$AK30-SUM($I60:P60))) -> 0 | R60: =IF(R$5<=$D60,0,IF(SUM($D60,I19)>R$5,$AK30/I19,$AK30-SUM($I60:Q60))) -> 0 | S60: =IF(S$5<=$D60,0,IF(SUM($D60,I19)>S$5,$AK30/I19,$AK30-SUM($I60:R60))) -> 0 | T60: =IF(T$5<=$D60,0,IF(SUM($D60,I19)>T$5,$AK30/I19,$AK30-SUM($I60:S60))) -> 0 | U60: =IF(U$5<=$D60,0,IF(SUM($D60,I19)>U$5,$AK30/I19,$AK30-SUM($I60:T60))) -> 0 | V60: =IF(V$5<=$D60,0,IF(SUM($D60,I19)>V$5,$AK30/I19,$AK30-SUM($I60:U60))) -> 0 | W60: =IF(W$5<=$D60,0,IF(SUM($D60,I19)>W$5,$AK30/I19,$AK30-SUM($I60:V60))) -> 0 | X60: =IF(X$5<=$D60,0,IF(SUM($D60,I19)>X$5,$AK30/I19,$AK30-SUM($I60:W60))) -> 0 | Y60: =IF(Y$5<=$D60,0,IF(SUM($D60,I19)>Y$5,$AK30/I19,$AK30-SUM($I60:X60))) -> 0 | Z60: =IF(Z$5<=$D60,0,IF(SUM($D60,I19)>Z$5,$AK30/I19,$AK30-SUM($I60:Y60))) -> 0 | AA60: =IF(AA$5<=$D60,0,IF(SUM($D60,I19)>AA$5,$AK30/I19,$AK30-SUM($I60:Z60))) -> 0 | AB60: =IF(AB$5<=$D60,0,IF(SUM($D60,I19)>AB$5,$AK30/I19,$AK30-SUM($I60:AA60))) -> 0 | AC60: =IF(AC$5<=$D60,0,IF(SUM($D60,I19)>AC$5,$AK30/I19,$AK30-SUM($I60:AB60))) -> 0 | AD60: =IF(AD$5<=$D60,0,IF(SUM($D60,I19)>AD$5,$AK30/I19,$AK30-SUM($I60:AC60))) -> 0 | AE60: =IF(AE$5<=$D60,0,IF(SUM($D60,I19)>AE$5,$AK30/I19,$AK30-SUM($I60:AD60))) -> 0 | AF60: =IF(AF$5<=$D60,0,IF(SUM($D60,I19)>AF$5,$AK30/I19,$AK30-SUM($I60:AE60))) -> 0 | AG60: =IF(AG$5<=$D60,0,IF(SUM($D60,I19)>AG$5,$AK30/I19,$AK30-SUM($I60:AF60))) -> 0 | AH60: =IF(AH$5<=$D60,0,IF(SUM($D60,I19)>AH$5,$AK30/I19,$AK30-SUM($I60:AG60))) -> 0 | AI60: =IF(AI$5<=$D60,0,IF(SUM($D60,I19)>AI$5,$AK30/I19,$AK30-SUM($I60:AH60))) -> 0 | AJ60: =IF(AJ$5<=$D60,0,IF(SUM($D60,I19)>AJ$5,$AK30/I19,$AK30-SUM($I60:AI60))) -> 0 | AK60: =IF(AK$5<=$D60,0,IF(SUM($D60,I19)>AK$5,$AK30/I19,$AK30-SUM($I60:AJ60))) -> 0 | AL60: =IF(AL$5<=$D60,0,IF(SUM($D60,I19)>AL$5,$AK30/I19,$AK30-SUM($I60:AK60))) -> 0 | AM60: =IF(AM$5<=$D60,0,IF(SUM($D60,I19)>AM$5,$AK30/I19,$AK30-SUM($I60:AL60))) -> 0 | AN60: =IF(AN$5<=$D60,0,IF(SUM($D60,I19)>AN$5,$AK30/I19,$AK30-SUM($I60:AM60))) -> 0 | AO60: =IF(AO$5<=$D60,0,IF(SUM($D60,I19)>AO$5,$AK30/I19,$AK30-SUM($I60:AN60))) -> 0 | AP60: =IF(AP$5<=$D60,0,IF(SUM($D60,I19)>AP$5,$AK30/I19,$AK30-SUM($I60:AO60))) -> 0 | AQ60: =IF(AQ$5<=$D60,0,IF(SUM($D60,I19)>AQ$5,$AK30/I19,$AK30-SUM($I60:AP60))) -> 0 | AR60: =IF(AR$5<=$D60,0,IF(SUM($D60,I19)>AR$5,$AK30/I19,$AK30-SUM($I60:AQ60))) -> 0 | AS60: =IF(AS$5<=$D60,0,IF(SUM($D60,I19)>AS$5,$AK30/I19,$AK30-SUM($I60:AR60))) -> 0 | AT60: =IF(AT$5<=$D60,0,IF(SUM($D60,I19)>AT$5,$AK30/I19,$AK30-SUM($I60:AS60))) -> 0 | AU60: =IF(AU$5<=$D60,0,IF(SUM($D60,I19)>AU$5,$AK30/I19,$AK30-SUM($I60:AT60))) -> 0 | AV60: =IF(AV$5<=$D60,0,IF(SUM($D60,I19)>AV$5,$AK30/I19,$AK30-SUM($I60:AU60))) -> 0 | AW60: =IF(AW$5<=$D60,0,IF(SUM($D60,I19)>AW$5,$AK30/I19,$AK30-SUM($I60:AV60))) -> 0 | AX60: =IF(AX$5<=$D60,0,IF(SUM($D60,I19)>AX$5,$AK30/I19,$AK30-SUM($I60:AW60))) -> 0 | AY60: =IF(AY$5<=$D60,0,IF(SUM($D60,I19)>AY$5,$AK30/I19,$AK30-SUM($I60:AX60))) -> 0 | AZ60: =IF(AZ$5<=$D60,0,IF(SUM($D60,I19)>AZ$5,$AK30/I19,$AK30-SUM($I60:AY60))) -> 0 | BA60: =IF(BA$5<=$D60,0,IF(SUM($D60,I19)>BA$5,$AK30/I19,$AK30-SUM($I60:AZ60))) -> 0 | BB60: =IF(BB$5<=$D60,0,IF(SUM($D60,I19)>BB$5,$AK30/I19,$AK30-SUM($I60:BA60))) -> 0 | BC60: =IF(BC$5<=$D60,0,IF(SUM($D60,I19)>BC$5,$AK30/I19,$AK30-SUM($I60:BB60))) -> 0 | BD60: =IF(BD$5<=$D60,0,IF(SUM($D60,I19)>BD$5,$AK30/I19,$AK30-SUM($I60:BC60))) -> 0 | BE60: =IF(BE$5<=$D60,0,IF(SUM($D60,I19)>BE$5,$AK30/I19,$AK30-SUM($I60:BD60))) -> 0 | BF60: =IF(BF$5<=$D60,0,IF(SUM($D60,I19)>BF$5,$AK30/I19,$AK30-SUM($I60:BE60))) -> 0 | BG60: =IF(BG$5<=$D60,0,IF(SUM($D60,I19)>BG$5,$AK30/I19,$AK30-SUM($I60:BF60))) -> 0 | BH60: =IF(BH$5<=$D60,0,IF(SUM($D60,I19)>BH$5,$AK30/I19,$AK30-SUM($I60:BG60))) -> 0 | BI60: =IF(BI$5<=$D60,0,IF(SUM($D60,I19)>BI$5,$AK30/I19,$AK30-SUM($I60:BH60))) -> 0 | BJ60: =IF(BJ$5<=$D60,0,IF(SUM($D60,I19)>BJ$5,$AK30/I19,$AK30-SUM($I60:BI60))) -> 0 | BK60: =IF(BK$5<=$D60,0,IF(SUM($D60,I19)>BK$5,$AK30/I19,$AK30-SUM($I60:BJ60))) -> 0 | BL60: =IF(BL$5<=$D60,0,IF(SUM($D60,I19)>BL$5,$AK30/I19,$AK30-SUM($I60:BK60))) -> 0 | BM60: =IF(BM$5<=$D60,0,IF(SUM($D60,I19)>BM$5,$AK30/I19,$AK30-SUM($I60:BL60))) -> 0 | BN60: =IF(BN$5<=$D60,0,IF(SUM($D60,I19)>BN$5,$AK30/I19,$AK30-SUM($I60:BM60))) -> 0 | BO60: =IF(BO$5<=$D60,0,IF(SUM($D60,I19)>BO$5,$AK30/I19,$AK30-SUM($I60:BN60))) -> 0 | BP60: =IF(BP$5<=$D60,0,IF(SUM($D60,I19)>BP$5,$AK30/I19,$AK30-SUM($I60:BO60))) -> 0 | BQ60: =IF(BQ$5<=$D60,0,IF(SUM($D60,I19)>BQ$5,$AK30/I19,$AK30-SUM($I60:BP60))) -> 0
D61: 2039 | E61: $m Real (2010) | J61: =IF(J$5<=$D61,0,IF(SUM($D61,I19)>J$5,$AL30/I19,$AL30-SUM($I61:I61))) -> 0 | K61: =IF(K$5<=$D61,0,IF(SUM($D61,I19)>K$5,$AL30/I19,$AL30-SUM($I61:J61))) -> 0 | L61: =IF(L$5<=$D61,0,IF(SUM($D61,I19)>L$5,$AL30/I19,$AL30-SUM($I61:K61))) -> 0 | M61: =IF(M$5<=$D61,0,IF(SUM($D61,I19)>M$5,$AL30/I19,$AL30-SUM($I61:L61))) -> 0 | N61: =IF(N$5<=$D61,0,IF(SUM($D61,I19)>N$5,$AL30/I19,$AL30-SUM($I61:M61))) -> 0 | O61: =IF(O$5<=$D61,0,IF(SUM($D61,I19)>O$5,$AL30/I19,$AL30-SUM($I61:N61))) -> 0 | P61: =IF(P$5<=$D61,0,IF(SUM($D61,I19)>P$5,$AL30/I19,$AL30-SUM($I61:O61))) -> 0 | Q61: =IF(Q$5<=$D61,0,IF(SUM($D61,I19)>Q$5,$AL30/I19,$AL30-SUM($I61:P61))) -> 0 | R61: =IF(R$5<=$D61,0,IF(SUM($D61,I19)>R$5,$AL30/I19,$AL30-SUM($I61:Q61))) -> 0 | S61: =IF(S$5<=$D61,0,IF(SUM($D61,I19)>S$5,$AL30/I19,$AL30-SUM($I61:R61))) -> 0 | T61: =IF(T$5<=$D61,0,IF(SUM($D61,I19)>T$5,$AL30/I19,$AL30-SUM($I61:S61))) -> 0 | U61: =IF(U$5<=$D61,0,IF(SUM($D61,I19)>U$5,$AL30/I19,$AL30-SUM($I61:T61))) -> 0 | V61: =IF(V$5<=$D61,0,IF(SUM($D61,I19)>V$5,$AL30/I19,$AL30-SUM($I61:U61))) -> 0 | W61: =IF(W$5<=$D61,0,IF(SUM($D61,I19)>W$5,$AL30/I19,$AL30-SUM($I61:V61))) -> 0 | X61: =IF(X$5<=$D61,0,IF(SUM($D61,I19)>X$5,$AL30/I19,$AL30-SUM($I61:W61))) -> 0 | Y61: =IF(Y$5<=$D61,0,IF(SUM($D61,I19)>Y$5,$AL30/I19,$AL30-SUM($I61:X61))) -> 0 | Z61: =IF(Z$5<=$D61,0,IF(SUM($D61,I19)>Z$5,$AL30/I19,$AL30-SUM($I61:Y61))) -> 0 | AA61: =IF(AA$5<=$D61,0,IF(SUM($D61,I19)>AA$5,$AL30/I19,$AL30-SUM($I61:Z61))) -> 0 | AB61: =IF(AB$5<=$D61,0,IF(SUM($D61,I19)>AB$5,$AL30/I19,$AL30-SUM($I61:AA61))) -> 0 | AC61: =IF(AC$5<=$D61,0,IF(SUM($D61,I19)>AC$5,$AL30/I19,$AL30-SUM($I61:AB61))) -> 0 | AD61: =IF(AD$5<=$D61,0,IF(SUM($D61,I19)>AD$5,$AL30/I19,$AL30-SUM($I61:AC61))) -> 0 | AE61: =IF(AE$5<=$D61,0,IF(SUM($D61,I19)>AE$5,$AL30/I19,$AL30-SUM($I61:AD61))) -> 0 | AF61: =IF(AF$5<=$D61,0,IF(SUM($D61,I19)>AF$5,$AL30/I19,$AL30-SUM($I61:AE61))) -> 0 | AG61: =IF(AG$5<=$D61,0,IF(SUM($D61,I19)>AG$5,$AL30/I19,$AL30-SUM($I61:AF61))) -> 0 | AH61: =IF(AH$5<=$D61,0,IF(SUM($D61,I19)>AH$5,$AL30/I19,$AL30-SUM($I61:AG61))) -> 0 | AI61: =IF(AI$5<=$D61,0,IF(SUM($D61,I19)>AI$5,$AL30/I19,$AL30-SUM($I61:AH61))) -> 0 | AJ61: =IF(AJ$5<=$D61,0,IF(SUM($D61,I19)>AJ$5,$AL30/I19,$AL30-SUM($I61:AI61))) -> 0 | AK61: =IF(AK$5<=$D61,0,IF(SUM($D61,I19)>AK$5,$AL30/I19,$AL30-SUM($I61:AJ61))) -> 0 | AL61: =IF(AL$5<=$D61,0,IF(SUM($D61,I19)>AL$5,$AL30/I19,$AL30-SUM($I61:AK61))) -> 0 | AM61: =IF(AM$5<=$D61,0,IF(SUM($D61,I19)>AM$5,$AL30/I19,$AL30-SUM($I61:AL61))) -> 0 | AN61: =IF(AN$5<=$D61,0,IF(SUM($D61,I19)>AN$5,$AL30/I19,$AL30-SUM($I61:AM61))) -> 0 | AO61: =IF(AO$5<=$D61,0,IF(SUM($D61,I19)>AO$5,$AL30/I19,$AL30-SUM($I61:AN61))) -> 0 | AP61: =IF(AP$5<=$D61,0,IF(SUM($D61,I19)>AP$5,$AL30/I19,$AL30-SUM($I61:AO61))) -> 0 | AQ61: =IF(AQ$5<=$D61,0,IF(SUM($D61,I19)>AQ$5,$AL30/I19,$AL30-SUM($I61:AP61))) -> 0 | AR61: =IF(AR$5<=$D61,0,IF(SUM($D61,I19)>AR$5,$AL30/I19,$AL30-SUM($I61:AQ61))) -> 0 | AS61: =IF(AS$5<=$D61,0,IF(SUM($D61,I19)>AS$5,$AL30/I19,$AL30-SUM($I61:AR61))) -> 0 | AT61: =IF(AT$5<=$D61,0,IF(SUM($D61,I19)>AT$5,$AL30/I19,$AL30-SUM($I61:AS61))) -> 0 | AU61: =IF(AU$5<=$D61,0,IF(SUM($D61,I19)>AU$5,$AL30/I19,$AL30-SUM($I61:AT61))) -> 0 | AV61: =IF(AV$5<=$D61,0,IF(SUM($D61,I19)>AV$5,$AL30/I19,$AL30-SUM($I61:AU61))) -> 0 | AW61: =IF(AW$5<=$D61,0,IF(SUM($D61,I19)>AW$5,$AL30/I19,$AL30-SUM($I61:AV61))) -> 0 | AX61: =IF(AX$5<=$D61,0,IF(SUM($D61,I19)>AX$5,$AL30/I19,$AL30-SUM($I61:AW61))) -> 0 | AY61: =IF(AY$5<=$D61,0,IF(SUM($D61,I19)>AY$5,$AL30/I19,$AL30-SUM($I61:AX61))) -> 0 | AZ61: =IF(AZ$5<=$D61,0,IF(SUM($D61,I19)>AZ$5,$AL30/I19,$AL30-SUM($I61:AY61))) -> 0 | BA61: =IF(BA$5<=$D61,0,IF(SUM($D61,I19)>BA$5,$AL30/I19,$AL30-SUM($I61:AZ61))) -> 0 | BB61: =IF(BB$5<=$D61,0,IF(SUM($D61,I19)>BB$5,$AL30/I19,$AL30-SUM($I61:BA61))) -> 0 | BC61: =IF(BC$5<=$D61,0,IF(SUM($D61,I19)>BC$5,$AL30/I19,$AL30-SUM($I61:BB61))) -> 0 | BD61: =IF(BD$5<=$D61,0,IF(SUM($D61,I19)>BD$5,$AL30/I19,$AL30-SUM($I61:BC61))) -> 0 | BE61: =IF(BE$5<=$D61,0,IF(SUM($D61,I19)>BE$5,$AL30/I19,$AL30-SUM($I61:BD61))) -> 0 | BF61: =IF(BF$5<=$D61,0,IF(SUM($D61,I19)>BF$5,$AL30/I19,$AL30-SUM($I61:BE61))) -> 0 | BG61: =IF(BG$5<=$D61,0,IF(SUM($D61,I19)>BG$5,$AL30/I19,$AL30-SUM($I61:BF61))) -> 0 | BH61: =IF(BH$5<=$D61,0,IF(SUM($D61,I19)>BH$5,$AL30/I19,$AL30-SUM($I61:BG61))) -> 0 | BI61: =IF(BI$5<=$D61,0,IF(SUM($D61,I19)>BI$5,$AL30/I19,$AL30-SUM($I61:BH61))) -> 0 | BJ61: =IF(BJ$5<=$D61,0,IF(SUM($D61,I19)>BJ$5,$AL30/I19,$AL30-SUM($I61:BI61))) -> 0 | BK61: =IF(BK$5<=$D61,0,IF(SUM($D61,I19)>BK$5,$AL30/I19,$AL30-SUM($I61:BJ61))) -> 0 | BL61: =IF(BL$5<=$D61,0,IF(SUM($D61,I19)>BL$5,$AL30/I19,$AL30-SUM($I61:BK61))) -> 0 | BM61: =IF(BM$5<=$D61,0,IF(SUM($D61,I19)>BM$5,$AL30/I19,$AL30-SUM($I61:BL61))) -> 0 | BN61: =IF(BN$5<=$D61,0,IF(SUM($D61,I19)>BN$5,$AL30/I19,$AL30-SUM($I61:BM61))) -> 0 | BO61: =IF(BO$5<=$D61,0,IF(SUM($D61,I19)>BO$5,$AL30/I19,$AL30-SUM($I61:BN61))) -> 0 | BP61: =IF(BP$5<=$D61,0,IF(SUM($D61,I19)>BP$5,$AL30/I19,$AL30-SUM($I61:BO61))) -> 0 | BQ61: =IF(BQ$5<=$D61,0,IF(SUM($D61,I19)>BQ$5,$AL30/I19,$AL30-SUM($I61:BP61))) -> 0
D62: 2040 | E62: $m Real (2010) | J62: =IF(J$5<=$D62,0,IF(SUM($D62,I19)>J$5,$AM30/I19,$AM30-SUM($I62:I62))) -> 0 | K62: =IF(K$5<=$D62,0,IF(SUM($D62,I19)>K$5,$AM30/I19,$AM30-SUM($I62:J62))) -> 0 | L62: =IF(L$5<=$D62,0,IF(SUM($D62,I19)>L$5,$AM30/I19,$AM30-SUM($I62:K62))) -> 0 | M62: =IF(M$5<=$D62,0,IF(SUM($D62,I19)>M$5,$AM30/I19,$AM30-SUM($I62:L62))) -> 0 | N62: =IF(N$5<=$D62,0,IF(SUM($D62,I19)>N$5,$AM30/I19,$AM30-SUM($I62:M62))) -> 0 | O62: =IF(O$5<=$D62,0,IF(SUM($D62,I19)>O$5,$AM30/I19,$AM30-SUM($I62:N62))) -> 0 | P62: =IF(P$5<=$D62,0,IF(SUM($D62,I19)>P$5,$AM30/I19,$AM30-SUM($I62:O62))) -> 0 | Q62: =IF(Q$5<=$D62,0,IF(SUM($D62,I19)>Q$5,$AM30/I19,$AM30-SUM($I62:P62))) -> 0 | R62: =IF(R$5<=$D62,0,IF(SUM($D62,I19)>R$5,$AM30/I19,$AM30-SUM($I62:Q62))) -> 0 | S62: =IF(S$5<=$D62,0,IF(SUM($D62,I19)>S$5,$AM30/I19,$AM30-SUM($I62:R62))) -> 0 | T62: =IF(T$5<=$D62,0,IF(SUM($D62,I19)>T$5,$AM30/I19,$AM30-SUM($I62:S62))) -> 0 | U62: =IF(U$5<=$D62,0,IF(SUM($D62,I19)>U$5,$AM30/I19,$AM30-SUM($I62:T62))) -> 0 | V62: =IF(V$5<=$D62,0,IF(SUM($D62,I19)>V$5,$AM30/I19,$AM30-SUM($I62:U62))) -> 0 | W62: =IF(W$5<=$D62,0,IF(SUM($D62,I19)>W$5,$AM30/I19,$AM30-SUM($I62:V62))) -> 0 | X62: =IF(X$5<=$D62,0,IF(SUM($D62,I19)>X$5,$AM30/I19,$AM30-SUM($I62:W62))) -> 0 | Y62: =IF(Y$5<=$D62,0,IF(SUM($D62,I19)>Y$5,$AM30/I19,$AM30-SUM($I62:X62))) -> 0 | Z62: =IF(Z$5<=$D62,0,IF(SUM($D62,I19)>Z$5,$AM30/I19,$AM30-SUM($I62:Y62))) -> 0 | AA62: =IF(AA$5<=$D62,0,IF(SUM($D62,I19)>AA$5,$AM30/I19,$AM30-SUM($I62:Z62))) -> 0 | AB62: =IF(AB$5<=$D62,0,IF(SUM($D62,I19)>AB$5,$AM30/I19,$AM30-SUM($I62:AA62))) -> 0 | AC62: =IF(AC$5<=$D62,0,IF(SUM($D62,I19)>AC$5,$AM30/I19,$AM30-SUM($I62:AB62))) -> 0 | AD62: =IF(AD$5<=$D62,0,IF(SUM($D62,I19)>AD$5,$AM30/I19,$AM30-SUM($I62:AC62))) -> 0 | AE62: =IF(AE$5<=$D62,0,IF(SUM($D62,I19)>AE$5,$AM30/I19,$AM30-SUM($I62:AD62))) -> 0 | AF62: =IF(AF$5<=$D62,0,IF(SUM($D62,I19)>AF$5,$AM30/I19,$AM30-SUM($I62:AE62))) -> 0 | AG62: =IF(AG$5<=$D62,0,IF(SUM($D62,I19)>AG$5,$AM30/I19,$AM30-SUM($I62:AF62))) -> 0 | AH62: =IF(AH$5<=$D62,0,IF(SUM($D62,I19)>AH$5,$AM30/I19,$AM30-SUM($I62:AG62))) -> 0 | AI62: =IF(AI$5<=$D62,0,IF(SUM($D62,I19)>AI$5,$AM30/I19,$AM30-SUM($I62:AH62))) -> 0 | AJ62: =IF(AJ$5<=$D62,0,IF(SUM($D62,I19)>AJ$5,$AM30/I19,$AM30-SUM($I62:AI62))) -> 0 | AK62: =IF(AK$5<=$D62,0,IF(SUM($D62,I19)>AK$5,$AM30/I19,$AM30-SUM($I62:AJ62))) -> 0 | AL62: =IF(AL$5<=$D62,0,IF(SUM($D62,I19)>AL$5,$AM30/I19,$AM30-SUM($I62:AK62))) -> 0 | AM62: =IF(AM$5<=$D62,0,IF(SUM($D62,I19)>AM$5,$AM30/I19,$AM30-SUM($I62:AL62))) -> 0 | AN62: =IF(AN$5<=$D62,0,IF(SUM($D62,I19)>AN$5,$AM30/I19,$AM30-SUM($I62:AM62))) -> 0 | AO62: =IF(AO$5<=$D62,0,IF(SUM($D62,I19)>AO$5,$AM30/I19,$AM30-SUM($I62:AN62))) -> 0 | AP62: =IF(AP$5<=$D62,0,IF(SUM($D62,I19)>AP$5,$AM30/I19,$AM30-SUM($I62:AO62))) -> 0 | AQ62: =IF(AQ$5<=$D62,0,IF(SUM($D62,I19)>AQ$5,$AM30/I19,$AM30-SUM($I62:AP62))) -> 0 | AR62: =IF(AR$5<=$D62,0,IF(SUM($D62,I19)>AR$5,$AM30/I19,$AM30-SUM($I62:AQ62))) -> 0 | AS62: =IF(AS$5<=$D62,0,IF(SUM($D62,I19)>AS$5,$AM30/I19,$AM30-SUM($I62:AR62))) -> 0 | AT62: =IF(AT$5<=$D62,0,IF(SUM($D62,I19)>AT$5,$AM30/I19,$AM30-SUM($I62:AS62))) -> 0 | AU62: =IF(AU$5<=$D62,0,IF(SUM($D62,I19)>AU$5,$AM30/I19,$AM30-SUM($I62:AT62))) -> 0 | AV62: =IF(AV$5<=$D62,0,IF(SUM($D62,I19)>AV$5,$AM30/I19,$AM30-SUM($I62:AU62))) -> 0 | AW62: =IF(AW$5<=$D62,0,IF(SUM($D62,I19)>AW$5,$AM30/I19,$AM30-SUM($I62:AV62))) -> 0 | AX62: =IF(AX$5<=$D62,0,IF(SUM($D62,I19)>AX$5,$AM30/I19,$AM30-SUM($I62:AW62))) -> 0 | AY62: =IF(AY$5<=$D62,0,IF(SUM($D62,I19)>AY$5,$AM30/I19,$AM30-SUM($I62:AX62))) -> 0 | AZ62: =IF(AZ$5<=$D62,0,IF(SUM($D62,I19)>AZ$5,$AM30/I19,$AM30-SUM($I62:AY62))) -> 0 | BA62: =IF(BA$5<=$D62,0,IF(SUM($D62,I19)>BA$5,$AM30/I19,$AM30-SUM($I62:AZ62))) -> 0 | BB62: =IF(BB$5<=$D62,0,IF(SUM($D62,I19)>BB$5,$AM30/I19,$AM30-SUM($I62:BA62))) -> 0 | BC62: =IF(BC$5<=$D62,0,IF(SUM($D62,I19)>BC$5,$AM30/I19,$AM30-SUM($I62:BB62))) -> 0 | BD62: =IF(BD$5<=$D62,0,IF(SUM($D62,I19)>BD$5,$AM30/I19,$AM30-SUM($I62:BC62))) -> 0 | BE62: =IF(BE$5<=$D62,0,IF(SUM($D62,I19)>BE$5,$AM30/I19,$AM30-SUM($I62:BD62))) -> 0 | BF62: =IF(BF$5<=$D62,0,IF(SUM($D62,I19)>BF$5,$AM30/I19,$AM30-SUM($I62:BE62))) -> 0 | BG62: =IF(BG$5<=$D62,0,IF(SUM($D62,I19)>BG$5,$AM30/I19,$AM30-SUM($I62:BF62))) -> 0 | BH62: =IF(BH$5<=$D62,0,IF(SUM($D62,I19)>BH$5,$AM30/I19,$AM30-SUM($I62:BG62))) -> 0 | BI62: =IF(BI$5<=$D62,0,IF(SUM($D62,I19)>BI$5,$AM30/I19,$AM30-SUM($I62:BH62))) -> 0 | BJ62: =IF(BJ$5<=$D62,0,IF(SUM($D62,I19)>BJ$5,$AM30/I19,$AM30-SUM($I62:BI62))) -> 0 | BK62: =IF(BK$5<=$D62,0,IF(SUM($D62,I19)>BK$5,$AM30/I19,$AM30-SUM($I62:BJ62))) -> 0 | BL62: =IF(BL$5<=$D62,0,IF(SUM($D62,I19)>BL$5,$AM30/I19,$AM30-SUM($I62:BK62))) -> 0 | BM62: =IF(BM$5<=$D62,0,IF(SUM($D62,I19)>BM$5,$AM30/I19,$AM30-SUM($I62:BL62))) -> 0 | BN62: =IF(BN$5<=$D62,0,IF(SUM($D62,I19)>BN$5,$AM30/I19,$AM30-SUM($I62:BM62))) -> 0 | BO62: =IF(BO$5<=$D62,0,IF(SUM($D62,I19)>BO$5,$AM30/I19,$AM30-SUM($I62:BN62))) -> 0 | BP62: =IF(BP$5<=$D62,0,IF(SUM($D62,I19)>BP$5,$AM30/I19,$AM30-SUM($I62:BO62))) -> 0 | BQ62: =IF(BQ$5<=$D62,0,IF(SUM($D62,I19)>BQ$5,$AM30/I19,$AM30-SUM($I62:BP62))) -> 0
D64: Total Depreciation | E64: $m Real (2010) | J64: =J24+SUM(J32:J62) -> 4.567519391 | K64: =K24+SUM(K32:K62) -> 5.055536906 | L64: 5.426328947 | M64: 5.941124223 | N64: 6.512767504 | O64: 7.303945789 | P64: 7.303945789 | Q64: 7.303945789 | R64: 7.303945789 | S64: 7.303945789 | T64: 7.303945789 | U64: 7.303945789 | V64: 7.303945789 | W64: 7.303945789 | X64: 7.303945789 | Y64: 7.303945789 | Z64: 7.303945789 | AA64: 7.303945789 | AB64: 7.303945789 | AC64: 7.303945789 | AD64: 7.303945789 | AE64: 7.303945789 | AF64: 7.303945789 | AG64: 7.303945789 | AH64: 7.303945789 | AI64: 7.303945789 | AJ64: 7.303945789 | AK64: 7.303945789 | AL64: 6.682588289 | AM64: 2.736426398 | AN64: 2.736426398 | AO64: 2.736426398 | AP64: 2.736426398 | AQ64: 2.736426398 | AR64: 2.736426398 | AS64: 2.736426398 | AT64: 2.736426398 | AU64: 2.736426398 | AV64: 2.736426398 | AW64: 2.736426398 | AX64: 2.736426398 | AY64: 2.736426398 | AZ64: 2.736426398 | BA64: 2.736426398 | BB64: 2.702950335 | BC64: 2.480304221 | BD64: 2.024950552 | BE64: 1.614033278 | BF64: 1.083397806 | BG64: 0.4840590928 | BH64: 0 | BI64: 0 | BJ64: 0 | BK64: 0 | BL64: 0 | BM64: 0 | BN64: 0 | BO64: 0 | BP64: 0 | BQ64: 0
D65: Capex Closing RAB | E65: $m Real (2010) | J65: =J30-SUM(J33:J62)+I65 -> 21.82480641 | K65: =K30-SUM(K33:K62)+J65 -> 37.9191128 | L65: 60.08264751 | M65: 84.27370694 | N65: 112.3381851 | O65: 109.7218991 | P65: 107.1056131 | Q65: 104.4893271 | R65: 101.8730411 | S65: 99.25675508 | T65: 96.64046908 | U65: 94.02418307 | V65: 91.40789707 | W65: 88.79161106 | X65: 86.17532506 | Y65: 83.55903906 | Z65: 80.94275305 | AA65: 78.32646705 | AB65: 75.71018105 | AC65: 73.09389504 | AD65: 70.47760904 | AE65: 67.86132303 | AF65: 65.24503703 | AG65: 62.62875103 | AH65: 60.01246502 | AI65: 57.39617902 | AJ65: 54.77989302 | AK65: 52.16360701 | AL65: 49.54732101 | AM65: 46.93103501 | AN65: 44.314749 | AO65: 41.698463 | AP65: 39.08217699 | AQ65: 36.46589099 | AR65: 33.84960499 | AS65: 31.23331898 | AT65: 28.61703298 | AU65: 26.00074698 | AV65: 23.38446097 | AW65: 20.76817497 | AX65: 18.15188896 | AY65: 15.53560296 | AZ65: 12.91931696 | BA65: 10.30303095 | BB65: 7.68674495 | BC65: 5.206440729 | BD65: 3.181490177 | BE65: 1.567456899 | BF65: 0.4840590928 | BG65: 1.878497358e-13 | BH65: 1.878497358e-13 | BI65: 1.878497358e-13 | BJ65: 1.878497358e-13 | BK65: 1.878497358e-13 | BL65: 1.878497358e-13 | BM65: 1.878497358e-13 | BN65: 1.878497358e-13 | BO65: 1.878497358e-13 | BP65: 1.878497358e-13 | BQ65: 1.878497358e-13
D66: ="Total Closing RAB - "&B17 -> Total Closing RAB - Subtransmission | E66: $m Real (2010) | J66: =J65+J27 -> 149.0939918 | K66: 160.6207788 | L66: 178.2167942 | M66: 197.8403342 | N66: 221.337293 | O66: 214.1534876 | P66: 206.9696822 | Q66: 199.7858768 | R66: 192.6020714 | S66: 185.418266 | T66: 178.2344606 | U66: 171.0506552 | V66: 163.8668498 | W66: 156.6830444 | X66: 149.499239 | Y66: 142.3154336 | Z66: 135.1316282 | AA66: 127.9478228 | AB66: 120.7640175 | AC66: 113.5802121 | AD66: 106.3964067 | AE66: 99.21260127 | AF66: 92.02879588 | AG66: 84.84499048 | AH66: 77.66118509 | AI66: 70.47737969 | AJ66: 63.2935743 | AK66: 56.1097689 | AL66: 49.54732101 | AM66: 46.93103501 | AN66: 44.314749 | AO66: 41.698463 | AP66: 39.08217699 | AQ66: 36.46589099 | AR66: 33.84960499 | AS66: 31.23331898 | AT66: 28.61703298 | AU66: 26.00074698 | AV66: 23.38446097 | AW66: 20.76817497 | AX66: 18.15188896 | AY66: 15.53560296 | AZ66: 12.91931696 | BA66: 10.30303095 | BB66: 7.68674495 | BC66: 5.206440729 | BD66: 3.181490177 | BE66: 1.567456899 | BF66: 0.4840590928 | BG66: 2.020605905e-13 | BH66: 2.020605905e-13 | BI66: 2.020605905e-13 | BJ66: 2.020605905e-13 | BK66: 2.020605905e-13 | BL66: 2.020605905e-13 | BM66: 2.020605905e-13 | BN66: 2.020605905e-13 | BO66: 2.020605905e-13 | BP66: 2.020605905e-13 | BQ66: 2.020605905e-13
B69: =Inputs!C44 -> Distribution system assets
C70: Remaining Life | I70: =INDEX(Inputs!$E$43:$E$49, MATCH(B69, Inputs!$C$43:$C$49,0)) -> 21.72397412
C71: Standard Life | I71: =IF(INDEX(Inputs!$F$43:$F$49,MATCH(B69,Inputs!$C$43:$C$49,0))<0,1,INDEX(Inputs!$F$43:$F$49,MATCH(B69,Inputs!$C$43:$C$49,0))) -> 50.01844156
C73: Existing Assets
D74: Depreciation on Existing Opening RAB | E74: $m Real (2010) | J74: =IF(OR($I70=0,I79=0),0,IF($I77>0,(MIN($I79/$I70, $I79-SUM($I74:I74))),(MAX($I79/$I70, $I79-SUM($I74:I74))))) -> 24.18492025 | K74: =IF(OR($I70=0,J79=0),0,IF($I77>0,(MIN($I79/$I70, $I79-SUM($I74:J74))),(MAX($I79/$I70, $I79-SUM($I74:J74))))) -> 24.18492025 | L74: =IF(OR($I70=0,K79=0),0,IF($I77>0,(MIN($I79/$I70, $I79-SUM($I74:K74))),(MAX($I79/$I70, $I79-SUM($I74:K74))))) -> 24.18492025 | M74: =IF(OR($I70=0,L79=0),0,IF($I77>0,(MIN($I79/$I70, $I79-SUM($I74:L74))),(MAX($I79/$I70, $I79-SUM($I74:L74))))) -> 24.18492025 | N74: =IF(OR($I70=0,M79=0),0,IF($I77>0,(MIN($I79/$I70, $I79-SUM($I74:M74))),(MAX($I79/$I70, $I79-SUM($I74:M74))))) -> 24.18492025 | O74: =IF(OR($I70=0,N79=0),0,IF($I77>0,(MIN($I79/$I70, $I79-SUM($I74:N74))),(MAX($I79/$I70, $I79-SUM($I74:N74))))) -> 24.18492025 | P74: =IF(OR($I70=0,O79=0),0,IF($I77>0,(MIN($I79/$I70, $I79-SUM($I74:O74))),(MAX($I79/$I70, $I79-SUM($I74:O74))))) -> 24.18492025 | Q74: =IF(OR($I70=0,P79=0),0,IF($I77>0,(MIN($I79/$I70, $I79-SUM($I74:P74))),(MAX($I79/$I70, $I79-SUM($I74:P74))))) -> 24.18492025 | R74: =IF(OR($I70=0,Q79=0),0,IF($I77>0,(MIN($I79/$I70, $I79-SUM($I74:Q74))),(MAX($I79/$I70, $I79-SUM($I74:Q74))))) -> 24.18492025 | S74: =IF(OR($I70=0,R79=0),0,IF($I77>0,(MIN($I79/$I70, $I79-SUM($I74:R74))),(MAX($I79/$I70, $I79-SUM($I74:R74))))) -> 24.18492025 | T74: =IF(OR($I70=0,S79=0),0,IF($I77>0,(MIN($I79/$I70, $I79-SUM($I74:S74))),(MAX($I79/$I70, $I79-SUM($I74:S74))))) -> 24.18492025 | U74: =IF(OR($I70=0,T79=0),0,IF($I77>0,(MIN($I79/$I70, $I79-SUM($I74:T74))),(MAX($I79/$I70, $I79-SUM($I74:T74))))) -> 24.18492025 | V74: =IF(OR($I70=0,U79=0),0,IF($I77>0,(MIN($I79/$I70, $I79-SUM($I74:U74))),(MAX($I79/$I70, $I79-SUM($I74:U74))))) -> 24.18492025 | W74: =IF(OR($I70=0,V79=0),0,IF($I77>0,(MIN($I79/$I70, $I79-SUM($I74:V74))),(MAX($I79/$I70, $I79-SUM($I74:V74))))) -> 24.18492025 | X74: =IF(OR($I70=0,W79=0),0,IF($I77>0,(MIN($I79/$I70, $I79-SUM($I74:W74))),(MAX($I79/$I70, $I79-SUM($I74:W74))))) -> 24.18492025 | Y74: =IF(OR($I70=0,X79=0),0,IF($I77>0,(MIN($I79/$I70, $I79-SUM($I74:X74))),(MAX($I79/$I70, $I79-SUM($I74:X74))))) -> 24.18492025 | Z74: =IF(OR($I70=0,Y79=0),0,IF($I77>0,(MIN($I79/$I70, $I79-SUM($I74:Y74))),(MAX($I79/$I70, $I79-SUM($I74:Y74))))) -> 24.18492025 | AA74: =IF(OR($I70=0,Z79=0),0,IF($I77>0,(MIN($I79/$I70, $I79-SUM($I74:Z74))),(MAX($I79/$I70, $I79-SUM($I74:Z74))))) -> 24.18492025 | AB74: =IF(OR($I70=0,AA79=0),0,IF($I77>0,(MIN($I79/$I70, $I79-SUM($I74:AA74))),(MAX($I79/$I70, $I79-SUM($I74:AA74))))) -> 24.18492025 | AC74: =IF(OR($I70=0,AB79=0),0,IF($I77>0,(MIN($I79/$I70, $I79-SUM($I74:AB74))),(MAX($I79/$I70, $I79-SUM($I74:AB74))))) -> 24.18492025 | AD74: =IF(OR($I70=0,AC79=0),0,IF($I77>0,(MIN($I79/$I70, $I79-SUM($I74:AC74))),(MAX($I79/$I70, $I79-SUM($I74:AC74))))) -> 24.18492025 | AE74: =IF(OR($I70=0,AD79=0),0,IF($I77>0,(MIN($I79/$I70, $I79-SUM($I74:AD74))),(MAX($I79/$I70, $I79-SUM($I74:AD74))))) -> 17.5092563 | AF74: =IF(OR($I70=0,AE79=0),0,IF($I77>0,(MIN($I79/$I70, $I79-SUM($I74:AE74))),(MAX($I79/$I70, $I79-SUM($I74:AE74))))) -> 0 | AG74: =IF(OR($I70=0,AF79=0),0,IF($I77>0,(MIN($I79/$I70, $I79-SUM($I74:AF74))),(MAX($I79/$I70, $I79-SUM($I74:AF74))))) -> 0 | AH74: =IF(OR($I70=0,AG79=0),0,IF($I77>0,(MIN($I79/$I70, $I79-SUM($I74:AG74))),(MAX($I79/$I70, $I79-SUM($I74:AG74))))) -> 0 | AI74: =IF(OR($I70=0,AH79=0),0,IF($I77>0,(MIN($I79/$I70, $I79-SUM($I74:AH74))),(MAX($I79/$I70, $I79-SUM($I74:AH74))))) -> 0 | AJ74: =IF(OR($I70=0,AI79=0),0,IF($I77>0,(MIN($I79/$I70, $I79-SUM($I74:AI74))),(MAX($I79/$I70, $I79-SUM($I74:AI74))))) -> 0 | AK74: =IF(OR($I70=0,AJ79=0),0,IF($I77>0,(MIN($I79/$I70, $I79-SUM($I74:AJ74))),(MAX($I79/$I70, $I79-SUM($I74:AJ74))))) -> 0 | AL74: =IF(OR($I70=0,AK79=0),0,IF($I77>0,(MIN($I79/$I70, $I79-SUM($I74:AK74))),(MAX($I79/$I70, $I79-SUM($I74:AK74))))) -> 0 | AM74: =IF(OR($I70=0,AL79=0),0,IF($I77>0,(MIN($I79/$I70, $I79-SUM($I74:AL74))),(MAX($I79/$I70, $I79-SUM($I74:AL74))))) -> 0 | AN74: =IF(OR($I70=0,AM79=0),0,IF($I77>0,(MIN($I79/$I70, $I79-SUM($I74:AM74))),(MAX($I79/$I70, $I79-SUM($I74:AM74))))) -> 0 | AO74: =IF(OR($I70=0,AN79=0),0,IF($I77>0,(MIN($I79/$I70, $I79-SUM($I74:AN74))),(MAX($I79/$I70, $I79-SUM($I74:AN74))))) -> 0 | AP74: =IF(OR($I70=0,AO79=0),0,IF($I77>0,(MIN($I79/$I70, $I79-SUM($I74:AO74))),(MAX($I79/$I70, $I79-SUM($I74:AO74))))) -> 0 | AQ74: =IF(OR($I70=0,AP79=0),0,IF($I77>0,(MIN($I79/$I70, $I79-SUM($I74:AP74))),(MAX($I79/$I70, $I79-SUM($I74:AP74))))) -> 0 | AR74: =IF(OR($I70=0,AQ79=0),0,IF($I77>0,(MIN($I79/$I70, $I79-SUM($I74:AQ74))),(MAX($I79/$I70, $I79-SUM($I74:AQ74))))) -> 0 | AS74: =IF(OR($I70=0,AR79=0),0,IF($I77>0,(MIN($I79/$I70, $I79-SUM($I74:AR74))),(MAX($I79/$I70, $I79-SUM($I74:AR74))))) -> 0 | AT74: =IF(OR($I70=0,AS79=0),0,IF($I77>0,(MIN($I79/$I70, $I79-SUM($I74:AS74))),(MAX($I79/$I70, $I79-SUM($I74:AS74))))) -> 0 | AU74: =IF(OR($I70=0,AT79=0),0,IF($I77>0,(MIN($I79/$I70, $I79-SUM($I74:AT74))),(MAX($I79/$I70, $I79-SUM($I74:AT74))))) -> 0 | AV74: =IF(OR($I70=0,AU79=0),0,IF($I77>0,(MIN($I79/$I70, $I79-SUM($I74:AU74))),(MAX($I79/$I70, $I79-SUM($I74:AU74))))) -> 0 | AW74: =IF(OR($I70=0,AV79=0),0,IF($I77>0,(MIN($I79/$I70, $I79-SUM($I74:AV74))),(MAX($I79/$I70, $I79-SUM($I74:AV74))))) -> 0 | AX74: =IF(OR($I70=0,AW79=0),0,IF($I77>0,(MIN($I79/$I70, $I79-SUM($I74:AW74))),(MAX($I79/$I70, $I79-SUM($I74:AW74))))) -> 0 | AY74: =IF(OR($I70=0,AX79=0),0,IF($I77>0,(MIN($I79/$I70, $I79-SUM($I74:AX74))),(MAX($I79/$I70, $I79-SUM($I74:AX74))))) -> 0 | AZ74: =IF(OR($I70=0,AY79=0),0,IF($I77>0,(MIN($I79/$I70, $I79-SUM($I74:AY74))),(MAX($I79/$I70, $I79-SUM($I74:AY74))))) -> 0 | BA74: =IF(OR($I70=0,AZ79=0),0,IF($I77>0,(MIN($I79/$I70, $I79-SUM($I74:AZ74))),(MAX($I79/$I70, $I79-SUM($I74:AZ74))))) -> 0 | BB74: =IF(OR($I70=0,BA79=0),0,IF($I77>0,(MIN($I79/$I70, $I79-SUM($I74:BA74))),(MAX($I79/$I70, $I79-SUM($I74:BA74))))) -> 0 | BC74: =IF(OR($I70=0,BB79=0),0,IF($I77>0,(MIN($I79/$I70, $I79-SUM($I74:BB74))),(MAX($I79/$I70, $I79-SUM($I74:BB74))))) -> 0 | BD74: =IF(OR($I70=0,BC79=0),0,IF($I77>0,(MIN($I79/$I70, $I79-SUM($I74:BC74))),(MAX($I79/$I70, $I79-SUM($I74:BC74))))) -> 0 | BE74: =IF(OR($I70=0,BD79=0),0,IF($I77>0,(MIN($I79/$I70, $I79-SUM($I74:BD74))),(MAX($I79/$I70, $I79-SUM($I74:BD74))))) -> 0 | BF74: =IF(OR($I70=0,BE79=0),0,IF($I77>0,(MIN($I79/$I70, $I79-SUM($I74:BE74))),(MAX($I79/$I70, $I79-SUM($I74:BE74))))) -> 0 | BG74: =IF(OR($I70=0,BF79=0),0,IF($I77>0,(MIN($I79/$I70, $I79-SUM($I74:BF74))),(MAX($I79/$I70, $I79-SUM($I74:BF74))))) -> 0 | BH74: =IF(OR($I70=0,BG79=0),0,IF($I77>0,(MIN($I79/$I70, $I79-SUM($I74:BG74))),(MAX($I79/$I70, $I79-SUM($I74:BG74))))) -> 0 | BI74: =IF(OR($I70=0,BH79=0),0,IF($I77>0,(MIN($I79/$I70, $I79-SUM($I74:BH74))),(MAX($I79/$I70, $I79-SUM($I74:BH74))))) -> 0 | BJ74: =IF(OR($I70=0,BI79=0),0,IF($I77>0,(MIN($I79/$I70, $I79-SUM($I74:BI74))),(MAX($I79/$I70, $I79-SUM($I74:BI74))))) -> 0 | BK74: =IF(OR($I70=0,BJ79=0),0,IF($I77>0,(MIN($I79/$I70, $I79-SUM($I74:BJ74))),(MAX($I79/$I70, $I79-SUM($I74:BJ74))))) -> 0 | BL74: =IF(OR($I70=0,BK79=0),0,IF($I77>0,(MIN($I79/$I70, $I79-SUM($I74:BK74))),(MAX($I79/$I70, $I79-SUM($I74:BK74))))) -> 0 | BM74: =IF(OR($I70=0,BL79=0),0,IF($I77>0,(MIN($I79/$I70, $I79-SUM($I74:BL74))),(MAX($I79/$I70, $I79-SUM($I74:BL74))))) -> 0 | BN74: =IF(OR($I70=0,BM79=0),0,IF($I77>0,(MIN($I79/$I70, $I79-SUM($I74:BM74))),(MAX($I79/$I70, $I79-SUM($I74:BM74))))) -> 0 | BO74: =IF(OR($I70=0,BN79=0),0,IF($I77>0,(MIN($I79/$I70, $I79-SUM($I74:BN74))),(MAX($I79/$I70, $I79-SUM($I74:BN74))))) -> 0 | BP74: =IF(OR($I70=0,BO79=0),0,IF($I77>0,(MIN($I79/$I70, $I79-SUM($I74:BO74))),(MAX($I79/$I70, $I79-SUM($I74:BO74))))) -> 0 | BQ74: =IF(OR($I70=0,BP79=0),0,IF($I77>0,(MIN($I79/$I70, $I79-SUM($I74:BP74))),(MAX($I79/$I70, $I79-SUM($I74:BP74))))) -> 0
D75: Depreciation on RAB adjustments | E75: $m Real (2010) | O75: =IF(OR($I70=0,N79=0),0,IF($N78>0,(MIN($N78/IF($I70<=5,1,($I70-5)),$N78-SUM($N75:N75))), (MAX($N78/IF($I70<=5,1,($I70-5)),$N78-SUM($N75:N75))))) -> 0 | P75: =IF(OR($I70=0,O79=0),0,IF($N78>0,(MIN($N78/IF($I70<=5,1,($I70-5)),$N78-SUM($N75:O75))), (MAX($N78/IF($I70<=5,1,($I70-5)),$N78-SUM($N75:O75))))) -> 0 | Q75: =IF(OR($I70=0,P79=0),0,IF($N78>0,(MIN($N78/IF($I70<=5,1,($I70-5)),$N78-SUM($N75:P75))), (MAX($N78/IF($I70<=5,1,($I70-5)),$N78-SUM($N75:P75))))) -> 0 | R75: =IF(OR($I70=0,Q79=0),0,IF($N78>0,(MIN($N78/IF($I70<=5,1,($I70-5)),$N78-SUM($N75:Q75))), (MAX($N78/IF($I70<=5,1,($I70-5)),$N78-SUM($N75:Q75))))) -> 0 | S75: =IF(OR($I70=0,R79=0),0,IF($N78>0,(MIN($N78/IF($I70<=5,1,($I70-5)),$N78-SUM($N75:R75))), (MAX($N78/IF($I70<=5,1,($I70-5)),$N78-SUM($N75:R75))))) -> 0 | T75: =IF(OR($I70=0,S79=0),0,IF($N78>0,(MIN($N78/IF($I70<=5,1,($I70-5)),$N78-SUM($N75:S75))), (MAX($N78/IF($I70<=5,1,($I70-5)),$N78-SUM($N75:S75))))) -> 0 | U75: =IF(OR($I70=0,T79=0),0,IF($N78>0,(MIN($N78/IF($I70<=5,1,($I70-5)),$N78-SUM($N75:T75))), (MAX($N78/IF($I70<=5,1,($I70-5)),$N78-SUM($N75:T75))))) -> 0 | V75: =IF(OR($I70=0,U79=0),0,IF($N78>0,(MIN($N78/IF($I70<=5,1,($I70-5)),$N78-SUM($N75:U75))), (MAX($N78/IF($I70<=5,1,($I70-5)),$N78-SUM($N75:U75))))) -> 0 | W75: =IF(OR($I70=0,V79=0),0,IF($N78>0,(MIN($N78/IF($I70<=5,1,($I70-5)),$N78-SUM($N75:V75))), (MAX($N78/IF($I70<=5,1,($I70-5)),$N78-SUM($N75:V75))))) -> 0 | X75: =IF(OR($I70=0,W79=0),0,IF($N78>0,(MIN($N78/IF($I70<=5,1,($I70-5)),$N78-SUM($N75:W75))), (MAX($N78/IF($I70<=5,1,($I70-5)),$N78-SUM($N75:W75))))) -> 0 | Y75: =IF(OR($I70=0,X79=0),0,IF($N78>0,(MIN($N78/IF($I70<=5,1,($I70-5)),$N78-SUM($N75:X75))), (MAX($N78/IF($I70<=5,1,($I70-5)),$N78-SUM($N75:X75))))) -> 0 | Z75: =IF(OR($I70=0,Y79=0),0,IF($N78>0,(MIN($N78/IF($I70<=5,1,($I70-5)),$N78-SUM($N75:Y75))), (MAX($N78/IF($I70<=5,1,($I70-5)),$N78-SUM($N75:Y75))))) -> 0 | AA75: =IF(OR($I70=0,Z79=0),0,IF($N78>0,(MIN($N78/IF($I70<=5,1,($I70-5)),$N78-SUM($N75:Z75))), (MAX($N78/IF($I70<=5,1,($I70-5)),$N78-SUM($N75:Z75))))) -> 0 | AB75: =IF(OR($I70=0,AA79=0),0,IF($N78>0,(MIN($N78/IF($I70<=5,1,($I70-5)),$N78-SUM($N75:AA75))), (MAX($N78/IF($I70<=5,1,($I70-5)),$N78-SUM($N75:AA75))))) -> 0 | AC75: =IF(OR($I70=0,AB79=0),0,IF($N78>0,(MIN($N78/IF($I70<=5,1,($I70-5)),$N78-SUM($N75:AB75))), (MAX($N78/IF($I70<=5,1,($I70-5)),$N78-SUM($N75:AB75))))) -> 0 | AD75: =IF(OR($I70=0,AC79=0),0,IF($N78>0,(MIN($N78/IF($I70<=5,1,($I70-5)),$N78-SUM($N75:AC75))), (MAX($N78/IF($I70<=5,1,($I70-5)),$N78-SUM($N75:AC75))))) -> 0 | AE75: =IF(OR($I70=0,AD79=0),0,IF($N78>0,(MIN($N78/IF($I70<=5,1,($I70-5)),$N78-SUM($N75:AD75))), (MAX($N78/IF($I70<=5,1,($I70-5)),$N78-SUM($N75:AD75))))) -> 0 | AF75: =IF(OR($I70=0,AE79=0),0,IF($N78>0,(MIN($N78/IF($I70<=5,1,($I70-5)),$N78-SUM($N75:AE75))), (MAX($N78/IF($I70<=5,1,($I70-5)),$N78-SUM($N75:AE75))))) -> 0 | AG75: =IF(OR($I70=0,AF79=0),0,IF($N78>0,(MIN($N78/IF($I70<=5,1,($I70-5)),$N78-SUM($N75:AF75))), (MAX($N78/IF($I70<=5,1,($I70-5)),$N78-SUM($N75:AF75))))) -> 0 | AH75: =IF(OR($I70=0,AG79=0),0,IF($N78>0,(MIN($N78/IF($I70<=5,1,($I70-5)),$N78-SUM($N75:AG75))), (MAX($N78/IF($I70<=5,1,($I70-5)),$N78-SUM($N75:AG75))))) -> 0 | AI75: =IF(OR($I70=0,AH79=0),0,IF($N78>0,(MIN($N78/IF($I70<=5,1,($I70-5)),$N78-SUM($N75:AH75))), (MAX($N78/IF($I70<=5,1,($I70-5)),$N78-SUM($N75:AH75))))) -> 0 | AJ75: =IF(OR($I70=0,AI79=0),0,IF($N78>0,(MIN($N78/IF($I70<=5,1,($I70-5)),$N78-SUM($N75:AI75))), (MAX($N78/IF($I70<=5,1,($I70-5)),$N78-SUM($N75:AI75))))) -> 0 | AK75: =IF(OR($I70=0,AJ79=0),0,IF($N78>0,(MIN($N78/IF($I70<=5,1,($I70-5)),$N78-SUM($N75:AJ75))), (MAX($N78/IF($I70<=5,1,($I70-5)),$N78-SUM($N75:AJ75))))) -> 0 | AL75: =IF(OR($I70=0,AK79=0),0,IF($N78>0,(MIN($N78/IF($I70<=5,1,($I70-5)),$N78-SUM($N75:AK75))), (MAX($N78/IF($I70<=5,1,($I70-5)),$N78-SUM($N75:AK75))))) -> 0 | AM75: =IF(OR($I70=0,AL79=0),0,IF($N78>0,(MIN($N78/IF($I70<=5,1,($I70-5)),$N78-SUM($N75:AL75))), (MAX($N78/IF($I70<=5,1,($I70-5)),$N78-SUM($N75:AL75))))) -> 0 | AN75: =IF(OR($I70=0,AM79=0),0,IF($N78>0,(MIN($N78/IF($I70<=5,1,($I70-5)),$N78-SUM($N75:AM75))), (MAX($N78/IF($I70<=5,1,($I70-5)),$N78-SUM($N75:AM75))))) -> 0 | AO75: =IF(OR($I70=0,AN79=0),0,IF($N78>0,(MIN($N78/IF($I70<=5,1,($I70-5)),$N78-SUM($N75:AN75))), (MAX($N78/IF($I70<=5,1,($I70-5)),$N78-SUM($N75:AN75))))) -> 0 | AP75: =IF(OR($I70=0,AO79=0),0,IF($N78>0,(MIN($N78/IF($I70<=5,1,($I70-5)),$N78-SUM($N75:AO75))), (MAX($N78/IF($I70<=5,1,($I70-5)),$N78-SUM($N75:AO75))))) -> 0 | AQ75: =IF(OR($I70=0,AP79=0),0,IF($N78>0,(MIN($N78/IF($I70<=5,1,($I70-5)),$N78-SUM($N75:AP75))), (MAX($N78/IF($I70<=5,1,($I70-5)),$N78-SUM($N75:AP75))))) -> 0 | AR75: =IF(OR($I70=0,AQ79=0),0,IF($N78>0,(MIN($N78/IF($I70<=5,1,($I70-5)),$N78-SUM($N75:AQ75))), (MAX($N78/IF($I70<=5,1,($I70-5)),$N78-SUM($N75:AQ75))))) -> 0 | AS75: =IF(OR($I70=0,AR79=0),0,IF($N78>0,(MIN($N78/IF($I70<=5,1,($I70-5)),$N78-SUM($N75:AR75))), (MAX($N78/IF($I70<=5,1,($I70-5)),$N78-SUM($N75:AR75))))) -> 0 | AT75: =IF(OR($I70=0,AS79=0),0,IF($N78>0,(MIN($N78/IF($I70<=5,1,($I70-5)),$N78-SUM($N75:AS75))), (MAX($N78/IF($I70<=5,1,($I70-5)),$N78-SUM($N75:AS75))))) -> 0 | AU75: =IF(OR($I70=0,AT79=0),0,IF($N78>0,(MIN($N78/IF($I70<=5,1,($I70-5)),$N78-SUM($N75:AT75))), (MAX($N78/IF($I70<=5,1,($I70-5)),$N78-SUM($N75:AT75))))) -> 0 | AV75: =IF(OR($I70=0,AU79=0),0,IF($N78>0,(MIN($N78/IF($I70<=5,1,($I70-5)),$N78-SUM($N75:AU75))), (MAX($N78/IF($I70<=5,1,($I70-5)),$N78-SUM($N75:AU75))))) -> 0 | AW75: =IF(OR($I70=0,AV79=0),0,IF($N78>0,(MIN($N78/IF($I70<=5,1,($I70-5)),$N78-SUM($N75:AV75))), (MAX($N78/IF($I70<=5,1,($I70-5)),$N78-SUM($N75:AV75))))) -> 0 | AX75: =IF(OR($I70=0,AW79=0),0,IF($N78>0,(MIN($N78/IF($I70<=5,1,($I70-5)),$N78-SUM($N75:AW75))), (MAX($N78/IF($I70<=5,1,($I70-5)),$N78-SUM($N75:AW75))))) -> 0 | AY75: =IF(OR($I70=0,AX79=0),0,IF($N78>0,(MIN($N78/IF($I70<=5,1,($I70-5)),$N78-SUM($N75:AX75))), (MAX($N78/IF($I70<=5,1,($I70-5)),$N78-SUM($N75:AX75))))) -> 0 | AZ75: =IF(OR($I70=0,AY79=0),0,IF($N78>0,(MIN($N78/IF($I70<=5,1,($I70-5)),$N78-SUM($N75:AY75))), (MAX($N78/IF($I70<=5,1,($I70-5)),$N78-SUM($N75:AY75))))) -> 0 | BA75: =IF(OR($I70=0,AZ79=0),0,IF($N78>0,(MIN($N78/IF($I70<=5,1,($I70-5)),$N78-SUM($N75:AZ75))), (MAX($N78/IF($I70<=5,1,($I70-5)),$N78-SUM($N75:AZ75))))) -> 0 | BB75: =IF(OR($I70=0,BA79=0),0,IF($N78>0,(MIN($N78/IF($I70<=5,1,($I70-5)),$N78-SUM($N75:BA75))), (MAX($N78/IF($I70<=5,1,($I70-5)),$N78-SUM($N75:BA75))))) -> 0 | BC75: =IF(OR($I70=0,BB79=0),0,IF($N78>0,(MIN($N78/IF($I70<=5,1,($I70-5)),$N78-SUM($N75:BB75))), (MAX($N78/IF($I70<=5,1,($I70-5)),$N78-SUM($N75:BB75))))) -> 0 | BD75: =IF(OR($I70=0,BC79=0),0,IF($N78>0,(MIN($N78/IF($I70<=5,1,($I70-5)),$N78-SUM($N75:BC75))), (MAX($N78/IF($I70<=5,1,($I70-5)),$N78-SUM($N75:BC75))))) -> 0 | BE75: =IF(OR($I70=0,BD79=0),0,IF($N78>0,(MIN($N78/IF($I70<=5,1,($I70-5)),$N78-SUM($N75:BD75))), (MAX($N78/IF($I70<=5,1,($I70-5)),$N78-SUM($N75:BD75))))) -> 0 | BF75: =IF(OR($I70=0,BE79=0),0,IF($N78>0,(MIN($N78/IF($I70<=5,1,($I70-5)),$N78-SUM($N75:BE75))), (MAX($N78/IF($I70<=5,1,($I70-5)),$N78-SUM($N75:BE75))))) -> 0 | BG75: =IF(OR($I70=0,BF79=0),0,IF($N78>0,(MIN($N78/IF($I70<=5,1,($I70-5)),$N78-SUM($N75:BF75))), (MAX($N78/IF($I70<=5,1,($I70-5)),$N78-SUM($N75:BF75))))) -> 0 | BH75: =IF(OR($I70=0,BG79=0),0,IF($N78>0,(MIN($N78/IF($I70<=5,1,($I70-5)),$N78-SUM($N75:BG75))), (MAX($N78/IF($I70<=5,1,($I70-5)),$N78-SUM($N75:BG75))))) -> 0 | BI75: =IF(OR($I70=0,BH79=0),0,IF($N78>0,(MIN($N78/IF($I70<=5,1,($I70-5)),$N78-SUM($N75:BH75))), (MAX($N78/IF($I70<=5,1,($I70-5)),$N78-SUM($N75:BH75))))) -> 0 | BJ75: =IF(OR($I70=0,BI79=0),0,IF($N78>0,(MIN($N78/IF($I70<=5,1,($I70-5)),$N78-SUM($N75:BI75))), (MAX($N78/IF($I70<=5,1,($I70-5)),$N78-SUM($N75:BI75))))) -> 0 | BK75: =IF(OR($I70=0,BJ79=0),0,IF($N78>0,(MIN($N78/IF($I70<=5,1,($I70-5)),$N78-SUM($N75:BJ75))), (MAX($N78/IF($I70<=5,1,($I70-5)),$N78-SUM($N75:BJ75))))) -> 0 | BL75: =IF(OR($I70=0,BK79=0),0,IF($N78>0,(MIN($N78/IF($I70<=5,1,($I70-5)),$N78-SUM($N75:BK75))), (MAX($N78/IF($I70<=5,1,($I70-5)),$N78-SUM($N75:BK75))))) -> 0 | BM75: =IF(OR($I70=0,BL79=0),0,IF($N78>0,(MIN($N78/IF($I70<=5,1,($I70-5)),$N78-SUM($N75:BL75))), (MAX($N78/IF($I70<=5,1,($I70-5)),$N78-SUM($N75:BL75))))) -> 0 | BN75: =IF(OR($I70=0,BM79=0),0,IF($N78>0,(MIN($N78/IF($I70<=5,1,($I70-5)),$N78-SUM($N75:BM75))), (MAX($N78/IF($I70<=5,1,($I70-5)),$N78-SUM($N75:BM75))))) -> 0 | BO75: =IF(OR($I70=0,BN79=0),0,IF($N78>0,(MIN($N78/IF($I70<=5,1,($I70-5)),$N78-SUM($N75:BN75))), (MAX($N78/IF($I70<=5,1,($I70-5)),$N78-SUM($N75:BN75))))) -> 0 | BP75: =IF(OR($I70=0,BO79=0),0,IF($N78>0,(MIN($N78/IF($I70<=5,1,($I70-5)),$N78-SUM($N75:BO75))), (MAX($N78/IF($I70<=5,1,($I70-5)),$N78-SUM($N75:BO75))))) -> 0 | BQ75: =IF(OR($I70=0,BP79=0),0,IF($N78>0,(MIN($N78/IF($I70<=5,1,($I70-5)),$N78-SUM($N75:BP75))), (MAX($N78/IF($I70<=5,1,($I70-5)),$N78-SUM($N75:BP75))))) -> 0
D76: Total Depreciation on Existing Assets | E76: $m Real (2010) | J76: =SUM(J74:J75) -> 24.18492025 | K76: =SUM(K74:K75) -> 24.18492025 | L76: 24.18492025 | M76: 24.18492025 | N76: 24.18492025 | O76: 24.18492025 | P76: 24.18492025 | Q76: 24.18492025 | R76: 24.18492025 | S76: 24.18492025 | T76: 24.18492025 | U76: 24.18492025 | V76: 24.18492025 | W76: 24.18492025 | X76: 24.18492025 | Y76: 24.18492025 | Z76: 24.18492025 | AA76: 24.18492025 | AB76: 24.18492025 | AC76: 24.18492025 | AD76: 24.18492025 | AE76: 17.5092563 | AF76: 0 | AG76: 0 | AH76: 0 | AI76: 0 | AJ76: 0 | AK76: 0 | AL76: 0 | AM76: 0 | AN76: 0 | AO76: 0 | AP76: 0 | AQ76: 0 | AR76: 0 | AS76: 0 | AT76: 0 | AU76: 0 | AV76: 0 | AW76: 0 | AX76: 0 | AY76: 0 | AZ76: 0 | BA76: 0 | BB76: 0 | BC76: 0 | BD76: 0 | BE76: 0 | BF76: 0 | BG76: 0 | BH76: 0 | BI76: 0 | BJ76: 0 | BK76: 0 | BL76: 0 | BM76: 0 | BN76: 0 | BO76: 0 | BP76: 0 | BQ76: 0
D77: 2010 Closing RAB | I77: =IF(I$5=first_reg_period, INDEX(Inputs!$I$43:$I$49,MATCH(B69,Inputs!$C$43:$C$49,0)),0) -> 525.3925816 | J77: =IF(J$5=first_reg_period, INDEX(Inputs!$I$43:$I$49,MATCH(C69,Inputs!$C$43:$C$49,0)),0) -> 0 | K77: =IF(K$5=first_reg_period, INDEX(Inputs!$I$43:$I$49,MATCH(D69,Inputs!$C$43:$C$49,0)),0) -> 0 | L77: =IF(L$5=first_reg_period, INDEX(Inputs!$I$43:$I$49,MATCH(E69,Inputs!$C$43:$C$49,0)),0) -> 0 | M77: =IF(M$5=first_reg_period, INDEX(Inputs!$I$43:$I$49,MATCH(F69,Inputs!$C$43:$C$49,0)),0) -> 0 | N77: =IF(N$5=first_reg_period, INDEX(Inputs!$I$43:$I$49,MATCH(G69,Inputs!$C$43:$C$49,0)),0) -> 0 | O77: =IF(O$5=first_reg_period, INDEX(Inputs!$I$43:$I$49,MATCH(H69,Inputs!$C$43:$C$49,0)),0) -> 0 | P77: =IF(P$5=first_reg_period, INDEX(Inputs!$I$43:$I$49,MATCH(I69,Inputs!$C$43:$C$49,0)),0) -> 0 | Q77: =IF(Q$5=first_reg_period, INDEX(Inputs!$I$43:$I$49,MATCH(J69,Inputs!$C$43:$C$49,0)),0) -> 0 | R77: =IF(R$5=first_reg_period, INDEX(Inputs!$I$43:$I$49,MATCH(K69,Inputs!$C$43:$C$49,0)),0) -> 0 | S77: =IF(S$5=first_reg_period, INDEX(Inputs!$I$43:$I$49,MATCH(L69,Inputs!$C$43:$C$49,0)),0) -> 0 | T77: =IF(T$5=first_reg_period, INDEX(Inputs!$I$43:$I$49,MATCH(M69,Inputs!$C$43:$C$49,0)),0) -> 0 | U77: =IF(U$5=first_reg_period, INDEX(Inputs!$I$43:$I$49,MATCH(N69,Inputs!$C$43:$C$49,0)),0) -> 0 | V77: =IF(V$5=first_reg_period, INDEX(Inputs!$I$43:$I$49,MATCH(O69,Inputs!$C$43:$C$49,0)),0) -> 0 | W77: =IF(W$5=first_reg_period, INDEX(Inputs!$I$43:$I$49,MATCH(P69,Inputs!$C$43:$C$49,0)),0) -> 0 | X77: =IF(X$5=first_reg_period, INDEX(Inputs!$I$43:$I$49,MATCH(Q69,Inputs!$C$43:$C$49,0)),0) -> 0 | Y77: =IF(Y$5=first_reg_period, INDEX(Inputs!$I$43:$I$49,MATCH(R69,Inputs!$C$43:$C$49,0)),0) -> 0 | Z77: =IF(Z$5=first_reg_period, INDEX(Inputs!$I$43:$I$49,MATCH(S69,Inputs!$C$43:$C$49,0)),0) -> 0 | AA77: =IF(AA$5=first_reg_period, INDEX(Inputs!$I$43:$I$49,MATCH(T69,Inputs!$C$43:$C$49,0)),0) -> 0 | AB77: =IF(AB$5=first_reg_period, INDEX(Inputs!$I$43:$I$49,MATCH(U69,Inputs!$C$43:$C$49,0)),0) -> 0 | AC77: =IF(AC$5=first_reg_period, INDEX(Inputs!$I$43:$I$49,MATCH(V69,Inputs!$C$43:$C$49,0)),0) -> 0 | AD77: =IF(AD$5=first_reg_period, INDEX(Inputs!$I$43:$I$49,MATCH(W69,Inputs!$C$43:$C$49,0)),0) -> 0 | AE77: =IF(AE$5=first_reg_period, INDEX(Inputs!$I$43:$I$49,MATCH(X69,Inputs!$C$43:$C$49,0)),0) -> 0 | AF77: =IF(AF$5=first_reg_period, INDEX(Inputs!$I$43:$I$49,MATCH(Y69,Inputs!$C$43:$C$49,0)),0) -> 0 | AG77: =IF(AG$5=first_reg_period, INDEX(Inputs!$I$43:$I$49,MATCH(Z69,Inputs!$C$43:$C$49,0)),0) -> 0 | AH77: =IF(AH$5=first_reg_period, INDEX(Inputs!$I$43:$I$49,MATCH(AA69,Inputs!$C$43:$C$49,0)),0) -> 0 | AI77: =IF(AI$5=first_reg_period, INDEX(Inputs!$I$43:$I$49,MATCH(AB69,Inputs!$C$43:$C$49,0)),0) -> 0 | AJ77: =IF(AJ$5=first_reg_period, INDEX(Inputs!$I$43:$I$49,MATCH(AC69,Inputs!$C$43:$C$49,0)),0) -> 0 | AK77: =IF(AK$5=first_reg_period, INDEX(Inputs!$I$43:$I$49,MATCH(AD69,Inputs!$C$43:$C$49,0)),0) -> 0 | AL77: =IF(AL$5=first_reg_period, INDEX(Inputs!$I$43:$I$49,MATCH(AE69,Inputs!$C$43:$C$49,0)),0) -> 0 | AM77: =IF(AM$5=first_reg_period, INDEX(Inputs!$I$43:$I$49,MATCH(AF69,Inputs!$C$43:$C$49,0)),0) -> 0 | AN77: =IF(AN$5=first_reg_period, INDEX(Inputs!$I$43:$I$49,MATCH(AG69,Inputs!$C$43:$C$49,0)),0) -> 0 | AO77: =IF(AO$5=first_reg_period, INDEX(Inputs!$I$43:$I$49,MATCH(AH69,Inputs!$C$43:$C$49,0)),0) -> 0 | AP77: =IF(AP$5=first_reg_period, INDEX(Inputs!$I$43:$I$49,MATCH(AI69,Inputs!$C$43:$C$49,0)),0) -> 0 | AQ77: =IF(AQ$5=first_reg_period, INDEX(Inputs!$I$43:$I$49,MATCH(AJ69,Inputs!$C$43:$C$49,0)),0) -> 0 | AR77: =IF(AR$5=first_reg_period, INDEX(Inputs!$I$43:$I$49,MATCH(AK69,Inputs!$C$43:$C$49,0)),0) -> 0 | AS77: =IF(AS$5=first_reg_period, INDEX(Inputs!$I$43:$I$49,MATCH(AL69,Inputs!$C$43:$C$49,0)),0) -> 0 | AT77: =IF(AT$5=first_reg_period, INDEX(Inputs!$I$43:$I$49,MATCH(AM69,Inputs!$C$43:$C$49,0)),0) -> 0 | AU77: =IF(AU$5=first_reg_period, INDEX(Inputs!$I$43:$I$49,MATCH(AN69,Inputs!$C$43:$C$49,0)),0) -> 0 | AV77: =IF(AV$5=first_reg_period, INDEX(Inputs!$I$43:$I$49,MATCH(AO69,Inputs!$C$43:$C$49,0)),0) -> 0 | AW77: =IF(AW$5=first_reg_period, INDEX(Inputs!$I$43:$I$49,MATCH(AP69,Inputs!$C$43:$C$49,0)),0) -> 0 | AX77: =IF(AX$5=first_reg_period, INDEX(Inputs!$I$43:$I$49,MATCH(AQ69,Inputs!$C$43:$C$49,0)),0) -> 0 | AY77: =IF(AY$5=first_reg_period, INDEX(Inputs!$I$43:$I$49,MATCH(AR69,Inputs!$C$43:$C$49,0)),0) -> 0 | AZ77: =IF(AZ$5=first_reg_period, INDEX(Inputs!$I$43:$I$49,MATCH(AS69,Inputs!$C$43:$C$49,0)),0) -> 0 | BA77: =IF(BA$5=first_reg_period, INDEX(Inputs!$I$43:$I$49,MATCH(AT69,Inputs!$C$43:$C$49,0)),0) -> 0 | BB77: =IF(BB$5=first_reg_period, INDEX(Inputs!$I$43:$I$49,MATCH(AU69,Inputs!$C$43:$C$49,0)),0) -> 0 | BC77: =IF(BC$5=first_reg_period, INDEX(Inputs!$I$43:$I$49,MATCH(AV69,Inputs!$C$43:$C$49,0)),0) -> 0 | BD77: =IF(BD$5=first_reg_period, INDEX(Inputs!$I$43:$I$49,MATCH(AW69,Inputs!$C$43:$C$49,0)),0) -> 0 | BE77: =IF(BE$5=first_reg_period, INDEX(Inputs!$I$43:$I$49,MATCH(AX69,Inputs!$C$43:$C$49,0)),0) -> 0 | BF77: =IF(BF$5=first_reg_period, INDEX(Inputs!$I$43:$I$49,MATCH(AY69,Inputs!$C$43:$C$49,0)),0) -> 0 | BG77: =IF(BG$5=first_reg_period, INDEX(Inputs!$I$43:$I$49,MATCH(AZ69,Inputs!$C$43:$C$49,0)),0) -> 0 | BH77: =IF(BH$5=first_reg_period, INDEX(Inputs!$I$43:$I$49,MATCH(BA69,Inputs!$C$43:$C$49,0)),0) -> 0 | BI77: =IF(BI$5=first_reg_period, INDEX(Inputs!$I$43:$I$49,MATCH(BB69,Inputs!$C$43:$C$49,0)),0) -> 0 | BJ77: =IF(BJ$5=first_reg_period, INDEX(Inputs!$I$43:$I$49,MATCH(BC69,Inputs!$C$43:$C$49,0)),0) -> 0 | BK77: =IF(BK$5=first_reg_period, INDEX(Inputs!$I$43:$I$49,MATCH(BD69,Inputs!$C$43:$C$49,0)),0) -> 0 | BL77: =IF(BL$5=first_reg_period, INDEX(Inputs!$I$43:$I$49,MATCH(BE69,Inputs!$C$43:$C$49,0)),0) -> 0 | BM77: =IF(BM$5=first_reg_period, INDEX(Inputs!$I$43:$I$49,MATCH(BF69,Inputs!$C$43:$C$49,0)),0) -> 0 | BN77: =IF(BN$5=first_reg_period, INDEX(Inputs!$I$43:$I$49,MATCH(BG69,Inputs!$C$43:$C$49,0)),0) -> 0 | BO77: =IF(BO$5=first_reg_period, INDEX(Inputs!$I$43:$I$49,MATCH(BH69,Inputs!$C$43:$C$49,0)),0) -> 0 | BP77: =IF(BP$5=first_reg_period, INDEX(Inputs!$I$43:$I$49,MATCH(BI69,Inputs!$C$43:$C$49,0)),0) -> 0 | BQ77: =IF(BQ$5=first_reg_period, INDEX(Inputs!$I$43:$I$49,MATCH(BJ69,Inputs!$C$43:$C$49,0)),0) -> 0
D78: RAB adjustments $m Real (2010) | J78: =IF(J$5=second_reg_period, INDEX(Inputs!$N$116:$N$122,MATCH($B69,Inputs!$C$116:$C$122,0)),0)/conv_2015_2010 -> 0 | K78: =IF(K$5=second_reg_period, INDEX(Inputs!$N$116:$N$122,MATCH($B69,Inputs!$C$116:$C$122,0)),0)/conv_2015_2010 -> 0 | L78: =IF(L$5=second_reg_period, INDEX(Inputs!$N$116:$N$122,MATCH($B69,Inputs!$C$116:$C$122,0)),0)/conv_2015_2010 -> 0 | M78: =IF(M$5=second_reg_period, INDEX(Inputs!$N$116:$N$122,MATCH($B69,Inputs!$C$116:$C$122,0)),0)/conv_2015_2010 -> 0 | N78: =IF(N$5=second_reg_period, INDEX(Inputs!$N$116:$N$122,MATCH($B69,Inputs!$C$116:$C$122,0)),0)/conv_2015_2010 -> 0 | O78: =IF(O$5=second_reg_period, INDEX(Inputs!$N$116:$N$122,MATCH($B69,Inputs!$C$116:$C$122,0)),0)/conv_2015_2010 -> 0 | P78: =IF(P$5=second_reg_period, INDEX(Inputs!$N$116:$N$122,MATCH($B69,Inputs!$C$116:$C$122,0)),0)/conv_2015_2010 -> 0 | Q78: =IF(Q$5=second_reg_period, INDEX(Inputs!$N$116:$N$122,MATCH($B69,Inputs!$C$116:$C$122,0)),0)/conv_2015_2010 -> 0 | R78: =IF(R$5=second_reg_period, INDEX(Inputs!$N$116:$N$122,MATCH($B69,Inputs!$C$116:$C$122,0)),0)/conv_2015_2010 -> 0 | S78: =IF(S$5=second_reg_period, INDEX(Inputs!$N$116:$N$122,MATCH($B69,Inputs!$C$116:$C$122,0)),0)/conv_2015_2010 -> 0 | T78: =IF(T$5=second_reg_period, INDEX(Inputs!$N$116:$N$122,MATCH($B69,Inputs!$C$116:$C$122,0)),0)/conv_2015_2010 -> 0 | U78: =IF(U$5=second_reg_period, INDEX(Inputs!$N$116:$N$122,MATCH($B69,Inputs!$C$116:$C$122,0)),0)/conv_2015_2010 -> 0 | V78: =IF(V$5=second_reg_period, INDEX(Inputs!$N$116:$N$122,MATCH($B69,Inputs!$C$116:$C$122,0)),0)/conv_2015_2010 -> 0 | W78: =IF(W$5=second_reg_period, INDEX(Inputs!$N$116:$N$122,MATCH($B69,Inputs!$C$116:$C$122,0)),0)/conv_2015_2010 -> 0 | X78: =IF(X$5=second_reg_period, INDEX(Inputs!$N$116:$N$122,MATCH($B69,Inputs!$C$116:$C$122,0)),0)/conv_2015_2010 -> 0 | Y78: =IF(Y$5=second_reg_period, INDEX(Inputs!$N$116:$N$122,MATCH($B69,Inputs!$C$116:$C$122,0)),0)/conv_2015_2010 -> 0 | Z78: =IF(Z$5=second_reg_period, INDEX(Inputs!$N$116:$N$122,MATCH($B69,Inputs!$C$116:$C$122,0)),0)/conv_2015_2010 -> 0 | AA78: =IF(AA$5=second_reg_period, INDEX(Inputs!$N$116:$N$122,MATCH($B69,Inputs!$C$116:$C$122,0)),0)/conv_2015_2010 -> 0 | AB78: =IF(AB$5=second_reg_period, INDEX(Inputs!$N$116:$N$122,MATCH($B69,Inputs!$C$116:$C$122,0)),0)/conv_2015_2010 -> 0 | AC78: =IF(AC$5=second_reg_period, INDEX(Inputs!$N$116:$N$122,MATCH($B69,Inputs!$C$116:$C$122,0)),0)/conv_2015_2010 -> 0 | AD78: =IF(AD$5=second_reg_period, INDEX(Inputs!$N$116:$N$122,MATCH($B69,Inputs!$C$116:$C$122,0)),0)/conv_2015_2010 -> 0 | AE78: =IF(AE$5=second_reg_period, INDEX(Inputs!$N$116:$N$122,MATCH($B69,Inputs!$C$116:$C$122,0)),0)/conv_2015_2010 -> 0 | AF78: =IF(AF$5=second_reg_period, INDEX(Inputs!$N$116:$N$122,MATCH($B69,Inputs!$C$116:$C$122,0)),0)/conv_2015_2010 -> 0 | AG78: =IF(AG$5=second_reg_period, INDEX(Inputs!$N$116:$N$122,MATCH($B69,Inputs!$C$116:$C$122,0)),0)/conv_2015_2010 -> 0 | AH78: =IF(AH$5=second_reg_period, INDEX(Inputs!$N$116:$N$122,MATCH($B69,Inputs!$C$116:$C$122,0)),0)/conv_2015_2010 -> 0 | AI78: =IF(AI$5=second_reg_period, INDEX(Inputs!$N$116:$N$122,MATCH($B69,Inputs!$C$116:$C$122,0)),0)/conv_2015_2010 -> 0 | AJ78: =IF(AJ$5=second_reg_period, INDEX(Inputs!$N$116:$N$122,MATCH($B69,Inputs!$C$116:$C$122,0)),0)/conv_2015_2010 -> 0 | AK78: =IF(AK$5=second_reg_period, INDEX(Inputs!$N$116:$N$122,MATCH($B69,Inputs!$C$116:$C$122,0)),0)/conv_2015_2010 -> 0 | AL78: =IF(AL$5=second_reg_period, INDEX(Inputs!$N$116:$N$122,MATCH($B69,Inputs!$C$116:$C$122,0)),0)/conv_2015_2010 -> 0 | AM78: =IF(AM$5=second_reg_period, INDEX(Inputs!$N$116:$N$122,MATCH($B69,Inputs!$C$116:$C$122,0)),0)/conv_2015_2010 -> 0 | AN78: =IF(AN$5=second_reg_period, INDEX(Inputs!$N$116:$N$122,MATCH($B69,Inputs!$C$116:$C$122,0)),0)/conv_2015_2010 -> 0 | AO78: =IF(AO$5=second_reg_period, INDEX(Inputs!$N$116:$N$122,MATCH($B69,Inputs!$C$116:$C$122,0)),0)/conv_2015_2010 -> 0 | AP78: =IF(AP$5=second_reg_period, INDEX(Inputs!$N$116:$N$122,MATCH($B69,Inputs!$C$116:$C$122,0)),0)/conv_2015_2010 -> 0 | AQ78: =IF(AQ$5=second_reg_period, INDEX(Inputs!$N$116:$N$122,MATCH($B69,Inputs!$C$116:$C$122,0)),0)/conv_2015_2010 -> 0 | AR78: =IF(AR$5=second_reg_period, INDEX(Inputs!$N$116:$N$122,MATCH($B69,Inputs!$C$116:$C$122,0)),0)/conv_2015_2010 -> 0 | AS78: =IF(AS$5=second_reg_period, INDEX(Inputs!$N$116:$N$122,MATCH($B69,Inputs!$C$116:$C$122,0)),0)/conv_2015_2010 -> 0 | AT78: =IF(AT$5=second_reg_period, INDEX(Inputs!$N$116:$N$122,MATCH($B69,Inputs!$C$116:$C$122,0)),0)/conv_2015_2010 -> 0 | AU78: =IF(AU$5=second_reg_period, INDEX(Inputs!$N$116:$N$122,MATCH($B69,Inputs!$C$116:$C$122,0)),0)/conv_2015_2010 -> 0 | AV78: =IF(AV$5=second_reg_period, INDEX(Inputs!$N$116:$N$122,MATCH($B69,Inputs!$C$116:$C$122,0)),0)/conv_2015_2010 -> 0 | AW78: =IF(AW$5=second_reg_period, INDEX(Inputs!$N$116:$N$122,MATCH($B69,Inputs!$C$116:$C$122,0)),0)/conv_2015_2010 -> 0 | AX78: =IF(AX$5=second_reg_period, INDEX(Inputs!$N$116:$N$122,MATCH($B69,Inputs!$C$116:$C$122,0)),0)/conv_2015_2010 -> 0 | AY78: =IF(AY$5=second_reg_period, INDEX(Inputs!$N$116:$N$122,MATCH($B69,Inputs!$C$116:$C$122,0)),0)/conv_2015_2010 -> 0 | AZ78: =IF(AZ$5=second_reg_period, INDEX(Inputs!$N$116:$N$122,MATCH($B69,Inputs!$C$116:$C$122,0)),0)/conv_2015_2010 -> 0 | BA78: =IF(BA$5=second_reg_period, INDEX(Inputs!$N$116:$N$122,MATCH($B69,Inputs!$C$116:$C$122,0)),0)/conv_2015_2010 -> 0 | BB78: =IF(BB$5=second_reg_period, INDEX(Inputs!$N$116:$N$122,MATCH($B69,Inputs!$C$116:$C$122,0)),0)/conv_2015_2010 -> 0 | BC78: =IF(BC$5=second_reg_period, INDEX(Inputs!$N$116:$N$122,MATCH($B69,Inputs!$C$116:$C$122,0)),0)/conv_2015_2010 -> 0 | BD78: =IF(BD$5=second_reg_period, INDEX(Inputs!$N$116:$N$122,MATCH($B69,Inputs!$C$116:$C$122,0)),0)/conv_2015_2010 -> 0 | BE78: =IF(BE$5=second_reg_period, INDEX(Inputs!$N$116:$N$122,MATCH($B69,Inputs!$C$116:$C$122,0)),0)/conv_2015_2010 -> 0 | BF78: =IF(BF$5=second_reg_period, INDEX(Inputs!$N$116:$N$122,MATCH($B69,Inputs!$C$116:$C$122,0)),0)/conv_2015_2010 -> 0 | BG78: =IF(BG$5=second_reg_period, INDEX(Inputs!$N$116:$N$122,MATCH($B69,Inputs!$C$116:$C$122,0)),0)/conv_2015_2010 -> 0 | BH78: =IF(BH$5=second_reg_period, INDEX(Inputs!$N$116:$N$122,MATCH($B69,Inputs!$C$116:$C$122,0)),0)/conv_2015_2010 -> 0 | BI78: =IF(BI$5=second_reg_period, INDEX(Inputs!$N$116:$N$122,MATCH($B69,Inputs!$C$116:$C$122,0)),0)/conv_2015_2010 -> 0 | BJ78: =IF(BJ$5=second_reg_period, INDEX(Inputs!$N$116:$N$122,MATCH($B69,Inputs!$C$116:$C$122,0)),0)/conv_2015_2010 -> 0 | BK78: =IF(BK$5=second_reg_period, INDEX(Inputs!$N$116:$N$122,MATCH($B69,Inputs!$C$116:$C$122,0)),0)/conv_2015_2010 -> 0 | BL78: =IF(BL$5=second_reg_period, INDEX(Inputs!$N$116:$N$122,MATCH($B69,Inputs!$C$116:$C$122,0)),0)/conv_2015_2010 -> 0 | BM78: =IF(BM$5=second_reg_period, INDEX(Inputs!$N$116:$N$122,MATCH($B69,Inputs!$C$116:$C$122,0)),0)/conv_2015_2010 -> 0 | BN78: =IF(BN$5=second_reg_period, INDEX(Inputs!$N$116:$N$122,MATCH($B69,Inputs!$C$116:$C$122,0)),0)/conv_2015_2010 -> 0 | BO78: =IF(BO$5=second_reg_period, INDEX(Inputs!$N$116:$N$122,MATCH($B69,Inputs!$C$116:$C$122,0)),0)/conv_2015_2010 -> 0 | BP78: =IF(BP$5=second_reg_period, INDEX(Inputs!$N$116:$N$122,MATCH($B69,Inputs!$C$116:$C$122,0)),0)/conv_2015_2010 -> 0 | BQ78: =IF(BQ$5=second_reg_period, INDEX(Inputs!$N$116:$N$122,MATCH($B69,Inputs!$C$116:$C$122,0)),0)/conv_2015_2010 -> 0
D79: Existing Assets Closing RAB | E79: $m Real (2010) | I79: =H79-I74+I77+I78 -> 525.3925816 | J79: =I79-J76+J77+J78 -> 501.2076614 | K79: =J79-K76+K77+K78 -> 477.0227411 | L79: 452.8378209 | M79: 428.6529006 | N79: 404.4679804 | O79: 380.2830601 | P79: 356.0981399 | Q79: 331.9132196 | R79: 307.7282994 | S79: 283.5433791 | T79: 259.3584588 | U79: 235.1735386 | V79: 210.9886183 | W79: 186.8036981 | X79: 162.6187778 | Y79: 138.4338576 | Z79: 114.2489373 | AA79: 90.06401707 | AB79: 65.87909681 | AC79: 41.69417656 | AD79: 17.5092563 | AE79: -5.329070518e-14 | AF79: -5.329070518e-14 | AG79: -5.329070518e-14 | AH79: -5.329070518e-14 | AI79: -5.329070518e-14 | AJ79: -5.329070518e-14 | AK79: -5.329070518e-14 | AL79: -5.329070518e-14 | AM79: -5.329070518e-14 | AN79: -5.329070518e-14 | AO79: -5.329070518e-14 | AP79: -5.329070518e-14 | AQ79: -5.329070518e-14 | AR79: -5.329070518e-14 | AS79: -5.329070518e-14 | AT79: -5.329070518e-14 | AU79: -5.329070518e-14 | AV79: -5.329070518e-14 | AW79: -5.329070518e-14 | AX79: -5.329070518e-14 | AY79: -5.329070518e-14 | AZ79: -5.329070518e-14 | BA79: -5.329070518e-14 | BB79: -5.329070518e-14 | BC79: -5.329070518e-14 | BD79: -5.329070518e-14 | BE79: -5.329070518e-14 | BF79: -5.329070518e-14 | BG79: -5.329070518e-14 | BH79: -5.329070518e-14 | BI79: -5.329070518e-14 | BJ79: -5.329070518e-14 | BK79: -5.329070518e-14 | BL79: -5.329070518e-14 | BM79: -5.329070518e-14 | BN79: -5.329070518e-14 | BO79: -5.329070518e-14 | BP79: -5.329070518e-14 | BQ79: -5.329070518e-14
D81: 2010 adj capex | N81: =INDEX(Inputs!$N$104:$N$110,MATCH($B69,Inputs!$C$104:$C$110,0))/conv_2015_2010 -> -24.89403473
